Workbook

Sheet DYN_cyclist
A1: CyclistID | B1: Last name | C1: First name | D1: Flat | E1: Mountain | F1: Hill | G1: TT | H1: Stamina | I1: Resistance | J1: Recovery | K1: Cobbles | L1: Sprint | M1: Acceleration | N1: Fighter | O1: Downhill | P1: Prologue | Q1: 2022 Team | R1: 2021 Team | S1: Division | T1: Country | U1: Continent | V1: XP Level | W1: XP Points | X1: Day | Y1: Month | Z1: Year | AA1: Age | AB1: Potential | AC1: OVL | AD1: Wage | AE1: PT RD | AF1: PCT RD | AG1: CT RD | AH1: Training eligible? | AI1: Stagiare | AJ1: Avenir | AK1: Height | AL1: Weight | AM1: National Champion | AN1: National TT Champion | AO1: World Champion | AP1: World TT Champion | AQ1: Former National Champion | AR1: Former National TT Champion | AS1: Former World Champion | AT1: Former World Champion TT | AU1: On Loan? | AV1: Loan In Team | AW1: Wage paid by loaning team (If different from Wage) | AX1: Clause | AY1: Loaned From?
A2: 1 | B2: Evenepoel | C2: Remco | D2: 74 | E2: 69 | F2: 72 | G2: 72 | H2: 74 | I2: 76 | J2: 60 | K2: 63 | L2: 64 | M2: 70 | N2: 80 | O2: 66 | P2: 72 | Q2: Free Agent | R2: Free Agent | S2: - | T2: BEL | U2: EU | V2: 1 | W2: 0 | X2: 25 | Y2: 1 | Z2: 2000 | AA2: 22 | AB2: 4 | AC2: 72.62766352 | AE2: =ROUND(IF($AC2>79,44-(($AC2-79)*(14/4)),IF($AC2>76,67-(($AC2-76)*(23/3)),IF(110-(($AC2-70.4)*(43/5.6))>119,119,110-(($AC2-70.4)*(43/5.6)))))*0.93,0) -> 86 | AF2: =ROUND(IF($AC2>79,37-(($AC2-79)*(9/4)),IF($AC2>76,54-(($AC2-76)*(17/3)),IF(93-(($AC2-70.4)*(39/5.6))>100,100,93-(($AC2-70.4)*(39/5.6)))))*0.93,0) -> 72 | AG2: =ROUND(IF($AC2>79,32-(($AC2-79)*(8/4)),IF($AC2>76,48-(($AC2-76)*(16/3)),IF(86-(($AC2-70.4)*(38/5.6))>95,95,86-(($AC2-70.4)*(38/5.6)))))*0.93,0) -> 66 | AH2: No | AJ2: yes | AK2: 0 | AL2: 0 | AM2: - | AN2: - | AO2: - | AP2: - | AQ2: - | AR2: - | AS2: - | AT2: -
A3: 2 | B3: Meeusen | C3: Tom | D3: 70 | E3: 53 | F3: 64 | G3: 65 | H3: 63 | I3: 65 | J3: 64 | K3: 68 | L3: 70 | M3: 65 | N3: 67 | O3: 70 | P3: 67 | Q3: Free Agent | R3: Free Agent | S3: - | T3: BEL | U3: EU | V3: 4 | W3: 100 | X3: 7 | Y3: 11 | Z3: 1988 | AA3: 34 | AB3: 5 | AC3: 67.99235579 | AE3: =ROUND(IF($AC3>79,44-(($AC3-79)*(14/4)),IF($AC3>76,67-(($AC3-76)*(23/3)),IF(110-(($AC3-70.4)*(43/5.6))>119,119,110-(($AC3-70.4)*(43/5.6)))))*0.93,0) -> 111 | AF3: =ROUND(IF($AC3>79,37-(($AC3-79)*(9/4)),IF($AC3>76,54-(($AC3-76)*(17/3)),IF(93-(($AC3-70.4)*(39/5.6))>100,100,93-(($AC3-70.4)*(39/5.6)))))*0.93,0) -> 93 | AG3: =ROUND(IF($AC3>79,32-(($AC3-79)*(8/4)),IF($AC3>76,48-(($AC3-76)*(16/3)),IF(86-(($AC3-70.4)*(38/5.6))>95,95,86-(($AC3-70.4)*(38/5.6)))))*0.93,0) -> 88 | AH3: No | AK3: 0 | AL3: 0 | AM3: - | AN3: - | AO3: - | AP3: - | AQ3: - | AR3: - | AS3: - | AT3: -
A4: 3 | B4: Imhof | C4: Claudio | D4: 70 | E4: 59 | F4: 62 | G4: 74 | H4: 72 | I4: 67 | J4: 68 | K4: 56 | L4: 64 | M4: 67 | N4: 62 | O4: 65 | P4: 74 | Q4: Free Agent | R4: Free Agent | S4: - | T4: SWI | U4: EU | V4: 4 | W4: 16 | X4: 26 | Y4: 9 | Z4: 1990 | AA4: 32 | AB4: 4 | AC4: 68.90165789 | AE4: =ROUND(IF($AC4>79,44-(($AC4-79)*(14/4)),IF($AC4>76,67-(($AC4-76)*(23/3)),IF(110-(($AC4-70.4)*(43/5.6))>119,119,110-(($AC4-70.4)*(43/5.6)))))*0.93,0) -> 111 | AF4: =ROUND(IF($AC4>79,37-(($AC4-79)*(9/4)),IF($AC4>76,54-(($AC4-76)*(17/3)),IF(93-(($AC4-70.4)*(39/5.6))>100,100,93-(($AC4-70.4)*(39/5.6)))))*0.93,0) -> 93 | AG4: =ROUND(IF($AC4>79,32-(($AC4-79)*(8/4)),IF($AC4>76,48-(($AC4-76)*(16/3)),IF(86-(($AC4-70.4)*(38/5.6))>95,95,86-(($AC4-70.4)*(38/5.6)))))*0.93,0) -> 88 | AH4: No | AK4: 0 | AL4: 0 | AM4: - | AN4: - | AO4: - | AP4: - | AQ4: - | AR4: - | AS4: - | AT4: -
A5: 4 | B5: Gaze | C5: Samuel | D5: 74 | E5: 63 | F5: 69 | G5: 58 | H5: 74 | I5: 79 | J5: 70 | K5: 70 | L5: 68 | M5: 71 | N5: 67 | O5: 72 | P5: 63 | Q5: Free Agent | R5: Free Agent | S5: - | T5: NZL | U5: OC | V5: 4 | W5: 0 | X5: 12 | Y5: 12 | Z5: 1995 | AA5: 27 | AB5: 4 | AC5: 72.11248925 | AE5: =ROUND(IF($AC5>79,44-(($AC5-79)*(14/4)),IF($AC5>76,67-(($AC5-76)*(23/3)),IF(110-(($AC5-70.4)*(43/5.6))>119,119,110-(($AC5-70.4)*(43/5.6)))))*0.93,0) -> 90 | AF5: =ROUND(IF($AC5>79,37-(($AC5-79)*(9/4)),IF($AC5>76,54-(($AC5-76)*(17/3)),IF(93-(($AC5-70.4)*(39/5.6))>100,100,93-(($AC5-70.4)*(39/5.6)))))*0.93,0) -> 75 | AG5: =ROUND(IF($AC5>79,32-(($AC5-79)*(8/4)),IF($AC5>76,48-(($AC5-76)*(16/3)),IF(86-(($AC5-70.4)*(38/5.6))>95,95,86-(($AC5-70.4)*(38/5.6)))))*0.93,0) -> 69 | AH5: No | AK5: 0 | AL5: 0 | AM5: - | AN5: - | AO5: - | AP5: - | AQ5: - | AR5: - | AS5: - | AT5: -
A6: 5 | B6: Wang | C6: Yin Chih | D6: 64 | E6: 71 | F6: 68 | G6: 69 | H6: 68 | I6: 65 | J6: 63 | K6: 53 | L6: 56 | M6: 60 | N6: 62 | O6: 63 | P6: 69 | Q6: Free Agent | R6: Free Agent | S6: - | T6: TPE | U6: AS | V6: 4 | W6: 100 | X6: 12 | Y6: 10 | Z6: 1988 | AA6: 34 | AB6: 4 | AC6: 68.96752331 | AE6: =ROUND(IF($AC6>79,44-(($AC6-79)*(14/4)),IF($AC6>76,67-(($AC6-76)*(23/3)),IF(110-(($AC6-70.4)*(43/5.6))>119,119,110-(($AC6-70.4)*(43/5.6)))))*0.93,0) -> 111 | AF6: =ROUND(IF($AC6>79,37-(($AC6-79)*(9/4)),IF($AC6>76,54-(($AC6-76)*(17/3)),IF(93-(($AC6-70.4)*(39/5.6))>100,100,93-(($AC6-70.4)*(39/5.6)))))*0.93,0) -> 93 | AG6: =ROUND(IF($AC6>79,32-(($AC6-79)*(8/4)),IF($AC6>76,48-(($AC6-76)*(16/3)),IF(86-(($AC6-70.4)*(38/5.6))>95,95,86-(($AC6-70.4)*(38/5.6)))))*0.93,0) -> 88 | AH6: No | AK6: 175 | AL6: 70 | AM6: - | AN6: - | AO6: - | AP6: - | AQ6: - | AR6: - | AS6: - | AT6: -
A7: 6 | B7: Guzman Perez | C7: William | D7: 70 | E7: 60 | F7: 67 | G7: 68 | H7: 64 | I7: 65 | J7: 66 | K7: 61 | L7: 69 | M7: 70 | N7: 67 | O7: 67 | P7: 71 | Q7: Free Agent | R7: Free Agent | S7: - | T7: PUR | U7: NA | V7: 2 | W7: 0 | X7: 19 | Y7: 2 | Z7: 1996 | AA7: 26 | AB7: 3 | AC7: 68.57866989 | AE7: =ROUND(IF($AC7>79,44-(($AC7-79)*(14/4)),IF($AC7>76,67-(($AC7-76)*(23/3)),IF(110-(($AC7-70.4)*(43/5.6))>119,119,110-(($AC7-70.4)*(43/5.6)))))*0.93,0) -> 111 | AF7: =ROUND(IF($AC7>79,37-(($AC7-79)*(9/4)),IF($AC7>76,54-(($AC7-76)*(17/3)),IF(93-(($AC7-70.4)*(39/5.6))>100,100,93-(($AC7-70.4)*(39/5.6)))))*0.93,0) -> 93 | AG7: =ROUND(IF($AC7>79,32-(($AC7-79)*(8/4)),IF($AC7>76,48-(($AC7-76)*(16/3)),IF(86-(($AC7-70.4)*(38/5.6))>95,95,86-(($AC7-70.4)*(38/5.6)))))*0.93,0) -> 88 | AH7: No | AK7: 170 | AL7: 58 | AM7: - | AN7: - | AO7: - | AP7: - | AQ7: - | AR7: - | AS7: - | AT7: -
A8: 7 | B8: Morey | C8: Drew | D8: 66 | E8: 67 | F8: 69 | G8: 61 | H8: 66 | I8: 68 | J8: 67 | K8: 60 | L8: 62 | M8: 63 | N8: 76 | O8: 62 | P8: 61 | Q8: Free Agent | R8: Free Agent | S8: - | T8: AUS | U8: OC | V8: 3 | W8: 35 | X8: 27 | Y8: 11 | Z8: 1996 | AA8: 26 | AB8: 6 | AC8: 68.09453375 | AE8: =ROUND(IF($AC8>79,44-(($AC8-79)*(14/4)),IF($AC8>76,67-(($AC8-76)*(23/3)),IF(110-(($AC8-70.4)*(43/5.6))>119,119,110-(($AC8-70.4)*(43/5.6)))))*0.93,0) -> 111 | AF8: =ROUND(IF($AC8>79,37-(($AC8-79)*(9/4)),IF($AC8>76,54-(($AC8-76)*(17/3)),IF(93-(($AC8-70.4)*(39/5.6))>100,100,93-(($AC8-70.4)*(39/5.6)))))*0.93,0) -> 93 | AG8: =ROUND(IF($AC8>79,32-(($AC8-79)*(8/4)),IF($AC8>76,48-(($AC8-76)*(16/3)),IF(86-(($AC8-70.4)*(38/5.6))>95,95,86-(($AC8-70.4)*(38/5.6)))))*0.93,0) -> 88 | AH8: No | AK8: 0 | AL8: 0 | AM8: - | AN8: - | AO8: - | AP8: - | AQ8: - | AR8: - | AS8: - | AT8: -
A9: 8 | B9: Dyball | C9: Benjamin | D9: 70 | E9: 75 | F9: 72 | G9: 74 | H9: 73 | I9: 69 | J9: 70 | K9: 53 | L9: 60 | M9: 70 | N9: 68 | O9: 63 | P9: 72 | Q9: Free Agent | R9: Generali | S9: - | T9: AUS | U9: OC | V9: 4 | W9: 100 | X9: 20 | Y9: 4 | Z9: 1989 | AA9: 33 | AB9: 5 | AC9: 73.43535786 | AE9: =ROUND(IF($AC9>79,44-(($AC9-79)*(14/4)),IF($AC9>76,67-(($AC9-76)*(23/3)),IF(110-(($AC9-70.4)*(43/5.6))>119,119,110-(($AC9-70.4)*(43/5.6)))))*0.93,0) -> 81 | AF9: =ROUND(IF($AC9>79,37-(($AC9-79)*(9/4)),IF($AC9>76,54-(($AC9-76)*(17/3)),IF(93-(($AC9-70.4)*(39/5.6))>100,100,93-(($AC9-70.4)*(39/5.6)))))*0.93,0) -> 67 | AG9: =ROUND(IF($AC9>79,32-(($AC9-79)*(8/4)),IF($AC9>76,48-(($AC9-76)*(16/3)),IF(86-(($AC9-70.4)*(38/5.6))>95,95,86-(($AC9-70.4)*(38/5.6)))))*0.93,0) -> 61 | AH9: No | AK9: 182 | AL9: 59 | AM9: - | AN9: - | AO9: - | AP9: - | AQ9: - | AR9: - | AS9: - | AT9: -
A10: 9 | B10: Stauff | C10: Andreas | D10: 68 | E10: 50 | F10: 59 | G10: 55 | H10: 65 | I10: 60 | J10: 67 | K10: 59 | L10: 74 | M10: 72 | N10: 53 | O10: 58 | P10: 68 | Q10: Free Agent | R10: Free Agent | S10: - | T10: GER | U10: EU | V10: 4 | W10: 100 | X10: 22 | Y10: 1 | Z10: 1987 | AA10: 35 | AB10: 5 | AC10: 69.39755743 | AE10: =ROUND(IF($AC10>79,44-(($AC10-79)*(14/4)),IF($AC10>76,67-(($AC10-76)*(23/3)),IF(110-(($AC10-70.4)*(43/5.6))>119,119,110-(($AC10-70.4)*(43/5.6)))))*0.93,0) -> 109 | AF10: =ROUND(IF($AC10>79,37-(($AC10-79)*(9/4)),IF($AC10>76,54-(($AC10-76)*(17/3)),IF(93-(($AC10-70.4)*(39/5.6))>100,100,93-(($AC10-70.4)*(39/5.6)))))*0.93,0) -> 93 | AG10: =ROUND(IF($AC10>79,32-(($AC10-79)*(8/4)),IF($AC10>76,48-(($AC10-76)*(16/3)),IF(86-(($AC10-70.4)*(38/5.6))>95,95,86-(($AC10-70.4)*(38/5.6)))))*0.93,0) -> 86 | AH10: No | AK10: 192 | AL10: 82 | AM10: - | AN10: - | AO10: - | AP10: - | AQ10: - | AR10: - | AS10: - | AT10: -
A11: 10 | B11: Silva | C11: Nihal | D11: 75 | E11: 62 | F11: 68 | G11: 62 | H11: 69 | I11: 70 | J11: 77 | K11: 72 | L11: 77 | M11: 78 | N11: 56 | O11: 60 | P11: 62 | Q11: Free Agent | R11: Mapei | S11: - | T11: SRI | U11: AS | V11: 4 | W11: 100 | X11: 3 | Y11: 12 | Z11: 1994 | AA11: 28 | AB11: 4 | AC11: 74.73541042 | AE11: =ROUND(IF($AC11>79,44-(($AC11-79)*(14/4)),IF($AC11>76,67-(($AC11-76)*(23/3)),IF(110-(($AC11-70.4)*(43/5.6))>119,119,110-(($AC11-70.4)*(43/5.6)))))*0.93,0) -> 71 | AF11: =ROUND(IF($AC11>79,37-(($AC11-79)*(9/4)),IF($AC11>76,54-(($AC11-76)*(17/3)),IF(93-(($AC11-70.4)*(39/5.6))>100,100,93-(($AC11-70.4)*(39/5.6)))))*0.93,0) -> 58 | AG11: =ROUND(IF($AC11>79,32-(($AC11-79)*(8/4)),IF($AC11>76,48-(($AC11-76)*(16/3)),IF(86-(($AC11-70.4)*(38/5.6))>95,95,86-(($AC11-70.4)*(38/5.6)))))*0.93,0) -> 53 | AH11: Yes | AK11: 165 | AL11: 60 | AM11: - | AN11: - | AO11: - | AP11: - | AQ11: - | AR11: - | AS11: - | AT11: -
A12: 11 | B12: Noppe | C12: Christophe | D12: 75 | E12: 61 | F12: 69 | G12: 62 | H12: 74 | I12: 73 | J12: 68 | K12: 73 | L12: 75 | M12: 73 | N12: 66 | O12: 68 | P12: 63 | Q12: Binance | R12: Binance Cycling | S12: PCT | T12: BEL | U12: EU | V12: 4 | W12: 100 | X12: 29 | Y12: 11 | Z12: 1994 | AA12: 28 | AB12: 4 | AC12: 72.56573838 | AD12: 50000 | AE12: =ROUND(IF($AC12>79,44-(($AC12-79)*(14/4)),IF($AC12>76,67-(($AC12-76)*(23/3)),IF(110-(($AC12-70.4)*(43/5.6))>119,119,110-(($AC12-70.4)*(43/5.6)))))*0.93,0) -> 87 | AF12: =ROUND(IF($AC12>79,37-(($AC12-79)*(9/4)),IF($AC12>76,54-(($AC12-76)*(17/3)),IF(93-(($AC12-70.4)*(39/5.6))>100,100,93-(($AC12-70.4)*(39/5.6)))))*0.93,0) -> 72 | AG12: =ROUND(IF($AC12>79,32-(($AC12-79)*(8/4)),IF($AC12>76,48-(($AC12-76)*(16/3)),IF(86-(($AC12-70.4)*(38/5.6))>95,95,86-(($AC12-70.4)*(38/5.6)))))*0.93,0) -> 66 | AH12: Yes | AK12: 0 | AL12: 0 | AM12: - | AN12: - | AO12: - | AP12: - | AQ12: - | AR12: - | AS12: - | AT12: -
A13: 12 | B13: Copeland | C13: Tom | D13: 65 | E13: 74 | F13: 67 | G13: 70 | H13: 70 | I13: 66 | J13: 67 | K13: 50 | L13: 55 | M13: 61 | N13: 61 | O13: 58 | P13: 70 | Q13: Free Agent | R13: Free Agent | S13: - | T13: GBR | U13: EU | V13: 4 | W13: 100 | X13: 18 | Y13: 2 | Z13: 1989 | AA13: 33 | AB13: 5 | AC13: 70.80691012 | AE13: =ROUND(IF($AC13>79,44-(($AC13-79)*(14/4)),IF($AC13>76,67-(($AC13-76)*(23/3)),IF(110-(($AC13-70.4)*(43/5.6))>119,119,110-(($AC13-70.4)*(43/5.6)))))*0.93,0) -> 99 | AF13: =ROUND(IF($AC13>79,37-(($AC13-79)*(9/4)),IF($AC13>76,54-(($AC13-76)*(17/3)),IF(93-(($AC13-70.4)*(39/5.6))>100,100,93-(($AC13-70.4)*(39/5.6)))))*0.93,0) -> 84 | AG13: =ROUND(IF($AC13>79,32-(($AC13-79)*(8/4)),IF($AC13>76,48-(($AC13-76)*(16/3)),IF(86-(($AC13-70.4)*(38/5.6))>95,95,86-(($AC13-70.4)*(38/5.6)))))*0.93,0) -> 77 | AH13: No | AK13: 0 | AL13: 0 | AM13: - | AN13: - | AO13: - | AP13: - | AQ13: - | AR13: - | AS13: - | AT13: -
A14: 13 | B14: Chiu | C14: Ho San | D14: 73 | E14: 67 | F14: 74 | G14: 62 | H14: 76 | I14: 73 | J14: 70 | K14: 73 | L14: 71 | M14: 73 | N14: 72 | O14: 68 | P14: 64 | Q14: Free Agent | R14: Free Agent | S14: - | T14: HKG | U14: AS | V14: 4 | W14: 100 | X14: 15 | Y14: 12 | Z14: 1995 | AA14: 27 | AB14: 4 | AC14: 74.38208558 | AE14: =ROUND(IF($AC14>79,44-(($AC14-79)*(14/4)),IF($AC14>76,67-(($AC14-76)*(23/3)),IF(110-(($AC14-70.4)*(43/5.6))>119,119,110-(($AC14-70.4)*(43/5.6)))))*0.93,0) -> 74 | AF14: =ROUND(IF($AC14>79,37-(($AC14-79)*(9/4)),IF($AC14>76,54-(($AC14-76)*(17/3)),IF(93-(($AC14-70.4)*(39/5.6))>100,100,93-(($AC14-70.4)*(39/5.6)))))*0.93,0) -> 61 | AG14: =ROUND(IF($AC14>79,32-(($AC14-79)*(8/4)),IF($AC14>76,48-(($AC14-76)*(16/3)),IF(86-(($AC14-70.4)*(38/5.6))>95,95,86-(($AC14-70.4)*(38/5.6)))))*0.93,0) -> 55 | AH14: No | AK14: 0 | AL14: 0 | AM14: - | AN14: - | AO14: - | AP14: - | AQ14: - | AR14: - | AS14: - | AT14: -
A15: 14 | B15: Carstensen | C15: Lucas | D15: 69 | E15: 60 | F15: 64 | G15: 56 | H15: 68 | I15: 70 | J15: 64 | K15: 55 | L15: 71 | M15: 73 | N15: 61 | O15: 63 | P15: 59 | Q15: Free Agent | R15: Free Agent | S15: - | T15: GER | U15: EU | V15: 4 | W15: 100 | X15: 16 | Y15: 6 | Z15: 1994 | AA15: 28 | AB15: 6 | AC15: 69.17082027 | AE15: =ROUND(IF($AC15>79,44-(($AC15-79)*(14/4)),IF($AC15>76,67-(($AC15-76)*(23/3)),IF(110-(($AC15-70.4)*(43/5.6))>119,119,110-(($AC15-70.4)*(43/5.6)))))*0.93,0) -> 111 | AF15: =ROUND(IF($AC15>79,37-(($AC15-79)*(9/4)),IF($AC15>76,54-(($AC15-76)*(17/3)),IF(93-(($AC15-70.4)*(39/5.6))>100,100,93-(($AC15-70.4)*(39/5.6)))))*0.93,0) -> 93 | AG15: =ROUND(IF($AC15>79,32-(($AC15-79)*(8/4)),IF($AC15>76,48-(($AC15-76)*(16/3)),IF(86-(($AC15-70.4)*(38/5.6))>95,95,86-(($AC15-70.4)*(38/5.6)))))*0.93,0) -> 88 | AH15: No | AK15: 0 | AL15: 0 | AM15: - | AN15: - | AO15: - | AP15: - | AQ15: - | AR15: - | AS15: - | AT15: -
A16: 15 | B16: Blekevicius | C16: Mantas | D16: 66 | E16: 64 | F16: 70 | G16: 64 | H16: 68 | I16: 66 | J16: 63 | K16: 55 | L16: 58 | M16: 68 | N16: 72 | O16: 62 | P16: 64 | Q16: Free Agent | R16: Free Agent | S16: - | T16: LTU | U16: EU | V16: 4 | W16: 100 | X16: 17 | Y16: 10 | Z16: 1989 | AA16: 33 | AB16: 2 | AC16: 68.32285958 | AE16: =ROUND(IF($AC16>79,44-(($AC16-79)*(14/4)),IF($AC16>76,67-(($AC16-76)*(23/3)),IF(110-(($AC16-70.4)*(43/5.6))>119,119,110-(($AC16-70.4)*(43/5.6)))))*0.93,0) -> 111 | AF16: =ROUND(IF($AC16>79,37-(($AC16-79)*(9/4)),IF($AC16>76,54-(($AC16-76)*(17/3)),IF(93-(($AC16-70.4)*(39/5.6))>100,100,93-(($AC16-70.4)*(39/5.6)))))*0.93,0) -> 93 | AG16: =ROUND(IF($AC16>79,32-(($AC16-79)*(8/4)),IF($AC16>76,48-(($AC16-76)*(16/3)),IF(86-(($AC16-70.4)*(38/5.6))>95,95,86-(($AC16-70.4)*(38/5.6)))))*0.93,0) -> 88 | AH16: No | AK16: 0 | AL16: 0 | AM16: - | AN16: - | AO16: - | AP16: - | AQ16: - | AR16: - | AS16: - | AT16: -
A17: 16 | B17: Budenieks | C17: Kristaps | D17: 69 | E17: 75 | F17: 75 | G17: 63 | H17: 70 | I17: 75 | J17: 72 | K17: 70 | L17: 69 | M17: 74 | N17: 75 | O17: 72 | P17: 61 | Q17: Evonik - ELKO | R17: Evonik - ELKO | S17: PT | T17: LAT | U17: EU | V17: 4 | W17: 100 | X17: 24 | Y17: 1 | Z17: 1995 | AA17: 27 | AB17: 2 | AC17: 75.05685251 | AD17: 95000 | AE17: =ROUND(IF($AC17>79,44-(($AC17-79)*(14/4)),IF($AC17>76,67-(($AC17-76)*(23/3)),IF(110-(($AC17-70.4)*(43/5.6))>119,119,110-(($AC17-70.4)*(43/5.6)))))*0.93,0) -> 69 | AF17: =ROUND(IF($AC17>79,37-(($AC17-79)*(9/4)),IF($AC17>76,54-(($AC17-76)*(17/3)),IF(93-(($AC17-70.4)*(39/5.6))>100,100,93-(($AC17-70.4)*(39/5.6)))))*0.93,0) -> 56 | AG17: =ROUND(IF($AC17>79,32-(($AC17-79)*(8/4)),IF($AC17>76,48-(($AC17-76)*(16/3)),IF(86-(($AC17-70.4)*(38/5.6))>95,95,86-(($AC17-70.4)*(38/5.6)))))*0.93,0) -> 51 | AH17: Yes | AK17: 0 | AL17: 0 | AM17: Yes | AN17: - | AO17: - | AP17: - | AQ17: - | AR17: - | AS17: - | AT17: -
A18: 17 | B18: Yzeiraj | C18: Marildo | D18: 77 | E18: 62 | F18: 66 | G18: 60 | H18: 74 | I18: 74 | J18: 65 | K18: 65 | L18: 62 | M18: 71 | N18: 85 | O18: 72 | P18: 66 | Q18: Free Agent | R18: Aker - MOT | S18: - | T18: ALB | U18: EU | V18: 4 | W18: 100 | X18: 25 | Y18: 4 | Z18: 1994 | AA18: 28 | AB18: 3 | AC18: 71.84772235 | AE18: =ROUND(IF($AC18>79,44-(($AC18-79)*(14/4)),IF($AC18>76,67-(($AC18-76)*(23/3)),IF(110-(($AC18-70.4)*(43/5.6))>119,119,110-(($AC18-70.4)*(43/5.6)))))*0.93,0) -> 92 | AF18: =ROUND(IF($AC18>79,37-(($AC18-79)*(9/4)),IF($AC18>76,54-(($AC18-76)*(17/3)),IF(93-(($AC18-70.4)*(39/5.6))>100,100,93-(($AC18-70.4)*(39/5.6)))))*0.93,0) -> 77 | AG18: =ROUND(IF($AC18>79,32-(($AC18-79)*(8/4)),IF($AC18>76,48-(($AC18-76)*(16/3)),IF(86-(($AC18-70.4)*(38/5.6))>95,95,86-(($AC18-70.4)*(38/5.6)))))*0.93,0) -> 71 | AH18: Yes | AK18: 0 | AL18: 0 | AM18: - | AN18: - | AO18: - | AP18: - | AQ18: - | AR18: - | AS18: - | AT18: -
A19: 18 | B19: Devalle | C19: Laurent | D19: 63 | E19: 64 | F19: 63 | G19: 62 | H19: 61 | I19: 64 | J19: 65 | K19: 55 | L19: 53 | M19: 60 | N19: 57 | O19: 59 | P19: 60 | Q19: Free Agent | R19: Free Agent | S19: - | T19: MON | U19: EU | V19: 2 | W19: 0 | X19: 15 | Y19: 7 | Z19: 1993 | AA19: 29 | AB19: 1 | AC19: 63.98760313 | AE19: =ROUND(IF($AC19>79,44-(($AC19-79)*(14/4)),IF($AC19>76,67-(($AC19-76)*(23/3)),IF(110-(($AC19-70.4)*(43/5.6))>119,119,110-(($AC19-70.4)*(43/5.6)))))*0.93,0) -> 111 | AF19: =ROUND(IF($AC19>79,37-(($AC19-79)*(9/4)),IF($AC19>76,54-(($AC19-76)*(17/3)),IF(93-(($AC19-70.4)*(39/5.6))>100,100,93-(($AC19-70.4)*(39/5.6)))))*0.93,0) -> 93 | AG19: =ROUND(IF($AC19>79,32-(($AC19-79)*(8/4)),IF($AC19>76,48-(($AC19-76)*(16/3)),IF(86-(($AC19-70.4)*(38/5.6))>95,95,86-(($AC19-70.4)*(38/5.6)))))*0.93,0) -> 88 | AH19: No | AK19: 0 | AL19: 0 | AM19: - | AN19: - | AO19: - | AP19: - | AQ19: - | AR19: - | AS19: - | AT19: -
A20: 19 | B20: Ringheim | C20: Jo Kogstad | D20: 72 | E20: 68 | F20: 67 | G20: 66 | H20: 75 | I20: 71 | J20: 73 | K20: 78 | L20: 73 | M20: 75 | N20: 66 | O20: 67 | P20: 66 | Q20: Grieg-Maersk | R20: Grieg-Maersk | S20: PT | T20: NOR | U20: EU | V20: 4 | W20: 100 | X20: 16 | Y20: 2 | Z20: 1991 | AA20: 31 | AB20: 5 | AC20: 75.71987942 | AD20: 125000 | AE20: =ROUND(IF($AC20>79,44-(($AC20-79)*(14/4)),IF($AC20>76,67-(($AC20-76)*(23/3)),IF(110-(($AC20-70.4)*(43/5.6))>119,119,110-(($AC20-70.4)*(43/5.6)))))*0.93,0) -> 64 | AF20: =ROUND(IF($AC20>79,37-(($AC20-79)*(9/4)),IF($AC20>76,54-(($AC20-76)*(17/3)),IF(93-(($AC20-70.4)*(39/5.6))>100,100,93-(($AC20-70.4)*(39/5.6)))))*0.93,0) -> 52 | AG20: =ROUND(IF($AC20>79,32-(($AC20-79)*(8/4)),IF($AC20>76,48-(($AC20-76)*(16/3)),IF(86-(($AC20-70.4)*(38/5.6))>95,95,86-(($AC20-70.4)*(38/5.6)))))*0.93,0) -> 46 | AH20: No | AK20: 0 | AL20: 0 | AM20: - | AN20: - | AO20: - | AP20: - | AQ20: - | AR20: - | AS20: - | AT20: -
A21: 20 | B21: Schmid | C21: Mauro | D21: 71 | E21: 73 | F21: 74 | G21: 67 | H21: 69 | I21: 76 | J21: 71 | K21: 69 | L21: 69 | M21: 75 | N21: 74 | O21: 73 | P21: 65 | Q21: Jura GIANTS | R21: Jura - Fiat | S21: CT | T21: SWI | U21: EU | V21: 3 | W21: 30 | X21: 4 | Y21: 12 | Z21: 1999 | AA21: 23 | AB21: 4 | AC21: 74.75146169 | AD21: 90000 | AE21: =ROUND(IF($AC21>79,44-(($AC21-79)*(14/4)),IF($AC21>76,67-(($AC21-76)*(23/3)),IF(110-(($AC21-70.4)*(43/5.6))>119,119,110-(($AC21-70.4)*(43/5.6)))))*0.93,0) -> 71 | AF21: =ROUND(IF($AC21>79,37-(($AC21-79)*(9/4)),IF($AC21>76,54-(($AC21-76)*(17/3)),IF(93-(($AC21-70.4)*(39/5.6))>100,100,93-(($AC21-70.4)*(39/5.6)))))*0.93,0) -> 58 | AG21: =ROUND(IF($AC21>79,32-(($AC21-79)*(8/4)),IF($AC21>76,48-(($AC21-76)*(16/3)),IF(86-(($AC21-70.4)*(38/5.6))>95,95,86-(($AC21-70.4)*(38/5.6)))))*0.93,0) -> 53 | AH21: No | AK21: 178 | AL21: 67 | AM21: - | AN21: - | AO21: - | AP21: - | AQ21: - | AR21: - | AS21: - | AT21: -
A22: 21 | B22: Rossi | C22: Diego | D22: 73 | E22: 65 | F22: 69 | G22: 69 | H22: 70 | I22: 70 | J22: 68 | K22: 70 | L22: 68 | M22: 69 | N22: 70 | O22: 65 | P22: 73 | Q22: Free Agent | R22: Free Agent | S22: - | T22: SMR | U22: EU | V22: 1 | W22: 0 | X22: 16 | Y22: 8 | Z22: 2000 | AA22: 22 | AB22: 3 | AC22: 70.69634425 | AE22: =ROUND(IF($AC22>79,44-(($AC22-79)*(14/4)),IF($AC22>76,67-(($AC22-76)*(23/3)),IF(110-(($AC22-70.4)*(43/5.6))>119,119,110-(($AC22-70.4)*(43/5.6)))))*0.93,0) -> 100 | AF22: =ROUND(IF($AC22>79,37-(($AC22-79)*(9/4)),IF($AC22>76,54-(($AC22-76)*(17/3)),IF(93-(($AC22-70.4)*(39/5.6))>100,100,93-(($AC22-70.4)*(39/5.6)))))*0.93,0) -> 85 | AG22: =ROUND(IF($AC22>79,32-(($AC22-79)*(8/4)),IF($AC22>76,48-(($AC22-76)*(16/3)),IF(86-(($AC22-70.4)*(38/5.6))>95,95,86-(($AC22-70.4)*(38/5.6)))))*0.93,0) -> 78 | AH22: No | AJ22: yes | AK22: 0 | AL22: 0 | AM22: - | AN22: - | AO22: - | AP22: - | AQ22: - | AR22: - | AS22: - | AT22: -
A23: 22 | B23: Ayoob | C23: Isa | D23: 65 | E23: 52 | F23: 56 | G23: 62 | H23: 59 | I23: 63 | J23: 62 | K23: 58 | L23: 67 | M23: 68 | N23: 59 | O23: 61 | P23: 62 | Q23: Free Agent | R23: Free Agent | S23: - | T23: BRN | U23: AS | V23: 2 | W23: 0 | X23: 14 | Y23: 3 | Z23: 1993 | AA23: 29 | AB23: 2 | AC23: 64.56442713 | AE23: =ROUND(IF($AC23>79,44-(($AC23-79)*(14/4)),IF($AC23>76,67-(($AC23-76)*(23/3)),IF(110-(($AC23-70.4)*(43/5.6))>119,119,110-(($AC23-70.4)*(43/5.6)))))*0.93,0) -> 111 | AF23: =ROUND(IF($AC23>79,37-(($AC23-79)*(9/4)),IF($AC23>76,54-(($AC23-76)*(17/3)),IF(93-(($AC23-70.4)*(39/5.6))>100,100,93-(($AC23-70.4)*(39/5.6)))))*0.93,0) -> 93 | AG23: =ROUND(IF($AC23>79,32-(($AC23-79)*(8/4)),IF($AC23>76,48-(($AC23-76)*(16/3)),IF(86-(($AC23-70.4)*(38/5.6))>95,95,86-(($AC23-70.4)*(38/5.6)))))*0.93,0) -> 88 | AH23: No | AK23: 184 | AL23: 68 | AM23: - | AN23: - | AO23: - | AP23: - | AQ23: - | AR23: - | AS23: - | AT23: -
A24: 23 | B24: Kuznetsov | C24: Vyacheslav | D24: 75 | E24: 62 | F24: 69 | G24: 65 | H24: 73 | I24: 71 | J24: 67 | K24: 68 | L24: 71 | M24: 73 | N24: 75 | O24: 69 | P24: 65 | Q24: Free Agent | R24: Strava | S24: - | T24: RUS | U24: EU | V24: 4 | W24: 100 | X24: 24 | Y24: 6 | Z24: 1989 | AA24: 33 | AB24: 5 | AC24: 71.80540117 | AE24: =ROUND(IF($AC24>79,44-(($AC24-79)*(14/4)),IF($AC24>76,67-(($AC24-76)*(23/3)),IF(110-(($AC24-70.4)*(43/5.6))>119,119,110-(($AC24-70.4)*(43/5.6)))))*0.93,0) -> 92 | AF24: =ROUND(IF($AC24>79,37-(($AC24-79)*(9/4)),IF($AC24>76,54-(($AC24-76)*(17/3)),IF(93-(($AC24-70.4)*(39/5.6))>100,100,93-(($AC24-70.4)*(39/5.6)))))*0.93,0) -> 77 | AG24: =ROUND(IF($AC24>79,32-(($AC24-79)*(8/4)),IF($AC24>76,48-(($AC24-76)*(16/3)),IF(86-(($AC24-70.4)*(38/5.6))>95,95,86-(($AC24-70.4)*(38/5.6)))))*0.93,0) -> 71 | AH24: No | AK24: 0 | AL24: 0 | AM24: - | AN24: - | AO24: - | AP24: - | AQ24: - | AR24: - | AS24: - | AT24: -
A25: 24 | B25: Jumchat | C25: Nattapol | D25: 72 | E25: 59 | F25: 64 | G25: 62 | H25: 69 | I25: 71 | J25: 63 | K25: 53 | L25: 72 | M25: 72 | N25: 71 | O25: 74 | P25: 66 | Q25: Free Agent | R25: Free Agent | S25: - | T25: THA | U25: AS | V25: 3 | W25: 0 | X25: 24 | Y25: 6 | Z25: 1996 | AA25: 26 | AB25: 5 | AC25: 69.72013338 | AE25: =ROUND(IF($AC25>79,44-(($AC25-79)*(14/4)),IF($AC25>76,67-(($AC25-76)*(23/3)),IF(110-(($AC25-70.4)*(43/5.6))>119,119,110-(($AC25-70.4)*(43/5.6)))))*0.93,0) -> 107 | AF25: =ROUND(IF($AC25>79,37-(($AC25-79)*(9/4)),IF($AC25>76,54-(($AC25-76)*(17/3)),IF(93-(($AC25-70.4)*(39/5.6))>100,100,93-(($AC25-70.4)*(39/5.6)))))*0.93,0) -> 91 | AG25: =ROUND(IF($AC25>79,32-(($AC25-79)*(8/4)),IF($AC25>76,48-(($AC25-76)*(16/3)),IF(86-(($AC25-70.4)*(38/5.6))>95,95,86-(($AC25-70.4)*(38/5.6)))))*0.93,0) -> 84 | AH25: No | AK25: 0 | AL25: 0 | AM25: - | AN25: - | AO25: - | AP25: - | AQ25: - | AR25: - | AS25: - | AT25: -
A26: 25 | B26: Aniolkowski | C26: Stanislaw | D26: 74 | E26: 62 | F26: 65 | G26: 56 | H26: 74 | I26: 73 | J26: 78 | K26: 62 | L26: 78 | M26: 77 | N26: 57 | O26: 64 | P26: 59 | Q26: Team Popo4Ever p/b Morshynska | R26: Team Popo4Ever p/b Nemiroff | S26: PCT | T26: POL | U26: EU | V26: 4 | W26: 66 | X26: 20 | Y26: 1 | Z26: 1997 | AA26: 25 | AB26: 5 | AC26: 74.5754418 | AD26: 85000 | AE26: =ROUND(IF($AC26>79,44-(($AC26-79)*(14/4)),IF($AC26>76,67-(($AC26-76)*(23/3)),IF(110-(($AC26-70.4)*(43/5.6))>119,119,110-(($AC26-70.4)*(43/5.6)))))*0.93,0) -> 72 | AF26: =ROUND(IF($AC26>79,37-(($AC26-79)*(9/4)),IF($AC26>76,54-(($AC26-76)*(17/3)),IF(93-(($AC26-70.4)*(39/5.6))>100,100,93-(($AC26-70.4)*(39/5.6)))))*0.93,0) -> 59 | AG26: =ROUND(IF($AC26>79,32-(($AC26-79)*(8/4)),IF($AC26>76,48-(($AC26-76)*(16/3)),IF(86-(($AC26-70.4)*(38/5.6))>95,95,86-(($AC26-70.4)*(38/5.6)))))*0.93,0) -> 54 | AH26: No | AK26: 0 | AL26: 0 | AM26: - | AN26: - | AO26: - | AP26: - | AQ26: - | AR26: - | AS26: - | AT26: -
A27: 26 | B27: Taminiaux | C27: Lionel | D27: 68 | E27: 65 | F27: 67 | G27: 59 | H27: 70 | I27: 69 | J27: 59 | K27: 67 | L27: 69 | M27: 69 | N27: 72 | O27: 69 | P27: 64 | Q27: Free Agent | R27: Free Agent | S27: - | T27: BEL | U27: EU | V27: 4 | W27: 100 | X27: 21 | Y27: 5 | Z27: 1996 | AA27: 26 | AB27: 3 | AC27: 69.12533973 | AE27: =ROUND(IF($AC27>79,44-(($AC27-79)*(14/4)),IF($AC27>76,67-(($AC27-76)*(23/3)),IF(110-(($AC27-70.4)*(43/5.6))>119,119,110-(($AC27-70.4)*(43/5.6)))))*0.93,0) -> 111 | AF27: =ROUND(IF($AC27>79,37-(($AC27-79)*(9/4)),IF($AC27>76,54-(($AC27-76)*(17/3)),IF(93-(($AC27-70.4)*(39/5.6))>100,100,93-(($AC27-70.4)*(39/5.6)))))*0.93,0) -> 93 | AG27: =ROUND(IF($AC27>79,32-(($AC27-79)*(8/4)),IF($AC27>76,48-(($AC27-76)*(16/3)),IF(86-(($AC27-70.4)*(38/5.6))>95,95,86-(($AC27-70.4)*(38/5.6)))))*0.93,0) -> 88 | AH27: No | AK27: 183 | AL27: 70 | AM27: - | AN27: - | AO27: - | AP27: - | AQ27: - | AR27: - | AS27: - | AT27: -
A28: 27 | B28: Mansouri | C28: Hamza | D28: 72 | E28: 67 | F28: 69 | G28: 70 | H28: 74 | I28: 71 | J28: 73 | K28: 62 | L28: 68 | M28: 73 | N28: 73 | O28: 65 | P28: 70 | Q28: Free Agent | R28: Free Agent | S28: - | T28: ALG | U28: AF | V28: 2 | W28: 0 | X28: 13 | Y28: 4 | Z28: 1999 | AA28: 23 | AB28: 4 | AC28: 71.15784925 | AE28: =ROUND(IF($AC28>79,44-(($AC28-79)*(14/4)),IF($AC28>76,67-(($AC28-76)*(23/3)),IF(110-(($AC28-70.4)*(43/5.6))>119,119,110-(($AC28-70.4)*(43/5.6)))))*0.93,0) -> 97 | AF28: =ROUND(IF($AC28>79,37-(($AC28-79)*(9/4)),IF($AC28>76,54-(($AC28-76)*(17/3)),IF(93-(($AC28-70.4)*(39/5.6))>100,100,93-(($AC28-70.4)*(39/5.6)))))*0.93,0) -> 82 | AG28: =ROUND(IF($AC28>79,32-(($AC28-79)*(8/4)),IF($AC28>76,48-(($AC28-76)*(16/3)),IF(86-(($AC28-70.4)*(38/5.6))>95,95,86-(($AC28-70.4)*(38/5.6)))))*0.93,0) -> 75 | AH28: No | AK28: 0 | AL28: 0 | AM28: - | AN28: - | AO28: - | AP28: - | AQ28: - | AR28: - | AS28: - | AT28: -
A29: 28 | B29: Szarka | C29: Gergely | D29: 73 | E29: 62 | F29: 66 | G29: 60 | H29: 71 | I29: 70 | J29: 67 | K29: 60 | L29: 74 | M29: 74 | N29: 64 | O29: 65 | P29: 68 | Q29: Jura GIANTS | R29: BWT Hyundai N Cycling | S29: CT | T29: HUN | U29: EU | V29: 3 | W29: 36 | X29: 29 | Y29: 1 | Z29: 1998 | AA29: 24 | AB29: 4 | AC29: 71.49155929 | AD29: 50000 | AE29: =ROUND(IF($AC29>79,44-(($AC29-79)*(14/4)),IF($AC29>76,67-(($AC29-76)*(23/3)),IF(110-(($AC29-70.4)*(43/5.6))>119,119,110-(($AC29-70.4)*(43/5.6)))))*0.93,0) -> 95 | AF29: =ROUND(IF($AC29>79,37-(($AC29-79)*(9/4)),IF($AC29>76,54-(($AC29-76)*(17/3)),IF(93-(($AC29-70.4)*(39/5.6))>100,100,93-(($AC29-70.4)*(39/5.6)))))*0.93,0) -> 79 | AG29: =ROUND(IF($AC29>79,32-(($AC29-79)*(8/4)),IF($AC29>76,48-(($AC29-76)*(16/3)),IF(86-(($AC29-70.4)*(38/5.6))>95,95,86-(($AC29-70.4)*(38/5.6)))))*0.93,0) -> 73 | AH29: No | AK29: 0 | AL29: 0 | AM29: Yes | AN29: - | AO29: - | AP29: - | AQ29: - | AR29: - | AS29: - | AT29: -
A30: 30 | B30: Mohammad | C30: Fikri Azka | D30: 72 | E30: 70 | F30: 74 | G30: 74 | H30: 69 | I30: 72 | J30: 67 | K30: 61 | L30: 67 | M30: 72 | N30: 64 | O30: 65 | P30: 72 | Q30: Free Agent | R30: Free Agent | S30: - | T30: INA | U30: AS | V30: 4 | W30: 100 | X30: 6 | Y30: 11 | Z30: 1996 | AA30: 26 | AB30: 5 | AC30: 73.36999093 | AE30: =ROUND(IF($AC30>79,44-(($AC30-79)*(14/4)),IF($AC30>76,67-(($AC30-76)*(23/3)),IF(110-(($AC30-70.4)*(43/5.6))>119,119,110-(($AC30-70.4)*(43/5.6)))))*0.93,0) -> 81 | AF30: =ROUND(IF($AC30>79,37-(($AC30-79)*(9/4)),IF($AC30>76,54-(($AC30-76)*(17/3)),IF(93-(($AC30-70.4)*(39/5.6))>100,100,93-(($AC30-70.4)*(39/5.6)))))*0.93,0) -> 67 | AG30: =ROUND(IF($AC30>79,32-(($AC30-79)*(8/4)),IF($AC30>76,48-(($AC30-76)*(16/3)),IF(86-(($AC30-70.4)*(38/5.6))>95,95,86-(($AC30-70.4)*(38/5.6)))))*0.93,0) -> 61 | AH30: No | AK30: 0 | AL30: 0 | AM30: - | AN30: - | AO30: - | AP30: - | AQ30: - | AR30: - | AS30: - | AT30: -
A31: 31 | B31: Tennant | C31: Andrew | D31: 71 | E31: 57 | F31: 63 | G31: 72 | H31: 67 | I31: 67 | J31: 68 | K31: 50 | L31: 61 | M31: 59 | N31: 72 | O31: 61 | P31: 71 | Q31: Free Agent | R31: cycleYorkshire | S31: - | T31: GBR | U31: EU | V31: 4 | W31: 100 | X31: 9 | Y31: 3 | Z31: 1987 | AA31: 35 | AB31: 5 | AC31: 67.27894658 | AE31: =ROUND(IF($AC31>79,44-(($AC31-79)*(14/4)),IF($AC31>76,67-(($AC31-76)*(23/3)),IF(110-(($AC31-70.4)*(43/5.6))>119,119,110-(($AC31-70.4)*(43/5.6)))))*0.93,0) -> 111 | AF31: =ROUND(IF($AC31>79,37-(($AC31-79)*(9/4)),IF($AC31>76,54-(($AC31-76)*(17/3)),IF(93-(($AC31-70.4)*(39/5.6))>100,100,93-(($AC31-70.4)*(39/5.6)))))*0.93,0) -> 93 | AG31: =ROUND(IF($AC31>79,32-(($AC31-79)*(8/4)),IF($AC31>76,48-(($AC31-76)*(16/3)),IF(86-(($AC31-70.4)*(38/5.6))>95,95,86-(($AC31-70.4)*(38/5.6)))))*0.93,0) -> 88 | AH31: No | AK31: 192 | AL31: 79 | AM31: - | AN31: - | AO31: - | AP31: - | AQ31: - | AR31: - | AS31: - | AT31: -
A32: 33 | B32: Galvan Ramirez | C32: Oscar Samuel | D32: 71 | E32: 67 | F32: 67 | G32: 68 | H32: 67 | I32: 67 | J32: 64 | K32: 50 | L32: 64 | M32: 63 | N32: 67 | O32: 68 | P32: 71 | Q32: Free Agent | R32: Free Agent | S32: - | T32: MEX | U32: NA | V32: 1 | W32: 0 | X32: 20 | Y32: 5 | Z32: 2000 | AA32: 22 | AB32: 4 | AC32: 67.81281691 | AE32: =ROUND(IF($AC32>79,44-(($AC32-79)*(14/4)),IF($AC32>76,67-(($AC32-76)*(23/3)),IF(110-(($AC32-70.4)*(43/5.6))>119,119,110-(($AC32-70.4)*(43/5.6)))))*0.93,0) -> 111 | AF32: =ROUND(IF($AC32>79,37-(($AC32-79)*(9/4)),IF($AC32>76,54-(($AC32-76)*(17/3)),IF(93-(($AC32-70.4)*(39/5.6))>100,100,93-(($AC32-70.4)*(39/5.6)))))*0.93,0) -> 93 | AG32: =ROUND(IF($AC32>79,32-(($AC32-79)*(8/4)),IF($AC32>76,48-(($AC32-76)*(16/3)),IF(86-(($AC32-70.4)*(38/5.6))>95,95,86-(($AC32-70.4)*(38/5.6)))))*0.93,0) -> 88 | AH32: No | AJ32: yes | AK32: 0 | AL32: 0 | AM32: - | AN32: - | AO32: - | AP32: - | AQ32: - | AR32: - | AS32: - | AT32: -
A33: 34 | B33: Jarboua | C33: Abdelrahaman | D33: 66 | E33: 66 | F33: 64 | G33: 67 | H33: 68 | I33: 66 | J33: 66 | K33: 50 | L33: 50 | M33: 62 | N33: 51 | O33: 53 | P33: 66 | Q33: Free Agent | R33: Free Agent | S33: - | T33: QAT | U33: AS | V33: 2 | W33: 0 | X33: 30 | Y33: 11 | Z33: 1993 | AA33: 29 | AB33: 4 | AC33: 65.93436931 | AE33: =ROUND(IF($AC33>79,44-(($AC33-79)*(14/4)),IF($AC33>76,67-(($AC33-76)*(23/3)),IF(110-(($AC33-70.4)*(43/5.6))>119,119,110-(($AC33-70.4)*(43/5.6)))))*0.93,0) -> 111 | AF33: =ROUND(IF($AC33>79,37-(($AC33-79)*(9/4)),IF($AC33>76,54-(($AC33-76)*(17/3)),IF(93-(($AC33-70.4)*(39/5.6))>100,100,93-(($AC33-70.4)*(39/5.6)))))*0.93,0) -> 93 | AG33: =ROUND(IF($AC33>79,32-(($AC33-79)*(8/4)),IF($AC33>76,48-(($AC33-76)*(16/3)),IF(86-(($AC33-70.4)*(38/5.6))>95,95,86-(($AC33-70.4)*(38/5.6)))))*0.93,0) -> 88 | AH33: No | AK33: 0 | AL33: 0 | AM33: - | AN33: - | AO33: - | AP33: - | AQ33: - | AR33: - | AS33: - | AT33: -
A34: 35 | B34: Cerny | C34: Josef | D34: 71 | E34: 70 | F34: 76 | G34: 68 | H34: 75 | I34: 67 | J34: 66 | K34: 61 | L34: 75 | M34: 79 | N34: 74 | O34: 66 | P34: 71 | Q34: Moser - Sygic | R34: Moser - Sygic | S34: PT | T34: CZE | U34: EU | V34: 4 | W34: 100 | X34: 11 | Y34: 5 | Z34: 1993 | AA34: 29 | AB34: 5 | AC34: 75.55721469 | AD34: 110000 | AE34: =ROUND(IF($AC34>79,44-(($AC34-79)*(14/4)),IF($AC34>76,67-(($AC34-76)*(23/3)),IF(110-(($AC34-70.4)*(43/5.6))>119,119,110-(($AC34-70.4)*(43/5.6)))))*0.93,0) -> 65 | AF34: =ROUND(IF($AC34>79,37-(($AC34-79)*(9/4)),IF($AC34>76,54-(($AC34-76)*(17/3)),IF(93-(($AC34-70.4)*(39/5.6))>100,100,93-(($AC34-70.4)*(39/5.6)))))*0.93,0) -> 53 | AG34: =ROUND(IF($AC34>79,32-(($AC34-79)*(8/4)),IF($AC34>76,48-(($AC34-76)*(16/3)),IF(86-(($AC34-70.4)*(38/5.6))>95,95,86-(($AC34-70.4)*(38/5.6)))))*0.93,0) -> 47 | AH34: Yes | AK34: 0 | AL34: 0 | AM34: - | AN34: - | AO34: - | AP34: - | AQ34: - | AR34: - | AS34: - | AT34: -
A35: 36 | B35: Malecki | C35: Kamil | D35: 73 | E35: 73 | F35: 76 | G35: 70 | H35: 71 | I35: 75 | J35: 72 | K35: 73 | L35: 71 | M35: 76 | N35: 70 | O35: 72 | P35: 71 | Q35: Gazelle | R35: Gazelle | S35: PT | T35: POL | U35: EU | V35: 4 | W35: 100 | X35: 2 | Y35: 1 | Z35: 1996 | AA35: 26 | AB35: 5 | AC35: 76.06091703 | AD35: 130000 | AE35: =ROUND(IF($AC35>79,44-(($AC35-79)*(14/4)),IF($AC35>76,67-(($AC35-76)*(23/3)),IF(110-(($AC35-70.4)*(43/5.6))>119,119,110-(($AC35-70.4)*(43/5.6)))))*0.93,0) -> 62 | AF35: =ROUND(IF($AC35>79,37-(($AC35-79)*(9/4)),IF($AC35>76,54-(($AC35-76)*(17/3)),IF(93-(($AC35-70.4)*(39/5.6))>100,100,93-(($AC35-70.4)*(39/5.6)))))*0.93,0) -> 50 | AG35: =ROUND(IF($AC35>79,32-(($AC35-79)*(8/4)),IF($AC35>76,48-(($AC35-76)*(16/3)),IF(86-(($AC35-70.4)*(38/5.6))>95,95,86-(($AC35-70.4)*(38/5.6)))))*0.93,0) -> 44 | AH35: Yes | AK35: 174 | AL35: 69 | AM35: Yes | AN35: - | AO35: - | AP35: - | AQ35: - | AR35: - | AS35: - | AT35: -
A36: 38 | B36: Pajek | C36: Luka | D36: 67 | E36: 59 | F36: 63 | G36: 60 | H36: 63 | I36: 66 | J36: 61 | K36: 62 | L36: 71 | M36: 72 | N36: 60 | O36: 63 | P36: 63 | Q36: Free Agent | R36: Free Agent | S36: - | T36: SLO | U36: EU | V36: 2 | W36: 58 | X36: 17 | Y36: 6 | Z36: 1996 | AA36: 26 | AB36: 4 | AC36: 68.45691357 | AE36: =ROUND(IF($AC36>79,44-(($AC36-79)*(14/4)),IF($AC36>76,67-(($AC36-76)*(23/3)),IF(110-(($AC36-70.4)*(43/5.6))>119,119,110-(($AC36-70.4)*(43/5.6)))))*0.93,0) -> 111 | AF36: =ROUND(IF($AC36>79,37-(($AC36-79)*(9/4)),IF($AC36>76,54-(($AC36-76)*(17/3)),IF(93-(($AC36-70.4)*(39/5.6))>100,100,93-(($AC36-70.4)*(39/5.6)))))*0.93,0) -> 93 | AG36: =ROUND(IF($AC36>79,32-(($AC36-79)*(8/4)),IF($AC36>76,48-(($AC36-76)*(16/3)),IF(86-(($AC36-70.4)*(38/5.6))>95,95,86-(($AC36-70.4)*(38/5.6)))))*0.93,0) -> 88 | AH36: No | AK36: 165 | AL36: 53 | AM36: - | AN36: - | AO36: - | AP36: - | AQ36: - | AR36: - | AS36: - | AT36: -
A37: 39 | B37: Caiati | C37: Aldo | D37: 62 | E37: 66 | F37: 65 | G37: 60 | H37: 65 | I37: 65 | J37: 62 | K37: 60 | L37: 60 | M37: 64 | N37: 62 | O37: 62 | P37: 60 | Q37: Free Agent | R37: Free Agent | S37: - | T37: ITA | U37: EU | V37: 2 | W37: 0 | X37: 19 | Y37: 12 | Z37: 1998 | AA37: 24 | AB37: 5 | AC37: 65.48629628 | AE37: =ROUND(IF($AC37>79,44-(($AC37-79)*(14/4)),IF($AC37>76,67-(($AC37-76)*(23/3)),IF(110-(($AC37-70.4)*(43/5.6))>119,119,110-(($AC37-70.4)*(43/5.6)))))*0.93,0) -> 111 | AF37: =ROUND(IF($AC37>79,37-(($AC37-79)*(9/4)),IF($AC37>76,54-(($AC37-76)*(17/3)),IF(93-(($AC37-70.4)*(39/5.6))>100,100,93-(($AC37-70.4)*(39/5.6)))))*0.93,0) -> 93 | AG37: =ROUND(IF($AC37>79,32-(($AC37-79)*(8/4)),IF($AC37>76,48-(($AC37-76)*(16/3)),IF(86-(($AC37-70.4)*(38/5.6))>95,95,86-(($AC37-70.4)*(38/5.6)))))*0.93,0) -> 88 | AH37: No | AK37: 170 | AL37: 56 | AM37: - | AN37: - | AO37: - | AP37: - | AQ37: - | AR37: - | AS37: - | AT37: -
A38: 40 | B38: Bonkoungou | C38: Karim | D38: 63 | E38: 64 | F38: 65 | G38: 61 | H38: 65 | I38: 65 | J38: 63 | K38: 50 | L38: 57 | M38: 61 | N38: 64 | O38: 59 | P38: 64 | Q38: Free Agent | R38: Free Agent | S38: - | T38: BUR | U38: AF | V38: 1 | W38: 0 | X38: 12 | Y38: 5 | Z38: 1994 | AA38: 28 | AB38: 3 | AC38: 64.66656696 | AE38: =ROUND(IF($AC38>79,44-(($AC38-79)*(14/4)),IF($AC38>76,67-(($AC38-76)*(23/3)),IF(110-(($AC38-70.4)*(43/5.6))>119,119,110-(($AC38-70.4)*(43/5.6)))))*0.93,0) -> 111 | AF38: =ROUND(IF($AC38>79,37-(($AC38-79)*(9/4)),IF($AC38>76,54-(($AC38-76)*(17/3)),IF(93-(($AC38-70.4)*(39/5.6))>100,100,93-(($AC38-70.4)*(39/5.6)))))*0.93,0) -> 93 | AG38: =ROUND(IF($AC38>79,32-(($AC38-79)*(8/4)),IF($AC38>76,48-(($AC38-76)*(16/3)),IF(86-(($AC38-70.4)*(38/5.6))>95,95,86-(($AC38-70.4)*(38/5.6)))))*0.93,0) -> 88 | AH38: No | AK38: 180 | AL38: 76 | AM38: - | AN38: - | AO38: - | AP38: - | AQ38: - | AR38: - | AS38: - | AT38: -
A39: 41 | B39: Eg | C39: Niklas | D39: 67 | E39: 77 | F39: 71 | G39: 74 | H39: 76 | I39: 74 | J39: 75 | K39: 59 | L39: 60 | M39: 68 | N39: 66 | O39: 65 | P39: 72 | Q39: Carlsberg - Danske Bank | R39: Carlsberg - Danske Bank | S39: PCT | T39: DEN | U39: EU | V39: 4 | W39: 100 | X39: 6 | Y39: 1 | Z39: 1995 | AA39: 27 | AB39: 3 | AC39: 74.89823202 | AD39: 85000 | AE39: =ROUND(IF($AC39>79,44-(($AC39-79)*(14/4)),IF($AC39>76,67-(($AC39-76)*(23/3)),IF(110-(($AC39-70.4)*(43/5.6))>119,119,110-(($AC39-70.4)*(43/5.6)))))*0.93,0) -> 70 | AF39: =ROUND(IF($AC39>79,37-(($AC39-79)*(9/4)),IF($AC39>76,54-(($AC39-76)*(17/3)),IF(93-(($AC39-70.4)*(39/5.6))>100,100,93-(($AC39-70.4)*(39/5.6)))))*0.93,0) -> 57 | AG39: =ROUND(IF($AC39>79,32-(($AC39-79)*(8/4)),IF($AC39>76,48-(($AC39-76)*(16/3)),IF(86-(($AC39-70.4)*(38/5.6))>95,95,86-(($AC39-70.4)*(38/5.6)))))*0.93,0) -> 52 | AH39: Yes | AK39: 165 | AL39: 58 | AM39: - | AN39: - | AO39: - | AP39: - | AQ39: - | AR39: - | AS39: - | AT39: -
A40: 42 | B40: Jacobs | C40: Johan | D40: 74 | E40: 60 | F40: 68 | G40: 62 | H40: 75 | I40: 74 | J40: 66 | K40: 76 | L40: 65 | M40: 67 | N40: 71 | O40: 73 | P40: 60 | Q40: Team UBS | R40: Team UBS | S40: PT | T40: SWI | U40: EU | V40: 4 | W40: 17 | X40: 1 | Y40: 3 | Z40: 1997 | AA40: 25 | AB40: 6 | AC40: 73.95919359 | AD40: 50000 | AE40: =ROUND(IF($AC40>79,44-(($AC40-79)*(14/4)),IF($AC40>76,67-(($AC40-76)*(23/3)),IF(110-(($AC40-70.4)*(43/5.6))>119,119,110-(($AC40-70.4)*(43/5.6)))))*0.93,0) -> 77 | AF40: =ROUND(IF($AC40>79,37-(($AC40-79)*(9/4)),IF($AC40>76,54-(($AC40-76)*(17/3)),IF(93-(($AC40-70.4)*(39/5.6))>100,100,93-(($AC40-70.4)*(39/5.6)))))*0.93,0) -> 63 | AG40: =ROUND(IF($AC40>79,32-(($AC40-79)*(8/4)),IF($AC40>76,48-(($AC40-76)*(16/3)),IF(86-(($AC40-70.4)*(38/5.6))>95,95,86-(($AC40-70.4)*(38/5.6)))))*0.93,0) -> 58 | AH40: No | AK40: 181 | AL40: 66 | AM40: - | AN40: - | AO40: - | AP40: - | AQ40: - | AR40: - | AS40: - | AT40: -
A41: 43 | B41: Venturini | C41: Clement | D41: 75 | E41: 63 | F41: 68 | G41: 65 | H41: 74 | I41: 74 | J41: 79 | K41: 72 | L41: 75 | M41: 77 | N41: 63 | O41: 73 | P41: 69 | Q41: Binance | R41: Binance Cycling | S41: PCT | T41: FRA | U41: EU | V41: 4 | W41: 100 | X41: 16 | Y41: 10 | Z41: 1993 | AA41: 29 | AB41: 5 | AC41: 73.81405112 | AD41: 50000 | AE41: =ROUND(IF($AC41>79,44-(($AC41-79)*(14/4)),IF($AC41>76,67-(($AC41-76)*(23/3)),IF(110-(($AC41-70.4)*(43/5.6))>119,119,110-(($AC41-70.4)*(43/5.6)))))*0.93,0) -> 78 | AF41: =ROUND(IF($AC41>79,37-(($AC41-79)*(9/4)),IF($AC41>76,54-(($AC41-76)*(17/3)),IF(93-(($AC41-70.4)*(39/5.6))>100,100,93-(($AC41-70.4)*(39/5.6)))))*0.93,0) -> 64 | AG41: =ROUND(IF($AC41>79,32-(($AC41-79)*(8/4)),IF($AC41>76,48-(($AC41-76)*(16/3)),IF(86-(($AC41-70.4)*(38/5.6))>95,95,86-(($AC41-70.4)*(38/5.6)))))*0.93,0) -> 58 | AH41: Yes | AK41: 181 | AL41: 65 | AM41: - | AN41: - | AO41: - | AP41: - | AQ41: - | AR41: - | AS41: - | AT41: -
A42: 44 | B42: Holloway | C42: Dan | D42: 74 | E42: 58 | F42: 65 | G42: 67 | H42: 71 | I42: 71 | J42: 72 | K42: 61 | L42: 76 | M42: 76 | N42: 65 | O42: 62 | P42: 67 | Q42: Free Agent | R42: EA Vesuvio | S42: - | T42: USA | U42: NA | V42: 4 | W42: 100 | X42: 21 | Y42: 5 | Z42: 1987 | AA42: 35 | AB42: 7 | AC42: 73.25327029 | AE42: =ROUND(IF($AC42>79,44-(($AC42-79)*(14/4)),IF($AC42>76,67-(($AC42-76)*(23/3)),IF(110-(($AC42-70.4)*(43/5.6))>119,119,110-(($AC42-70.4)*(43/5.6)))))*0.93,0) -> 82 | AF42: =ROUND(IF($AC42>79,37-(($AC42-79)*(9/4)),IF($AC42>76,54-(($AC42-76)*(17/3)),IF(93-(($AC42-70.4)*(39/5.6))>100,100,93-(($AC42-70.4)*(39/5.6)))))*0.93,0) -> 68 | AG42: =ROUND(IF($AC42>79,32-(($AC42-79)*(8/4)),IF($AC42>76,48-(($AC42-76)*(16/3)),IF(86-(($AC42-70.4)*(38/5.6))>95,95,86-(($AC42-70.4)*(38/5.6)))))*0.93,0) -> 62 | AH42: No | AK42: 188 | AL42: 82 | AM42: - | AN42: - | AO42: - | AP42: - | AQ42: - | AR42: - | AS42: - | AT42: -
A43: 45 | B43: Girmay | C43: Biniam | D43: 71 | E43: 64 | F43: 70 | G43: 61 | H43: 70 | I43: 73 | J43: 66 | K43: 73 | L43: 71 | M43: 72 | N43: 63 | O43: 71 | P43: 65 | Q43: Free Agent | R43: Free Agent | S43: - | T43: ERI | U43: AF | V43: 1 | W43: 0 | X43: 2 | Y43: 4 | Z43: 2000 | AA43: 22 | AB43: 4 | AC43: 72.10356298 | AE43: =ROUND(IF($AC43>79,44-(($AC43-79)*(14/4)),IF($AC43>76,67-(($AC43-76)*(23/3)),IF(110-(($AC43-70.4)*(43/5.6))>119,119,110-(($AC43-70.4)*(43/5.6)))))*0.93,0) -> 90 | AF43: =ROUND(IF($AC43>79,37-(($AC43-79)*(9/4)),IF($AC43>76,54-(($AC43-76)*(17/3)),IF(93-(($AC43-70.4)*(39/5.6))>100,100,93-(($AC43-70.4)*(39/5.6)))))*0.93,0) -> 75 | AG43: =ROUND(IF($AC43>79,32-(($AC43-79)*(8/4)),IF($AC43>76,48-(($AC43-76)*(16/3)),IF(86-(($AC43-70.4)*(38/5.6))>95,95,86-(($AC43-70.4)*(38/5.6)))))*0.93,0) -> 69 | AH43: No | AJ43: yes | AK43: 0 | AL43: 0 | AM43: - | AN43: - | AO43: - | AP43: - | AQ43: - | AR43: - | AS43: - | AT43: -
A44: 46 | B44: Arias Villanueva | C44: Sergio | D44: 69 | E44: 60 | F44: 62 | G44: 70 | H44: 69 | I44: 69 | J44: 66 | K44: 61 | L44: 62 | M44: 68 | N44: 68 | O44: 65 | P44: 70 | Q44: Volcanica - Fox | R44: Volcanica - Fox | S44: PCT | T44: CRC | U44: NA | V44: 1 | W44: 32 | X44: 13 | Y44: 9 | Z44: 1998 | AA44: 24 | AB44: 3 | AC44: 66.92111128 | AD44: 50000 | AE44: =ROUND(IF($AC44>79,44-(($AC44-79)*(14/4)),IF($AC44>76,67-(($AC44-76)*(23/3)),IF(110-(($AC44-70.4)*(43/5.6))>119,119,110-(($AC44-70.4)*(43/5.6)))))*0.93,0) -> 111 | AF44: =ROUND(IF($AC44>79,37-(($AC44-79)*(9/4)),IF($AC44>76,54-(($AC44-76)*(17/3)),IF(93-(($AC44-70.4)*(39/5.6))>100,100,93-(($AC44-70.4)*(39/5.6)))))*0.93,0) -> 93 | AG44: =ROUND(IF($AC44>79,32-(($AC44-79)*(8/4)),IF($AC44>76,48-(($AC44-76)*(16/3)),IF(86-(($AC44-70.4)*(38/5.6))>95,95,86-(($AC44-70.4)*(38/5.6)))))*0.93,0) -> 88 | AH44: No | AK44: 0 | AL44: 0 | AM44: - | AN44: - | AO44: - | AP44: - | AQ44: - | AR44: - | AS44: - | AT44: -
A45: 47 | B45: Tratnik | C45: Jan | D45: 71 | E45: 73 | F45: 77 | G45: 62 | H45: 74 | I45: 75 | J45: 70 | K45: 62 | L45: 61 | M45: 70 | N45: 71 | O45: 65 | P45: 62 | Q45: Gazelle | R45: Gazelle | S45: PT | T45: SLO | U45: EU | V45: 4 | W45: 100 | X45: 23 | Y45: 2 | Z45: 1990 | AA45: 32 | AB45: 6 | AC45: 74.74816635 | AD45: 85000 | AE45: =ROUND(IF($AC45>79,44-(($AC45-79)*(14/4)),IF($AC45>76,67-(($AC45-76)*(23/3)),IF(110-(($AC45-70.4)*(43/5.6))>119,119,110-(($AC45-70.4)*(43/5.6)))))*0.93,0) -> 71 | AF45: =ROUND(IF($AC45>79,37-(($AC45-79)*(9/4)),IF($AC45>76,54-(($AC45-76)*(17/3)),IF(93-(($AC45-70.4)*(39/5.6))>100,100,93-(($AC45-70.4)*(39/5.6)))))*0.93,0) -> 58 | AG45: =ROUND(IF($AC45>79,32-(($AC45-79)*(8/4)),IF($AC45>76,48-(($AC45-76)*(16/3)),IF(86-(($AC45-70.4)*(38/5.6))>95,95,86-(($AC45-70.4)*(38/5.6)))))*0.93,0) -> 53 | AH45: No | AK45: 172 | AL45: 61 | AM45: - | AN45: - | AO45: - | AP45: - | AQ45: - | AR45: - | AS45: - | AT45: -
A46: 48 | B46: McEvoy | C46: Jonathan | D46: 69 | E46: 63 | F46: 75 | G46: 64 | H46: 74 | I46: 69 | J46: 69 | K46: 64 | L46: 74 | M46: 78 | N46: 78 | O46: 65 | P46: 64 | Q46: Free Agent | R46: Trans Looney Tunes | S46: - | T46: GBR | U46: EU | V46: 4 | W46: 100 | X46: 2 | Y46: 8 | Z46: 1989 | AA46: 33 | AB46: 6 | AC46: 74.73144609 | AE46: =ROUND(IF($AC46>79,44-(($AC46-79)*(14/4)),IF($AC46>76,67-(($AC46-76)*(23/3)),IF(110-(($AC46-70.4)*(43/5.6))>119,119,110-(($AC46-70.4)*(43/5.6)))))*0.93,0) -> 71 | AF46: =ROUND(IF($AC46>79,37-(($AC46-79)*(9/4)),IF($AC46>76,54-(($AC46-76)*(17/3)),IF(93-(($AC46-70.4)*(39/5.6))>100,100,93-(($AC46-70.4)*(39/5.6)))))*0.93,0) -> 58 | AG46: =ROUND(IF($AC46>79,32-(($AC46-79)*(8/4)),IF($AC46>76,48-(($AC46-76)*(16/3)),IF(86-(($AC46-70.4)*(38/5.6))>95,95,86-(($AC46-70.4)*(38/5.6)))))*0.93,0) -> 53 | AH46: No | AK46: 0 | AL46: 0 | AM46: - | AN46: - | AO46: - | AP46: - | AQ46: - | AR46: - | AS46: - | AT46: -
A47: 49 | B47: Eriksson | C47: Lucas | D47: 72 | E47: 67 | F47: 78 | G47: 61 | H47: 78 | I47: 74 | J47: 75 | K47: 65 | L47: 65 | M47: 76 | N47: 75 | O47: 71 | P47: 61 | Q47: Free Agent | R47: polestar cycling | S47: - | T47: SWD | U47: EU | V47: 4 | W47: 100 | X47: 10 | Y47: 4 | Z47: 1996 | AA47: 26 | AB47: 5 | AC47: 75.66070399 | AE47: =ROUND(IF($AC47>79,44-(($AC47-79)*(14/4)),IF($AC47>76,67-(($AC47-76)*(23/3)),IF(110-(($AC47-70.4)*(43/5.6))>119,119,110-(($AC47-70.4)*(43/5.6)))))*0.93,0) -> 65 | AF47: =ROUND(IF($AC47>79,37-(($AC47-79)*(9/4)),IF($AC47>76,54-(($AC47-76)*(17/3)),IF(93-(($AC47-70.4)*(39/5.6))>100,100,93-(($AC47-70.4)*(39/5.6)))))*0.93,0) -> 52 | AG47: =ROUND(IF($AC47>79,32-(($AC47-79)*(8/4)),IF($AC47>76,48-(($AC47-76)*(16/3)),IF(86-(($AC47-70.4)*(38/5.6))>95,95,86-(($AC47-70.4)*(38/5.6)))))*0.93,0) -> 47 | AH47: Yes | AK47: 178 | AL47: 69 | AM47: - | AN47: - | AO47: - | AP47: - | AQ47: - | AR47: - | AS47: - | AT47: -
A48: 50 | B48: Horvat | C48: Ziga | D48: 71 | E48: 66 | F48: 66 | G48: 56 | H48: 69 | I48: 73 | J48: 65 | K48: 67 | L48: 67 | M48: 70 | N48: 67 | O48: 66 | P48: 59 | Q48: Free Agent | R48: Free Agent | S48: - | T48: SLO | U48: EU | V48: 2 | W48: 0 | X48: 13 | Y48: 9 | Z48: 1998 | AA48: 24 | AB48: 6 | AC48: 69.41363704 | AE48: =ROUND(IF($AC48>79,44-(($AC48-79)*(14/4)),IF($AC48>76,67-(($AC48-76)*(23/3)),IF(110-(($AC48-70.4)*(43/5.6))>119,119,110-(($AC48-70.4)*(43/5.6)))))*0.93,0) -> 109 | AF48: =ROUND(IF($AC48>79,37-(($AC48-79)*(9/4)),IF($AC48>76,54-(($AC48-76)*(17/3)),IF(93-(($AC48-70.4)*(39/5.6))>100,100,93-(($AC48-70.4)*(39/5.6)))))*0.93,0) -> 93 | AG48: =ROUND(IF($AC48>79,32-(($AC48-79)*(8/4)),IF($AC48>76,48-(($AC48-76)*(16/3)),IF(86-(($AC48-70.4)*(38/5.6))>95,95,86-(($AC48-70.4)*(38/5.6)))))*0.93,0) -> 86 | AH48: No | AK48: 174 | AL48: 72 | AM48: - | AN48: - | AO48: - | AP48: - | AQ48: - | AR48: - | AS48: - | AT48: -
A49: 51 | B49: Hoole | C49: Daan | D49: 69 | E49: 60 | F49: 64 | G49: 66 | H49: 63 | I49: 67 | J49: 63 | K49: 66 | L49: 65 | M49: 64 | N49: 67 | O49: 67 | P49: 65 | Q49: Free Agent | R49: Free Agent | S49: - | T49: NED | U49: EU | V49: 2 | W49: 0 | X49: 22 | Y49: 2 | Z49: 1999 | AA49: 23 | AB49: 5 | AC49: 66.96243571 | AE49: =ROUND(IF($AC49>79,44-(($AC49-79)*(14/4)),IF($AC49>76,67-(($AC49-76)*(23/3)),IF(110-(($AC49-70.4)*(43/5.6))>119,119,110-(($AC49-70.4)*(43/5.6)))))*0.93,0) -> 111 | AF49: =ROUND(IF($AC49>79,37-(($AC49-79)*(9/4)),IF($AC49>76,54-(($AC49-76)*(17/3)),IF(93-(($AC49-70.4)*(39/5.6))>100,100,93-(($AC49-70.4)*(39/5.6)))))*0.93,0) -> 93 | AG49: =ROUND(IF($AC49>79,32-(($AC49-79)*(8/4)),IF($AC49>76,48-(($AC49-76)*(16/3)),IF(86-(($AC49-70.4)*(38/5.6))>95,95,86-(($AC49-70.4)*(38/5.6)))))*0.93,0) -> 88 | AH49: No | AK49: 176 | AL49: 71 | AM49: - | AN49: - | AO49: - | AP49: - | AQ49: - | AR49: - | AS49: - | AT49: -
A50: 52 | B50: Petrovski | C50: Mario | D50: 69 | E50: 61 | F50: 66 | G50: 69 | H50: 67 | I50: 70 | J50: 64 | K50: 55 | L50: 70 | M50: 71 | N50: 68 | O50: 68 | P50: 70 | Q50: Free Agent | R50: Free Agent | S50: - | T50: MCD | U50: EU | V50: 1 | W50: 0 | X50: 20 | Y50: 7 | Z50: 1998 | AA50: 24 | AB50: 2 | AC50: 69.10173726 | AE50: =ROUND(IF($AC50>79,44-(($AC50-79)*(14/4)),IF($AC50>76,67-(($AC50-76)*(23/3)),IF(110-(($AC50-70.4)*(43/5.6))>119,119,110-(($AC50-70.4)*(43/5.6)))))*0.93,0) -> 111 | AF50: =ROUND(IF($AC50>79,37-(($AC50-79)*(9/4)),IF($AC50>76,54-(($AC50-76)*(17/3)),IF(93-(($AC50-70.4)*(39/5.6))>100,100,93-(($AC50-70.4)*(39/5.6)))))*0.93,0) -> 93 | AG50: =ROUND(IF($AC50>79,32-(($AC50-79)*(8/4)),IF($AC50>76,48-(($AC50-76)*(16/3)),IF(86-(($AC50-70.4)*(38/5.6))>95,95,86-(($AC50-70.4)*(38/5.6)))))*0.93,0) -> 88 | AH50: No | AK50: 0 | AL50: 0 | AM50: - | AN50: - | AO50: - | AP50: - | AQ50: - | AR50: - | AS50: - | AT50: -
A51: 53 | B51: Suzuki | C51: Ryu | D51: 68 | E51: 65 | F51: 69 | G51: 63 | H51: 67 | I51: 67 | J51: 71 | K51: 68 | L51: 66 | M51: 71 | N51: 66 | O51: 70 | P51: 65 | Q51: Free Agent | R51: Free Agent | S51: - | T51: JPN | U51: AS | V51: 3 | W51: 0 | X51: 29 | Y51: 9 | Z51: 1992 | AA51: 30 | AB51: 3 | AC51: 69.744193 | AE51: =ROUND(IF($AC51>79,44-(($AC51-79)*(14/4)),IF($AC51>76,67-(($AC51-76)*(23/3)),IF(110-(($AC51-70.4)*(43/5.6))>119,119,110-(($AC51-70.4)*(43/5.6)))))*0.93,0) -> 107 | AF51: =ROUND(IF($AC51>79,37-(($AC51-79)*(9/4)),IF($AC51>76,54-(($AC51-76)*(17/3)),IF(93-(($AC51-70.4)*(39/5.6))>100,100,93-(($AC51-70.4)*(39/5.6)))))*0.93,0) -> 91 | AG51: =ROUND(IF($AC51>79,32-(($AC51-79)*(8/4)),IF($AC51>76,48-(($AC51-76)*(16/3)),IF(86-(($AC51-70.4)*(38/5.6))>95,95,86-(($AC51-70.4)*(38/5.6)))))*0.93,0) -> 84 | AH51: No | AK51: 0 | AL51: 0 | AM51: - | AN51: - | AO51: - | AP51: - | AQ51: - | AR51: - | AS51: - | AT51: -
A52: 54 | B52: Plapp | C52: Luke | D52: 69 | E52: 70 | F52: 71 | G52: 70 | H52: 67 | I52: 73 | J52: 69 | K52: 58 | L52: 62 | M52: 67 | N52: 72 | O52: 64 | P52: 71 | Q52: Free Agent | R52: Free Agent | S52: - | T52: AUS | U52: OC | V52: 1 | W52: 0 | X52: 24 | Y52: 12 | Z52: 2000 | AA52: 22 | AB52: 5 | AC52: 70.93277422 | AE52: =ROUND(IF($AC52>79,44-(($AC52-79)*(14/4)),IF($AC52>76,67-(($AC52-76)*(23/3)),IF(110-(($AC52-70.4)*(43/5.6))>119,119,110-(($AC52-70.4)*(43/5.6)))))*0.93,0) -> 98 | AF52: =ROUND(IF($AC52>79,37-(($AC52-79)*(9/4)),IF($AC52>76,54-(($AC52-76)*(17/3)),IF(93-(($AC52-70.4)*(39/5.6))>100,100,93-(($AC52-70.4)*(39/5.6)))))*0.93,0) -> 83 | AG52: =ROUND(IF($AC52>79,32-(($AC52-79)*(8/4)),IF($AC52>76,48-(($AC52-76)*(16/3)),IF(86-(($AC52-70.4)*(38/5.6))>95,95,86-(($AC52-70.4)*(38/5.6)))))*0.93,0) -> 77 | AH52: No | AJ52: yes | AK52: 0 | AL52: 0 | AM52: - | AN52: - | AO52: - | AP52: - | AQ52: - | AR52: - | AS52: - | AT52: -
A53: 55 | B53: Renard | C53: Alexis | D53: 71 | E53: 60 | F53: 67 | G53: 65 | H53: 66 | I53: 73 | J53: 65 | K53: 65 | L53: 67 | M53: 67 | N53: 67 | O53: 65 | P53: 67 | Q53: Free Agent | R53: Free Agent | S53: - | T53: FRA | U53: EU | V53: 2 | W53: 0 | X53: 1 | Y53: 6 | Z53: 1999 | AA53: 23 | AB53: 4 | AC53: 68.7613858 | AE53: =ROUND(IF($AC53>79,44-(($AC53-79)*(14/4)),IF($AC53>76,67-(($AC53-76)*(23/3)),IF(110-(($AC53-70.4)*(43/5.6))>119,119,110-(($AC53-70.4)*(43/5.6)))))*0.93,0) -> 111 | AF53: =ROUND(IF($AC53>79,37-(($AC53-79)*(9/4)),IF($AC53>76,54-(($AC53-76)*(17/3)),IF(93-(($AC53-70.4)*(39/5.6))>100,100,93-(($AC53-70.4)*(39/5.6)))))*0.93,0) -> 93 | AG53: =ROUND(IF($AC53>79,32-(($AC53-79)*(8/4)),IF($AC53>76,48-(($AC53-76)*(16/3)),IF(86-(($AC53-70.4)*(38/5.6))>95,95,86-(($AC53-70.4)*(38/5.6)))))*0.93,0) -> 88 | AH53: No | AK53: 0 | AL53: 0 | AM53: - | AN53: - | AO53: - | AP53: - | AQ53: - | AR53: - | AS53: - | AT53: -
A54: 56 | B54: Salazar | C54: John | D54: 71 | E54: 69 | F54: 68 | G54: 68 | H54: 70 | I54: 70 | J54: 70 | K54: 67 | L54: 68 | M54: 69 | N54: 65 | O54: 67 | P54: 70 | Q54: Free Agent | R54: Free Agent | S54: - | T54: PHI | U54: AS | V54: 3 | W54: 0 | X54: 18 | Y54: 6 | Z54: 1998 | AA54: 24 | AB54: 6 | AC54: 70.01587408 | AE54: =ROUND(IF($AC54>79,44-(($AC54-79)*(14/4)),IF($AC54>76,67-(($AC54-76)*(23/3)),IF(110-(($AC54-70.4)*(43/5.6))>119,119,110-(($AC54-70.4)*(43/5.6)))))*0.93,0) -> 105 | AF54: =ROUND(IF($AC54>79,37-(($AC54-79)*(9/4)),IF($AC54>76,54-(($AC54-76)*(17/3)),IF(93-(($AC54-70.4)*(39/5.6))>100,100,93-(($AC54-70.4)*(39/5.6)))))*0.93,0) -> 89 | AG54: =ROUND(IF($AC54>79,32-(($AC54-79)*(8/4)),IF($AC54>76,48-(($AC54-76)*(16/3)),IF(86-(($AC54-70.4)*(38/5.6))>95,95,86-(($AC54-70.4)*(38/5.6)))))*0.93,0) -> 82 | AH54: No | AK54: 0 | AL54: 0 | AM54: - | AN54: - | AO54: - | AP54: - | AQ54: - | AR54: - | AS54: - | AT54: -
A55: 57 | B55: Timmermans | C55: Justin | D55: 67 | E55: 64 | F55: 60 | G55: 56 | H55: 68 | I55: 66 | J55: 62 | K55: 63 | L55: 64 | M55: 62 | N55: 65 | O55: 62 | P55: 64 | Q55: Free Agent | R55: Free Agent | S55: - | T55: NED | U55: EU | V55: 1 | W55: 0 | X55: 25 | Y55: 9 | Z55: 1996 | AA55: 26 | AB55: 2 | AC55: 64.69923357 | AE55: =ROUND(IF($AC55>79,44-(($AC55-79)*(14/4)),IF($AC55>76,67-(($AC55-76)*(23/3)),IF(110-(($AC55-70.4)*(43/5.6))>119,119,110-(($AC55-70.4)*(43/5.6)))))*0.93,0) -> 111 | AF55: =ROUND(IF($AC55>79,37-(($AC55-79)*(9/4)),IF($AC55>76,54-(($AC55-76)*(17/3)),IF(93-(($AC55-70.4)*(39/5.6))>100,100,93-(($AC55-70.4)*(39/5.6)))))*0.93,0) -> 93 | AG55: =ROUND(IF($AC55>79,32-(($AC55-79)*(8/4)),IF($AC55>76,48-(($AC55-76)*(16/3)),IF(86-(($AC55-70.4)*(38/5.6))>95,95,86-(($AC55-70.4)*(38/5.6)))))*0.93,0) -> 88 | AH55: No | AK55: 178 | AL55: 58 | AM55: - | AN55: - | AO55: - | AP55: - | AQ55: - | AR55: - | AS55: - | AT55: -
A56: 58 | B56: Barceloo | C56: Fernando | D56: 70 | E56: 70 | F56: 73 | G56: 66 | H56: 71 | I56: 72 | J56: 63 | K56: 58 | L56: 67 | M56: 73 | N56: 74 | O56: 66 | P56: 65 | Q56: Free Agent | R56: Free Agent | S56: - | T56: ESP | U56: EU | V56: 3 | W56: 22 | X56: 5 | Y56: 6 | Z56: 1993 | AA56: 29 | AB56: 3 | AC56: 72.82225158 | AE56: =ROUND(IF($AC56>79,44-(($AC56-79)*(14/4)),IF($AC56>76,67-(($AC56-76)*(23/3)),IF(110-(($AC56-70.4)*(43/5.6))>119,119,110-(($AC56-70.4)*(43/5.6)))))*0.93,0) -> 85 | AF56: =ROUND(IF($AC56>79,37-(($AC56-79)*(9/4)),IF($AC56>76,54-(($AC56-76)*(17/3)),IF(93-(($AC56-70.4)*(39/5.6))>100,100,93-(($AC56-70.4)*(39/5.6)))))*0.93,0) -> 71 | AG56: =ROUND(IF($AC56>79,32-(($AC56-79)*(8/4)),IF($AC56>76,48-(($AC56-76)*(16/3)),IF(86-(($AC56-70.4)*(38/5.6))>95,95,86-(($AC56-70.4)*(38/5.6)))))*0.93,0) -> 65 | AH56: No | AK56: 0 | AL56: 0 | AM56: - | AN56: - | AO56: - | AP56: - | AQ56: - | AR56: - | AS56: - | AT56: -
A57: 59 | B57: Boivin | C57: Guillaume | D57: 73 | E57: 57 | F57: 69 | G57: 61 | H57: 73 | I57: 69 | J57: 77 | K57: 58 | L57: 78 | M57: 79 | N57: 72 | O57: 66 | P57: 65 | Q57: Free Agent | R57: Volcanica - Fox | S57: - | T57: CAN | U57: NA | V57: 4 | W57: 100 | X57: 25 | Y57: 9 | Z57: 1989 | AA57: 33 | AB57: 6 | AC57: 74.89420473 | AE57: =ROUND(IF($AC57>79,44-(($AC57-79)*(14/4)),IF($AC57>76,67-(($AC57-76)*(23/3)),IF(110-(($AC57-70.4)*(43/5.6))>119,119,110-(($AC57-70.4)*(43/5.6)))))*0.93,0) -> 70 | AF57: =ROUND(IF($AC57>79,37-(($AC57-79)*(9/4)),IF($AC57>76,54-(($AC57-76)*(17/3)),IF(93-(($AC57-70.4)*(39/5.6))>100,100,93-(($AC57-70.4)*(39/5.6)))))*0.93,0) -> 57 | AG57: =ROUND(IF($AC57>79,32-(($AC57-79)*(8/4)),IF($AC57>76,48-(($AC57-76)*(16/3)),IF(86-(($AC57-70.4)*(38/5.6))>95,95,86-(($AC57-70.4)*(38/5.6)))))*0.93,0) -> 52 | AH57: No | AK57: 180 | AL57: 78 | AM57: - | AN57: - | AO57: - | AP57: - | AQ57: - | AR57: - | AS57: - | AT57: -
A58: 60 | B58: Nepomnyachsniy | C58: Yevgeni | D58: 65 | E58: 71 | F58: 68 | G58: 71 | H58: 66 | I58: 66 | J58: 68 | K58: 50 | L58: 50 | M58: 66 | N58: 74 | O58: 61 | P58: 71 | Q58: Free Agent | R58: Red Bull Zalgiris | S58: - | T58: KAZ | U58: AS | V58: 4 | W58: 100 | X58: 12 | Y58: 3 | Z58: 1987 | AA58: 35 | AB58: 4 | AC58: 69.75349695 | AE58: =ROUND(IF($AC58>79,44-(($AC58-79)*(14/4)),IF($AC58>76,67-(($AC58-76)*(23/3)),IF(110-(($AC58-70.4)*(43/5.6))>119,119,110-(($AC58-70.4)*(43/5.6)))))*0.93,0) -> 107 | AF58: =ROUND(IF($AC58>79,37-(($AC58-79)*(9/4)),IF($AC58>76,54-(($AC58-76)*(17/3)),IF(93-(($AC58-70.4)*(39/5.6))>100,100,93-(($AC58-70.4)*(39/5.6)))))*0.93,0) -> 91 | AG58: =ROUND(IF($AC58>79,32-(($AC58-79)*(8/4)),IF($AC58>76,48-(($AC58-76)*(16/3)),IF(86-(($AC58-70.4)*(38/5.6))>95,95,86-(($AC58-70.4)*(38/5.6)))))*0.93,0) -> 84 | AH58: No | AK58: 173 | AL58: 61 | AM58: - | AN58: Yes | AO58: - | AP58: - | AQ58: - | AR58: - | AS58: - | AT58: -
A59: 61 | B59: Domont | C59: Axel | D59: 67 | E59: 70 | F59: 71 | G59: 61 | H59: 69 | I59: 71 | J59: 69 | K59: 55 | L59: 63 | M59: 70 | N59: 71 | O59: 68 | P59: 63 | Q59: Free Agent | R59: Free Agent | S59: - | T59: FRA | U59: EU | V59: 4 | W59: 100 | X59: 7 | Y59: 8 | Z59: 1990 | AA59: 32 | AB59: 3 | AC59: 70.94634445 | AE59: =ROUND(IF($AC59>79,44-(($AC59-79)*(14/4)),IF($AC59>76,67-(($AC59-76)*(23/3)),IF(110-(($AC59-70.4)*(43/5.6))>119,119,110-(($AC59-70.4)*(43/5.6)))))*0.93,0) -> 98 | AF59: =ROUND(IF($AC59>79,37-(($AC59-79)*(9/4)),IF($AC59>76,54-(($AC59-76)*(17/3)),IF(93-(($AC59-70.4)*(39/5.6))>100,100,93-(($AC59-70.4)*(39/5.6)))))*0.93,0) -> 83 | AG59: =ROUND(IF($AC59>79,32-(($AC59-79)*(8/4)),IF($AC59>76,48-(($AC59-76)*(16/3)),IF(86-(($AC59-70.4)*(38/5.6))>95,95,86-(($AC59-70.4)*(38/5.6)))))*0.93,0) -> 77 | AH59: No | AK59: 171 | AL59: 61 | AM59: - | AN59: - | AO59: - | AP59: - | AQ59: - | AR59: - | AS59: - | AT59: -
A60: 62 | B60: Randrianambinina | C60: Roger | D60: 71 | E60: 51 | F60: 59 | G60: 55 | H60: 66 | I60: 62 | J60: 66 | K60: 60 | L60: 73 | M60: 74 | N60: 71 | O60: 67 | P60: 59 | Q60: Free Agent | R60: Free Agent | S60: - | T60: MAD | U60: AF | V60: 4 | W60: 100 | X60: 17 | Y60: 10 | Z60: 1989 | AA60: 33 | AB60: 3 | AC60: 70.00689308 | AE60: =ROUND(IF($AC60>79,44-(($AC60-79)*(14/4)),IF($AC60>76,67-(($AC60-76)*(23/3)),IF(110-(($AC60-70.4)*(43/5.6))>119,119,110-(($AC60-70.4)*(43/5.6)))))*0.93,0) -> 105 | AF60: =ROUND(IF($AC60>79,37-(($AC60-79)*(9/4)),IF($AC60>76,54-(($AC60-76)*(17/3)),IF(93-(($AC60-70.4)*(39/5.6))>100,100,93-(($AC60-70.4)*(39/5.6)))))*0.93,0) -> 89 | AG60: =ROUND(IF($AC60>79,32-(($AC60-79)*(8/4)),IF($AC60>76,48-(($AC60-76)*(16/3)),IF(86-(($AC60-70.4)*(38/5.6))>95,95,86-(($AC60-70.4)*(38/5.6)))))*0.93,0) -> 82 | AH60: No | AK60: 0 | AL60: 0 | AM60: - | AN60: - | AO60: - | AP60: - | AQ60: - | AR60: - | AS60: - | AT60: -
A61: 63 | B61: Baroncini | C61: Filippo | D61: 70 | E61: 63 | F61: 69 | G61: 68 | H61: 69 | I61: 72 | J61: 68 | K61: 63 | L61: 66 | M61: 70 | N61: 71 | O61: 69 | P61: 66 | Q61: Free Agent | R61: Free Agent | S61: - | T61: ITA | U61: EU | V61: 1 | W61: 0 | X61: 26 | Y61: 8 | Z61: 2000 | AA61: 22 | AB61: 4 | AC61: 69.87208466 | AE61: =ROUND(IF($AC61>79,44-(($AC61-79)*(14/4)),IF($AC61>76,67-(($AC61-76)*(23/3)),IF(110-(($AC61-70.4)*(43/5.6))>119,119,110-(($AC61-70.4)*(43/5.6)))))*0.93,0) -> 106 | AF61: =ROUND(IF($AC61>79,37-(($AC61-79)*(9/4)),IF($AC61>76,54-(($AC61-76)*(17/3)),IF(93-(($AC61-70.4)*(39/5.6))>100,100,93-(($AC61-70.4)*(39/5.6)))))*0.93,0) -> 90 | AG61: =ROUND(IF($AC61>79,32-(($AC61-79)*(8/4)),IF($AC61>76,48-(($AC61-76)*(16/3)),IF(86-(($AC61-70.4)*(38/5.6))>95,95,86-(($AC61-70.4)*(38/5.6)))))*0.93,0) -> 83 | AH61: No | AJ61: yes | AK61: 187 | AL61: 79 | AM61: - | AN61: - | AO61: - | AP61: - | AQ61: - | AR61: - | AS61: - | AT61: -
A62: 64 | B62: Cote | C62: Pier-Andre | D62: 69 | E62: 64 | F62: 68 | G62: 57 | H62: 72 | I62: 71 | J62: 67 | K62: 60 | L62: 67 | M62: 69 | N62: 66 | O62: 68 | P62: 57 | Q62: Free Agent | R62: Glanbia Foods Cycling Project | S62: - | T62: CAN | U62: NA | V62: 3 | W62: 23 | X62: 24 | Y62: 4 | Z62: 1997 | AA62: 25 | AB62: 5 | AC62: 69.32759226 | AE62: =ROUND(IF($AC62>79,44-(($AC62-79)*(14/4)),IF($AC62>76,67-(($AC62-76)*(23/3)),IF(110-(($AC62-70.4)*(43/5.6))>119,119,110-(($AC62-70.4)*(43/5.6)))))*0.93,0) -> 110 | AF62: =ROUND(IF($AC62>79,37-(($AC62-79)*(9/4)),IF($AC62>76,54-(($AC62-76)*(17/3)),IF(93-(($AC62-70.4)*(39/5.6))>100,100,93-(($AC62-70.4)*(39/5.6)))))*0.93,0) -> 93 | AG62: =ROUND(IF($AC62>79,32-(($AC62-79)*(8/4)),IF($AC62>76,48-(($AC62-76)*(16/3)),IF(86-(($AC62-70.4)*(38/5.6))>95,95,86-(($AC62-70.4)*(38/5.6)))))*0.93,0) -> 87 | AH62: No | AK62: 0 | AL62: 0 | AM62: - | AN62: - | AO62: - | AP62: - | AQ62: - | AR62: - | AS62: - | AT62: -
A63: 65 | B63: Koren | C63: Kristjan | D63: 66 | E63: 65 | F63: 67 | G63: 71 | H63: 67 | I63: 65 | J63: 57 | K63: 55 | L63: 60 | M63: 56 | N63: 58 | O63: 63 | P63: 71 | Q63: Free Agent | R63: Free Agent | S63: - | T63: SLO | U63: EU | V63: 4 | W63: 100 | X63: 25 | Y63: 11 | Z63: 1986 | AA63: 36 | AB63: 6 | AC63: 67.9171759 | AE63: =ROUND(IF($AC63>79,44-(($AC63-79)*(14/4)),IF($AC63>76,67-(($AC63-76)*(23/3)),IF(110-(($AC63-70.4)*(43/5.6))>119,119,110-(($AC63-70.4)*(43/5.6)))))*0.93,0) -> 111 | AF63: =ROUND(IF($AC63>79,37-(($AC63-79)*(9/4)),IF($AC63>76,54-(($AC63-76)*(17/3)),IF(93-(($AC63-70.4)*(39/5.6))>100,100,93-(($AC63-70.4)*(39/5.6)))))*0.93,0) -> 93 | AG63: =ROUND(IF($AC63>79,32-(($AC63-79)*(8/4)),IF($AC63>76,48-(($AC63-76)*(16/3)),IF(86-(($AC63-70.4)*(38/5.6))>95,95,86-(($AC63-70.4)*(38/5.6)))))*0.93,0) -> 88 | AH63: No | AK63: 0 | AL63: 0 | AM63: - | AN63: - | AO63: - | AP63: - | AQ63: - | AR63: - | AS63: - | AT63: -
A64: 66 | B64: Evers | C64: Craig | D64: 72 | E64: 56 | F64: 62 | G64: 73 | H64: 66 | I64: 69 | J64: 62 | K64: 53 | L64: 59 | M64: 68 | N64: 74 | O64: 63 | P64: 72 | Q64: Free Agent | R64: Free Agent | S64: - | T64: AUS | U64: OC | V64: 4 | W64: 100 | X64: 8 | Y64: 6 | Z64: 1990 | AA64: 32 | AB64: 3 | AC64: 68.02485898 | AE64: =ROUND(IF($AC64>79,44-(($AC64-79)*(14/4)),IF($AC64>76,67-(($AC64-76)*(23/3)),IF(110-(($AC64-70.4)*(43/5.6))>119,119,110-(($AC64-70.4)*(43/5.6)))))*0.93,0) -> 111 | AF64: =ROUND(IF($AC64>79,37-(($AC64-79)*(9/4)),IF($AC64>76,54-(($AC64-76)*(17/3)),IF(93-(($AC64-70.4)*(39/5.6))>100,100,93-(($AC64-70.4)*(39/5.6)))))*0.93,0) -> 93 | AG64: =ROUND(IF($AC64>79,32-(($AC64-79)*(8/4)),IF($AC64>76,48-(($AC64-76)*(16/3)),IF(86-(($AC64-70.4)*(38/5.6))>95,95,86-(($AC64-70.4)*(38/5.6)))))*0.93,0) -> 88 | AH64: No | AK64: 0 | AL64: 0 | AM64: - | AN64: - | AO64: - | AP64: - | AQ64: - | AR64: - | AS64: - | AT64: -
A65: 67 | B65: Stewart | C65: Campbell | D65: 68 | E65: 63 | F65: 63 | G65: 66 | H65: 67 | I65: 65 | J65: 63 | K65: 60 | L65: 64 | M65: 66 | N65: 69 | O65: 66 | P65: 68 | Q65: Free Agent | R65: Free Agent | S65: - | T65: NZL | U65: OC | V65: 3 | W65: 60 | X65: 25 | Y65: 8 | Z65: 1995 | AA65: 27 | AB65: 5 | AC65: 65.5642716 | AE65: =ROUND(IF($AC65>79,44-(($AC65-79)*(14/4)),IF($AC65>76,67-(($AC65-76)*(23/3)),IF(110-(($AC65-70.4)*(43/5.6))>119,119,110-(($AC65-70.4)*(43/5.6)))))*0.93,0) -> 111 | AF65: =ROUND(IF($AC65>79,37-(($AC65-79)*(9/4)),IF($AC65>76,54-(($AC65-76)*(17/3)),IF(93-(($AC65-70.4)*(39/5.6))>100,100,93-(($AC65-70.4)*(39/5.6)))))*0.93,0) -> 93 | AG65: =ROUND(IF($AC65>79,32-(($AC65-79)*(8/4)),IF($AC65>76,48-(($AC65-76)*(16/3)),IF(86-(($AC65-70.4)*(38/5.6))>95,95,86-(($AC65-70.4)*(38/5.6)))))*0.93,0) -> 88 | AH65: No | AK65: 0 | AL65: 0 | AM65: - | AN65: - | AO65: - | AP65: - | AQ65: - | AR65: - | AS65: - | AT65: -
A66: 68 | B66: Turgis | C66: Anthony | D66: 73 | E66: 67 | F66: 79 | G66: 65 | H66: 76 | I66: 78 | J66: 70 | K66: 65 | L66: 70 | M66: 77 | N66: 83 | O66: 67 | P66: 68 | Q66: De Stijl Cycling | R66: Farfetch Pro Cycling | S66: PT | T66: FRA | U66: EU | V66: 4 | W66: 100 | X66: 16 | Y66: 5 | Z66: 1994 | AA66: 28 | AB66: 6 | AC66: 77.87615585 | AD66: 340000 | AE66: =ROUND(IF($AC66>79,44-(($AC66-79)*(14/4)),IF($AC66>76,67-(($AC66-76)*(23/3)),IF(110-(($AC66-70.4)*(43/5.6))>119,119,110-(($AC66-70.4)*(43/5.6)))))*0.93,0) -> 49 | AF66: =ROUND(IF($AC66>79,37-(($AC66-79)*(9/4)),IF($AC66>76,54-(($AC66-76)*(17/3)),IF(93-(($AC66-70.4)*(39/5.6))>100,100,93-(($AC66-70.4)*(39/5.6)))))*0.93,0) -> 40 | AG66: =ROUND(IF($AC66>79,32-(($AC66-79)*(8/4)),IF($AC66>76,48-(($AC66-76)*(16/3)),IF(86-(($AC66-70.4)*(38/5.6))>95,95,86-(($AC66-70.4)*(38/5.6)))))*0.93,0) -> 35 | AH66: Yes | AK66: 179 | AL66: 69 | AM66: - | AN66: - | AO66: - | AP66: - | AQ66: - | AR66: - | AS66: - | AT66: -
A67: 69 | B67: Brochu | C67: Jordan | D67: 69 | E67: 59 | F67: 65 | G67: 70 | H67: 62 | I67: 66 | J67: 59 | K67: 58 | L67: 59 | M67: 62 | N67: 66 | O67: 63 | P67: 69 | Q67: Free Agent | R67: Free Agent | S67: - | T67: CAN | U67: NA | V67: 4 | W67: 0 | X67: 23 | Y67: 10 | Z67: 1992 | AA67: 30 | AB67: 3 | AC67: 66.34452593 | AE67: =ROUND(IF($AC67>79,44-(($AC67-79)*(14/4)),IF($AC67>76,67-(($AC67-76)*(23/3)),IF(110-(($AC67-70.4)*(43/5.6))>119,119,110-(($AC67-70.4)*(43/5.6)))))*0.93,0) -> 111 | AF67: =ROUND(IF($AC67>79,37-(($AC67-79)*(9/4)),IF($AC67>76,54-(($AC67-76)*(17/3)),IF(93-(($AC67-70.4)*(39/5.6))>100,100,93-(($AC67-70.4)*(39/5.6)))))*0.93,0) -> 93 | AG67: =ROUND(IF($AC67>79,32-(($AC67-79)*(8/4)),IF($AC67>76,48-(($AC67-76)*(16/3)),IF(86-(($AC67-70.4)*(38/5.6))>95,95,86-(($AC67-70.4)*(38/5.6)))))*0.93,0) -> 88 | AH67: No | AK67: 0 | AL67: 0 | AM67: - | AN67: - | AO67: - | AP67: - | AQ67: - | AR67: - | AS67: - | AT67: -
A68: 70 | B68: Reynaerts | C68: Jan | D68: 62 | E68: 64 | F68: 64 | G68: 63 | H68: 58 | I68: 59 | J68: 55 | K68: 62 | L68: 63 | M68: 60 | N68: 63 | O68: 55 | P68: 57 | Q68: Free Agent | R68: Free Agent | S68: - | T68: BEL | U68: EU | V68: 1 | W68: 0 | X68: 30 | Y68: 7 | Z68: 1997 | AA68: 25 | AB68: 4 | AC68: 63.4927215 | AE68: =ROUND(IF($AC68>79,44-(($AC68-79)*(14/4)),IF($AC68>76,67-(($AC68-76)*(23/3)),IF(110-(($AC68-70.4)*(43/5.6))>119,119,110-(($AC68-70.4)*(43/5.6)))))*0.93,0) -> 111 | AF68: =ROUND(IF($AC68>79,37-(($AC68-79)*(9/4)),IF($AC68>76,54-(($AC68-76)*(17/3)),IF(93-(($AC68-70.4)*(39/5.6))>100,100,93-(($AC68-70.4)*(39/5.6)))))*0.93,0) -> 93 | AG68: =ROUND(IF($AC68>79,32-(($AC68-79)*(8/4)),IF($AC68>76,48-(($AC68-76)*(16/3)),IF(86-(($AC68-70.4)*(38/5.6))>95,95,86-(($AC68-70.4)*(38/5.6)))))*0.93,0) -> 88 | AH68: No | AK68: 0 | AL68: 0 | AM68: - | AN68: - | AO68: - | AP68: - | AQ68: - | AR68: - | AS68: - | AT68: -
A69: 71 | B69: Bloem | C69: Joren | D69: 70 | E69: 58 | F69: 66 | G69: 59 | H69: 70 | I69: 72 | J69: 68 | K69: 64 | L69: 67 | M69: 66 | N69: 63 | O69: 59 | P69: 64 | Q69: Free Agent | R69: Free Agent | S69: - | T69: NED | U69: EU | V69: 2 | W69: 0 | X69: 21 | Y69: 12 | Z69: 1999 | AA69: 23 | AB69: 4 | AC69: 67.84999494 | AE69: =ROUND(IF($AC69>79,44-(($AC69-79)*(14/4)),IF($AC69>76,67-(($AC69-76)*(23/3)),IF(110-(($AC69-70.4)*(43/5.6))>119,119,110-(($AC69-70.4)*(43/5.6)))))*0.93,0) -> 111 | AF69: =ROUND(IF($AC69>79,37-(($AC69-79)*(9/4)),IF($AC69>76,54-(($AC69-76)*(17/3)),IF(93-(($AC69-70.4)*(39/5.6))>100,100,93-(($AC69-70.4)*(39/5.6)))))*0.93,0) -> 93 | AG69: =ROUND(IF($AC69>79,32-(($AC69-79)*(8/4)),IF($AC69>76,48-(($AC69-76)*(16/3)),IF(86-(($AC69-70.4)*(38/5.6))>95,95,86-(($AC69-70.4)*(38/5.6)))))*0.93,0) -> 88 | AH69: No | AK69: 0 | AL69: 0 | AM69: - | AN69: - | AO69: - | AP69: - | AQ69: - | AR69: - | AS69: - | AT69: -
A70: 72 | B70: Cioban | C70: Sergiu | D70: 68 | E70: 65 | F70: 75 | G70: 64 | H70: 70 | I70: 66 | J70: 67 | K70: 62 | L70: 64 | M70: 66 | N70: 72 | O70: 70 | P70: 63 | Q70: Free Agent | R70: Free Agent | S70: - | T70: MOL | U70: EU | V70: 4 | W70: 100 | X70: 17 | Y70: 7 | Z70: 1990 | AA70: 32 | AB70: 3 | AC70: 71.1538506 | AE70: =ROUND(IF($AC70>79,44-(($AC70-79)*(14/4)),IF($AC70>76,67-(($AC70-76)*(23/3)),IF(110-(($AC70-70.4)*(43/5.6))>119,119,110-(($AC70-70.4)*(43/5.6)))))*0.93,0) -> 97 | AF70: =ROUND(IF($AC70>79,37-(($AC70-79)*(9/4)),IF($AC70>76,54-(($AC70-76)*(17/3)),IF(93-(($AC70-70.4)*(39/5.6))>100,100,93-(($AC70-70.4)*(39/5.6)))))*0.93,0) -> 82 | AG70: =ROUND(IF($AC70>79,32-(($AC70-79)*(8/4)),IF($AC70>76,48-(($AC70-76)*(16/3)),IF(86-(($AC70-70.4)*(38/5.6))>95,95,86-(($AC70-70.4)*(38/5.6)))))*0.93,0) -> 75 | AH70: No | AK70: 180 | AL70: 68 | AM70: - | AN70: - | AO70: - | AP70: - | AQ70: - | AR70: - | AS70: - | AT70: -
A71: 73 | B71: Bol | C71: Jetse | D71: 74 | E71: 67 | F71: 75 | G71: 67 | H71: 69 | I71: 68 | J71: 72 | K71: 61 | L71: 61 | M71: 65 | N71: 72 | O71: 63 | P71: 67 | Q71: Free Agent | R71: Kraftwerk Man Machine | S71: - | T71: NED | U71: EU | V71: 4 | W71: 100 | X71: 8 | Y71: 9 | Z71: 1989 | AA71: 33 | AB71: 5 | AC71: 71.81017247 | AE71: =ROUND(IF($AC71>79,44-(($AC71-79)*(14/4)),IF($AC71>76,67-(($AC71-76)*(23/3)),IF(110-(($AC71-70.4)*(43/5.6))>119,119,110-(($AC71-70.4)*(43/5.6)))))*0.93,0) -> 92 | AF71: =ROUND(IF($AC71>79,37-(($AC71-79)*(9/4)),IF($AC71>76,54-(($AC71-76)*(17/3)),IF(93-(($AC71-70.4)*(39/5.6))>100,100,93-(($AC71-70.4)*(39/5.6)))))*0.93,0) -> 77 | AG71: =ROUND(IF($AC71>79,32-(($AC71-79)*(8/4)),IF($AC71>76,48-(($AC71-76)*(16/3)),IF(86-(($AC71-70.4)*(38/5.6))>95,95,86-(($AC71-70.4)*(38/5.6)))))*0.93,0) -> 71 | AH71: No | AK71: 184 | AL71: 73 | AM71: - | AN71: - | AO71: - | AP71: - | AQ71: - | AR71: - | AS71: - | AT71: -
A72: 74 | B72: Kusuma | C72: Terry | D72: 70 | E72: 67 | F72: 68 | G72: 69 | H72: 67 | I72: 72 | J72: 68 | K72: 57 | L72: 59 | M72: 69 | N72: 64 | O72: 73 | P72: 70 | Q72: Free Agent | R72: Free Agent | S72: - | T72: INA | U72: AS | V72: 3 | W72: 54 | X72: 7 | Y72: 8 | Z72: 1998 | AA72: 24 | AB72: 3 | AC72: 69.32400767 | AE72: =ROUND(IF($AC72>79,44-(($AC72-79)*(14/4)),IF($AC72>76,67-(($AC72-76)*(23/3)),IF(110-(($AC72-70.4)*(43/5.6))>119,119,110-(($AC72-70.4)*(43/5.6)))))*0.93,0) -> 110 | AF72: =ROUND(IF($AC72>79,37-(($AC72-79)*(9/4)),IF($AC72>76,54-(($AC72-76)*(17/3)),IF(93-(($AC72-70.4)*(39/5.6))>100,100,93-(($AC72-70.4)*(39/5.6)))))*0.93,0) -> 93 | AG72: =ROUND(IF($AC72>79,32-(($AC72-79)*(8/4)),IF($AC72>76,48-(($AC72-76)*(16/3)),IF(86-(($AC72-70.4)*(38/5.6))>95,95,86-(($AC72-70.4)*(38/5.6)))))*0.93,0) -> 87 | AH72: No | AK72: 180 | AL72: 0 | AM72: - | AN72: - | AO72: - | AP72: - | AQ72: - | AR72: - | AS72: - | AT72: -
A73: 75 | B73: Mengoulas | C73: Alex | D73: 70 | E73: 65 | F73: 68 | G73: 69 | H73: 70 | I73: 68 | J73: 65 | K73: 68 | L73: 65 | M73: 73 | N73: 72 | O73: 67 | P73: 69 | Q73: Free Agent | R73: Free Agent | S73: - | T73: GRE | U73: EU | V73: 2 | W73: 0 | X73: 13 | Y73: 7 | Z73: 1997 | AA73: 25 | AB73: 5 | AC73: 70.03560592 | AE73: =ROUND(IF($AC73>79,44-(($AC73-79)*(14/4)),IF($AC73>76,67-(($AC73-76)*(23/3)),IF(110-(($AC73-70.4)*(43/5.6))>119,119,110-(($AC73-70.4)*(43/5.6)))))*0.93,0) -> 105 | AF73: =ROUND(IF($AC73>79,37-(($AC73-79)*(9/4)),IF($AC73>76,54-(($AC73-76)*(17/3)),IF(93-(($AC73-70.4)*(39/5.6))>100,100,93-(($AC73-70.4)*(39/5.6)))))*0.93,0) -> 89 | AG73: =ROUND(IF($AC73>79,32-(($AC73-79)*(8/4)),IF($AC73>76,48-(($AC73-76)*(16/3)),IF(86-(($AC73-70.4)*(38/5.6))>95,95,86-(($AC73-70.4)*(38/5.6)))))*0.93,0) -> 82 | AH73: No | AK73: 176 | AL73: 64 | AM73: - | AN73: - | AO73: - | AP73: - | AQ73: - | AR73: - | AS73: - | AT73: -
A74: 76 | B74: Milan | C74: Jonathan | D74: 70 | E74: 58 | F74: 62 | G74: 68 | H74: 67 | I74: 74 | J74: 62 | K74: 63 | L74: 69 | M74: 70 | N74: 66 | O74: 63 | P74: 70 | Q74: Free Agent | R74: Free Agent | S74: - | T74: ITA | U74: EU | V74: 1 | W74: 0 | X74: 1 | Y74: 10 | Z74: 2000 | AA74: 22 | AB74: 5 | AC74: 67.50252215 | AE74: =ROUND(IF($AC74>79,44-(($AC74-79)*(14/4)),IF($AC74>76,67-(($AC74-76)*(23/3)),IF(110-(($AC74-70.4)*(43/5.6))>119,119,110-(($AC74-70.4)*(43/5.6)))))*0.93,0) -> 111 | AF74: =ROUND(IF($AC74>79,37-(($AC74-79)*(9/4)),IF($AC74>76,54-(($AC74-76)*(17/3)),IF(93-(($AC74-70.4)*(39/5.6))>100,100,93-(($AC74-70.4)*(39/5.6)))))*0.93,0) -> 93 | AG74: =ROUND(IF($AC74>79,32-(($AC74-79)*(8/4)),IF($AC74>76,48-(($AC74-76)*(16/3)),IF(86-(($AC74-70.4)*(38/5.6))>95,95,86-(($AC74-70.4)*(38/5.6)))))*0.93,0) -> 88 | AH74: No | AJ74: yes | AK74: 0 | AL74: 0 | AM74: - | AN74: - | AO74: - | AP74: - | AQ74: - | AR74: - | AS74: - | AT74: -
A75: 77 | B75: Tagliani | C75: Filippo | D75: 65 | E75: 65 | F75: 66 | G75: 60 | H75: 63 | I75: 68 | J75: 66 | K75: 59 | L75: 67 | M75: 68 | N75: 65 | O75: 63 | P75: 59 | Q75: Free Agent | R75: Free Agent | S75: - | T75: ITA | U75: EU | V75: 3 | W75: 53 | X75: 14 | Y75: 8 | Z75: 1995 | AA75: 27 | AB75: 4 | AC75: 67.49167654 | AE75: =ROUND(IF($AC75>79,44-(($AC75-79)*(14/4)),IF($AC75>76,67-(($AC75-76)*(23/3)),IF(110-(($AC75-70.4)*(43/5.6))>119,119,110-(($AC75-70.4)*(43/5.6)))))*0.93,0) -> 111 | AF75: =ROUND(IF($AC75>79,37-(($AC75-79)*(9/4)),IF($AC75>76,54-(($AC75-76)*(17/3)),IF(93-(($AC75-70.4)*(39/5.6))>100,100,93-(($AC75-70.4)*(39/5.6)))))*0.93,0) -> 93 | AG75: =ROUND(IF($AC75>79,32-(($AC75-79)*(8/4)),IF($AC75>76,48-(($AC75-76)*(16/3)),IF(86-(($AC75-70.4)*(38/5.6))>95,95,86-(($AC75-70.4)*(38/5.6)))))*0.93,0) -> 88 | AH75: No | AK75: 0 | AL75: 0 | AM75: - | AN75: - | AO75: - | AP75: - | AQ75: - | AR75: - | AS75: - | AT75: -
A76: 78 | B76: Sleen | C76: Torjus | D76: 69 | E76: 71 | F76: 71 | G76: 73 | H76: 69 | I76: 72 | J76: 73 | K76: 60 | L76: 63 | M76: 69 | N76: 71 | O76: 64 | P76: 71 | Q76: Free Agent | R76: Tryg - Ritter Sport | S76: - | T76: NOR | U76: EU | V76: 4 | W76: 15 | X76: 30 | Y76: 3 | Z76: 1997 | AA76: 25 | AB76: 4 | AC76: 71.43640063 | AE76: =ROUND(IF($AC76>79,44-(($AC76-79)*(14/4)),IF($AC76>76,67-(($AC76-76)*(23/3)),IF(110-(($AC76-70.4)*(43/5.6))>119,119,110-(($AC76-70.4)*(43/5.6)))))*0.93,0) -> 95 | AF76: =ROUND(IF($AC76>79,37-(($AC76-79)*(9/4)),IF($AC76>76,54-(($AC76-76)*(17/3)),IF(93-(($AC76-70.4)*(39/5.6))>100,100,93-(($AC76-70.4)*(39/5.6)))))*0.93,0) -> 80 | AG76: =ROUND(IF($AC76>79,32-(($AC76-79)*(8/4)),IF($AC76>76,48-(($AC76-76)*(16/3)),IF(86-(($AC76-70.4)*(38/5.6))>95,95,86-(($AC76-70.4)*(38/5.6)))))*0.93,0) -> 73 | AH76: No | AK76: 0 | AL76: 0 | AM76: - | AN76: - | AO76: - | AP76: - | AQ76: - | AR76: - | AS76: - | AT76: -
A77: 80 | B77: Delaplace | C77: Anthony | D77: 65 | E77: 71 | F77: 73 | G77: 62 | H77: 70 | I77: 72 | J77: 70 | K77: 64 | L77: 55 | M77: 62 | N77: 61 | O77: 74 | P77: 62 | Q77: Free Agent | R77: Free Agent | S77: - | T77: FRA | U77: EU | V77: 4 | W77: 100 | X77: 11 | Y77: 9 | Z77: 1989 | AA77: 33 | AB77: 4 | AC77: 70.60693115 | AE77: =ROUND(IF($AC77>79,44-(($AC77-79)*(14/4)),IF($AC77>76,67-(($AC77-76)*(23/3)),IF(110-(($AC77-70.4)*(43/5.6))>119,119,110-(($AC77-70.4)*(43/5.6)))))*0.93,0) -> 101 | AF77: =ROUND(IF($AC77>79,37-(($AC77-79)*(9/4)),IF($AC77>76,54-(($AC77-76)*(17/3)),IF(93-(($AC77-70.4)*(39/5.6))>100,100,93-(($AC77-70.4)*(39/5.6)))))*0.93,0) -> 85 | AG77: =ROUND(IF($AC77>79,32-(($AC77-79)*(8/4)),IF($AC77>76,48-(($AC77-76)*(16/3)),IF(86-(($AC77-70.4)*(38/5.6))>95,95,86-(($AC77-70.4)*(38/5.6)))))*0.93,0) -> 79 | AH77: No | AK77: 0 | AL77: 0 | AM77: - | AN77: - | AO77: - | AP77: - | AQ77: - | AR77: - | AS77: - | AT77: -
A78: 82 | B78: Skjelmose Jensen | C78: Mattias | D78: 70 | E78: 70 | F78: 69 | G78: 69 | H78: 66 | I78: 72 | J78: 68 | K78: 58 | L78: 64 | M78: 65 | N78: 69 | O78: 65 | P78: 69 | Q78: Free Agent | R78: Free Agent | S78: - | T78: DEN | U78: EU | V78: 1 | W78: 0 | X78: 26 | Y78: 9 | Z78: 2000 | AA78: 22 | AB78: 5 | AC78: 69.82577232 | AE78: =ROUND(IF($AC78>79,44-(($AC78-79)*(14/4)),IF($AC78>76,67-(($AC78-76)*(23/3)),IF(110-(($AC78-70.4)*(43/5.6))>119,119,110-(($AC78-70.4)*(43/5.6)))))*0.93,0) -> 106 | AF78: =ROUND(IF($AC78>79,37-(($AC78-79)*(9/4)),IF($AC78>76,54-(($AC78-76)*(17/3)),IF(93-(($AC78-70.4)*(39/5.6))>100,100,93-(($AC78-70.4)*(39/5.6)))))*0.93,0) -> 90 | AG78: =ROUND(IF($AC78>79,32-(($AC78-79)*(8/4)),IF($AC78>76,48-(($AC78-76)*(16/3)),IF(86-(($AC78-70.4)*(38/5.6))>95,95,86-(($AC78-70.4)*(38/5.6)))))*0.93,0) -> 84 | AH78: No | AJ78: yes | AK78: 0 | AL78: 0 | AM78: - | AN78: - | AO78: - | AP78: - | AQ78: - | AR78: - | AS78: - | AT78: -
A79: 83 | B79: Sprenger | C79: Felix | D79: 70 | E79: 66 | F79: 66 | G79: 66 | H79: 71 | I79: 68 | J79: 66 | K79: 65 | L79: 66 | M79: 74 | N79: 70 | O79: 76 | P79: 68 | Q79: Free Agent | R79: Free Agent | S79: - | T79: LIE | U79: EU | V79: 1 | W79: 0 | X79: 18 | Y79: 9 | Z79: 1999 | AA79: 23 | AB79: 5 | AC79: 69.45641648 | AE79: =ROUND(IF($AC79>79,44-(($AC79-79)*(14/4)),IF($AC79>76,67-(($AC79-76)*(23/3)),IF(110-(($AC79-70.4)*(43/5.6))>119,119,110-(($AC79-70.4)*(43/5.6)))))*0.93,0) -> 109 | AF79: =ROUND(IF($AC79>79,37-(($AC79-79)*(9/4)),IF($AC79>76,54-(($AC79-76)*(17/3)),IF(93-(($AC79-70.4)*(39/5.6))>100,100,93-(($AC79-70.4)*(39/5.6)))))*0.93,0) -> 93 | AG79: =ROUND(IF($AC79>79,32-(($AC79-79)*(8/4)),IF($AC79>76,48-(($AC79-76)*(16/3)),IF(86-(($AC79-70.4)*(38/5.6))>95,95,86-(($AC79-70.4)*(38/5.6)))))*0.93,0) -> 86 | AH79: No | AK79: 172 | AL79: 62 | AM79: - | AN79: - | AO79: - | AP79: - | AQ79: - | AR79: - | AS79: - | AT79: -
A80: 84 | B80: Ghyselinck | C80: Jan | D80: 72 | E80: 59 | F80: 66 | G80: 75 | H80: 72 | I80: 74 | J80: 68 | K80: 59 | L80: 62 | M80: 65 | N80: 72 | O80: 59 | P80: 75 | Q80: Free Agent | R80: Amaysim Cervélo | S80: - | T80: BEL | U80: EU | V80: 4 | W80: 100 | X80: 24 | Y80: 2 | Z80: 1988 | AA80: 34 | AB80: 6 | AC80: 70.400199 | AE80: =ROUND(IF($AC80>79,44-(($AC80-79)*(14/4)),IF($AC80>76,67-(($AC80-76)*(23/3)),IF(110-(($AC80-70.4)*(43/5.6))>119,119,110-(($AC80-70.4)*(43/5.6)))))*0.93,0) -> 102 | AF80: =ROUND(IF($AC80>79,37-(($AC80-79)*(9/4)),IF($AC80>76,54-(($AC80-76)*(17/3)),IF(93-(($AC80-70.4)*(39/5.6))>100,100,93-(($AC80-70.4)*(39/5.6)))))*0.93,0) -> 86 | AG80: =ROUND(IF($AC80>79,32-(($AC80-79)*(8/4)),IF($AC80>76,48-(($AC80-76)*(16/3)),IF(86-(($AC80-70.4)*(38/5.6))>95,95,86-(($AC80-70.4)*(38/5.6)))))*0.93,0) -> 80 | AH80: No | AK80: 183 | AL80: 75 | AM80: - | AN80: - | AO80: - | AP80: - | AQ80: - | AR80: - | AS80: - | AT80: -
A81: 86 | B81: Vader | C81: Milan | D81: 70 | E81: 72 | F81: 67 | G81: 65 | H81: 69 | I81: 75 | J81: 69 | K81: 60 | L81: 60 | M81: 63 | N81: 66 | O81: 66 | P81: 69 | Q81: Free Agent | R81: Free Agent | S81: - | T81: NED | U81: EU | V81: 3 | W81: 0 | X81: 18 | Y81: 2 | Z81: 1996 | AA81: 26 | AB81: 4 | AC81: 70.64668037 | AE81: =ROUND(IF($AC81>79,44-(($AC81-79)*(14/4)),IF($AC81>76,67-(($AC81-76)*(23/3)),IF(110-(($AC81-70.4)*(43/5.6))>119,119,110-(($AC81-70.4)*(43/5.6)))))*0.93,0) -> 101 | AF81: =ROUND(IF($AC81>79,37-(($AC81-79)*(9/4)),IF($AC81>76,54-(($AC81-76)*(17/3)),IF(93-(($AC81-70.4)*(39/5.6))>100,100,93-(($AC81-70.4)*(39/5.6)))))*0.93,0) -> 85 | AG81: =ROUND(IF($AC81>79,32-(($AC81-79)*(8/4)),IF($AC81>76,48-(($AC81-76)*(16/3)),IF(86-(($AC81-70.4)*(38/5.6))>95,95,86-(($AC81-70.4)*(38/5.6)))))*0.93,0) -> 78 | AH81: No | AK81: 188 | AL81: 75 | AM81: - | AN81: - | AO81: - | AP81: - | AQ81: - | AR81: - | AS81: - | AT81: -
A82: 87 | B82: Dall'Oste | C82: Daniele | D82: 70 | E82: 76 | F82: 76 | G82: 67 | H82: 71 | I82: 74 | J82: 75 | K82: 56 | L82: 58 | M82: 71 | N82: 73 | O82: 71 | P82: 67 | Q82: Free Agent | R82: Team UBS | S82: - | T82: ITA | U82: EU | V82: 4 | W82: 100 | X82: 24 | Y82: 5 | Z82: 1991 | AA82: 31 | AB82: 5 | AC82: 75.48824884 | AE82: =ROUND(IF($AC82>79,44-(($AC82-79)*(14/4)),IF($AC82>76,67-(($AC82-76)*(23/3)),IF(110-(($AC82-70.4)*(43/5.6))>119,119,110-(($AC82-70.4)*(43/5.6)))))*0.93,0) -> 66 | AF82: =ROUND(IF($AC82>79,37-(($AC82-79)*(9/4)),IF($AC82>76,54-(($AC82-76)*(17/3)),IF(93-(($AC82-70.4)*(39/5.6))>100,100,93-(($AC82-70.4)*(39/5.6)))))*0.93,0) -> 54 | AG82: =ROUND(IF($AC82>79,32-(($AC82-79)*(8/4)),IF($AC82>76,48-(($AC82-76)*(16/3)),IF(86-(($AC82-70.4)*(38/5.6))>95,95,86-(($AC82-70.4)*(38/5.6)))))*0.93,0) -> 48 | AH82: No | AK82: 0 | AL82: 0 | AM82: - | AN82: - | AO82: - | AP82: - | AQ82: - | AR82: - | AS82: - | AT82: -
A83: 88 | B83: Nepomnyachsniy | C83: Alexandr | D83: 68 | E83: 50 | F83: 58 | G83: 61 | H83: 65 | I83: 57 | J83: 69 | K83: 70 | L83: 72 | M83: 67 | N83: 64 | O83: 71 | P83: 61 | Q83: Free Agent | R83: Red Bull Zalgiris | S83: - | T83: KAZ | U83: AS | V83: 4 | W83: 100 | X83: 12 | Y83: 3 | Z83: 1987 | AA83: 35 | AB83: 4 | AC83: 67.44302027 | AE83: =ROUND(IF($AC83>79,44-(($AC83-79)*(14/4)),IF($AC83>76,67-(($AC83-76)*(23/3)),IF(110-(($AC83-70.4)*(43/5.6))>119,119,110-(($AC83-70.4)*(43/5.6)))))*0.93,0) -> 111 | AF83: =ROUND(IF($AC83>79,37-(($AC83-79)*(9/4)),IF($AC83>76,54-(($AC83-76)*(17/3)),IF(93-(($AC83-70.4)*(39/5.6))>100,100,93-(($AC83-70.4)*(39/5.6)))))*0.93,0) -> 93 | AG83: =ROUND(IF($AC83>79,32-(($AC83-79)*(8/4)),IF($AC83>76,48-(($AC83-76)*(16/3)),IF(86-(($AC83-70.4)*(38/5.6))>95,95,86-(($AC83-70.4)*(38/5.6)))))*0.93,0) -> 88 | AH83: No | AK83: 175 | AL83: 75 | AM83: - | AN83: - | AO83: - | AP83: - | AQ83: - | AR83: - | AS83: - | AT83: -
A84: 89 | B84: Baillifard | C84: Valentin | D84: 68 | E84: 68 | F84: 68 | G84: 68 | H84: 69 | I84: 69 | J84: 68 | K84: 55 | L84: 62 | M84: 68 | N84: 64 | O84: 64 | P84: 66 | Q84: Free Agent | R84: Free Agent | S84: - | T84: SWI | U84: EU | V84: 2 | W84: 0 | X84: 25 | Y84: 12 | Z84: 1993 | AA84: 29 | AB84: 4 | AC84: 68.89689153 | AE84: =ROUND(IF($AC84>79,44-(($AC84-79)*(14/4)),IF($AC84>76,67-(($AC84-76)*(23/3)),IF(110-(($AC84-70.4)*(43/5.6))>119,119,110-(($AC84-70.4)*(43/5.6)))))*0.93,0) -> 111 | AF84: =ROUND(IF($AC84>79,37-(($AC84-79)*(9/4)),IF($AC84>76,54-(($AC84-76)*(17/3)),IF(93-(($AC84-70.4)*(39/5.6))>100,100,93-(($AC84-70.4)*(39/5.6)))))*0.93,0) -> 93 | AG84: =ROUND(IF($AC84>79,32-(($AC84-79)*(8/4)),IF($AC84>76,48-(($AC84-76)*(16/3)),IF(86-(($AC84-70.4)*(38/5.6))>95,95,86-(($AC84-70.4)*(38/5.6)))))*0.93,0) -> 88 | AH84: No | AK84: 0 | AL84: 0 | AM84: - | AN84: - | AO84: - | AP84: - | AQ84: - | AR84: - | AS84: - | AT84: -
A85: 90 | B85: Van Dijke | C85: Tim | D85: 70 | E85: 61 | F85: 69 | G85: 66 | H85: 68 | I85: 70 | J85: 67 | K85: 66 | L85: 68 | M85: 68 | N85: 65 | O85: 72 | P85: 68 | Q85: Free Agent | R85: Free Agent | S85: - | T85: NED | U85: EU | V85: 1 | W85: 0 | X85: 20 | Y85: 3 | Z85: 2000 | AA85: 22 | AB85: 5 | AC85: 69.6061667 | AE85: =ROUND(IF($AC85>79,44-(($AC85-79)*(14/4)),IF($AC85>76,67-(($AC85-76)*(23/3)),IF(110-(($AC85-70.4)*(43/5.6))>119,119,110-(($AC85-70.4)*(43/5.6)))))*0.93,0) -> 108 | AF85: =ROUND(IF($AC85>79,37-(($AC85-79)*(9/4)),IF($AC85>76,54-(($AC85-76)*(17/3)),IF(93-(($AC85-70.4)*(39/5.6))>100,100,93-(($AC85-70.4)*(39/5.6)))))*0.93,0) -> 92 | AG85: =ROUND(IF($AC85>79,32-(($AC85-79)*(8/4)),IF($AC85>76,48-(($AC85-76)*(16/3)),IF(86-(($AC85-70.4)*(38/5.6))>95,95,86-(($AC85-70.4)*(38/5.6)))))*0.93,0) -> 85 | AH85: No | AJ85: yes | AK85: 0 | AL85: 0 | AM85: - | AN85: - | AO85: - | AP85: - | AQ85: - | AR85: - | AS85: - | AT85: -
A86: 91 | B86: Double | C86: Paul | D86: 64 | E86: 68 | F86: 70 | G86: 60 | H86: 64 | I86: 66 | J86: 67 | K86: 60 | L86: 62 | M86: 69 | N86: 64 | O86: 71 | P86: 60 | Q86: Free Agent | R86: Free Agent | S86: - | T86: GBR | U86: EU | V86: 3 | W86: 50 | X86: 25 | Y86: 6 | Z86: 1996 | AA86: 26 | AB86: 4 | AC86: 69.10201417 | AE86: =ROUND(IF($AC86>79,44-(($AC86-79)*(14/4)),IF($AC86>76,67-(($AC86-76)*(23/3)),IF(110-(($AC86-70.4)*(43/5.6))>119,119,110-(($AC86-70.4)*(43/5.6)))))*0.93,0) -> 111 | AF86: =ROUND(IF($AC86>79,37-(($AC86-79)*(9/4)),IF($AC86>76,54-(($AC86-76)*(17/3)),IF(93-(($AC86-70.4)*(39/5.6))>100,100,93-(($AC86-70.4)*(39/5.6)))))*0.93,0) -> 93 | AG86: =ROUND(IF($AC86>79,32-(($AC86-79)*(8/4)),IF($AC86>76,48-(($AC86-76)*(16/3)),IF(86-(($AC86-70.4)*(38/5.6))>95,95,86-(($AC86-70.4)*(38/5.6)))))*0.93,0) -> 88 | AH86: No | AK86: 186 | AL86: 69 | AM86: - | AN86: - | AO86: - | AP86: - | AQ86: - | AR86: - | AS86: - | AT86: -
A87: 92 | B87: Kiserlovski | C87: Robert | D87: 63 | E87: 73 | F87: 68 | G87: 65 | H87: 62 | I87: 65 | J87: 60 | K87: 50 | L87: 50 | M87: 56 | N87: 64 | O87: 59 | P87: 64 | Q87: Free Agent | R87: Free Agent | S87: - | T87: CRO | U87: EU | V87: 4 | W87: 100 | X87: 9 | Y87: 8 | Z87: 1986 | AA87: 36 | AB87: 6 | AC87: 69.50127906 | AE87: =ROUND(IF($AC87>79,44-(($AC87-79)*(14/4)),IF($AC87>76,67-(($AC87-76)*(23/3)),IF(110-(($AC87-70.4)*(43/5.6))>119,119,110-(($AC87-70.4)*(43/5.6)))))*0.93,0) -> 109 | AF87: =ROUND(IF($AC87>79,37-(($AC87-79)*(9/4)),IF($AC87>76,54-(($AC87-76)*(17/3)),IF(93-(($AC87-70.4)*(39/5.6))>100,100,93-(($AC87-70.4)*(39/5.6)))))*0.93,0) -> 92 | AG87: =ROUND(IF($AC87>79,32-(($AC87-79)*(8/4)),IF($AC87>76,48-(($AC87-76)*(16/3)),IF(86-(($AC87-70.4)*(38/5.6))>95,95,86-(($AC87-70.4)*(38/5.6)))))*0.93,0) -> 86 | AH87: No | AK87: 180 | AL87: 72 | AM87: - | AN87: - | AO87: - | AP87: - | AQ87: - | AR87: - | AS87: - | AT87: -
A88: 94 | B88: Haavardsholm | C88: Ole | D88: 63 | E88: 68 | F88: 74 | G88: 61 | H88: 65 | I88: 67 | J88: 63 | K88: 50 | L88: 68 | M88: 78 | N88: 71 | O88: 70 | P88: 61 | Q88: Free Agent | R88: Free Agent | S88: - | T88: NOR | U88: EU | V88: 4 | W88: 100 | X88: 18 | Y88: 7 | Z88: 1989 | AA88: 33 | AB88: 4 | AC88: 72.82141573 | AE88: =ROUND(IF($AC88>79,44-(($AC88-79)*(14/4)),IF($AC88>76,67-(($AC88-76)*(23/3)),IF(110-(($AC88-70.4)*(43/5.6))>119,119,110-(($AC88-70.4)*(43/5.6)))))*0.93,0) -> 85 | AF88: =ROUND(IF($AC88>79,37-(($AC88-79)*(9/4)),IF($AC88>76,54-(($AC88-76)*(17/3)),IF(93-(($AC88-70.4)*(39/5.6))>100,100,93-(($AC88-70.4)*(39/5.6)))))*0.93,0) -> 71 | AG88: =ROUND(IF($AC88>79,32-(($AC88-79)*(8/4)),IF($AC88>76,48-(($AC88-76)*(16/3)),IF(86-(($AC88-70.4)*(38/5.6))>95,95,86-(($AC88-70.4)*(38/5.6)))))*0.93,0) -> 65 | AH88: No | AK88: 187 | AL88: 70 | AM88: - | AN88: - | AO88: - | AP88: - | AQ88: - | AR88: - | AS88: - | AT88: -
A89: 95 | B89: Stavrakakis | C89: Georgios | D89: 74 | E89: 61 | F89: 68 | G89: 73 | H89: 72 | I89: 69 | J89: 65 | K89: 75 | L89: 64 | M89: 68 | N89: 70 | O89: 62 | P89: 75 | Q89: ELCO - ABEA | R89: Binance Cycling | S89: PT | T89: GRE | U89: EU | V89: 4 | W89: 24 | X89: 22 | Y89: 4 | Z89: 1998 | AA89: 24 | AB89: 5 | AC89: 73.31623052 | AD89: 50000 | AE89: =ROUND(IF($AC89>79,44-(($AC89-79)*(14/4)),IF($AC89>76,67-(($AC89-76)*(23/3)),IF(110-(($AC89-70.4)*(43/5.6))>119,119,110-(($AC89-70.4)*(43/5.6)))))*0.93,0) -> 81 | AF89: =ROUND(IF($AC89>79,37-(($AC89-79)*(9/4)),IF($AC89>76,54-(($AC89-76)*(17/3)),IF(93-(($AC89-70.4)*(39/5.6))>100,100,93-(($AC89-70.4)*(39/5.6)))))*0.93,0) -> 68 | AG89: =ROUND(IF($AC89>79,32-(($AC89-79)*(8/4)),IF($AC89>76,48-(($AC89-76)*(16/3)),IF(86-(($AC89-70.4)*(38/5.6))>95,95,86-(($AC89-70.4)*(38/5.6)))))*0.93,0) -> 62 | AH89: No | AK89: 175 | AL89: 71 | AM89: - | AN89: - | AO89: - | AP89: - | AQ89: - | AR89: - | AS89: - | AT89: -
A90: 97 | B90: Woolridge | C90: Phillip | D90: 68 | E90: 62 | F90: 65 | G90: 70 | H90: 61 | I90: 66 | J90: 65 | K90: 50 | L90: 57 | M90: 61 | N90: 54 | O90: 65 | P90: 68 | Q90: Free Agent | R90: Free Agent | S90: - | T90: BER | U90: NA | V90: 4 | W90: 100 | X90: 9 | Y90: 6 | Z90: 1991 | AA90: 31 | AB90: 2 | AC90: 66.53208269 | AE90: =ROUND(IF($AC90>79,44-(($AC90-79)*(14/4)),IF($AC90>76,67-(($AC90-76)*(23/3)),IF(110-(($AC90-70.4)*(43/5.6))>119,119,110-(($AC90-70.4)*(43/5.6)))))*0.93,0) -> 111 | AF90: =ROUND(IF($AC90>79,37-(($AC90-79)*(9/4)),IF($AC90>76,54-(($AC90-76)*(17/3)),IF(93-(($AC90-70.4)*(39/5.6))>100,100,93-(($AC90-70.4)*(39/5.6)))))*0.93,0) -> 93 | AG90: =ROUND(IF($AC90>79,32-(($AC90-79)*(8/4)),IF($AC90>76,48-(($AC90-76)*(16/3)),IF(86-(($AC90-70.4)*(38/5.6))>95,95,86-(($AC90-70.4)*(38/5.6)))))*0.93,0) -> 88 | AH90: No | AK90: 183 | AL90: 79 | AM90: - | AN90: - | AO90: - | AP90: - | AQ90: - | AR90: - | AS90: - | AT90: -
A91: 98 | B91: Mas | C91: Lluis | D91: 77 | E91: 60 | F91: 64 | G91: 67 | H91: 64 | I91: 69 | J91: 59 | K91: 56 | L91: 70 | M91: 76 | N91: 67 | O91: 64 | P91: 69 | Q91: Free Agent | R91: Free Agent | S91: - | T91: ESP | U91: EU | V91: 4 | W91: 100 | X91: 15 | Y91: 1 | Z91: 1989 | AA91: 33 | AB91: 4 | AC91: 71.09267026 | AE91: =ROUND(IF($AC91>79,44-(($AC91-79)*(14/4)),IF($AC91>76,67-(($AC91-76)*(23/3)),IF(110-(($AC91-70.4)*(43/5.6))>119,119,110-(($AC91-70.4)*(43/5.6)))))*0.93,0) -> 97 | AF91: =ROUND(IF($AC91>79,37-(($AC91-79)*(9/4)),IF($AC91>76,54-(($AC91-76)*(17/3)),IF(93-(($AC91-70.4)*(39/5.6))>100,100,93-(($AC91-70.4)*(39/5.6)))))*0.93,0) -> 82 | AG91: =ROUND(IF($AC91>79,32-(($AC91-79)*(8/4)),IF($AC91>76,48-(($AC91-76)*(16/3)),IF(86-(($AC91-70.4)*(38/5.6))>95,95,86-(($AC91-70.4)*(38/5.6)))))*0.93,0) -> 76 | AH91: No | AK91: 0 | AL91: 0 | AM91: - | AN91: - | AO91: - | AP91: - | AQ91: - | AR91: - | AS91: - | AT91: -
A92: 99 | B92: Locatelli | C92: Paolo | D92: 70 | E92: 64 | F92: 71 | G92: 59 | H92: 72 | I92: 69 | J92: 68 | K92: 65 | L92: 64 | M92: 66 | N92: 63 | O92: 60 | P92: 59 | Q92: Free Agent | R92: Free Agent | S92: - | T92: ITA | U92: EU | V92: 4 | W92: 100 | X92: 4 | Y92: 11 | Z92: 1989 | AA92: 33 | AB92: 5 | AC92: 69.76310181 | AE92: =ROUND(IF($AC92>79,44-(($AC92-79)*(14/4)),IF($AC92>76,67-(($AC92-76)*(23/3)),IF(110-(($AC92-70.4)*(43/5.6))>119,119,110-(($AC92-70.4)*(43/5.6)))))*0.93,0) -> 107 | AF92: =ROUND(IF($AC92>79,37-(($AC92-79)*(9/4)),IF($AC92>76,54-(($AC92-76)*(17/3)),IF(93-(($AC92-70.4)*(39/5.6))>100,100,93-(($AC92-70.4)*(39/5.6)))))*0.93,0) -> 91 | AG92: =ROUND(IF($AC92>79,32-(($AC92-79)*(8/4)),IF($AC92>76,48-(($AC92-76)*(16/3)),IF(86-(($AC92-70.4)*(38/5.6))>95,95,86-(($AC92-70.4)*(38/5.6)))))*0.93,0) -> 84 | AH92: No | AK92: 0 | AL92: 0 | AM92: - | AN92: - | AO92: - | AP92: - | AQ92: - | AR92: - | AS92: - | AT92: -
A93: 100 | B93: White | C93: Connor | D93: 70 | E93: 66 | F93: 68 | G93: 67 | H93: 67 | I93: 68 | J93: 63 | K93: 63 | L93: 67 | M93: 68 | N93: 71 | O93: 72 | P93: 69 | Q93: Free Agent | R93: Free Agent | S93: - | T93: BER | U93: NA | V93: 1 | W93: 0 | X93: 19 | Y93: 10 | Z93: 1999 | AA93: 23 | AB93: 5 | AC93: 68.97815935 | AE93: =ROUND(IF($AC93>79,44-(($AC93-79)*(14/4)),IF($AC93>76,67-(($AC93-76)*(23/3)),IF(110-(($AC93-70.4)*(43/5.6))>119,119,110-(($AC93-70.4)*(43/5.6)))))*0.93,0) -> 111 | AF93: =ROUND(IF($AC93>79,37-(($AC93-79)*(9/4)),IF($AC93>76,54-(($AC93-76)*(17/3)),IF(93-(($AC93-70.4)*(39/5.6))>100,100,93-(($AC93-70.4)*(39/5.6)))))*0.93,0) -> 93 | AG93: =ROUND(IF($AC93>79,32-(($AC93-79)*(8/4)),IF($AC93>76,48-(($AC93-76)*(16/3)),IF(86-(($AC93-70.4)*(38/5.6))>95,95,86-(($AC93-70.4)*(38/5.6)))))*0.93,0) -> 88 | AH93: No | AK93: 189 | AL93: 72 | AM93: - | AN93: - | AO93: - | AP93: - | AQ93: - | AR93: - | AS93: - | AT93: -
A94: 101 | B94: Stannard | C94: Ian | D94: 71 | E94: 50 | F94: 51 | G94: 75 | H94: 63 | I94: 64 | J94: 58 | K94: 62 | L94: 53 | M94: 66 | N94: 65 | O94: 57 | P94: 75 | Q94: Free Agent | R94: cycleYorkshire | S94: - | T94: GBR | U94: EU | V94: 4 | W94: 100 | X94: 25 | Y94: 5 | Z94: 1987 | AA94: 35 | AB94: 6 | AC94: 67.90470186 | AE94: =ROUND(IF($AC94>79,44-(($AC94-79)*(14/4)),IF($AC94>76,67-(($AC94-76)*(23/3)),IF(110-(($AC94-70.4)*(43/5.6))>119,119,110-(($AC94-70.4)*(43/5.6)))))*0.93,0) -> 111 | AF94: =ROUND(IF($AC94>79,37-(($AC94-79)*(9/4)),IF($AC94>76,54-(($AC94-76)*(17/3)),IF(93-(($AC94-70.4)*(39/5.6))>100,100,93-(($AC94-70.4)*(39/5.6)))))*0.93,0) -> 93 | AG94: =ROUND(IF($AC94>79,32-(($AC94-79)*(8/4)),IF($AC94>76,48-(($AC94-76)*(16/3)),IF(86-(($AC94-70.4)*(38/5.6))>95,95,86-(($AC94-70.4)*(38/5.6)))))*0.93,0) -> 88 | AH94: No | AK94: 190 | AL94: 80 | AM94: - | AN94: Yes | AO94: - | AP94: - | AQ94: - | AR94: - | AS94: - | AT94: -
A95: 102 | B95: Nsengimana | C95: Jean Bosco | D95: 65 | E95: 72 | F95: 71 | G95: 72 | H95: 71 | I95: 70 | J95: 72 | K95: 53 | L95: 66 | M95: 72 | N95: 74 | O95: 66 | P95: 74 | Q95: Free Agent | R95: Free Agent | S95: - | T95: RWA | U95: AF | V95: 4 | W95: 1 | X95: 4 | Y95: 11 | Z95: 1992 | AA95: 30 | AB95: 4 | AC95: 71.71178041 | AE95: =ROUND(IF($AC95>79,44-(($AC95-79)*(14/4)),IF($AC95>76,67-(($AC95-76)*(23/3)),IF(110-(($AC95-70.4)*(43/5.6))>119,119,110-(($AC95-70.4)*(43/5.6)))))*0.93,0) -> 93 | AF95: =ROUND(IF($AC95>79,37-(($AC95-79)*(9/4)),IF($AC95>76,54-(($AC95-76)*(17/3)),IF(93-(($AC95-70.4)*(39/5.6))>100,100,93-(($AC95-70.4)*(39/5.6)))))*0.93,0) -> 78 | AG95: =ROUND(IF($AC95>79,32-(($AC95-79)*(8/4)),IF($AC95>76,48-(($AC95-76)*(16/3)),IF(86-(($AC95-70.4)*(38/5.6))>95,95,86-(($AC95-70.4)*(38/5.6)))))*0.93,0) -> 72 | AH95: No | AK95: 0 | AL95: 0 | AM95: - | AN95: - | AO95: - | AP95: - | AQ95: - | AR95: - | AS95: - | AT95: -
A96: 103 | B96: Hulgaard | C96: Morten | D96: 70 | E96: 65 | F96: 69 | G96: 74 | H96: 72 | I96: 70 | J96: 69 | K96: 58 | L96: 65 | M96: 65 | N96: 67 | O96: 67 | P96: 73 | Q96: Free Agent | R96: Eurosport x GCN | S96: - | T96: DEN | U96: EU | V96: 4 | W96: 25 | X96: 23 | Y96: 8 | Z96: 1998 | AA96: 24 | AB96: 5 | AC96: 70.5385468 | AE96: =ROUND(IF($AC96>79,44-(($AC96-79)*(14/4)),IF($AC96>76,67-(($AC96-76)*(23/3)),IF(110-(($AC96-70.4)*(43/5.6))>119,119,110-(($AC96-70.4)*(43/5.6)))))*0.93,0) -> 101 | AF96: =ROUND(IF($AC96>79,37-(($AC96-79)*(9/4)),IF($AC96>76,54-(($AC96-76)*(17/3)),IF(93-(($AC96-70.4)*(39/5.6))>100,100,93-(($AC96-70.4)*(39/5.6)))))*0.93,0) -> 86 | AG96: =ROUND(IF($AC96>79,32-(($AC96-79)*(8/4)),IF($AC96>76,48-(($AC96-76)*(16/3)),IF(86-(($AC96-70.4)*(38/5.6))>95,95,86-(($AC96-70.4)*(38/5.6)))))*0.93,0) -> 79 | AH96: No | AK96: 162 | AL96: 48 | AM96: - | AN96: - | AO96: - | AP96: - | AQ96: - | AR96: - | AS96: - | AT96: -
A97: 104 | B97: Yates | C97: Joel | D97: 70 | E97: 64 | F97: 76 | G97: 69 | H97: 75 | I97: 73 | J97: 70 | K97: 63 | L97: 62 | M97: 68 | N97: 72 | O97: 69 | P97: 69 | Q97: BNZ-Superhero Racing | R97: Binance Cycling | S97: CT | T97: NZL | U97: OC | V97: 4 | W97: 34 | X97: 29 | Y97: 11 | Z97: 1996 | AA97: 26 | AB97: 4 | AC97: 72.79381419 | AD97: 50000 | AE97: =ROUND(IF($AC97>79,44-(($AC97-79)*(14/4)),IF($AC97>76,67-(($AC97-76)*(23/3)),IF(110-(($AC97-70.4)*(43/5.6))>119,119,110-(($AC97-70.4)*(43/5.6)))))*0.93,0) -> 85 | AF97: =ROUND(IF($AC97>79,37-(($AC97-79)*(9/4)),IF($AC97>76,54-(($AC97-76)*(17/3)),IF(93-(($AC97-70.4)*(39/5.6))>100,100,93-(($AC97-70.4)*(39/5.6)))))*0.93,0) -> 71 | AG97: =ROUND(IF($AC97>79,32-(($AC97-79)*(8/4)),IF($AC97>76,48-(($AC97-76)*(16/3)),IF(86-(($AC97-70.4)*(38/5.6))>95,95,86-(($AC97-70.4)*(38/5.6)))))*0.93,0) -> 65 | AH97: No | AK97: 0 | AL97: 0 | AM97: - | AN97: - | AO97: - | AP97: - | AQ97: - | AR97: - | AS97: - | AT97: -
A98: 106 | B98: Fernandes | C98: Jose | D98: 71 | E98: 75 | F98: 70 | G98: 77 | H98: 78 | I98: 77 | J98: 76 | K98: 53 | L98: 62 | M98: 67 | N98: 60 | O98: 68 | P98: 77 | Q98: Binance | R98: Binance Cycling | S98: PCT | T98: POR | U98: EU | V98: 4 | W98: 100 | X98: 30 | Y98: 10 | Z98: 1995 | AA98: 27 | AB98: 4 | AC98: 75.9310356 | AD98: 160000 | AE98: =ROUND(IF($AC98>79,44-(($AC98-79)*(14/4)),IF($AC98>76,67-(($AC98-76)*(23/3)),IF(110-(($AC98-70.4)*(43/5.6))>119,119,110-(($AC98-70.4)*(43/5.6)))))*0.93,0) -> 63 | AF98: =ROUND(IF($AC98>79,37-(($AC98-79)*(9/4)),IF($AC98>76,54-(($AC98-76)*(17/3)),IF(93-(($AC98-70.4)*(39/5.6))>100,100,93-(($AC98-70.4)*(39/5.6)))))*0.93,0) -> 51 | AG98: =ROUND(IF($AC98>79,32-(($AC98-79)*(8/4)),IF($AC98>76,48-(($AC98-76)*(16/3)),IF(86-(($AC98-70.4)*(38/5.6))>95,95,86-(($AC98-70.4)*(38/5.6)))))*0.93,0) -> 45 | AH98: Yes | AK98: 175 | AL98: 60 | AM98: - | AN98: - | AO98: - | AP98: - | AQ98: - | AR98: - | AS98: - | AT98: -
A99: 107 | B99: Berlin | C99: Antoine | D99: 69 | E99: 74 | F99: 72 | G99: 69 | H99: 75 | I99: 69 | J99: 66 | K99: 55 | L99: 56 | M99: 67 | N99: 69 | O99: 70 | P99: 67 | Q99: Free Agent | R99: Free Agent | S99: - | T99: MCO | U99: EU | V99: 4 | W99: 100 | X99: 2 | Y99: 8 | Z99: 1989 | AA99: 33 | AB99: 4 | AC99: 72.4107787 | AE99: =ROUND(IF($AC99>79,44-(($AC99-79)*(14/4)),IF($AC99>76,67-(($AC99-76)*(23/3)),IF(110-(($AC99-70.4)*(43/5.6))>119,119,110-(($AC99-70.4)*(43/5.6)))))*0.93,0) -> 88 | AF99: =ROUND(IF($AC99>79,37-(($AC99-79)*(9/4)),IF($AC99>76,54-(($AC99-76)*(17/3)),IF(93-(($AC99-70.4)*(39/5.6))>100,100,93-(($AC99-70.4)*(39/5.6)))))*0.93,0) -> 73 | AG99: =ROUND(IF($AC99>79,32-(($AC99-79)*(8/4)),IF($AC99>76,48-(($AC99-76)*(16/3)),IF(86-(($AC99-70.4)*(38/5.6))>95,95,86-(($AC99-70.4)*(38/5.6)))))*0.93,0) -> 67 | AH99: No | AK99: 185 | AL99: 70 | AM99: - | AN99: - | AO99: - | AP99: - | AQ99: - | AR99: - | AS99: - | AT99: -
A100: 108 | B100: Braet | C100: Vito | D100: 69 | E100: 60 | F100: 66 | G100: 58 | H100: 70 | I100: 71 | J100: 63 | K100: 68 | L100: 68 | M100: 67 | N100: 62 | O100: 60 | P100: 64 | Q100: Free Agent | R100: Free Agent | S100: - | T100: BEL | U100: EU | V100: 1 | W100: 0 | X100: 2 | Y100: 11 | Z100: 2000 | AA100: 22 | AB100: 3 | AC100: 68.33532668 | AE100: =ROUND(IF($AC100>79,44-(($AC100-79)*(14/4)),IF($AC100>76,67-(($AC100-76)*(23/3)),IF(110-(($AC100-70.4)*(43/5.6))>119,119,110-(($AC100-70.4)*(43/5.6)))))*0.93,0) -> 111 | AF100: =ROUND(IF($AC100>79,37-(($AC100-79)*(9/4)),IF($AC100>76,54-(($AC100-76)*(17/3)),IF(93-(($AC100-70.4)*(39/5.6))>100,100,93-(($AC100-70.4)*(39/5.6)))))*0.93,0) -> 93 | AG100: =ROUND(IF($AC100>79,32-(($AC100-79)*(8/4)),IF($AC100>76,48-(($AC100-76)*(16/3)),IF(86-(($AC100-70.4)*(38/5.6))>95,95,86-(($AC100-70.4)*(38/5.6)))))*0.93,0) -> 88 | AH100: No | AJ100: yes | AK100: 184 | AL100: 72 | AM100: - | AN100: - | AO100: - | AP100: - | AQ100: - | AR100: - | AS100: - | AT100: -
A101: 109 | B101: Gesink | C101: Robert | D101: 66 | E101: 76 | F101: 74 | G101: 73 | H101: 68 | I101: 70 | J101: 70 | K101: 59 | L101: 54 | M101: 58 | N101: 65 | O101: 59 | P101: 73 | Q101: Free Agent | R101: Duolingo | S101: - | T101: NED | U101: EU | V101: 4 | W101: 100 | X101: 31 | Y101: 5 | Z101: 1986 | AA101: 36 | AB101: 7 | AC101: 73.92670863 | AE101: =ROUND(IF($AC101>79,44-(($AC101-79)*(14/4)),IF($AC101>76,67-(($AC101-76)*(23/3)),IF(110-(($AC101-70.4)*(43/5.6))>119,119,110-(($AC101-70.4)*(43/5.6)))))*0.93,0) -> 77 | AF101: =ROUND(IF($AC101>79,37-(($AC101-79)*(9/4)),IF($AC101>76,54-(($AC101-76)*(17/3)),IF(93-(($AC101-70.4)*(39/5.6))>100,100,93-(($AC101-70.4)*(39/5.6)))))*0.93,0) -> 64 | AG101: =ROUND(IF($AC101>79,32-(($AC101-79)*(8/4)),IF($AC101>76,48-(($AC101-76)*(16/3)),IF(86-(($AC101-70.4)*(38/5.6))>95,95,86-(($AC101-70.4)*(38/5.6)))))*0.93,0) -> 58 | AH101: No | AK101: 189 | AL101: 70 | AM101: - | AN101: - | AO101: - | AP101: - | AQ101: - | AR101: - | AS101: - | AT101: -
A102: 110 | B102: Curley | C102: Liam | D102: 69 | E102: 60 | F102: 67 | G102: 67 | H102: 68 | I102: 66 | J102: 66 | K102: 67 | L102: 67 | M102: 67 | N102: 71 | O102: 70 | P102: 68 | Q102: Free Agent | R102: Free Agent | S102: - | T102: IRL | U102: EU | V102: 1 | W102: 0 | X102: 26 | Y102: 2 | Z102: 2000 | AA102: 22 | AB102: 4 | AC102: 68.17419694 | AE102: =ROUND(IF($AC102>79,44-(($AC102-79)*(14/4)),IF($AC102>76,67-(($AC102-76)*(23/3)),IF(110-(($AC102-70.4)*(43/5.6))>119,119,110-(($AC102-70.4)*(43/5.6)))))*0.93,0) -> 111 | AF102: =ROUND(IF($AC102>79,37-(($AC102-79)*(9/4)),IF($AC102>76,54-(($AC102-76)*(17/3)),IF(93-(($AC102-70.4)*(39/5.6))>100,100,93-(($AC102-70.4)*(39/5.6)))))*0.93,0) -> 93 | AG102: =ROUND(IF($AC102>79,32-(($AC102-79)*(8/4)),IF($AC102>76,48-(($AC102-76)*(16/3)),IF(86-(($AC102-70.4)*(38/5.6))>95,95,86-(($AC102-70.4)*(38/5.6)))))*0.93,0) -> 88 | AH102: No | AJ102: yes | AK102: 187 | AL102: 67 | AM102: - | AN102: - | AO102: - | AP102: - | AQ102: - | AR102: - | AS102: - | AT102: -
A103: 111 | B103: Guarnieri | C103: Jacopo | D103: 72 | E103: 54 | F103: 62 | G103: 50 | H103: 71 | I103: 70 | J103: 74 | K103: 60 | L103: 78 | M103: 75 | N103: 64 | O103: 58 | P103: 71 | Q103: Free Agent | R103: Assa Abloy | S103: - | T103: ITA | U103: EU | V103: 4 | W103: 100 | X103: 14 | Y103: 8 | Z103: 1987 | AA103: 35 | AB103: 6 | AC103: 73.06732815 | AE103: =ROUND(IF($AC103>79,44-(($AC103-79)*(14/4)),IF($AC103>76,67-(($AC103-76)*(23/3)),IF(110-(($AC103-70.4)*(43/5.6))>119,119,110-(($AC103-70.4)*(43/5.6)))))*0.93,0) -> 83 | AF103: =ROUND(IF($AC103>79,37-(($AC103-79)*(9/4)),IF($AC103>76,54-(($AC103-76)*(17/3)),IF(93-(($AC103-70.4)*(39/5.6))>100,100,93-(($AC103-70.4)*(39/5.6)))))*0.93,0) -> 69 | AG103: =ROUND(IF($AC103>79,32-(($AC103-79)*(8/4)),IF($AC103>76,48-(($AC103-76)*(16/3)),IF(86-(($AC103-70.4)*(38/5.6))>95,95,86-(($AC103-70.4)*(38/5.6)))))*0.93,0) -> 63 | AH103: No | AK103: 189 | AL103: 78 | AM103: - | AN103: - | AO103: - | AP103: - | AQ103: - | AR103: - | AS103: - | AT103: -
A104: 112 | B104: Dujardin | C104: Sandy | D104: 69 | E104: 62 | F104: 67 | G104: 58 | H104: 70 | I104: 74 | J104: 65 | K104: 64 | L104: 69 | M104: 74 | N104: 67 | O104: 73 | P104: 64 | Q104: Free Agent | R104: Free Agent | S104: - | T104: FRA | U104: EU | V104: 2 | W104: 34 | X104: 29 | Y104: 5 | Z104: 1997 | AA104: 25 | AB104: 4 | AC104: 70.5004659 | AE104: =ROUND(IF($AC104>79,44-(($AC104-79)*(14/4)),IF($AC104>76,67-(($AC104-76)*(23/3)),IF(110-(($AC104-70.4)*(43/5.6))>119,119,110-(($AC104-70.4)*(43/5.6)))))*0.93,0) -> 102 | AF104: =ROUND(IF($AC104>79,37-(($AC104-79)*(9/4)),IF($AC104>76,54-(($AC104-76)*(17/3)),IF(93-(($AC104-70.4)*(39/5.6))>100,100,93-(($AC104-70.4)*(39/5.6)))))*0.93,0) -> 86 | AG104: =ROUND(IF($AC104>79,32-(($AC104-79)*(8/4)),IF($AC104>76,48-(($AC104-76)*(16/3)),IF(86-(($AC104-70.4)*(38/5.6))>95,95,86-(($AC104-70.4)*(38/5.6)))))*0.93,0) -> 79 | AH104: No | AK104: 177 | AL104: 70 | AM104: - | AN104: - | AO104: - | AP104: - | AQ104: - | AR104: - | AS104: - | AT104: -
A105: 113 | B105: Molano | C105: Juan Sebastian | D105: 71 | E105: 61 | F105: 63 | G105: 60 | H105: 68 | I105: 68 | J105: 73 | K105: 68 | L105: 72 | M105: 75 | N105: 64 | O105: 63 | P105: 66 | Q105: Free Agent | R105: Free Agent | S105: - | T105: COL | U105: SA | V105: 3 | W105: 43 | X105: 4 | Y105: 11 | Z105: 1994 | AA105: 28 | AB105: 4 | AC105: 70.59827795 | AE105: =ROUND(IF($AC105>79,44-(($AC105-79)*(14/4)),IF($AC105>76,67-(($AC105-76)*(23/3)),IF(110-(($AC105-70.4)*(43/5.6))>119,119,110-(($AC105-70.4)*(43/5.6)))))*0.93,0) -> 101 | AF105: =ROUND(IF($AC105>79,37-(($AC105-79)*(9/4)),IF($AC105>76,54-(($AC105-76)*(17/3)),IF(93-(($AC105-70.4)*(39/5.6))>100,100,93-(($AC105-70.4)*(39/5.6)))))*0.93,0) -> 85 | AG105: =ROUND(IF($AC105>79,32-(($AC105-79)*(8/4)),IF($AC105>76,48-(($AC105-76)*(16/3)),IF(86-(($AC105-70.4)*(38/5.6))>95,95,86-(($AC105-70.4)*(38/5.6)))))*0.93,0) -> 79 | AH105: No | AK105: 0 | AL105: 0 | AM105: - | AN105: - | AO105: - | AP105: - | AQ105: - | AR105: - | AS105: - | AT105: -
A106: 114 | B106: Giulietti | C106: Luigi | D106: 69 | E106: 65 | F106: 68 | G106: 69 | H106: 69 | I106: 69 | J106: 70 | K106: 69 | L106: 66 | M106: 68 | N106: 62 | O106: 74 | P106: 69 | Q106: Free Agent | R106: Free Agent | S106: - | T106: SMR | U106: EU | V106: 2 | W106: 0 | X106: 24 | Y106: 4 | Z106: 1999 | AA106: 23 | AB106: 4 | AC106: 69.36089839 | AE106: =ROUND(IF($AC106>79,44-(($AC106-79)*(14/4)),IF($AC106>76,67-(($AC106-76)*(23/3)),IF(110-(($AC106-70.4)*(43/5.6))>119,119,110-(($AC106-70.4)*(43/5.6)))))*0.93,0) -> 110 | AF106: =ROUND(IF($AC106>79,37-(($AC106-79)*(9/4)),IF($AC106>76,54-(($AC106-76)*(17/3)),IF(93-(($AC106-70.4)*(39/5.6))>100,100,93-(($AC106-70.4)*(39/5.6)))))*0.93,0) -> 93 | AG106: =ROUND(IF($AC106>79,32-(($AC106-79)*(8/4)),IF($AC106>76,48-(($AC106-76)*(16/3)),IF(86-(($AC106-70.4)*(38/5.6))>95,95,86-(($AC106-70.4)*(38/5.6)))))*0.93,0) -> 87 | AH106: No | AK106: 177 | AL106: 69 | AM106: - | AN106: - | AO106: - | AP106: - | AQ106: - | AR106: - | AS106: - | AT106: -
A107: 115 | B107: Van der Kooij | C107: Bas | D107: 73 | E107: 62 | F107: 69 | G107: 60 | H107: 75 | I107: 74 | J107: 83 | K107: 66 | L107: 78 | M107: 77 | N107: 62 | O107: 66 | P107: 66 | Q107: Huski Chocolate | R107: Huski Chocolate | S107: PT | T107: NED | U107: EU | V107: 4 | W107: 100 | X107: 16 | Y107: 11 | Z107: 1995 | AA107: 27 | AB107: 4 | AC107: 74.55176008 | AD107: 75000 | AE107: =ROUND(IF($AC107>79,44-(($AC107-79)*(14/4)),IF($AC107>76,67-(($AC107-76)*(23/3)),IF(110-(($AC107-70.4)*(43/5.6))>119,119,110-(($AC107-70.4)*(43/5.6)))))*0.93,0) -> 73 | AF107: =ROUND(IF($AC107>79,37-(($AC107-79)*(9/4)),IF($AC107>76,54-(($AC107-76)*(17/3)),IF(93-(($AC107-70.4)*(39/5.6))>100,100,93-(($AC107-70.4)*(39/5.6)))))*0.93,0) -> 60 | AG107: =ROUND(IF($AC107>79,32-(($AC107-79)*(8/4)),IF($AC107>76,48-(($AC107-76)*(16/3)),IF(86-(($AC107-70.4)*(38/5.6))>95,95,86-(($AC107-70.4)*(38/5.6)))))*0.93,0) -> 54 | AH107: Yes | AK107: 0 | AL107: 0 | AM107: - | AN107: - | AO107: - | AP107: - | AQ107: - | AR107: - | AS107: - | AT107: -
A108: 116 | B108: Ockeloen | C108: Jasper | D108: 68 | E108: 73 | F108: 74 | G108: 64 | H108: 69 | I108: 70 | J108: 70 | K108: 60 | L108: 68 | M108: 68 | N108: 68 | O108: 70 | P108: 64 | Q108: Free Agent | R108: Free Agent | S108: - | T108: NED | U108: EU | V108: 4 | W108: 100 | X108: 10 | Y108: 5 | Z108: 1990 | AA108: 32 | AB108: 4 | AC108: 72.75176059 | AE108: =ROUND(IF($AC108>79,44-(($AC108-79)*(14/4)),IF($AC108>76,67-(($AC108-76)*(23/3)),IF(110-(($AC108-70.4)*(43/5.6))>119,119,110-(($AC108-70.4)*(43/5.6)))))*0.93,0) -> 86 | AF108: =ROUND(IF($AC108>79,37-(($AC108-79)*(9/4)),IF($AC108>76,54-(($AC108-76)*(17/3)),IF(93-(($AC108-70.4)*(39/5.6))>100,100,93-(($AC108-70.4)*(39/5.6)))))*0.93,0) -> 71 | AG108: =ROUND(IF($AC108>79,32-(($AC108-79)*(8/4)),IF($AC108>76,48-(($AC108-76)*(16/3)),IF(86-(($AC108-70.4)*(38/5.6))>95,95,86-(($AC108-70.4)*(38/5.6)))))*0.93,0) -> 65 | AH108: No | AK108: 186 | AL108: 66 | AM108: - | AN108: - | AO108: - | AP108: - | AQ108: - | AR108: - | AS108: - | AT108: -
A109: 117 | B109: Van Meirhaeghe | C109: Jef | D109: 65 | E109: 54 | F109: 63 | G109: 65 | H109: 68 | I109: 65 | J109: 61 | K109: 58 | L109: 66 | M109: 70 | N109: 62 | O109: 60 | P109: 65 | Q109: Free Agent | R109: Free Agent | S109: - | T109: BEL | U109: EU | V109: 3 | W109: 0 | X109: 21 | Y109: 1 | Z109: 1992 | AA109: 30 | AB109: 3 | AC109: 65.87920469 | AE109: =ROUND(IF($AC109>79,44-(($AC109-79)*(14/4)),IF($AC109>76,67-(($AC109-76)*(23/3)),IF(110-(($AC109-70.4)*(43/5.6))>119,119,110-(($AC109-70.4)*(43/5.6)))))*0.93,0) -> 111 | AF109: =ROUND(IF($AC109>79,37-(($AC109-79)*(9/4)),IF($AC109>76,54-(($AC109-76)*(17/3)),IF(93-(($AC109-70.4)*(39/5.6))>100,100,93-(($AC109-70.4)*(39/5.6)))))*0.93,0) -> 93 | AG109: =ROUND(IF($AC109>79,32-(($AC109-79)*(8/4)),IF($AC109>76,48-(($AC109-76)*(16/3)),IF(86-(($AC109-70.4)*(38/5.6))>95,95,86-(($AC109-70.4)*(38/5.6)))))*0.93,0) -> 88 | AH109: No | AK109: 177 | AL109: 66 | AM109: - | AN109: - | AO109: - | AP109: - | AQ109: - | AR109: - | AS109: - | AT109: -
A110: 118 | B110: Phinney | C110: Taylor | D110: 73 | E110: 85 | F110: 77 | G110: 83 | H110: 77 | I110: 74 | J110: 76 | K110: 58 | L110: 72 | M110: 75 | N110: 68 | O110: 71 | P110: 83 | Q110: Isostar - Specialized | R110: Isostar - Specialized | S110: PT | T110: USA | U110: NA | V110: 4 | W110: 100 | X110: 27 | Y110: 6 | Z110: 1990 | AA110: 32 | AB110: 7 | AC110: 81.69912944 | AD110: 1025000 | AE110: =ROUND(IF($AC110>79,44-(($AC110-79)*(14/4)),IF($AC110>76,67-(($AC110-76)*(23/3)),IF(110-(($AC110-70.4)*(43/5.6))>119,119,110-(($AC110-70.4)*(43/5.6)))))*0.93,0) -> 32 | AF110: =ROUND(IF($AC110>79,37-(($AC110-79)*(9/4)),IF($AC110>76,54-(($AC110-76)*(17/3)),IF(93-(($AC110-70.4)*(39/5.6))>100,100,93-(($AC110-70.4)*(39/5.6)))))*0.93,0) -> 29 | AG110: =ROUND(IF($AC110>79,32-(($AC110-79)*(8/4)),IF($AC110>76,48-(($AC110-76)*(16/3)),IF(86-(($AC110-70.4)*(38/5.6))>95,95,86-(($AC110-70.4)*(38/5.6)))))*0.93,0) -> 25 | AH110: No | AK110: 0 | AL110: 0 | AM110: - | AN110: Yes | AO110: - | AP110: Yes | AQ110: - | AR110: - | AS110: - | AT110: -
A111: 119 | B111: Curry | C111: Chris | D111: 66 | E111: 63 | F111: 61 | G111: 63 | H111: 60 | I111: 62 | J111: 63 | K111: 61 | L111: 70 | M111: 69 | N111: 66 | O111: 64 | P111: 65 | Q111: Free Agent | R111: Free Agent | S111: - | T111: BAH | U111: NA | V111: 4 | W111: 100 | X111: 14 | Y111: 10 | Z111: 1990 | AA111: 32 | AB111: 2 | AC111: 66.83015005 | AE111: =ROUND(IF($AC111>79,44-(($AC111-79)*(14/4)),IF($AC111>76,67-(($AC111-76)*(23/3)),IF(110-(($AC111-70.4)*(43/5.6))>119,119,110-(($AC111-70.4)*(43/5.6)))))*0.93,0) -> 111 | AF111: =ROUND(IF($AC111>79,37-(($AC111-79)*(9/4)),IF($AC111>76,54-(($AC111-76)*(17/3)),IF(93-(($AC111-70.4)*(39/5.6))>100,100,93-(($AC111-70.4)*(39/5.6)))))*0.93,0) -> 93 | AG111: =ROUND(IF($AC111>79,32-(($AC111-79)*(8/4)),IF($AC111>76,48-(($AC111-76)*(16/3)),IF(86-(($AC111-70.4)*(38/5.6))>95,95,86-(($AC111-70.4)*(38/5.6)))))*0.93,0) -> 88 | AH111: No | AK111: 0 | AL111: 0 | AM111: - | AN111: - | AO111: - | AP111: - | AQ111: - | AR111: - | AS111: - | AT111: -
A112: 120 | B112: Jakobsen | C112: Fabio | D112: 74 | E112: 59 | F112: 67 | G112: 59 | H112: 75 | I112: 73 | J112: 81 | K112: 73 | L112: 80 | M112: 80 | N112: 67 | O112: 68 | P112: 69 | Q112: Zara - Irizar | R112: Aramco DP | S112: PCT | T112: NED | U112: EU | V112: 4 | W112: 100 | X112: 31 | Y112: 8 | Z112: 1996 | AA112: 26 | AB112: 6 | AC112: 77.22792686 | AD112: 320000 | AE112: =ROUND(IF($AC112>79,44-(($AC112-79)*(14/4)),IF($AC112>76,67-(($AC112-76)*(23/3)),IF(110-(($AC112-70.4)*(43/5.6))>119,119,110-(($AC112-70.4)*(43/5.6)))))*0.93,0) -> 54 | AF112: =ROUND(IF($AC112>79,37-(($AC112-79)*(9/4)),IF($AC112>76,54-(($AC112-76)*(17/3)),IF(93-(($AC112-70.4)*(39/5.6))>100,100,93-(($AC112-70.4)*(39/5.6)))))*0.93,0) -> 44 | AG112: =ROUND(IF($AC112>79,32-(($AC112-79)*(8/4)),IF($AC112>76,48-(($AC112-76)*(16/3)),IF(86-(($AC112-70.4)*(38/5.6))>95,95,86-(($AC112-70.4)*(38/5.6)))))*0.93,0) -> 39 | AH112: Yes | AK112: 181 | AL112: 78 | AM112: - | AN112: - | AO112: - | AP112: - | AQ112: - | AR112: - | AS112: - | AT112: -
A113: 121 | B113: Heidemann | C113: Miguel | D113: 69 | E113: 66 | F113: 66 | G113: 73 | H113: 65 | I113: 70 | J113: 68 | K113: 58 | L113: 60 | M113: 59 | N113: 61 | O113: 64 | P113: 71 | Q113: Free Agent | R113: Free Agent | S113: - | T113: GER | U113: EU | V113: 3 | W113: 0 | X113: 27 | Y113: 1 | Z113: 1998 | AA113: 24 | AB113: 4 | AC113: 69.37161715 | AE113: =ROUND(IF($AC113>79,44-(($AC113-79)*(14/4)),IF($AC113>76,67-(($AC113-76)*(23/3)),IF(110-(($AC113-70.4)*(43/5.6))>119,119,110-(($AC113-70.4)*(43/5.6)))))*0.93,0) -> 110 | AF113: =ROUND(IF($AC113>79,37-(($AC113-79)*(9/4)),IF($AC113>76,54-(($AC113-76)*(17/3)),IF(93-(($AC113-70.4)*(39/5.6))>100,100,93-(($AC113-70.4)*(39/5.6)))))*0.93,0) -> 93 | AG113: =ROUND(IF($AC113>79,32-(($AC113-79)*(8/4)),IF($AC113>76,48-(($AC113-76)*(16/3)),IF(86-(($AC113-70.4)*(38/5.6))>95,95,86-(($AC113-70.4)*(38/5.6)))))*0.93,0) -> 86 | AH113: No | AK113: 0 | AL113: 0 | AM113: - | AN113: - | AO113: - | AP113: - | AQ113: - | AR113: - | AS113: - | AT113: -
A114: 122 | B114: Richardson | C114: Chequan | D114: 71 | E114: 61 | F114: 67 | G114: 63 | H114: 68 | I114: 68 | J114: 64 | K114: 78 | L114: 60 | M114: 61 | N114: 75 | O114: 66 | P114: 63 | Q114: BWT Hyundai N Cycling | R114: BWT Hyundai N Cycling | S114: CT | T114: BER | U114: NA | V114: 4 | W114: 100 | X114: 23 | Y114: 9 | Z114: 1993 | AA114: 29 | AB114: 4 | AC114: 73.33843224 | AD114: 60000 | AE114: =ROUND(IF($AC114>79,44-(($AC114-79)*(14/4)),IF($AC114>76,67-(($AC114-76)*(23/3)),IF(110-(($AC114-70.4)*(43/5.6))>119,119,110-(($AC114-70.4)*(43/5.6)))))*0.93,0) -> 81 | AF114: =ROUND(IF($AC114>79,37-(($AC114-79)*(9/4)),IF($AC114>76,54-(($AC114-76)*(17/3)),IF(93-(($AC114-70.4)*(39/5.6))>100,100,93-(($AC114-70.4)*(39/5.6)))))*0.93,0) -> 67 | AG114: =ROUND(IF($AC114>79,32-(($AC114-79)*(8/4)),IF($AC114>76,48-(($AC114-76)*(16/3)),IF(86-(($AC114-70.4)*(38/5.6))>95,95,86-(($AC114-70.4)*(38/5.6)))))*0.93,0) -> 61 | AH114: Yes | AK114: 0 | AL114: 0 | AM114: Yes | AN114: Yes | AO114: - | AP114: - | AQ114: - | AR114: - | AS114: - | AT114: -
A115: 123 | B115: Small | C115: Russell | D115: 70 | E115: 50 | F115: 56 | G115: 53 | H115: 67 | I115: 64 | J115: 70 | K115: 70 | L115: 70 | M115: 72 | N115: 59 | O115: 68 | P115: 59 | Q115: Free Agent | R115: Free Agent | S115: - | T115: JAM | U115: NA | V115: 4 | W115: 100 | X115: 28 | Y115: 11 | Z115: 1991 | AA115: 31 | AB115: 3 | AC115: 68.38068218 | AE115: =ROUND(IF($AC115>79,44-(($AC115-79)*(14/4)),IF($AC115>76,67-(($AC115-76)*(23/3)),IF(110-(($AC115-70.4)*(43/5.6))>119,119,110-(($AC115-70.4)*(43/5.6)))))*0.93,0) -> 111 | AF115: =ROUND(IF($AC115>79,37-(($AC115-79)*(9/4)),IF($AC115>76,54-(($AC115-76)*(17/3)),IF(93-(($AC115-70.4)*(39/5.6))>100,100,93-(($AC115-70.4)*(39/5.6)))))*0.93,0) -> 93 | AG115: =ROUND(IF($AC115>79,32-(($AC115-79)*(8/4)),IF($AC115>76,48-(($AC115-76)*(16/3)),IF(86-(($AC115-70.4)*(38/5.6))>95,95,86-(($AC115-70.4)*(38/5.6)))))*0.93,0) -> 88 | AH115: No | AK115: 0 | AL115: 0 | AM115: - | AN115: - | AO115: - | AP115: - | AQ115: - | AR115: - | AS115: - | AT115: -
A116: 124 | B116: Jeret | C116: Timmo | D116: 67 | E116: 52 | F116: 56 | G116: 69 | H116: 67 | I116: 66 | J116: 58 | K116: 51 | L116: 59 | M116: 52 | N116: 55 | O116: 62 | P116: 68 | Q116: Free Agent | R116: Free Agent | S116: - | T116: EST | U116: EU | V116: 2 | W116: 0 | X116: 9 | Y116: 5 | Z116: 1993 | AA116: 29 | AB116: 3 | AC116: 63.84299462 | AE116: =ROUND(IF($AC116>79,44-(($AC116-79)*(14/4)),IF($AC116>76,67-(($AC116-76)*(23/3)),IF(110-(($AC116-70.4)*(43/5.6))>119,119,110-(($AC116-70.4)*(43/5.6)))))*0.93,0) -> 111 | AF116: =ROUND(IF($AC116>79,37-(($AC116-79)*(9/4)),IF($AC116>76,54-(($AC116-76)*(17/3)),IF(93-(($AC116-70.4)*(39/5.6))>100,100,93-(($AC116-70.4)*(39/5.6)))))*0.93,0) -> 93 | AG116: =ROUND(IF($AC116>79,32-(($AC116-79)*(8/4)),IF($AC116>76,48-(($AC116-76)*(16/3)),IF(86-(($AC116-70.4)*(38/5.6))>95,95,86-(($AC116-70.4)*(38/5.6)))))*0.93,0) -> 88 | AH116: No | AK116: 0 | AL116: 0 | AM116: - | AN116: - | AO116: - | AP116: - | AQ116: - | AR116: - | AS116: - | AT116: -
A117: 125 | B117: Quaade | C117: Rasmus | D117: 71 | E117: 54 | F117: 63 | G117: 78 | H117: 72 | I117: 70 | J117: 65 | K117: 59 | L117: 61 | M117: 63 | N117: 66 | O117: 60 | P117: 76 | Q117: Duolingo | R117: Duolingo | S117: PT | T117: DEN | U117: EU | V117: 4 | W117: 100 | X117: 7 | Y117: 1 | Z117: 1990 | AA117: 32 | AB117: 4 | AC117: 71.91618232 | AD117: 50000 | AE117: =ROUND(IF($AC117>79,44-(($AC117-79)*(14/4)),IF($AC117>76,67-(($AC117-76)*(23/3)),IF(110-(($AC117-70.4)*(43/5.6))>119,119,110-(($AC117-70.4)*(43/5.6)))))*0.93,0) -> 91 | AF117: =ROUND(IF($AC117>79,37-(($AC117-79)*(9/4)),IF($AC117>76,54-(($AC117-76)*(17/3)),IF(93-(($AC117-70.4)*(39/5.6))>100,100,93-(($AC117-70.4)*(39/5.6)))))*0.93,0) -> 77 | AG117: =ROUND(IF($AC117>79,32-(($AC117-79)*(8/4)),IF($AC117>76,48-(($AC117-76)*(16/3)),IF(86-(($AC117-70.4)*(38/5.6))>95,95,86-(($AC117-70.4)*(38/5.6)))))*0.93,0) -> 70 | AH117: No | AK117: 188 | AL117: 77 | AM117: - | AN117: - | AO117: - | AP117: - | AQ117: - | AR117: - | AS117: - | AT117: -
A118: 128 | B118: Bolor-Erdene | C118: Enkhtaivan | D118: 77 | E118: 62 | F118: 66 | G118: 71 | H118: 71 | I118: 77 | J118: 70 | K118: 63 | L118: 64 | M118: 73 | N118: 71 | O118: 71 | P118: 71 | Q118: Free Agent | R118: Indosat Ooredoo | S118: - | T118: MGL | U118: AS | V118: 4 | W118: 100 | X118: 8 | Y118: 6 | Z118: 1995 | AA118: 27 | AB118: 4 | AC118: 70.88512722 | AE118: =ROUND(IF($AC118>79,44-(($AC118-79)*(14/4)),IF($AC118>76,67-(($AC118-76)*(23/3)),IF(110-(($AC118-70.4)*(43/5.6))>119,119,110-(($AC118-70.4)*(43/5.6)))))*0.93,0) -> 99 | AF118: =ROUND(IF($AC118>79,37-(($AC118-79)*(9/4)),IF($AC118>76,54-(($AC118-76)*(17/3)),IF(93-(($AC118-70.4)*(39/5.6))>100,100,93-(($AC118-70.4)*(39/5.6)))))*0.93,0) -> 83 | AG118: =ROUND(IF($AC118>79,32-(($AC118-79)*(8/4)),IF($AC118>76,48-(($AC118-76)*(16/3)),IF(86-(($AC118-70.4)*(38/5.6))>95,95,86-(($AC118-70.4)*(38/5.6)))))*0.93,0) -> 77 | AH118: Yes | AK118: 171 | AL118: 64 | AM118: - | AN118: - | AO118: - | AP118: - | AQ118: - | AR118: - | AS118: - | AT118: -
A119: 129 | B119: Daniel | C119: Gregory | D119: 75 | E119: 67 | F119: 72 | G119: 77 | H119: 75 | I119: 74 | J119: 72 | K119: 55 | L119: 56 | M119: 68 | N119: 73 | O119: 69 | P119: 76 | Q119: Gjensidige Pro Cycling Team | R119: Gjensidige Pro Cycling Team | S119: PCT | T119: USA | U119: NA | V119: 4 | W119: 100 | X119: 8 | Y119: 11 | Z119: 1994 | AA119: 28 | AB119: 5 | AC119: 74.34857541 | AD119: 70000 | AE119: =ROUND(IF($AC119>79,44-(($AC119-79)*(14/4)),IF($AC119>76,67-(($AC119-76)*(23/3)),IF(110-(($AC119-70.4)*(43/5.6))>119,119,110-(($AC119-70.4)*(43/5.6)))))*0.93,0) -> 74 | AF119: =ROUND(IF($AC119>79,37-(($AC119-79)*(9/4)),IF($AC119>76,54-(($AC119-76)*(17/3)),IF(93-(($AC119-70.4)*(39/5.6))>100,100,93-(($AC119-70.4)*(39/5.6)))))*0.93,0) -> 61 | AG119: =ROUND(IF($AC119>79,32-(($AC119-79)*(8/4)),IF($AC119>76,48-(($AC119-76)*(16/3)),IF(86-(($AC119-70.4)*(38/5.6))>95,95,86-(($AC119-70.4)*(38/5.6)))))*0.93,0) -> 55 | AH119: Yes | AK119: 194 | AL119: 81 | AM119: - | AN119: - | AO119: - | AP119: - | AQ119: - | AR119: - | AS119: - | AT119: -
A120: 130 | B120: Hoang | C120: Thai Phan | D120: 69 | E120: 68 | F120: 69 | G120: 64 | H120: 70 | I120: 71 | J120: 70 | K120: 57 | L120: 69 | M120: 70 | N120: 69 | O120: 67 | P120: 66 | Q120: Free Agent | R120: Free Agent | S120: - | T120: VIE | U120: AS | V120: 3 | W120: 0 | X120: 15 | Y120: 4 | Z120: 1998 | AA120: 24 | AB120: 6 | AC120: 70.43714616 | AE120: =ROUND(IF($AC120>79,44-(($AC120-79)*(14/4)),IF($AC120>76,67-(($AC120-76)*(23/3)),IF(110-(($AC120-70.4)*(43/5.6))>119,119,110-(($AC120-70.4)*(43/5.6)))))*0.93,0) -> 102 | AF120: =ROUND(IF($AC120>79,37-(($AC120-79)*(9/4)),IF($AC120>76,54-(($AC120-76)*(17/3)),IF(93-(($AC120-70.4)*(39/5.6))>100,100,93-(($AC120-70.4)*(39/5.6)))))*0.93,0) -> 86 | AG120: =ROUND(IF($AC120>79,32-(($AC120-79)*(8/4)),IF($AC120>76,48-(($AC120-76)*(16/3)),IF(86-(($AC120-70.4)*(38/5.6))>95,95,86-(($AC120-70.4)*(38/5.6)))))*0.93,0) -> 80 | AH120: No | AK120: 183 | AL120: 66 | AM120: - | AN120: - | AO120: - | AP120: - | AQ120: - | AR120: - | AS120: - | AT120: -
A121: 131 | B121: Rowe | C121: Luke | D121: 78 | E121: 55 | F121: 66 | G121: 65 | H121: 76 | I121: 70 | J121: 79 | K121: 75 | L121: 79 | M121: 80 | N121: 75 | O121: 71 | P121: 74 | Q121: Xero Racing | R121: Xero Racing | S121: PCT | T121: GBR | U121: EU | V121: 4 | W121: 100 | X121: 10 | Y121: 3 | Z121: 1990 | AA121: 32 | AB121: 5 | AC121: 77.51081524 | AD121: 275000 | AE121: =ROUND(IF($AC121>79,44-(($AC121-79)*(14/4)),IF($AC121>76,67-(($AC121-76)*(23/3)),IF(110-(($AC121-70.4)*(43/5.6))>119,119,110-(($AC121-70.4)*(43/5.6)))))*0.93,0) -> 52 | AF121: =ROUND(IF($AC121>79,37-(($AC121-79)*(9/4)),IF($AC121>76,54-(($AC121-76)*(17/3)),IF(93-(($AC121-70.4)*(39/5.6))>100,100,93-(($AC121-70.4)*(39/5.6)))))*0.93,0) -> 42 | AG121: =ROUND(IF($AC121>79,32-(($AC121-79)*(8/4)),IF($AC121>76,48-(($AC121-76)*(16/3)),IF(86-(($AC121-70.4)*(38/5.6))>95,95,86-(($AC121-70.4)*(38/5.6)))))*0.93,0) -> 37 | AH121: No | AK121: 185 | AL121: 72 | AM121: - | AN121: - | AO121: - | AP121: - | AQ121: - | AR121: - | AS121: - | AT121: -
A122: 132 | B122: Kaloniatis | C122: Georgios | D122: 69 | E122: 66 | F122: 66 | G122: 67 | H122: 70 | I122: 69 | J122: 69 | K122: 65 | L122: 66 | M122: 69 | N122: 73 | O122: 68 | P122: 70 | Q122: Free Agent | R122: Free Agent | S122: - | T122: GRE | U122: EU | V122: 2 | W122: 0 | X122: 7 | Y122: 1 | Z122: 1999 | AA122: 23 | AB122: 5 | AC122: 68.4800591 | AE122: =ROUND(IF($AC122>79,44-(($AC122-79)*(14/4)),IF($AC122>76,67-(($AC122-76)*(23/3)),IF(110-(($AC122-70.4)*(43/5.6))>119,119,110-(($AC122-70.4)*(43/5.6)))))*0.93,0) -> 111 | AF122: =ROUND(IF($AC122>79,37-(($AC122-79)*(9/4)),IF($AC122>76,54-(($AC122-76)*(17/3)),IF(93-(($AC122-70.4)*(39/5.6))>100,100,93-(($AC122-70.4)*(39/5.6)))))*0.93,0) -> 93 | AG122: =ROUND(IF($AC122>79,32-(($AC122-79)*(8/4)),IF($AC122>76,48-(($AC122-76)*(16/3)),IF(86-(($AC122-70.4)*(38/5.6))>95,95,86-(($AC122-70.4)*(38/5.6)))))*0.93,0) -> 88 | AH122: No | AK122: 186 | AL122: 75 | AM122: - | AN122: - | AO122: - | AP122: - | AQ122: - | AR122: - | AS122: - | AT122: -
A123: 133 | B123: Kmieliauskas | C123: Rokas | D123: 69 | E123: 65 | F123: 67 | G123: 72 | H123: 67 | I123: 66 | J123: 67 | K123: 60 | L123: 63 | M123: 69 | N123: 72 | O123: 65 | P123: 72 | Q123: Free Agent | R123: Free Agent | S123: - | T123: LTU | U123: EU | V123: 1 | W123: 0 | X123: 22 | Y123: 8 | Z123: 2000 | AA123: 22 | AB123: 5 | AC123: 68.45565684 | AE123: =ROUND(IF($AC123>79,44-(($AC123-79)*(14/4)),IF($AC123>76,67-(($AC123-76)*(23/3)),IF(110-(($AC123-70.4)*(43/5.6))>119,119,110-(($AC123-70.4)*(43/5.6)))))*0.93,0) -> 111 | AF123: =ROUND(IF($AC123>79,37-(($AC123-79)*(9/4)),IF($AC123>76,54-(($AC123-76)*(17/3)),IF(93-(($AC123-70.4)*(39/5.6))>100,100,93-(($AC123-70.4)*(39/5.6)))))*0.93,0) -> 93 | AG123: =ROUND(IF($AC123>79,32-(($AC123-79)*(8/4)),IF($AC123>76,48-(($AC123-76)*(16/3)),IF(86-(($AC123-70.4)*(38/5.6))>95,95,86-(($AC123-70.4)*(38/5.6)))))*0.93,0) -> 88 | AH123: No | AJ123: yes | AK123: 181 | AL123: 64 | AM123: - | AN123: - | AO123: - | AP123: - | AQ123: - | AR123: - | AS123: - | AT123: -
A124: 134 | B124: Van der Ploeg | C124: Paul | D124: 67 | E124: 65 | F124: 68 | G124: 70 | H124: 69 | I124: 67 | J124: 70 | K124: 55 | L124: 69 | M124: 70 | N124: 68 | O124: 55 | P124: 70 | Q124: Free Agent | R124: Free Agent | S124: - | T124: AUS | U124: OC | V124: 4 | W124: 100 | X124: 11 | Y124: 9 | Z124: 1989 | AA124: 33 | AB124: 4 | AC124: 69.16836894 | AE124: =ROUND(IF($AC124>79,44-(($AC124-79)*(14/4)),IF($AC124>76,67-(($AC124-76)*(23/3)),IF(110-(($AC124-70.4)*(43/5.6))>119,119,110-(($AC124-70.4)*(43/5.6)))))*0.93,0) -> 111 | AF124: =ROUND(IF($AC124>79,37-(($AC124-79)*(9/4)),IF($AC124>76,54-(($AC124-76)*(17/3)),IF(93-(($AC124-70.4)*(39/5.6))>100,100,93-(($AC124-70.4)*(39/5.6)))))*0.93,0) -> 93 | AG124: =ROUND(IF($AC124>79,32-(($AC124-79)*(8/4)),IF($AC124>76,48-(($AC124-76)*(16/3)),IF(86-(($AC124-70.4)*(38/5.6))>95,95,86-(($AC124-70.4)*(38/5.6)))))*0.93,0) -> 88 | AH124: No | AK124: 0 | AL124: 0 | AM124: - | AN124: - | AO124: - | AP124: - | AQ124: - | AR124: - | AS124: - | AT124: -
A125: 135 | B125: Kolze Changizi | C125: Sebastian | D125: 69 | E125: 60 | F125: 63 | G125: 59 | H125: 69 | I125: 71 | J125: 61 | K125: 61 | L125: 65 | M125: 64 | N125: 67 | O125: 63 | P125: 59 | Q125: Free Agent | R125: Free Agent | S125: - | T125: DEN | U125: EU | V125: 1 | W125: 0 | X125: 29 | Y125: 12 | Z125: 2000 | AA125: 22 | AB125: 4 | AC125: 65.91489301 | AE125: =ROUND(IF($AC125>79,44-(($AC125-79)*(14/4)),IF($AC125>76,67-(($AC125-76)*(23/3)),IF(110-(($AC125-70.4)*(43/5.6))>119,119,110-(($AC125-70.4)*(43/5.6)))))*0.93,0) -> 111 | AF125: =ROUND(IF($AC125>79,37-(($AC125-79)*(9/4)),IF($AC125>76,54-(($AC125-76)*(17/3)),IF(93-(($AC125-70.4)*(39/5.6))>100,100,93-(($AC125-70.4)*(39/5.6)))))*0.93,0) -> 93 | AG125: =ROUND(IF($AC125>79,32-(($AC125-79)*(8/4)),IF($AC125>76,48-(($AC125-76)*(16/3)),IF(86-(($AC125-70.4)*(38/5.6))>95,95,86-(($AC125-70.4)*(38/5.6)))))*0.93,0) -> 88 | AH125: No | AJ125: yes | AK125: 191 | AL125: 80 | AM125: - | AN125: - | AO125: - | AP125: - | AQ125: - | AR125: - | AS125: - | AT125: -
A126: 136 | B126: Wirtgen | C126: Luc | D126: 70 | E126: 73 | F126: 73 | G126: 64 | H126: 72 | I126: 71 | J126: 72 | K126: 58 | L126: 66 | M126: 66 | N126: 68 | O126: 69 | P126: 64 | Q126: EA Vesuvio | R126: EA Vesuvio | S126: PT | T126: LUX | U126: EU | V126: 4 | W126: 88 | X126: 7 | Y126: 7 | Z126: 1998 | AA126: 24 | AB126: 5 | AC126: 72.28294044 | AD126: 50000 | AE126: =ROUND(IF($AC126>79,44-(($AC126-79)*(14/4)),IF($AC126>76,67-(($AC126-76)*(23/3)),IF(110-(($AC126-70.4)*(43/5.6))>119,119,110-(($AC126-70.4)*(43/5.6)))))*0.93,0) -> 89 | AF126: =ROUND(IF($AC126>79,37-(($AC126-79)*(9/4)),IF($AC126>76,54-(($AC126-76)*(17/3)),IF(93-(($AC126-70.4)*(39/5.6))>100,100,93-(($AC126-70.4)*(39/5.6)))))*0.93,0) -> 74 | AG126: =ROUND(IF($AC126>79,32-(($AC126-79)*(8/4)),IF($AC126>76,48-(($AC126-76)*(16/3)),IF(86-(($AC126-70.4)*(38/5.6))>95,95,86-(($AC126-70.4)*(38/5.6)))))*0.93,0) -> 68 | AH126: No | AK126: 179 | AL126: 63 | AM126: - | AN126: - | AO126: - | AP126: - | AQ126: - | AR126: - | AS126: - | AT126: -
A127: 137 | B127: Vandevelde | C127: Yentl | D127: 68 | E127: 58 | F127: 62 | G127: 69 | H127: 65 | I127: 65 | J127: 65 | K127: 60 | L127: 62 | M127: 65 | N127: 68 | O127: 65 | P127: 69 | Q127: Free Agent | R127: Free Agent | S127: - | T127: BEL | U127: EU | V127: 1 | W127: 0 | X127: 31 | Y127: 10 | Z127: 2000 | AA127: 22 | AB127: 6 | AC127: 65.55924634 | AE127: =ROUND(IF($AC127>79,44-(($AC127-79)*(14/4)),IF($AC127>76,67-(($AC127-76)*(23/3)),IF(110-(($AC127-70.4)*(43/5.6))>119,119,110-(($AC127-70.4)*(43/5.6)))))*0.93,0) -> 111 | AF127: =ROUND(IF($AC127>79,37-(($AC127-79)*(9/4)),IF($AC127>76,54-(($AC127-76)*(17/3)),IF(93-(($AC127-70.4)*(39/5.6))>100,100,93-(($AC127-70.4)*(39/5.6)))))*0.93,0) -> 93 | AG127: =ROUND(IF($AC127>79,32-(($AC127-79)*(8/4)),IF($AC127>76,48-(($AC127-76)*(16/3)),IF(86-(($AC127-70.4)*(38/5.6))>95,95,86-(($AC127-70.4)*(38/5.6)))))*0.93,0) -> 88 | AH127: No | AJ127: yes | AK127: 188 | AL127: 69 | AM127: - | AN127: - | AO127: - | AP127: - | AQ127: - | AR127: - | AS127: - | AT127: -
A128: 138 | B128: Pelegri | C128: Oscar | D128: 68 | E128: 62 | F128: 68 | G128: 61 | H128: 65 | I128: 68 | J128: 64 | K128: 60 | L128: 69 | M128: 71 | N128: 64 | O128: 66 | P128: 64 | Q128: Free Agent | R128: Free Agent | S128: - | T128: ESP | U128: EU | V128: 3 | W128: 41 | X128: 30 | Y128: 5 | Z128: 1994 | AA128: 28 | AB128: 4 | AC128: 69.30754036 | AE128: =ROUND(IF($AC128>79,44-(($AC128-79)*(14/4)),IF($AC128>76,67-(($AC128-76)*(23/3)),IF(110-(($AC128-70.4)*(43/5.6))>119,119,110-(($AC128-70.4)*(43/5.6)))))*0.93,0) -> 110 | AF128: =ROUND(IF($AC128>79,37-(($AC128-79)*(9/4)),IF($AC128>76,54-(($AC128-76)*(17/3)),IF(93-(($AC128-70.4)*(39/5.6))>100,100,93-(($AC128-70.4)*(39/5.6)))))*0.93,0) -> 93 | AG128: =ROUND(IF($AC128>79,32-(($AC128-79)*(8/4)),IF($AC128>76,48-(($AC128-76)*(16/3)),IF(86-(($AC128-70.4)*(38/5.6))>95,95,86-(($AC128-70.4)*(38/5.6)))))*0.93,0) -> 87 | AH128: No | AK128: 0 | AL128: 0 | AM128: - | AN128: - | AO128: - | AP128: - | AQ128: - | AR128: - | AS128: - | AT128: -
A129: 139 | B129: Tejada | C129: Harold | D129: 67 | E129: 75 | F129: 72 | G129: 69 | H129: 70 | I129: 74 | J129: 70 | K129: 57 | L129: 59 | M129: 69 | N129: 66 | O129: 64 | P129: 69 | Q129: Zwift Pro Cycling | R129: Zwift Pro Cycling | S129: PT | T129: COL | U129: SA | V129: 4 | W129: 63 | X129: 27 | Y129: 4 | Z129: 1997 | AA129: 25 | AB129: 6 | AC129: 73.59677172 | AD129: 50000 | AE129: =ROUND(IF($AC129>79,44-(($AC129-79)*(14/4)),IF($AC129>76,67-(($AC129-76)*(23/3)),IF(110-(($AC129-70.4)*(43/5.6))>119,119,110-(($AC129-70.4)*(43/5.6)))))*0.93,0) -> 79 | AF129: =ROUND(IF($AC129>79,37-(($AC129-79)*(9/4)),IF($AC129>76,54-(($AC129-76)*(17/3)),IF(93-(($AC129-70.4)*(39/5.6))>100,100,93-(($AC129-70.4)*(39/5.6)))))*0.93,0) -> 66 | AG129: =ROUND(IF($AC129>79,32-(($AC129-79)*(8/4)),IF($AC129>76,48-(($AC129-76)*(16/3)),IF(86-(($AC129-70.4)*(38/5.6))>95,95,86-(($AC129-70.4)*(38/5.6)))))*0.93,0) -> 60 | AH129: No | AK129: 187 | AL129: 74 | AM129: - | AN129: - | AO129: - | AP129: - | AQ129: - | AR129: - | AS129: - | AT129: -
A130: 140 | B130: Layor | C130: Amree | D130: 71 | E130: 69 | F130: 70 | G130: 69 | H130: 68 | I130: 69 | J130: 67 | K130: 69 | L130: 69 | M130: 70 | N130: 68 | O130: 69 | P130: 70 | Q130: Free Agent | R130: Free Agent | S130: - | T130: THA | U130: AS | V130: 4 | W130: 100 | X130: 11 | Y130: 9 | Z130: 1990 | AA130: 32 | AB130: 3 | AC130: 71.06625251 | AE130: =ROUND(IF($AC130>79,44-(($AC130-79)*(14/4)),IF($AC130>76,67-(($AC130-76)*(23/3)),IF(110-(($AC130-70.4)*(43/5.6))>119,119,110-(($AC130-70.4)*(43/5.6)))))*0.93,0) -> 98 | AF130: =ROUND(IF($AC130>79,37-(($AC130-79)*(9/4)),IF($AC130>76,54-(($AC130-76)*(17/3)),IF(93-(($AC130-70.4)*(39/5.6))>100,100,93-(($AC130-70.4)*(39/5.6)))))*0.93,0) -> 82 | AG130: =ROUND(IF($AC130>79,32-(($AC130-79)*(8/4)),IF($AC130>76,48-(($AC130-76)*(16/3)),IF(86-(($AC130-70.4)*(38/5.6))>95,95,86-(($AC130-70.4)*(38/5.6)))))*0.93,0) -> 76 | AH130: No | AK130: 0 | AL130: 0 | AM130: - | AN130: - | AO130: - | AP130: - | AQ130: - | AR130: - | AS130: - | AT130: -
A131: 142 | B131: Minguez Ayala | C131: Miguel | D131: 64 | E131: 70 | F131: 72 | G131: 65 | H131: 65 | I131: 67 | J131: 63 | K131: 53 | L131: 63 | M131: 65 | N131: 54 | O131: 69 | P131: 63 | Q131: Free Agent | R131: Free Agent | S131: - | T131: ESP | U131: EU | V131: 4 | W131: 100 | X131: 30 | Y131: 9 | Z131: 1988 | AA131: 34 | AB131: 3 | AC131: 69.92230742 | AE131: =ROUND(IF($AC131>79,44-(($AC131-79)*(14/4)),IF($AC131>76,67-(($AC131-76)*(23/3)),IF(110-(($AC131-70.4)*(43/5.6))>119,119,110-(($AC131-70.4)*(43/5.6)))))*0.93,0) -> 106 | AF131: =ROUND(IF($AC131>79,37-(($AC131-79)*(9/4)),IF($AC131>76,54-(($AC131-76)*(17/3)),IF(93-(($AC131-70.4)*(39/5.6))>100,100,93-(($AC131-70.4)*(39/5.6)))))*0.93,0) -> 90 | AG131: =ROUND(IF($AC131>79,32-(($AC131-79)*(8/4)),IF($AC131>76,48-(($AC131-76)*(16/3)),IF(86-(($AC131-70.4)*(38/5.6))>95,95,86-(($AC131-70.4)*(38/5.6)))))*0.93,0) -> 83 | AH131: No | AK131: 0 | AL131: 0 | AM131: - | AN131: - | AO131: - | AP131: - | AQ131: - | AR131: - | AS131: - | AT131: -
A132: 143 | B132: Shabbir | C132: Shahidahmad | D132: 67 | E132: 62 | F132: 67 | G132: 63 | H132: 67 | I132: 66 | J132: 58 | K132: 69 | L132: 64 | M132: 69 | N132: 73 | O132: 53 | P132: 62 | Q132: Free Agent | R132: Free Agent | S132: - | T132: IND | U132: AS | V132: 3 | W132: 0 | X132: 20 | Y132: 9 | Z132: 1992 | AA132: 30 | AB132: 4 | AC132: 69.12227486 | AE132: =ROUND(IF($AC132>79,44-(($AC132-79)*(14/4)),IF($AC132>76,67-(($AC132-76)*(23/3)),IF(110-(($AC132-70.4)*(43/5.6))>119,119,110-(($AC132-70.4)*(43/5.6)))))*0.93,0) -> 111 | AF132: =ROUND(IF($AC132>79,37-(($AC132-79)*(9/4)),IF($AC132>76,54-(($AC132-76)*(17/3)),IF(93-(($AC132-70.4)*(39/5.6))>100,100,93-(($AC132-70.4)*(39/5.6)))))*0.93,0) -> 93 | AG132: =ROUND(IF($AC132>79,32-(($AC132-79)*(8/4)),IF($AC132>76,48-(($AC132-76)*(16/3)),IF(86-(($AC132-70.4)*(38/5.6))>95,95,86-(($AC132-70.4)*(38/5.6)))))*0.93,0) -> 88 | AH132: No | AK132: 0 | AL132: 0 | AM132: - | AN132: - | AO132: - | AP132: - | AQ132: - | AR132: - | AS132: - | AT132: -
A133: 144 | B133: Kopecky | C133: Tomas | D133: 69 | E133: 58 | F133: 62 | G133: 66 | H133: 66 | I133: 71 | J133: 60 | K133: 65 | L133: 64 | M133: 63 | N133: 65 | O133: 70 | P133: 67 | Q133: Free Agent | R133: Free Agent | S133: - | T133: CZE | U133: EU | V133: 1 | W133: 0 | X133: 8 | Y133: 4 | Z133: 2000 | AA133: 22 | AB133: 3 | AC133: 65.54972412 | AE133: =ROUND(IF($AC133>79,44-(($AC133-79)*(14/4)),IF($AC133>76,67-(($AC133-76)*(23/3)),IF(110-(($AC133-70.4)*(43/5.6))>119,119,110-(($AC133-70.4)*(43/5.6)))))*0.93,0) -> 111 | AF133: =ROUND(IF($AC133>79,37-(($AC133-79)*(9/4)),IF($AC133>76,54-(($AC133-76)*(17/3)),IF(93-(($AC133-70.4)*(39/5.6))>100,100,93-(($AC133-70.4)*(39/5.6)))))*0.93,0) -> 93 | AG133: =ROUND(IF($AC133>79,32-(($AC133-79)*(8/4)),IF($AC133>76,48-(($AC133-76)*(16/3)),IF(86-(($AC133-70.4)*(38/5.6))>95,95,86-(($AC133-70.4)*(38/5.6)))))*0.93,0) -> 88 | AH133: No | AJ133: yes | AK133: 0 | AL133: 0 | AM133: - | AN133: - | AO133: - | AP133: - | AQ133: - | AR133: - | AS133: - | AT133: -
A134: 145 | B134: Nzafashwanayo | C134: Jean Claude | D134: 69 | E134: 65 | F134: 66 | G134: 60 | H134: 68 | I134: 70 | J134: 67 | K134: 60 | L134: 62 | M134: 54 | N134: 68 | O134: 67 | P134: 60 | Q134: Free Agent | R134: Free Agent | S134: - | T134: RWA | U134: AF | V134: 1 | W134: 0 | X134: 4 | Y134: 8 | Z134: 2000 | AA134: 22 | AB134: 4 | AC134: 66.03643973 | AE134: =ROUND(IF($AC134>79,44-(($AC134-79)*(14/4)),IF($AC134>76,67-(($AC134-76)*(23/3)),IF(110-(($AC134-70.4)*(43/5.6))>119,119,110-(($AC134-70.4)*(43/5.6)))))*0.93,0) -> 111 | AF134: =ROUND(IF($AC134>79,37-(($AC134-79)*(9/4)),IF($AC134>76,54-(($AC134-76)*(17/3)),IF(93-(($AC134-70.4)*(39/5.6))>100,100,93-(($AC134-70.4)*(39/5.6)))))*0.93,0) -> 93 | AG134: =ROUND(IF($AC134>79,32-(($AC134-79)*(8/4)),IF($AC134>76,48-(($AC134-76)*(16/3)),IF(86-(($AC134-70.4)*(38/5.6))>95,95,86-(($AC134-70.4)*(38/5.6)))))*0.93,0) -> 88 | AH134: No | AJ134: yes | AK134: 189 | AL134: 76 | AM134: - | AN134: - | AO134: - | AP134: - | AQ134: - | AR134: - | AS134: - | AT134: -
A135: 146 | B135: Schleck | C135: Andy | D135: 61 | E135: 75 | F135: 65 | G135: 64 | H135: 63 | I135: 68 | J135: 68 | K135: 50 | L135: 52 | M135: 65 | N135: 60 | O135: 54 | P135: 63 | Q135: Free Agent | R135: BNZ-Superhero Racing | S135: - | T135: LUX | U135: EU | V135: 4 | W135: 100 | X135: 10 | Y135: 6 | Z135: 1985 | AA135: 37 | AB135: 7 | AC135: 71.22627651 | AE135: =ROUND(IF($AC135>79,44-(($AC135-79)*(14/4)),IF($AC135>76,67-(($AC135-76)*(23/3)),IF(110-(($AC135-70.4)*(43/5.6))>119,119,110-(($AC135-70.4)*(43/5.6)))))*0.93,0) -> 96 | AF135: =ROUND(IF($AC135>79,37-(($AC135-79)*(9/4)),IF($AC135>76,54-(($AC135-76)*(17/3)),IF(93-(($AC135-70.4)*(39/5.6))>100,100,93-(($AC135-70.4)*(39/5.6)))))*0.93,0) -> 81 | AG135: =ROUND(IF($AC135>79,32-(($AC135-79)*(8/4)),IF($AC135>76,48-(($AC135-76)*(16/3)),IF(86-(($AC135-70.4)*(38/5.6))>95,95,86-(($AC135-70.4)*(38/5.6)))))*0.93,0) -> 75 | AH135: No | AK135: 186 | AL135: 68 | AM135: - | AN135: - | AO135: - | AP135: - | AQ135: - | AR135: - | AS135: - | AT135: -
A136: 147 | B136: Örken | C136: Ahmet | D136: 69 | E136: 64 | F136: 67 | G136: 62 | H136: 67 | I136: 70 | J136: 66 | K136: 58 | L136: 70 | M136: 70 | N136: 69 | O136: 67 | P136: 66 | Q136: Free Agent | R136: Free Agent | S136: - | T136: TUR | U136: EU | V136: 1 | W136: 88 | X136: 22 | Y136: 12 | Z136: 1999 | AA136: 23 | AB136: 4 | AC136: 69.36563752 | AE136: =ROUND(IF($AC136>79,44-(($AC136-79)*(14/4)),IF($AC136>76,67-(($AC136-76)*(23/3)),IF(110-(($AC136-70.4)*(43/5.6))>119,119,110-(($AC136-70.4)*(43/5.6)))))*0.93,0) -> 110 | AF136: =ROUND(IF($AC136>79,37-(($AC136-79)*(9/4)),IF($AC136>76,54-(($AC136-76)*(17/3)),IF(93-(($AC136-70.4)*(39/5.6))>100,100,93-(($AC136-70.4)*(39/5.6)))))*0.93,0) -> 93 | AG136: =ROUND(IF($AC136>79,32-(($AC136-79)*(8/4)),IF($AC136>76,48-(($AC136-76)*(16/3)),IF(86-(($AC136-70.4)*(38/5.6))>95,95,86-(($AC136-70.4)*(38/5.6)))))*0.93,0) -> 87 | AH136: No | AK136: 0 | AL136: 0 | AM136: - | AN136: - | AO136: - | AP136: - | AQ136: - | AR136: - | AS136: - | AT136: -
A137: 148 | B137: Anacona | C137: Winner | D137: 66 | E137: 76 | F137: 71 | G137: 63 | H137: 70 | I137: 67 | J137: 69 | K137: 50 | L137: 50 | M137: 56 | N137: 50 | O137: 54 | P137: 63 | Q137: Sauber Petronas Racing | R137: Sauber Petronas Racing | S137: PCT | T137: COL | U137: SA | V137: 4 | W137: 100 | X137: 11 | Y137: 8 | Z137: 1988 | AA137: 34 | AB137: 5 | AC137: 72.41676251 | AD137: 50000 | AE137: =ROUND(IF($AC137>79,44-(($AC137-79)*(14/4)),IF($AC137>76,67-(($AC137-76)*(23/3)),IF(110-(($AC137-70.4)*(43/5.6))>119,119,110-(($AC137-70.4)*(43/5.6)))))*0.93,0) -> 88 | AF137: =ROUND(IF($AC137>79,37-(($AC137-79)*(9/4)),IF($AC137>76,54-(($AC137-76)*(17/3)),IF(93-(($AC137-70.4)*(39/5.6))>100,100,93-(($AC137-70.4)*(39/5.6)))))*0.93,0) -> 73 | AG137: =ROUND(IF($AC137>79,32-(($AC137-79)*(8/4)),IF($AC137>76,48-(($AC137-76)*(16/3)),IF(86-(($AC137-70.4)*(38/5.6))>95,95,86-(($AC137-70.4)*(38/5.6)))))*0.93,0) -> 67 | AH137: No | AK137: 179 | AL137: 65 | AM137: - | AN137: - | AO137: - | AP137: - | AQ137: - | AR137: - | AS137: - | AT137: -
A138: 149 | B138: Paquot | C138: Tom | D138: 69 | E138: 63 | F138: 66 | G138: 57 | H138: 69 | I138: 70 | J138: 59 | K138: 65 | L138: 66 | M138: 68 | N138: 69 | O138: 63 | P138: 58 | Q138: Free Agent | R138: Free Agent | S138: - | T138: BEL | U138: EU | V138: 2 | W138: 0 | X138: 22 | Y138: 9 | Z138: 1999 | AA138: 23 | AB138: 4 | AC138: 68.14407757 | AE138: =ROUND(IF($AC138>79,44-(($AC138-79)*(14/4)),IF($AC138>76,67-(($AC138-76)*(23/3)),IF(110-(($AC138-70.4)*(43/5.6))>119,119,110-(($AC138-70.4)*(43/5.6)))))*0.93,0) -> 111 | AF138: =ROUND(IF($AC138>79,37-(($AC138-79)*(9/4)),IF($AC138>76,54-(($AC138-76)*(17/3)),IF(93-(($AC138-70.4)*(39/5.6))>100,100,93-(($AC138-70.4)*(39/5.6)))))*0.93,0) -> 93 | AG138: =ROUND(IF($AC138>79,32-(($AC138-79)*(8/4)),IF($AC138>76,48-(($AC138-76)*(16/3)),IF(86-(($AC138-70.4)*(38/5.6))>95,95,86-(($AC138-70.4)*(38/5.6)))))*0.93,0) -> 88 | AH138: No | AK138: 179 | AL138: 63 | AM138: - | AN138: - | AO138: - | AP138: - | AQ138: - | AR138: - | AS138: - | AT138: -
A139: 150 | B139: Polnicky | C139: Jiri | D139: 70 | E139: 64 | F139: 71 | G139: 62 | H139: 72 | I139: 69 | J139: 66 | K139: 74 | L139: 62 | M139: 68 | N139: 67 | O139: 74 | P139: 68 | Q139: Free Agent | R139: Moser - Sygic | S139: - | T139: CZE | U139: EU | V139: 4 | W139: 100 | X139: 12 | Y139: 12 | Z139: 1989 | AA139: 33 | AB139: 4 | AC139: 72.46827486 | AE139: =ROUND(IF($AC139>79,44-(($AC139-79)*(14/4)),IF($AC139>76,67-(($AC139-76)*(23/3)),IF(110-(($AC139-70.4)*(43/5.6))>119,119,110-(($AC139-70.4)*(43/5.6)))))*0.93,0) -> 88 | AF139: =ROUND(IF($AC139>79,37-(($AC139-79)*(9/4)),IF($AC139>76,54-(($AC139-76)*(17/3)),IF(93-(($AC139-70.4)*(39/5.6))>100,100,93-(($AC139-70.4)*(39/5.6)))))*0.93,0) -> 73 | AG139: =ROUND(IF($AC139>79,32-(($AC139-79)*(8/4)),IF($AC139>76,48-(($AC139-76)*(16/3)),IF(86-(($AC139-70.4)*(38/5.6))>95,95,86-(($AC139-70.4)*(38/5.6)))))*0.93,0) -> 67 | AH139: No | AK139: 183 | AL139: 68 | AM139: - | AN139: - | AO139: - | AP139: - | AQ139: - | AR139: - | AS139: - | AT139: -
A140: 151 | B140: Diaz Gallego | C140: Jose | D140: 64 | E140: 72 | F140: 68 | G140: 55 | H140: 64 | I140: 69 | J140: 69 | K140: 62 | L140: 56 | M140: 68 | N140: 75 | O140: 67 | P140: 57 | Q140: Free Agent | R140: Free Agent | S140: - | T140: ESP | U140: EU | V140: 3 | W140: 0 | X140: 18 | Y140: 1 | Z140: 1995 | AA140: 27 | AB140: 3 | AC140: 69.77377525 | AE140: =ROUND(IF($AC140>79,44-(($AC140-79)*(14/4)),IF($AC140>76,67-(($AC140-76)*(23/3)),IF(110-(($AC140-70.4)*(43/5.6))>119,119,110-(($AC140-70.4)*(43/5.6)))))*0.93,0) -> 107 | AF140: =ROUND(IF($AC140>79,37-(($AC140-79)*(9/4)),IF($AC140>76,54-(($AC140-76)*(17/3)),IF(93-(($AC140-70.4)*(39/5.6))>100,100,93-(($AC140-70.4)*(39/5.6)))))*0.93,0) -> 91 | AG140: =ROUND(IF($AC140>79,32-(($AC140-79)*(8/4)),IF($AC140>76,48-(($AC140-76)*(16/3)),IF(86-(($AC140-70.4)*(38/5.6))>95,95,86-(($AC140-70.4)*(38/5.6)))))*0.93,0) -> 84 | AH140: No | AK140: 0 | AL140: 0 | AM140: - | AN140: - | AO140: - | AP140: - | AQ140: - | AR140: - | AS140: - | AT140: -
A141: 152 | B141: Hussein | C141: Mujtaba | D141: 65 | E141: 65 | F141: 61 | G141: 74 | H141: 66 | I141: 64 | J141: 66 | K141: 50 | L141: 50 | M141: 50 | N141: 62 | O141: 57 | P141: 74 | Q141: Free Agent | R141: MOL | S141: - | T141: KEN | U141: AF | V141: 4 | W141: 100 | X141: 1 | Y141: 5 | Z141: 1988 | AA141: 34 | AB141: 5 | AC141: 69.12492704 | AE141: =ROUND(IF($AC141>79,44-(($AC141-79)*(14/4)),IF($AC141>76,67-(($AC141-76)*(23/3)),IF(110-(($AC141-70.4)*(43/5.6))>119,119,110-(($AC141-70.4)*(43/5.6)))))*0.93,0) -> 111 | AF141: =ROUND(IF($AC141>79,37-(($AC141-79)*(9/4)),IF($AC141>76,54-(($AC141-76)*(17/3)),IF(93-(($AC141-70.4)*(39/5.6))>100,100,93-(($AC141-70.4)*(39/5.6)))))*0.93,0) -> 93 | AG141: =ROUND(IF($AC141>79,32-(($AC141-79)*(8/4)),IF($AC141>76,48-(($AC141-76)*(16/3)),IF(86-(($AC141-70.4)*(38/5.6))>95,95,86-(($AC141-70.4)*(38/5.6)))))*0.93,0) -> 88 | AH141: No | AK141: 175 | AL141: 72 | AM141: - | AN141: Yes | AO141: - | AP141: - | AQ141: - | AR141: - | AS141: - | AT141: -
A142: 153 | B142: Grigrian | C142: Artur | D142: 67 | E142: 75 | F142: 70 | G142: 71 | H142: 70 | I142: 66 | J142: 69 | K142: 50 | L142: 55 | M142: 71 | N142: 61 | O142: 55 | P142: 71 | Q142: Free Agent | R142: Team UBS | S142: - | T142: ARM | U142: EU | V142: 4 | W142: 100 | X142: 10 | Y142: 2 | Z142: 1989 | AA142: 33 | AB142: 5 | AC142: 72.33691061 | AE142: =ROUND(IF($AC142>79,44-(($AC142-79)*(14/4)),IF($AC142>76,67-(($AC142-76)*(23/3)),IF(110-(($AC142-70.4)*(43/5.6))>119,119,110-(($AC142-70.4)*(43/5.6)))))*0.93,0) -> 88 | AF142: =ROUND(IF($AC142>79,37-(($AC142-79)*(9/4)),IF($AC142>76,54-(($AC142-76)*(17/3)),IF(93-(($AC142-70.4)*(39/5.6))>100,100,93-(($AC142-70.4)*(39/5.6)))))*0.93,0) -> 74 | AG142: =ROUND(IF($AC142>79,32-(($AC142-79)*(8/4)),IF($AC142>76,48-(($AC142-76)*(16/3)),IF(86-(($AC142-70.4)*(38/5.6))>95,95,86-(($AC142-70.4)*(38/5.6)))))*0.93,0) -> 68 | AH142: No | AK142: 0 | AL142: 0 | AM142: - | AN142: - | AO142: - | AP142: - | AQ142: - | AR142: - | AS142: - | AT142: -
A143: 154 | B143: Noia | C143: Carlo | D143: 75 | E143: 58 | F143: 60 | G143: 76 | H143: 69 | I143: 72 | J143: 69 | K143: 62 | L143: 61 | M143: 69 | N143: 69 | O143: 65 | P143: 75 | Q143: Sauber Petronas Racing | R143: Aramco DP | S143: PCT | T143: SMR | U143: EU | V143: 4 | W143: 2 | X143: 6 | Y143: 1 | Z143: 1996 | AA143: 26 | AB143: 3 | AC143: 71.90359465 | AD143: 55000 | AE143: =ROUND(IF($AC143>79,44-(($AC143-79)*(14/4)),IF($AC143>76,67-(($AC143-76)*(23/3)),IF(110-(($AC143-70.4)*(43/5.6))>119,119,110-(($AC143-70.4)*(43/5.6)))))*0.93,0) -> 92 | AF143: =ROUND(IF($AC143>79,37-(($AC143-79)*(9/4)),IF($AC143>76,54-(($AC143-76)*(17/3)),IF(93-(($AC143-70.4)*(39/5.6))>100,100,93-(($AC143-70.4)*(39/5.6)))))*0.93,0) -> 77 | AG143: =ROUND(IF($AC143>79,32-(($AC143-79)*(8/4)),IF($AC143>76,48-(($AC143-76)*(16/3)),IF(86-(($AC143-70.4)*(38/5.6))>95,95,86-(($AC143-70.4)*(38/5.6)))))*0.93,0) -> 70 | AH143: No | AK143: 178 | AL143: 67 | AM143: - | AN143: Yes | AO143: - | AP143: - | AQ143: - | AR143: - | AS143: - | AT143: -
A144: 155 | B144: Rumsas | C144: Raimondas | D144: 65 | E144: 57 | F144: 63 | G144: 72 | H144: 65 | I144: 65 | J144: 66 | K144: 52 | L144: 53 | M144: 62 | N144: 67 | O144: 63 | P144: 70 | Q144: Free Agent | R144: Free Agent | S144: - | T144: LTU | U144: EU | V144: 4 | W144: 100 | X144: 20 | Y144: 8 | Z144: 1994 | AA144: 28 | AB144: 7 | AC144: 66.43086884 | AE144: =ROUND(IF($AC144>79,44-(($AC144-79)*(14/4)),IF($AC144>76,67-(($AC144-76)*(23/3)),IF(110-(($AC144-70.4)*(43/5.6))>119,119,110-(($AC144-70.4)*(43/5.6)))))*0.93,0) -> 111 | AF144: =ROUND(IF($AC144>79,37-(($AC144-79)*(9/4)),IF($AC144>76,54-(($AC144-76)*(17/3)),IF(93-(($AC144-70.4)*(39/5.6))>100,100,93-(($AC144-70.4)*(39/5.6)))))*0.93,0) -> 93 | AG144: =ROUND(IF($AC144>79,32-(($AC144-79)*(8/4)),IF($AC144>76,48-(($AC144-76)*(16/3)),IF(86-(($AC144-70.4)*(38/5.6))>95,95,86-(($AC144-70.4)*(38/5.6)))))*0.93,0) -> 88 | AH144: Yes | AK144: 0 | AL144: 0 | AM144: - | AN144: - | AO144: - | AP144: - | AQ144: - | AR144: - | AS144: - | AT144: -
A145: 156 | B145: Quinn | C145: Sean | D145: 69 | E145: 69 | F145: 69 | G145: 65 | H145: 68 | I145: 72 | J145: 68 | K145: 60 | L145: 66 | M145: 68 | N145: 63 | O145: 63 | P145: 68 | Q145: Free Agent | R145: Free Agent | S145: - | T145: USA | U145: NA | V145: 1 | W145: 0 | X145: 10 | Y145: 5 | Z145: 2000 | AA145: 22 | AB145: 4 | AC145: 70.04519947 | AE145: =ROUND(IF($AC145>79,44-(($AC145-79)*(14/4)),IF($AC145>76,67-(($AC145-76)*(23/3)),IF(110-(($AC145-70.4)*(43/5.6))>119,119,110-(($AC145-70.4)*(43/5.6)))))*0.93,0) -> 105 | AF145: =ROUND(IF($AC145>79,37-(($AC145-79)*(9/4)),IF($AC145>76,54-(($AC145-76)*(17/3)),IF(93-(($AC145-70.4)*(39/5.6))>100,100,93-(($AC145-70.4)*(39/5.6)))))*0.93,0) -> 89 | AG145: =ROUND(IF($AC145>79,32-(($AC145-79)*(8/4)),IF($AC145>76,48-(($AC145-76)*(16/3)),IF(86-(($AC145-70.4)*(38/5.6))>95,95,86-(($AC145-70.4)*(38/5.6)))))*0.93,0) -> 82 | AH145: No | AJ145: yes | AK145: 0 | AL145: 0 | AM145: - | AN145: - | AO145: - | AP145: - | AQ145: - | AR145: - | AS145: - | AT145: -
A146: 157 | B146: Dolezel | C146: Radovan | D146: 67 | E146: 59 | F146: 61 | G146: 63 | H146: 66 | I146: 68 | J146: 67 | K146: 63 | L146: 58 | M146: 69 | N146: 73 | O146: 71 | P146: 61 | Q146: Free Agent | R146: Free Agent | S146: - | T146: CZE | U146: EU | V146: 1 | W146: 0 | X146: 22 | Y146: 2 | Z146: 1994 | AA146: 28 | AB146: 4 | AC146: 65.08269341 | AE146: =ROUND(IF($AC146>79,44-(($AC146-79)*(14/4)),IF($AC146>76,67-(($AC146-76)*(23/3)),IF(110-(($AC146-70.4)*(43/5.6))>119,119,110-(($AC146-70.4)*(43/5.6)))))*0.93,0) -> 111 | AF146: =ROUND(IF($AC146>79,37-(($AC146-79)*(9/4)),IF($AC146>76,54-(($AC146-76)*(17/3)),IF(93-(($AC146-70.4)*(39/5.6))>100,100,93-(($AC146-70.4)*(39/5.6)))))*0.93,0) -> 93 | AG146: =ROUND(IF($AC146>79,32-(($AC146-79)*(8/4)),IF($AC146>76,48-(($AC146-76)*(16/3)),IF(86-(($AC146-70.4)*(38/5.6))>95,95,86-(($AC146-70.4)*(38/5.6)))))*0.93,0) -> 88 | AH146: No | AK146: 0 | AL146: 0 | AM146: - | AN146: - | AO146: - | AP146: - | AQ146: - | AR146: - | AS146: - | AT146: -
A147: 158 | B147: Evans | C147: Alexander | D147: 65 | E147: 75 | F147: 71 | G147: 72 | H147: 69 | I147: 71 | J147: 71 | K147: 61 | L147: 57 | M147: 67 | N147: 67 | O147: 62 | P147: 69 | Q147: Amaysim Cervélo | R147: Cedevita | S147: PCT | T147: AUS | U147: OC | V147: 4 | W147: 11 | X147: 28 | Y147: 1 | Z147: 1997 | AA147: 25 | AB147: 4 | AC147: 73.05928735 | AD147: 50000 | AE147: =ROUND(IF($AC147>79,44-(($AC147-79)*(14/4)),IF($AC147>76,67-(($AC147-76)*(23/3)),IF(110-(($AC147-70.4)*(43/5.6))>119,119,110-(($AC147-70.4)*(43/5.6)))))*0.93,0) -> 83 | AF147: =ROUND(IF($AC147>79,37-(($AC147-79)*(9/4)),IF($AC147>76,54-(($AC147-76)*(17/3)),IF(93-(($AC147-70.4)*(39/5.6))>100,100,93-(($AC147-70.4)*(39/5.6)))))*0.93,0) -> 69 | AG147: =ROUND(IF($AC147>79,32-(($AC147-79)*(8/4)),IF($AC147>76,48-(($AC147-76)*(16/3)),IF(86-(($AC147-70.4)*(38/5.6))>95,95,86-(($AC147-70.4)*(38/5.6)))))*0.93,0) -> 63 | AH147: No | AK147: 0 | AL147: 0 | AM147: - | AN147: - | AO147: - | AP147: - | AQ147: - | AR147: - | AS147: - | AT147: -
A148: 159 | B148: Siskevicius | C148: Paulius | D148: 69 | E148: 65 | F148: 71 | G148: 62 | H148: 67 | I148: 70 | J148: 68 | K148: 50 | L148: 62 | M148: 67 | N148: 64 | O148: 61 | P148: 62 | Q148: Free Agent | R148: Free Agent | S148: - | T148: LTU | U148: EU | V148: 3 | W148: 65 | X148: 7 | Y148: 9 | Z148: 1993 | AA148: 29 | AB148: 5 | AC148: 69.67461853 | AE148: =ROUND(IF($AC148>79,44-(($AC148-79)*(14/4)),IF($AC148>76,67-(($AC148-76)*(23/3)),IF(110-(($AC148-70.4)*(43/5.6))>119,119,110-(($AC148-70.4)*(43/5.6)))))*0.93,0) -> 107 | AF148: =ROUND(IF($AC148>79,37-(($AC148-79)*(9/4)),IF($AC148>76,54-(($AC148-76)*(17/3)),IF(93-(($AC148-70.4)*(39/5.6))>100,100,93-(($AC148-70.4)*(39/5.6)))))*0.93,0) -> 91 | AG148: =ROUND(IF($AC148>79,32-(($AC148-79)*(8/4)),IF($AC148>76,48-(($AC148-76)*(16/3)),IF(86-(($AC148-70.4)*(38/5.6))>95,95,86-(($AC148-70.4)*(38/5.6)))))*0.93,0) -> 85 | AH148: No | AK148: 0 | AL148: 0 | AM148: - | AN148: - | AO148: - | AP148: - | AQ148: - | AR148: - | AS148: - | AT148: -
A149: 160 | B149: Main | C149: Kent | D149: 68 | E149: 73 | F149: 70 | G149: 73 | H149: 71 | I149: 74 | J149: 74 | K149: 58 | L149: 63 | M149: 69 | N149: 73 | O149: 71 | P149: 73 | Q149: Project: Africa | R149: Project: Africa | S149: PCT | T149: RSA | U149: AF | V149: 4 | W149: 89 | X149: 8 | Y149: 1 | Z149: 1996 | AA149: 26 | AB149: 3 | AC149: 72.74622797 | AD149: 50000 | AE149: =ROUND(IF($AC149>79,44-(($AC149-79)*(14/4)),IF($AC149>76,67-(($AC149-76)*(23/3)),IF(110-(($AC149-70.4)*(43/5.6))>119,119,110-(($AC149-70.4)*(43/5.6)))))*0.93,0) -> 86 | AF149: =ROUND(IF($AC149>79,37-(($AC149-79)*(9/4)),IF($AC149>76,54-(($AC149-76)*(17/3)),IF(93-(($AC149-70.4)*(39/5.6))>100,100,93-(($AC149-70.4)*(39/5.6)))))*0.93,0) -> 71 | AG149: =ROUND(IF($AC149>79,32-(($AC149-79)*(8/4)),IF($AC149>76,48-(($AC149-76)*(16/3)),IF(86-(($AC149-70.4)*(38/5.6))>95,95,86-(($AC149-70.4)*(38/5.6)))))*0.93,0) -> 65 | AH149: No | AK149: 0 | AL149: 0 | AM149: - | AN149: - | AO149: - | AP149: - | AQ149: - | AR149: - | AS149: - | AT149: -
A150: 162 | B150: Fritsch | C150: Sven | D150: 72 | E150: 67 | F150: 76 | G150: 65 | H150: 74 | I150: 68 | J150: 71 | K150: 61 | L150: 68 | M150: 71 | N150: 68 | O150: 68 | P150: 69 | Q150: Free Agent | R150: Free Agent | S150: - | T150: LUX | U150: EU | V150: 4 | W150: 100 | X150: 29 | Y150: 5 | Z150: 1994 | AA150: 28 | AB150: 5 | AC150: 73.40775848 | AE150: =ROUND(IF($AC150>79,44-(($AC150-79)*(14/4)),IF($AC150>76,67-(($AC150-76)*(23/3)),IF(110-(($AC150-70.4)*(43/5.6))>119,119,110-(($AC150-70.4)*(43/5.6)))))*0.93,0) -> 81 | AF150: =ROUND(IF($AC150>79,37-(($AC150-79)*(9/4)),IF($AC150>76,54-(($AC150-76)*(17/3)),IF(93-(($AC150-70.4)*(39/5.6))>100,100,93-(($AC150-70.4)*(39/5.6)))))*0.93,0) -> 67 | AG150: =ROUND(IF($AC150>79,32-(($AC150-79)*(8/4)),IF($AC150>76,48-(($AC150-76)*(16/3)),IF(86-(($AC150-70.4)*(38/5.6))>95,95,86-(($AC150-70.4)*(38/5.6)))))*0.93,0) -> 61 | AH150: Yes | AK150: 0 | AL150: 0 | AM150: - | AN150: - | AO150: - | AP150: - | AQ150: - | AR150: - | AS150: - | AT150: -
A151: 163 | B151: Menicucci | C151: Samuele | D151: 69 | E151: 62 | F151: 69 | G151: 61 | H151: 71 | I151: 71 | J151: 71 | K151: 70 | L151: 61 | M151: 67 | N151: 69 | O151: 69 | P151: 63 | Q151: Sauber Petronas Racing | R151: Sauber Petronas Racing | S151: PCT | T151: SMR | U151: EU | V151: 3 | W151: 45 | X151: 24 | Y151: 9 | Z151: 1997 | AA151: 25 | AB151: 3 | AC151: 69.48636322 | AD151: 50000 | AE151: =ROUND(IF($AC151>79,44-(($AC151-79)*(14/4)),IF($AC151>76,67-(($AC151-76)*(23/3)),IF(110-(($AC151-70.4)*(43/5.6))>119,119,110-(($AC151-70.4)*(43/5.6)))))*0.93,0) -> 109 | AF151: =ROUND(IF($AC151>79,37-(($AC151-79)*(9/4)),IF($AC151>76,54-(($AC151-76)*(17/3)),IF(93-(($AC151-70.4)*(39/5.6))>100,100,93-(($AC151-70.4)*(39/5.6)))))*0.93,0) -> 92 | AG151: =ROUND(IF($AC151>79,32-(($AC151-79)*(8/4)),IF($AC151>76,48-(($AC151-76)*(16/3)),IF(86-(($AC151-70.4)*(38/5.6))>95,95,86-(($AC151-70.4)*(38/5.6)))))*0.93,0) -> 86 | AH151: No | AK151: 0 | AL151: 0 | AM151: - | AN151: - | AO151: - | AP151: - | AQ151: - | AR151: - | AS151: - | AT151: -
A152: 164 | B152: Rex | C152: Laurenz | D152: 69 | E152: 58 | F152: 59 | G152: 62 | H152: 69 | I152: 69 | J152: 65 | K152: 68 | L152: 65 | M152: 65 | N152: 65 | O152: 64 | P152: 64 | Q152: Free Agent | R152: Free Agent | S152: - | T152: BEL | U152: EU | V152: 2 | W152: 0 | X152: 15 | Y152: 12 | Z152: 1999 | AA152: 23 | AB152: 4 | AC152: 67.31263151 | AE152: =ROUND(IF($AC152>79,44-(($AC152-79)*(14/4)),IF($AC152>76,67-(($AC152-76)*(23/3)),IF(110-(($AC152-70.4)*(43/5.6))>119,119,110-(($AC152-70.4)*(43/5.6)))))*0.93,0) -> 111 | AF152: =ROUND(IF($AC152>79,37-(($AC152-79)*(9/4)),IF($AC152>76,54-(($AC152-76)*(17/3)),IF(93-(($AC152-70.4)*(39/5.6))>100,100,93-(($AC152-70.4)*(39/5.6)))))*0.93,0) -> 93 | AG152: =ROUND(IF($AC152>79,32-(($AC152-79)*(8/4)),IF($AC152>76,48-(($AC152-76)*(16/3)),IF(86-(($AC152-70.4)*(38/5.6))>95,95,86-(($AC152-70.4)*(38/5.6)))))*0.93,0) -> 88 | AH152: No | AK152: 187 | AL152: 72 | AM152: - | AN152: - | AO152: - | AP152: - | AQ152: - | AR152: - | AS152: - | AT152: -
A153: 165 | B153: Mastani | C153: Mohammad | D153: 69 | E153: 53 | F153: 62 | G153: 61 | H153: 67 | I153: 66 | J153: 67 | K153: 62 | L153: 63 | M153: 63 | N153: 76 | O153: 68 | P153: 64 | Q153: Free Agent | R153: Free Agent | S153: - | T153: BRU | U153: AS | V153: 1 | W153: 0 | X153: 28 | Y153: 12 | Z153: 1994 | AA153: 28 | AB153: 3 | AC153: 64.59564758 | AE153: =ROUND(IF($AC153>79,44-(($AC153-79)*(14/4)),IF($AC153>76,67-(($AC153-76)*(23/3)),IF(110-(($AC153-70.4)*(43/5.6))>119,119,110-(($AC153-70.4)*(43/5.6)))))*0.93,0) -> 111 | AF153: =ROUND(IF($AC153>79,37-(($AC153-79)*(9/4)),IF($AC153>76,54-(($AC153-76)*(17/3)),IF(93-(($AC153-70.4)*(39/5.6))>100,100,93-(($AC153-70.4)*(39/5.6)))))*0.93,0) -> 93 | AG153: =ROUND(IF($AC153>79,32-(($AC153-79)*(8/4)),IF($AC153>76,48-(($AC153-76)*(16/3)),IF(86-(($AC153-70.4)*(38/5.6))>95,95,86-(($AC153-70.4)*(38/5.6)))))*0.93,0) -> 88 | AH153: No | AK153: 173 | AL153: 60 | AM153: - | AN153: - | AO153: - | AP153: - | AQ153: - | AR153: - | AS153: - | AT153: -
A154: 166 | B154: Zekavica | C154: Jovan | D154: 72 | E154: 61 | F154: 66 | G154: 63 | H154: 67 | I154: 71 | J154: 71 | K154: 64 | L154: 75 | M154: 76 | N154: 64 | O154: 71 | P154: 71 | Q154: Free Agent | R154: Free Agent | S154: - | T154: SER | U154: EU | V154: 4 | W154: 4 | X154: 20 | Y154: 1 | Z154: 1991 | AA154: 31 | AB154: 5 | AC154: 72.41667792 | AE154: =ROUND(IF($AC154>79,44-(($AC154-79)*(14/4)),IF($AC154>76,67-(($AC154-76)*(23/3)),IF(110-(($AC154-70.4)*(43/5.6))>119,119,110-(($AC154-70.4)*(43/5.6)))))*0.93,0) -> 88 | AF154: =ROUND(IF($AC154>79,37-(($AC154-79)*(9/4)),IF($AC154>76,54-(($AC154-76)*(17/3)),IF(93-(($AC154-70.4)*(39/5.6))>100,100,93-(($AC154-70.4)*(39/5.6)))))*0.93,0) -> 73 | AG154: =ROUND(IF($AC154>79,32-(($AC154-79)*(8/4)),IF($AC154>76,48-(($AC154-76)*(16/3)),IF(86-(($AC154-70.4)*(38/5.6))>95,95,86-(($AC154-70.4)*(38/5.6)))))*0.93,0) -> 67 | AH154: No | AK154: 0 | AL154: 0 | AM154: - | AN154: - | AO154: - | AP154: - | AQ154: - | AR154: - | AS154: - | AT154: -
A155: 167 | B155: Ranaweera | C155: Suranga | D155: 66 | E155: 80 | F155: 73 | G155: 74 | H155: 75 | I155: 75 | J155: 74 | K155: 52 | L155: 58 | M155: 65 | N155: 57 | O155: 69 | P155: 73 | Q155: Sauber Petronas Racing | R155: Sauber Petronas Racing | S155: PCT | T155: SRI | U155: AS | V155: 4 | W155: 100 | X155: 30 | Y155: 12 | Z155: 1995 | AA155: 27 | AB155: 5 | AC155: 76.90421833 | AD155: 200000 | AE155: =ROUND(IF($AC155>79,44-(($AC155-79)*(14/4)),IF($AC155>76,67-(($AC155-76)*(23/3)),IF(110-(($AC155-70.4)*(43/5.6))>119,119,110-(($AC155-70.4)*(43/5.6)))))*0.93,0) -> 56 | AF155: =ROUND(IF($AC155>79,37-(($AC155-79)*(9/4)),IF($AC155>76,54-(($AC155-76)*(17/3)),IF(93-(($AC155-70.4)*(39/5.6))>100,100,93-(($AC155-70.4)*(39/5.6)))))*0.93,0) -> 45 | AG155: =ROUND(IF($AC155>79,32-(($AC155-79)*(8/4)),IF($AC155>76,48-(($AC155-76)*(16/3)),IF(86-(($AC155-70.4)*(38/5.6))>95,95,86-(($AC155-70.4)*(38/5.6)))))*0.93,0) -> 40 | AH155: Yes | AK155: 176 | AL155: 65 | AM155: - | AN155: Yes | AO155: - | AP155: - | AQ155: - | AR155: - | AS155: - | AT155: -
A156: 169 | B156: Hindley | C156: Jai | D156: 71 | E156: 72 | F156: 76 | G156: 67 | H156: 75 | I156: 72 | J156: 72 | K156: 55 | L156: 67 | M156: 73 | N156: 76 | O156: 70 | P156: 67 | Q156: Free Agent | R156: Amaysim Cervélo | S156: - | T156: AUS | U156: OC | V156: 4 | W156: 100 | X156: 5 | Y156: 5 | Z156: 1996 | AA156: 26 | AB156: 6 | AC156: 74.69902627 | AE156: =ROUND(IF($AC156>79,44-(($AC156-79)*(14/4)),IF($AC156>76,67-(($AC156-76)*(23/3)),IF(110-(($AC156-70.4)*(43/5.6))>119,119,110-(($AC156-70.4)*(43/5.6)))))*0.93,0) -> 72 | AF156: =ROUND(IF($AC156>79,37-(($AC156-79)*(9/4)),IF($AC156>76,54-(($AC156-76)*(17/3)),IF(93-(($AC156-70.4)*(39/5.6))>100,100,93-(($AC156-70.4)*(39/5.6)))))*0.93,0) -> 59 | AG156: =ROUND(IF($AC156>79,32-(($AC156-79)*(8/4)),IF($AC156>76,48-(($AC156-76)*(16/3)),IF(86-(($AC156-70.4)*(38/5.6))>95,95,86-(($AC156-70.4)*(38/5.6)))))*0.93,0) -> 53 | AH156: No | AK156: 0 | AL156: 0 | AM156: - | AN156: - | AO156: - | AP156: - | AQ156: - | AR156: - | AS156: - | AT156: -
A157: 170 | B157: Mcdunphy | C157: Conn | D157: 65 | E157: 62 | F157: 64 | G157: 62 | H157: 63 | I157: 61 | J157: 62 | K157: 56 | L157: 64 | M157: 65 | N157: 64 | O157: 56 | P157: 59 | Q157: Free Agent | R157: Free Agent | S157: - | T157: IRL | U157: EU | V157: 1 | W157: 0 | X157: 3 | Y157: 2 | Z157: 1997 | AA157: 25 | AB157: 2 | AC157: 64.7446005 | AE157: =ROUND(IF($AC157>79,44-(($AC157-79)*(14/4)),IF($AC157>76,67-(($AC157-76)*(23/3)),IF(110-(($AC157-70.4)*(43/5.6))>119,119,110-(($AC157-70.4)*(43/5.6)))))*0.93,0) -> 111 | AF157: =ROUND(IF($AC157>79,37-(($AC157-79)*(9/4)),IF($AC157>76,54-(($AC157-76)*(17/3)),IF(93-(($AC157-70.4)*(39/5.6))>100,100,93-(($AC157-70.4)*(39/5.6)))))*0.93,0) -> 93 | AG157: =ROUND(IF($AC157>79,32-(($AC157-79)*(8/4)),IF($AC157>76,48-(($AC157-76)*(16/3)),IF(86-(($AC157-70.4)*(38/5.6))>95,95,86-(($AC157-70.4)*(38/5.6)))))*0.93,0) -> 88 | AH157: No | AK157: 181 | AL157: 68 | AM157: - | AN157: - | AO157: - | AP157: - | AQ157: - | AR157: - | AS157: - | AT157: -
A158: 171 | B158: Uhiriwe | C158: Renus | D158: 69 | E158: 61 | F158: 66 | G158: 68 | H158: 66 | I158: 67 | J158: 62 | K158: 60 | L158: 63 | M158: 68 | N158: 72 | O158: 64 | P158: 68 | Q158: Free Agent | R158: Free Agent | S158: - | T158: RWA | U158: AF | V158: 1 | W158: 0 | X158: 1 | Y158: 4 | Z158: 2001 | AA158: 21 | AB158: 5 | AC158: 67.16666991 | AE158: =ROUND(IF($AC158>79,44-(($AC158-79)*(14/4)),IF($AC158>76,67-(($AC158-76)*(23/3)),IF(110-(($AC158-70.4)*(43/5.6))>119,119,110-(($AC158-70.4)*(43/5.6)))))*0.93,0) -> 111 | AF158: =ROUND(IF($AC158>79,37-(($AC158-79)*(9/4)),IF($AC158>76,54-(($AC158-76)*(17/3)),IF(93-(($AC158-70.4)*(39/5.6))>100,100,93-(($AC158-70.4)*(39/5.6)))))*0.93,0) -> 93 | AG158: =ROUND(IF($AC158>79,32-(($AC158-79)*(8/4)),IF($AC158>76,48-(($AC158-76)*(16/3)),IF(86-(($AC158-70.4)*(38/5.6))>95,95,86-(($AC158-70.4)*(38/5.6)))))*0.93,0) -> 88 | AH158: No | AJ158: yes | AK158: 180 | AL158: 0 | AM158: - | AN158: - | AO158: - | AP158: - | AQ158: - | AR158: - | AS158: - | AT158: -
A159: 172 | B159: Willwohl | C159: Willi | D159: 73 | E159: 53 | F159: 64 | G159: 56 | H159: 71 | I159: 67 | J159: 78 | K159: 65 | L159: 79 | M159: 78 | N159: 61 | O159: 64 | P159: 56 | Q159: Free Agent | R159: Kraftwerk Man Machine | S159: - | T159: GER | U159: EU | V159: 4 | W159: 100 | X159: 31 | Y159: 8 | Z159: 1994 | AA159: 28 | AB159: 6 | AC159: 74.97361479 | AE159: =ROUND(IF($AC159>79,44-(($AC159-79)*(14/4)),IF($AC159>76,67-(($AC159-76)*(23/3)),IF(110-(($AC159-70.4)*(43/5.6))>119,119,110-(($AC159-70.4)*(43/5.6)))))*0.93,0) -> 70 | AF159: =ROUND(IF($AC159>79,37-(($AC159-79)*(9/4)),IF($AC159>76,54-(($AC159-76)*(17/3)),IF(93-(($AC159-70.4)*(39/5.6))>100,100,93-(($AC159-70.4)*(39/5.6)))))*0.93,0) -> 57 | AG159: =ROUND(IF($AC159>79,32-(($AC159-79)*(8/4)),IF($AC159>76,48-(($AC159-76)*(16/3)),IF(86-(($AC159-70.4)*(38/5.6))>95,95,86-(($AC159-70.4)*(38/5.6)))))*0.93,0) -> 51 | AH159: Yes | AK159: 0 | AL159: 0 | AM159: - | AN159: - | AO159: - | AP159: - | AQ159: - | AR159: - | AS159: - | AT159: -
A160: 173 | B160: Van Sintmaartensdijk | C160: Daan | D160: 69 | E160: 58 | F160: 60 | G160: 58 | H160: 70 | I160: 69 | J160: 62 | K160: 65 | L160: 66 | M160: 64 | N160: 67 | O160: 62 | P160: 60 | Q160: Free Agent | R160: Free Agent | S160: - | T160: NED | U160: EU | V160: 3 | W160: 0 | X160: 11 | Y160: 6 | Z160: 1998 | AA160: 24 | AB160: 5 | AC160: 66.20904946 | AE160: =ROUND(IF($AC160>79,44-(($AC160-79)*(14/4)),IF($AC160>76,67-(($AC160-76)*(23/3)),IF(110-(($AC160-70.4)*(43/5.6))>119,119,110-(($AC160-70.4)*(43/5.6)))))*0.93,0) -> 111 | AF160: =ROUND(IF($AC160>79,37-(($AC160-79)*(9/4)),IF($AC160>76,54-(($AC160-76)*(17/3)),IF(93-(($AC160-70.4)*(39/5.6))>100,100,93-(($AC160-70.4)*(39/5.6)))))*0.93,0) -> 93 | AG160: =ROUND(IF($AC160>79,32-(($AC160-79)*(8/4)),IF($AC160>76,48-(($AC160-76)*(16/3)),IF(86-(($AC160-70.4)*(38/5.6))>95,95,86-(($AC160-70.4)*(38/5.6)))))*0.93,0) -> 88 | AH160: No | AK160: 0 | AL160: 0 | AM160: - | AN160: - | AO160: - | AP160: - | AQ160: - | AR160: - | AS160: - | AT160: -
A161: 174 | B161: Raggl | C161: Gregor | D161: 69 | E161: 66 | F161: 68 | G161: 67 | H161: 63 | I161: 68 | J161: 61 | K161: 61 | L161: 56 | M161: 69 | N161: 69 | O161: 72 | P161: 67 | Q161: Free Agent | R161: Free Agent | S161: - | T161: AUT | U161: EU | V161: 3 | W161: 0 | X161: 8 | Y161: 2 | Z161: 1992 | AA161: 30 | AB161: 3 | AC161: 68.22635221 | AE161: =ROUND(IF($AC161>79,44-(($AC161-79)*(14/4)),IF($AC161>76,67-(($AC161-76)*(23/3)),IF(110-(($AC161-70.4)*(43/5.6))>119,119,110-(($AC161-70.4)*(43/5.6)))))*0.93,0) -> 111 | AF161: =ROUND(IF($AC161>79,37-(($AC161-79)*(9/4)),IF($AC161>76,54-(($AC161-76)*(17/3)),IF(93-(($AC161-70.4)*(39/5.6))>100,100,93-(($AC161-70.4)*(39/5.6)))))*0.93,0) -> 93 | AG161: =ROUND(IF($AC161>79,32-(($AC161-79)*(8/4)),IF($AC161>76,48-(($AC161-76)*(16/3)),IF(86-(($AC161-70.4)*(38/5.6))>95,95,86-(($AC161-70.4)*(38/5.6)))))*0.93,0) -> 88 | AH161: No | AK161: 0 | AL161: 0 | AM161: - | AN161: - | AO161: - | AP161: - | AQ161: - | AR161: - | AS161: - | AT161: -
A162: 175 | B162: Vermaerke | C162: Kevin | D162: 69 | E162: 64 | F162: 68 | G162: 65 | H162: 70 | I162: 70 | J162: 63 | K162: 62 | L162: 65 | M162: 67 | N162: 63 | O162: 64 | P162: 63 | Q162: Free Agent | R162: Free Agent | S162: - | T162: USA | U162: NA | V162: 1 | W162: 0 | X162: 16 | Y162: 10 | Z162: 2000 | AA162: 22 | AB162: 4 | AC162: 68.55092255 | AE162: =ROUND(IF($AC162>79,44-(($AC162-79)*(14/4)),IF($AC162>76,67-(($AC162-76)*(23/3)),IF(110-(($AC162-70.4)*(43/5.6))>119,119,110-(($AC162-70.4)*(43/5.6)))))*0.93,0) -> 111 | AF162: =ROUND(IF($AC162>79,37-(($AC162-79)*(9/4)),IF($AC162>76,54-(($AC162-76)*(17/3)),IF(93-(($AC162-70.4)*(39/5.6))>100,100,93-(($AC162-70.4)*(39/5.6)))))*0.93,0) -> 93 | AG162: =ROUND(IF($AC162>79,32-(($AC162-79)*(8/4)),IF($AC162>76,48-(($AC162-76)*(16/3)),IF(86-(($AC162-70.4)*(38/5.6))>95,95,86-(($AC162-70.4)*(38/5.6)))))*0.93,0) -> 88 | AH162: No | AJ162: yes | AK162: 166 | AL162: 59 | AM162: - | AN162: - | AO162: - | AP162: - | AQ162: - | AR162: - | AS162: - | AT162: -
A163: 177 | B163: Arashiro | C163: Yudai | D163: 81 | E163: 60 | F163: 64 | G163: 62 | H163: 71 | I163: 67 | J163: 73 | K163: 68 | L163: 70 | M163: 75 | N163: 78 | O163: 68 | P163: 66 | Q163: Voyagin - Bird | R163: Voyagin - Bird | S163: PCT | T163: JPN | U163: AS | V163: 4 | W163: 100 | X163: 3 | Y163: 7 | Z163: 1995 | AA163: 27 | AB163: 2 | AC163: 74.20344255 | AD163: 70000 | AE163: =ROUND(IF($AC163>79,44-(($AC163-79)*(14/4)),IF($AC163>76,67-(($AC163-76)*(23/3)),IF(110-(($AC163-70.4)*(43/5.6))>119,119,110-(($AC163-70.4)*(43/5.6)))))*0.93,0) -> 75 | AF163: =ROUND(IF($AC163>79,37-(($AC163-79)*(9/4)),IF($AC163>76,54-(($AC163-76)*(17/3)),IF(93-(($AC163-70.4)*(39/5.6))>100,100,93-(($AC163-70.4)*(39/5.6)))))*0.93,0) -> 62 | AG163: =ROUND(IF($AC163>79,32-(($AC163-79)*(8/4)),IF($AC163>76,48-(($AC163-76)*(16/3)),IF(86-(($AC163-70.4)*(38/5.6))>95,95,86-(($AC163-70.4)*(38/5.6)))))*0.93,0) -> 56 | AH163: Yes | AK163: 176 | AL163: 65 | AM163: - | AN163: - | AO163: - | AP163: - | AQ163: - | AR163: - | AS163: - | AT163: -
A164: 178 | B164: Belmokhtar | C164: Abdelkader | D164: 64 | E164: 69 | F164: 72 | G164: 65 | H164: 67 | I164: 64 | J164: 66 | K164: 56 | L164: 54 | M164: 59 | N164: 63 | O164: 60 | P164: 65 | Q164: Free Agent | R164: Free Agent | S164: - | T164: ALG | U164: AF | V164: 4 | W164: 100 | X164: 1 | Y164: 3 | Z164: 1988 | AA164: 34 | AB164: 4 | AC164: 68.21477668 | AE164: =ROUND(IF($AC164>79,44-(($AC164-79)*(14/4)),IF($AC164>76,67-(($AC164-76)*(23/3)),IF(110-(($AC164-70.4)*(43/5.6))>119,119,110-(($AC164-70.4)*(43/5.6)))))*0.93,0) -> 111 | AF164: =ROUND(IF($AC164>79,37-(($AC164-79)*(9/4)),IF($AC164>76,54-(($AC164-76)*(17/3)),IF(93-(($AC164-70.4)*(39/5.6))>100,100,93-(($AC164-70.4)*(39/5.6)))))*0.93,0) -> 93 | AG164: =ROUND(IF($AC164>79,32-(($AC164-79)*(8/4)),IF($AC164>76,48-(($AC164-76)*(16/3)),IF(86-(($AC164-70.4)*(38/5.6))>95,95,86-(($AC164-70.4)*(38/5.6)))))*0.93,0) -> 88 | AH164: No | AK164: 0 | AL164: 0 | AM164: - | AN164: - | AO164: - | AP164: - | AQ164: - | AR164: - | AS164: - | AT164: -
A165: 179 | B165: Rahbek | C165: Mads | D165: 69 | E165: 68 | F165: 69 | G165: 70 | H165: 66 | I165: 70 | J165: 66 | K165: 62 | L165: 65 | M165: 70 | N165: 72 | O165: 67 | P165: 68 | Q165: Free Agent | R165: Free Agent | S165: - | T165: DEN | U165: EU | V165: 4 | W165: 100 | X165: 19 | Y165: 10 | Z165: 1995 | AA165: 27 | AB165: 4 | AC165: 69.97385553 | AE165: =ROUND(IF($AC165>79,44-(($AC165-79)*(14/4)),IF($AC165>76,67-(($AC165-76)*(23/3)),IF(110-(($AC165-70.4)*(43/5.6))>119,119,110-(($AC165-70.4)*(43/5.6)))))*0.93,0) -> 105 | AF165: =ROUND(IF($AC165>79,37-(($AC165-79)*(9/4)),IF($AC165>76,54-(($AC165-76)*(17/3)),IF(93-(($AC165-70.4)*(39/5.6))>100,100,93-(($AC165-70.4)*(39/5.6)))))*0.93,0) -> 89 | AG165: =ROUND(IF($AC165>79,32-(($AC165-79)*(8/4)),IF($AC165>76,48-(($AC165-76)*(16/3)),IF(86-(($AC165-70.4)*(38/5.6))>95,95,86-(($AC165-70.4)*(38/5.6)))))*0.93,0) -> 83 | AH165: No | AK165: 173 | AL165: 66 | AM165: - | AN165: - | AO165: - | AP165: - | AQ165: - | AR165: - | AS165: - | AT165: -
A166: 180 | B166: Parra | C166: Jose Felix | D166: 63 | E166: 69 | F166: 66 | G166: 60 | H166: 63 | I166: 65 | J166: 67 | K166: 60 | L166: 60 | M166: 65 | N166: 62 | O166: 65 | P166: 60 | Q166: Free Agent | R166: Free Agent | S166: - | T166: ESP | U166: EU | V166: 3 | W166: 10 | X166: 19 | Y166: 4 | Z166: 1994 | AA166: 28 | AB166: 4 | AC166: 67.43632909 | AE166: =ROUND(IF($AC166>79,44-(($AC166-79)*(14/4)),IF($AC166>76,67-(($AC166-76)*(23/3)),IF(110-(($AC166-70.4)*(43/5.6))>119,119,110-(($AC166-70.4)*(43/5.6)))))*0.93,0) -> 111 | AF166: =ROUND(IF($AC166>79,37-(($AC166-79)*(9/4)),IF($AC166>76,54-(($AC166-76)*(17/3)),IF(93-(($AC166-70.4)*(39/5.6))>100,100,93-(($AC166-70.4)*(39/5.6)))))*0.93,0) -> 93 | AG166: =ROUND(IF($AC166>79,32-(($AC166-79)*(8/4)),IF($AC166>76,48-(($AC166-76)*(16/3)),IF(86-(($AC166-70.4)*(38/5.6))>95,95,86-(($AC166-70.4)*(38/5.6)))))*0.93,0) -> 88 | AH166: No | AK166: 173 | AL166: 68 | AM166: - | AN166: - | AO166: - | AP166: - | AQ166: - | AR166: - | AS166: - | AT166: -
A167: 182 | B167: Welsford | C167: Sam | D167: 69 | E167: 60 | F167: 62 | G167: 62 | H167: 73 | I167: 72 | J167: 64 | K167: 64 | L167: 71 | M167: 73 | N167: 61 | O167: 64 | P167: 63 | Q167: Free Agent | R167: Free Agent | S167: - | T167: AUS | U167: OC | V167: 2 | W167: 44 | X167: 19 | Y167: 1 | Z167: 1996 | AA167: 26 | AB167: 3 | AC167: 69.28138371 | AE167: =ROUND(IF($AC167>79,44-(($AC167-79)*(14/4)),IF($AC167>76,67-(($AC167-76)*(23/3)),IF(110-(($AC167-70.4)*(43/5.6))>119,119,110-(($AC167-70.4)*(43/5.6)))))*0.93,0) -> 110 | AF167: =ROUND(IF($AC167>79,37-(($AC167-79)*(9/4)),IF($AC167>76,54-(($AC167-76)*(17/3)),IF(93-(($AC167-70.4)*(39/5.6))>100,100,93-(($AC167-70.4)*(39/5.6)))))*0.93,0) -> 93 | AG167: =ROUND(IF($AC167>79,32-(($AC167-79)*(8/4)),IF($AC167>76,48-(($AC167-76)*(16/3)),IF(86-(($AC167-70.4)*(38/5.6))>95,95,86-(($AC167-70.4)*(38/5.6)))))*0.93,0) -> 87 | AH167: No | AK167: 0 | AL167: 0 | AM167: - | AN167: - | AO167: - | AP167: - | AQ167: - | AR167: - | AS167: - | AT167: -
A168: 183 | B168: Blums | C168: Martins | D168: 72 | E168: 77 | F168: 77 | G168: 68 | H168: 71 | I168: 73 | J168: 74 | K168: 63 | L168: 64 | M168: 70 | N168: 73 | O168: 78 | P168: 71 | Q168: Evonik - ELKO | R168: Evonik - ELKO | S168: PT | T168: LAT | U168: EU | V168: 4 | W168: 100 | X168: 17 | Y168: 10 | Z168: 1995 | AA168: 27 | AB168: 5 | AC168: 75.95633589 | AD168: 120000 | AE168: =ROUND(IF($AC168>79,44-(($AC168-79)*(14/4)),IF($AC168>76,67-(($AC168-76)*(23/3)),IF(110-(($AC168-70.4)*(43/5.6))>119,119,110-(($AC168-70.4)*(43/5.6)))))*0.93,0) -> 63 | AF168: =ROUND(IF($AC168>79,37-(($AC168-79)*(9/4)),IF($AC168>76,54-(($AC168-76)*(17/3)),IF(93-(($AC168-70.4)*(39/5.6))>100,100,93-(($AC168-70.4)*(39/5.6)))))*0.93,0) -> 51 | AG168: =ROUND(IF($AC168>79,32-(($AC168-79)*(8/4)),IF($AC168>76,48-(($AC168-76)*(16/3)),IF(86-(($AC168-70.4)*(38/5.6))>95,95,86-(($AC168-70.4)*(38/5.6)))))*0.93,0) -> 45 | AH168: Yes | AK168: 0 | AL168: 0 | AM168: - | AN168: - | AO168: - | AP168: - | AQ168: - | AR168: - | AS168: - | AT168: -
A169: 184 | B169: Adrià | C169: Roger | D169: 68 | E169: 68 | F169: 69 | G169: 65 | H169: 67 | I169: 71 | J169: 71 | K169: 58 | L169: 65 | M169: 67 | N169: 66 | O169: 63 | P169: 67 | Q169: Free Agent | R169: Free Agent | S169: - | T169: ESP | U169: EU | V169: 1 | W169: 0 | X169: 15 | Y169: 4 | Z169: 2000 | AA169: 22 | AB169: 6 | AC169: 69.52877053 | AE169: =ROUND(IF($AC169>79,44-(($AC169-79)*(14/4)),IF($AC169>76,67-(($AC169-76)*(23/3)),IF(110-(($AC169-70.4)*(43/5.6))>119,119,110-(($AC169-70.4)*(43/5.6)))))*0.93,0) -> 109 | AF169: =ROUND(IF($AC169>79,37-(($AC169-79)*(9/4)),IF($AC169>76,54-(($AC169-76)*(17/3)),IF(93-(($AC169-70.4)*(39/5.6))>100,100,93-(($AC169-70.4)*(39/5.6)))))*0.93,0) -> 92 | AG169: =ROUND(IF($AC169>79,32-(($AC169-79)*(8/4)),IF($AC169>76,48-(($AC169-76)*(16/3)),IF(86-(($AC169-70.4)*(38/5.6))>95,95,86-(($AC169-70.4)*(38/5.6)))))*0.93,0) -> 85 | AH169: No | AJ169: yes | AK169: 181 | AL169: 0 | AM169: - | AN169: - | AO169: - | AP169: - | AQ169: - | AR169: - | AS169: - | AT169: -
A170: 186 | B170: Van Gils | C170: Maxim | D170: 68 | E170: 73 | F170: 71 | G170: 60 | H170: 69 | I170: 73 | J170: 71 | K170: 60 | L170: 68 | M170: 72 | N170: 67 | O170: 68 | P170: 60 | Q170: Lierse SK - Pizza Ullo PCTeam | R170: Lierse SK - Pizza Ullo PCTeam | S170: PCT | T170: BEL | U170: EU | V170: 3 | W170: 29 | X170: 25 | Y170: 11 | Z170: 1999 | AA170: 23 | AB170: 5 | AC170: 72.29452439 | AD170: 60000 | AE170: =ROUND(IF($AC170>79,44-(($AC170-79)*(14/4)),IF($AC170>76,67-(($AC170-76)*(23/3)),IF(110-(($AC170-70.4)*(43/5.6))>119,119,110-(($AC170-70.4)*(43/5.6)))))*0.93,0) -> 89 | AF170: =ROUND(IF($AC170>79,37-(($AC170-79)*(9/4)),IF($AC170>76,54-(($AC170-76)*(17/3)),IF(93-(($AC170-70.4)*(39/5.6))>100,100,93-(($AC170-70.4)*(39/5.6)))))*0.93,0) -> 74 | AG170: =ROUND(IF($AC170>79,32-(($AC170-79)*(8/4)),IF($AC170>76,48-(($AC170-76)*(16/3)),IF(86-(($AC170-70.4)*(38/5.6))>95,95,86-(($AC170-70.4)*(38/5.6)))))*0.93,0) -> 68 | AH170: No | AK170: 0 | AL170: 0 | AM170: - | AN170: - | AO170: - | AP170: - | AQ170: - | AR170: - | AS170: - | AT170: -
A171: 187 | B171: Aguilar Mendez | C171: Jose Pablo | D171: 68 | E171: 54 | F171: 55 | G171: 66 | H171: 66 | I171: 66 | J171: 65 | K171: 51 | L171: 62 | M171: 68 | N171: 63 | O171: 65 | P171: 66 | Q171: Free Agent | R171: Free Agent | S171: - | T171: MEX | U171: NA | V171: 1 | W171: 0 | X171: 26 | Y171: 1 | Z171: 2000 | AA171: 22 | AB171: 5 | AC171: 63.08469036 | AE171: =ROUND(IF($AC171>79,44-(($AC171-79)*(14/4)),IF($AC171>76,67-(($AC171-76)*(23/3)),IF(110-(($AC171-70.4)*(43/5.6))>119,119,110-(($AC171-70.4)*(43/5.6)))))*0.93,0) -> 111 | AF171: =ROUND(IF($AC171>79,37-(($AC171-79)*(9/4)),IF($AC171>76,54-(($AC171-76)*(17/3)),IF(93-(($AC171-70.4)*(39/5.6))>100,100,93-(($AC171-70.4)*(39/5.6)))))*0.93,0) -> 93 | AG171: =ROUND(IF($AC171>79,32-(($AC171-79)*(8/4)),IF($AC171>76,48-(($AC171-76)*(16/3)),IF(86-(($AC171-70.4)*(38/5.6))>95,95,86-(($AC171-70.4)*(38/5.6)))))*0.93,0) -> 88 | AH171: No | AJ171: yes | AK171: 186 | AL171: 75 | AM171: - | AN171: - | AO171: - | AP171: - | AQ171: - | AR171: - | AS171: - | AT171: -
A172: 188 | B172: Pidcock | C172: Thomas | D172: 73 | E172: 73 | F172: 74 | G172: 70 | H172: 72 | I172: 75 | J172: 70 | K172: 72 | L172: 72 | M172: 78 | N172: 70 | O172: 81 | P172: 70 | Q172: Xero Racing | R172: Project: Africa | S172: PCT | T172: GBR | U172: EU | V172: 3 | W172: 31 | X172: 30 | Y172: 7 | Z172: 1999 | AA172: 23 | AB172: 4 | AC172: 75.6616799 | AD172: 320000 | AE172: =ROUND(IF($AC172>79,44-(($AC172-79)*(14/4)),IF($AC172>76,67-(($AC172-76)*(23/3)),IF(110-(($AC172-70.4)*(43/5.6))>119,119,110-(($AC172-70.4)*(43/5.6)))))*0.93,0) -> 65 | AF172: =ROUND(IF($AC172>79,37-(($AC172-79)*(9/4)),IF($AC172>76,54-(($AC172-76)*(17/3)),IF(93-(($AC172-70.4)*(39/5.6))>100,100,93-(($AC172-70.4)*(39/5.6)))))*0.93,0) -> 52 | AG172: =ROUND(IF($AC172>79,32-(($AC172-79)*(8/4)),IF($AC172>76,48-(($AC172-76)*(16/3)),IF(86-(($AC172-70.4)*(38/5.6))>95,95,86-(($AC172-70.4)*(38/5.6)))))*0.93,0) -> 47 | AH172: No | AK172: 189 | AL172: 75 | AM172: - | AN172: - | AO172: - | AP172: - | AQ172: - | AR172: - | AS172: - | AT172: -
A173: 189 | B173: Sicard | C173: Romain | D173: 71 | E173: 80 | F173: 76 | G173: 74 | H173: 77 | I173: 76 | J173: 79 | K173: 55 | L173: 62 | M173: 67 | N173: 75 | O173: 63 | P173: 74 | Q173: Free Agent | R173: Generali | S173: - | T173: FRA | U173: EU | V173: 4 | W173: 100 | X173: 1 | Y173: 1 | Z173: 1988 | AA173: 34 | AB173: 7 | AC173: 77.98407716 | AE173: =ROUND(IF($AC173>79,44-(($AC173-79)*(14/4)),IF($AC173>76,67-(($AC173-76)*(23/3)),IF(110-(($AC173-70.4)*(43/5.6))>119,119,110-(($AC173-70.4)*(43/5.6)))))*0.93,0) -> 48 | AF173: =ROUND(IF($AC173>79,37-(($AC173-79)*(9/4)),IF($AC173>76,54-(($AC173-76)*(17/3)),IF(93-(($AC173-70.4)*(39/5.6))>100,100,93-(($AC173-70.4)*(39/5.6)))))*0.93,0) -> 40 | AG173: =ROUND(IF($AC173>79,32-(($AC173-79)*(8/4)),IF($AC173>76,48-(($AC173-76)*(16/3)),IF(86-(($AC173-70.4)*(38/5.6))>95,95,86-(($AC173-70.4)*(38/5.6)))))*0.93,0) -> 35 | AH173: No | AK173: 177 | AL173: 64 | AM173: - | AN173: - | AO173: - | AP173: - | AQ173: - | AR173: - | AS173: - | AT173: -
A174: 190 | B174: Sangulin | C174: Robert | D174: 71 | E174: 69 | F174: 71 | G174: 61 | H174: 72 | I174: 71 | J174: 68 | K174: 72 | L174: 57 | M174: 71 | N174: 67 | O174: 80 | P174: 61 | Q174: Free Agent | R174: Free Agent | S174: - | T174: CRO | U174: EU | V174: 4 | W174: 100 | X174: 28 | Y174: 9 | Z174: 1993 | AA174: 29 | AB174: 2 | AC174: 71.60737822 | AE174: =ROUND(IF($AC174>79,44-(($AC174-79)*(14/4)),IF($AC174>76,67-(($AC174-76)*(23/3)),IF(110-(($AC174-70.4)*(43/5.6))>119,119,110-(($AC174-70.4)*(43/5.6)))))*0.93,0) -> 94 | AF174: =ROUND(IF($AC174>79,37-(($AC174-79)*(9/4)),IF($AC174>76,54-(($AC174-76)*(17/3)),IF(93-(($AC174-70.4)*(39/5.6))>100,100,93-(($AC174-70.4)*(39/5.6)))))*0.93,0) -> 79 | AG174: =ROUND(IF($AC174>79,32-(($AC174-79)*(8/4)),IF($AC174>76,48-(($AC174-76)*(16/3)),IF(86-(($AC174-70.4)*(38/5.6))>95,95,86-(($AC174-70.4)*(38/5.6)))))*0.93,0) -> 72 | AH174: Yes | AK174: 0 | AL174: 0 | AM174: - | AN174: - | AO174: - | AP174: - | AQ174: - | AR174: - | AS174: - | AT174: -
A175: 191 | B175: Razafindrakato | C175: Hasinavalona | D175: 68 | E175: 69 | F175: 70 | G175: 63 | H175: 67 | I175: 68 | J175: 67 | K175: 63 | L175: 64 | M175: 64 | N175: 71 | O175: 70 | P175: 64 | Q175: Free Agent | R175: Free Agent | S175: - | T175: MAD | U175: AF | V175: 4 | W175: 100 | X175: 7 | Y175: 7 | Z175: 1990 | AA175: 32 | AB175: 3 | AC175: 69.3296299 | AE175: =ROUND(IF($AC175>79,44-(($AC175-79)*(14/4)),IF($AC175>76,67-(($AC175-76)*(23/3)),IF(110-(($AC175-70.4)*(43/5.6))>119,119,110-(($AC175-70.4)*(43/5.6)))))*0.93,0) -> 110 | AF175: =ROUND(IF($AC175>79,37-(($AC175-79)*(9/4)),IF($AC175>76,54-(($AC175-76)*(17/3)),IF(93-(($AC175-70.4)*(39/5.6))>100,100,93-(($AC175-70.4)*(39/5.6)))))*0.93,0) -> 93 | AG175: =ROUND(IF($AC175>79,32-(($AC175-79)*(8/4)),IF($AC175>76,48-(($AC175-76)*(16/3)),IF(86-(($AC175-70.4)*(38/5.6))>95,95,86-(($AC175-70.4)*(38/5.6)))))*0.93,0) -> 87 | AH175: No | AK175: 0 | AL175: 0 | AM175: - | AN175: - | AO175: - | AP175: - | AQ175: - | AR175: - | AS175: - | AT175: -
A176: 192 | B176: Hodeg | C176: Alvaro | D176: 72 | E176: 53 | F176: 65 | G176: 67 | H176: 69 | I176: 74 | J176: 70 | K176: 51 | L176: 79 | M176: 78 | N176: 53 | O176: 64 | P176: 73 | Q176: Minions | R176: Minions | S176: PCT | T176: COL | U176: SA | V176: 4 | W176: 100 | X176: 16 | Y176: 9 | Z176: 1996 | AA176: 26 | AB176: 5 | AC176: 74.95497226 | AD176: 100000 | AE176: =ROUND(IF($AC176>79,44-(($AC176-79)*(14/4)),IF($AC176>76,67-(($AC176-76)*(23/3)),IF(110-(($AC176-70.4)*(43/5.6))>119,119,110-(($AC176-70.4)*(43/5.6)))))*0.93,0) -> 70 | AF176: =ROUND(IF($AC176>79,37-(($AC176-79)*(9/4)),IF($AC176>76,54-(($AC176-76)*(17/3)),IF(93-(($AC176-70.4)*(39/5.6))>100,100,93-(($AC176-70.4)*(39/5.6)))))*0.93,0) -> 57 | AG176: =ROUND(IF($AC176>79,32-(($AC176-79)*(8/4)),IF($AC176>76,48-(($AC176-76)*(16/3)),IF(86-(($AC176-70.4)*(38/5.6))>95,95,86-(($AC176-70.4)*(38/5.6)))))*0.93,0) -> 51 | AH176: Yes | AK176: 186 | AL176: 76 | AM176: - | AN176: - | AO176: - | AP176: - | AQ176: - | AR176: - | AS176: - | AT176: -
A177: 193 | B177: Fernandez | C177: Ruben | D177: 66 | E177: 75 | F177: 75 | G177: 66 | H177: 72 | I177: 69 | J177: 72 | K177: 57 | L177: 60 | M177: 66 | N177: 72 | O177: 72 | P177: 65 | Q177: Zara - Irizar | R177: Aramco DP | S177: PCT | T177: ESP | U177: EU | V177: 4 | W177: 100 | X177: 1 | Y177: 3 | Z177: 1991 | AA177: 31 | AB177: 5 | AC177: 73.7450492 | AD177: 60000 | AE177: =ROUND(IF($AC177>79,44-(($AC177-79)*(14/4)),IF($AC177>76,67-(($AC177-76)*(23/3)),IF(110-(($AC177-70.4)*(43/5.6))>119,119,110-(($AC177-70.4)*(43/5.6)))))*0.93,0) -> 78 | AF177: =ROUND(IF($AC177>79,37-(($AC177-79)*(9/4)),IF($AC177>76,54-(($AC177-76)*(17/3)),IF(93-(($AC177-70.4)*(39/5.6))>100,100,93-(($AC177-70.4)*(39/5.6)))))*0.93,0) -> 65 | AG177: =ROUND(IF($AC177>79,32-(($AC177-79)*(8/4)),IF($AC177>76,48-(($AC177-76)*(16/3)),IF(86-(($AC177-70.4)*(38/5.6))>95,95,86-(($AC177-70.4)*(38/5.6)))))*0.93,0) -> 59 | AH177: No | AK177: 177 | AL177: 60 | AM177: - | AN177: - | AO177: - | AP177: - | AQ177: - | AR177: - | AS177: - | AT177: -
A178: 194 | B178: Andersen | C178: Mads | D178: 68 | E178: 58 | F178: 63 | G178: 60 | H178: 65 | I178: 70 | J178: 62 | K178: 58 | L178: 62 | M178: 60 | N178: 68 | O178: 63 | P178: 58 | Q178: Free Agent | R178: Free Agent | S178: - | T178: DEN | U178: EU | V178: 1 | W178: 0 | X178: 27 | Y178: 11 | Z178: 2000 | AA178: 22 | AB178: 3 | AC178: 64.63705092 | AE178: =ROUND(IF($AC178>79,44-(($AC178-79)*(14/4)),IF($AC178>76,67-(($AC178-76)*(23/3)),IF(110-(($AC178-70.4)*(43/5.6))>119,119,110-(($AC178-70.4)*(43/5.6)))))*0.93,0) -> 111 | AF178: =ROUND(IF($AC178>79,37-(($AC178-79)*(9/4)),IF($AC178>76,54-(($AC178-76)*(17/3)),IF(93-(($AC178-70.4)*(39/5.6))>100,100,93-(($AC178-70.4)*(39/5.6)))))*0.93,0) -> 93 | AG178: =ROUND(IF($AC178>79,32-(($AC178-79)*(8/4)),IF($AC178>76,48-(($AC178-76)*(16/3)),IF(86-(($AC178-70.4)*(38/5.6))>95,95,86-(($AC178-70.4)*(38/5.6)))))*0.93,0) -> 88 | AH178: No | AJ178: yes | AK178: 0 | AL178: 0 | AM178: - | AN178: - | AO178: - | AP178: - | AQ178: - | AR178: - | AS178: - | AT178: -
A179: 195 | B179: Moreno | C179: Ivan | D179: 64 | E179: 69 | F179: 70 | G179: 60 | H179: 67 | I179: 67 | J179: 68 | K179: 60 | L179: 61 | M179: 63 | N179: 65 | O179: 62 | P179: 60 | Q179: Free Agent | R179: Free Agent | S179: - | T179: ESP | U179: EU | V179: 3 | W179: 54 | X179: 27 | Y179: 5 | Z179: 1996 | AA179: 26 | AB179: 4 | AC179: 68.53316606 | AE179: =ROUND(IF($AC179>79,44-(($AC179-79)*(14/4)),IF($AC179>76,67-(($AC179-76)*(23/3)),IF(110-(($AC179-70.4)*(43/5.6))>119,119,110-(($AC179-70.4)*(43/5.6)))))*0.93,0) -> 111 | AF179: =ROUND(IF($AC179>79,37-(($AC179-79)*(9/4)),IF($AC179>76,54-(($AC179-76)*(17/3)),IF(93-(($AC179-70.4)*(39/5.6))>100,100,93-(($AC179-70.4)*(39/5.6)))))*0.93,0) -> 93 | AG179: =ROUND(IF($AC179>79,32-(($AC179-79)*(8/4)),IF($AC179>76,48-(($AC179-76)*(16/3)),IF(86-(($AC179-70.4)*(38/5.6))>95,95,86-(($AC179-70.4)*(38/5.6)))))*0.93,0) -> 88 | AH179: No | AK179: 0 | AL179: 0 | AM179: - | AN179: - | AO179: - | AP179: - | AQ179: - | AR179: - | AS179: - | AT179: -
A180: 196 | B180: Antonelli | C180: Michael | D180: 68 | E180: 68 | F180: 67 | G180: 63 | H180: 67 | I180: 68 | J180: 67 | K180: 56 | L180: 65 | M180: 69 | N180: 68 | O180: 75 | P180: 64 | Q180: Free Agent | R180: Free Agent | S180: - | T180: SMR | U180: EU | V180: 1 | W180: 0 | X180: 30 | Y180: 11 | Z180: 1999 | AA180: 23 | AB180: 4 | AC180: 68.6784184 | AE180: =ROUND(IF($AC180>79,44-(($AC180-79)*(14/4)),IF($AC180>76,67-(($AC180-76)*(23/3)),IF(110-(($AC180-70.4)*(43/5.6))>119,119,110-(($AC180-70.4)*(43/5.6)))))*0.93,0) -> 111 | AF180: =ROUND(IF($AC180>79,37-(($AC180-79)*(9/4)),IF($AC180>76,54-(($AC180-76)*(17/3)),IF(93-(($AC180-70.4)*(39/5.6))>100,100,93-(($AC180-70.4)*(39/5.6)))))*0.93,0) -> 93 | AG180: =ROUND(IF($AC180>79,32-(($AC180-79)*(8/4)),IF($AC180>76,48-(($AC180-76)*(16/3)),IF(86-(($AC180-70.4)*(38/5.6))>95,95,86-(($AC180-70.4)*(38/5.6)))))*0.93,0) -> 88 | AH180: No | AK180: 0 | AL180: 0 | AM180: - | AN180: - | AO180: - | AP180: - | AQ180: - | AR180: - | AS180: - | AT180: -
A181: 197 | B181: Andersen | C181: Sander | D181: 66 | E181: 64 | F181: 68 | G181: 64 | H181: 66 | I181: 66 | J181: 68 | K181: 61 | L181: 64 | M181: 69 | N181: 67 | O181: 70 | P181: 64 | Q181: Free Agent | R181: Tafjord Kraft | S181: - | T181: DEN | U181: EU | V181: 2 | W181: 81 | X181: 24 | Y181: 10 | Z181: 1999 | AA181: 23 | AB181: 3 | AC181: 68.09011072 | AE181: =ROUND(IF($AC181>79,44-(($AC181-79)*(14/4)),IF($AC181>76,67-(($AC181-76)*(23/3)),IF(110-(($AC181-70.4)*(43/5.6))>119,119,110-(($AC181-70.4)*(43/5.6)))))*0.93,0) -> 111 | AF181: =ROUND(IF($AC181>79,37-(($AC181-79)*(9/4)),IF($AC181>76,54-(($AC181-76)*(17/3)),IF(93-(($AC181-70.4)*(39/5.6))>100,100,93-(($AC181-70.4)*(39/5.6)))))*0.93,0) -> 93 | AG181: =ROUND(IF($AC181>79,32-(($AC181-79)*(8/4)),IF($AC181>76,48-(($AC181-76)*(16/3)),IF(86-(($AC181-70.4)*(38/5.6))>95,95,86-(($AC181-70.4)*(38/5.6)))))*0.93,0) -> 88 | AH181: No | AK181: 0 | AL181: 0 | AM181: - | AN181: - | AO181: - | AP181: - | AQ181: - | AR181: - | AS181: - | AT181: -
A182: 198 | B182: Bonello | C182: Daniel | D182: 68 | E182: 66 | F182: 66 | G182: 67 | H182: 68 | I182: 68 | J182: 68 | K182: 67 | L182: 66 | M182: 66 | N182: 63 | O182: 70 | P182: 68 | Q182: Free Agent | R182: Free Agent | S182: - | T182: MLT | U182: EU | V182: 1 | W182: 0 | X182: 11 | Y182: 11 | Z182: 2000 | AA182: 22 | AB182: 4 | AC182: 67.87509536 | AE182: =ROUND(IF($AC182>79,44-(($AC182-79)*(14/4)),IF($AC182>76,67-(($AC182-76)*(23/3)),IF(110-(($AC182-70.4)*(43/5.6))>119,119,110-(($AC182-70.4)*(43/5.6)))))*0.93,0) -> 111 | AF182: =ROUND(IF($AC182>79,37-(($AC182-79)*(9/4)),IF($AC182>76,54-(($AC182-76)*(17/3)),IF(93-(($AC182-70.4)*(39/5.6))>100,100,93-(($AC182-70.4)*(39/5.6)))))*0.93,0) -> 93 | AG182: =ROUND(IF($AC182>79,32-(($AC182-79)*(8/4)),IF($AC182>76,48-(($AC182-76)*(16/3)),IF(86-(($AC182-70.4)*(38/5.6))>95,95,86-(($AC182-70.4)*(38/5.6)))))*0.93,0) -> 88 | AH182: No | AJ182: yes | AK182: 190 | AL182: 67 | AM182: - | AN182: - | AO182: - | AP182: - | AQ182: - | AR182: - | AS182: - | AT182: -
A183: 199 | B183: Carr | C183: Simon | D183: 67 | E183: 69 | F183: 75 | G183: 57 | H183: 72 | I183: 70 | J183: 70 | K183: 55 | L183: 59 | M183: 71 | N183: 64 | O183: 59 | P183: 58 | Q183: Zwift Pro Cycling | R183: Eurosport x GCN | S183: PT | T183: GBR | U183: EU | V183: 4 | W183: 20 | X183: 29 | Y183: 8 | Z183: 1998 | AA183: 24 | AB183: 4 | AC183: 72.27678592 | AD183: 50000 | AE183: =ROUND(IF($AC183>79,44-(($AC183-79)*(14/4)),IF($AC183>76,67-(($AC183-76)*(23/3)),IF(110-(($AC183-70.4)*(43/5.6))>119,119,110-(($AC183-70.4)*(43/5.6)))))*0.93,0) -> 89 | AF183: =ROUND(IF($AC183>79,37-(($AC183-79)*(9/4)),IF($AC183>76,54-(($AC183-76)*(17/3)),IF(93-(($AC183-70.4)*(39/5.6))>100,100,93-(($AC183-70.4)*(39/5.6)))))*0.93,0) -> 74 | AG183: =ROUND(IF($AC183>79,32-(($AC183-79)*(8/4)),IF($AC183>76,48-(($AC183-76)*(16/3)),IF(86-(($AC183-70.4)*(38/5.6))>95,95,86-(($AC183-70.4)*(38/5.6)))))*0.93,0) -> 68 | AH183: No | AK183: 0 | AL183: 0 | AM183: - | AN183: - | AO183: - | AP183: - | AQ183: - | AR183: - | AS183: - | AT183: -
A184: 200 | B184: Matsuda | C184: Shoi | D184: 72 | E184: 65 | F184: 69 | G184: 72 | H184: 67 | I184: 73 | J184: 63 | K184: 60 | L184: 69 | M184: 70 | N184: 60 | O184: 63 | P184: 74 | Q184: Voyagin - Bird | R184: Voyagin - Bird | S184: PCT | T184: JPN | U184: AS | V184: 2 | W184: 0 | X184: 13 | Y184: 9 | Z184: 1999 | AA184: 23 | AB184: 5 | AC184: 70.77434789 | AD184: 50000 | AE184: =ROUND(IF($AC184>79,44-(($AC184-79)*(14/4)),IF($AC184>76,67-(($AC184-76)*(23/3)),IF(110-(($AC184-70.4)*(43/5.6))>119,119,110-(($AC184-70.4)*(43/5.6)))))*0.93,0) -> 100 | AF184: =ROUND(IF($AC184>79,37-(($AC184-79)*(9/4)),IF($AC184>76,54-(($AC184-76)*(17/3)),IF(93-(($AC184-70.4)*(39/5.6))>100,100,93-(($AC184-70.4)*(39/5.6)))))*0.93,0) -> 84 | AG184: =ROUND(IF($AC184>79,32-(($AC184-79)*(8/4)),IF($AC184>76,48-(($AC184-76)*(16/3)),IF(86-(($AC184-70.4)*(38/5.6))>95,95,86-(($AC184-70.4)*(38/5.6)))))*0.93,0) -> 78 | AH184: No | AK184: 184 | AL184: 75 | AM184: - | AN184: - | AO184: - | AP184: - | AQ184: - | AR184: - | AS184: - | AT184: -
A185: 202 | B185: Kristensen | C185: Mads Ostergaard | D185: 68 | E185: 60 | F185: 60 | G185: 69 | H185: 64 | I185: 69 | J185: 63 | K185: 60 | L185: 60 | M185: 60 | N185: 70 | O185: 61 | P185: 68 | Q185: Free Agent | R185: Free Agent | S185: - | T185: DEN | U185: EU | V185: 2 | W185: 84 | X185: 26 | Y185: 1 | Z185: 1998 | AA185: 24 | AB185: 4 | AC185: 65.65559287 | AE185: =ROUND(IF($AC185>79,44-(($AC185-79)*(14/4)),IF($AC185>76,67-(($AC185-76)*(23/3)),IF(110-(($AC185-70.4)*(43/5.6))>119,119,110-(($AC185-70.4)*(43/5.6)))))*0.93,0) -> 111 | AF185: =ROUND(IF($AC185>79,37-(($AC185-79)*(9/4)),IF($AC185>76,54-(($AC185-76)*(17/3)),IF(93-(($AC185-70.4)*(39/5.6))>100,100,93-(($AC185-70.4)*(39/5.6)))))*0.93,0) -> 93 | AG185: =ROUND(IF($AC185>79,32-(($AC185-79)*(8/4)),IF($AC185>76,48-(($AC185-76)*(16/3)),IF(86-(($AC185-70.4)*(38/5.6))>95,95,86-(($AC185-70.4)*(38/5.6)))))*0.93,0) -> 88 | AH185: No | AK185: 0 | AL185: 0 | AM185: - | AN185: - | AO185: - | AP185: - | AQ185: - | AR185: - | AS185: - | AT185: -
A186: 203 | B186: Bonneu | C186: Kamiel | D186: 68 | E186: 64 | F186: 70 | G186: 58 | H186: 72 | I186: 70 | J186: 63 | K186: 62 | L186: 60 | M186: 66 | N186: 64 | O186: 62 | P186: 58 | Q186: Free Agent | R186: Free Agent | S186: - | T186: BEL | U186: EU | V186: 2 | W186: 0 | X186: 1 | Y186: 8 | Z186: 1999 | AA186: 23 | AB186: 4 | AC186: 68.87314305 | AE186: =ROUND(IF($AC186>79,44-(($AC186-79)*(14/4)),IF($AC186>76,67-(($AC186-76)*(23/3)),IF(110-(($AC186-70.4)*(43/5.6))>119,119,110-(($AC186-70.4)*(43/5.6)))))*0.93,0) -> 111 | AF186: =ROUND(IF($AC186>79,37-(($AC186-79)*(9/4)),IF($AC186>76,54-(($AC186-76)*(17/3)),IF(93-(($AC186-70.4)*(39/5.6))>100,100,93-(($AC186-70.4)*(39/5.6)))))*0.93,0) -> 93 | AG186: =ROUND(IF($AC186>79,32-(($AC186-79)*(8/4)),IF($AC186>76,48-(($AC186-76)*(16/3)),IF(86-(($AC186-70.4)*(38/5.6))>95,95,86-(($AC186-70.4)*(38/5.6)))))*0.93,0) -> 88 | AH186: No | AK186: 170 | AL186: 64 | AM186: - | AN186: - | AO186: - | AP186: - | AQ186: - | AR186: - | AS186: - | AT186: -
A187: 204 | B187: Bouts | C187: Jordy | D187: 68 | E187: 63 | F187: 64 | G187: 60 | H187: 66 | I187: 69 | J187: 64 | K187: 64 | L187: 62 | M187: 68 | N187: 65 | O187: 65 | P187: 59 | Q187: Free Agent | R187: Free Agent | S187: - | T187: BEL | U187: EU | V187: 2 | W187: 92 | X187: 8 | Y187: 8 | Z187: 1996 | AA187: 26 | AB187: 4 | AC187: 66.66036137 | AE187: =ROUND(IF($AC187>79,44-(($AC187-79)*(14/4)),IF($AC187>76,67-(($AC187-76)*(23/3)),IF(110-(($AC187-70.4)*(43/5.6))>119,119,110-(($AC187-70.4)*(43/5.6)))))*0.93,0) -> 111 | AF187: =ROUND(IF($AC187>79,37-(($AC187-79)*(9/4)),IF($AC187>76,54-(($AC187-76)*(17/3)),IF(93-(($AC187-70.4)*(39/5.6))>100,100,93-(($AC187-70.4)*(39/5.6)))))*0.93,0) -> 93 | AG187: =ROUND(IF($AC187>79,32-(($AC187-79)*(8/4)),IF($AC187>76,48-(($AC187-76)*(16/3)),IF(86-(($AC187-70.4)*(38/5.6))>95,95,86-(($AC187-70.4)*(38/5.6)))))*0.93,0) -> 88 | AH187: No | AK187: 171 | AL187: 55 | AM187: - | AN187: - | AO187: - | AP187: - | AQ187: - | AR187: - | AS187: - | AT187: -
A188: 205 | B188: Kukrle | C188: Michal | D188: 72 | E188: 68 | F188: 66 | G188: 78 | H188: 74 | I188: 74 | J188: 70 | K188: 58 | L188: 65 | M188: 71 | N188: 58 | O188: 63 | P188: 79 | Q188: Moser - Sygic | R188: Moser - Sygic | S188: PT | T188: CZE | U188: EU | V188: 4 | W188: 100 | X188: 17 | Y188: 11 | Z188: 1994 | AA188: 28 | AB188: 4 | AC188: 74.91225234 | AD188: 90000 | AE188: =ROUND(IF($AC188>79,44-(($AC188-79)*(14/4)),IF($AC188>76,67-(($AC188-76)*(23/3)),IF(110-(($AC188-70.4)*(43/5.6))>119,119,110-(($AC188-70.4)*(43/5.6)))))*0.93,0) -> 70 | AF188: =ROUND(IF($AC188>79,37-(($AC188-79)*(9/4)),IF($AC188>76,54-(($AC188-76)*(17/3)),IF(93-(($AC188-70.4)*(39/5.6))>100,100,93-(($AC188-70.4)*(39/5.6)))))*0.93,0) -> 57 | AG188: =ROUND(IF($AC188>79,32-(($AC188-79)*(8/4)),IF($AC188>76,48-(($AC188-76)*(16/3)),IF(86-(($AC188-70.4)*(38/5.6))>95,95,86-(($AC188-70.4)*(38/5.6)))))*0.93,0) -> 52 | AH188: Yes | AK188: 0 | AL188: 0 | AM188: - | AN188: Yes | AO188: - | AP188: - | AQ188: - | AR188: - | AS188: - | AT188: -
A189: 206 | B189: Cepeda | C189: Jefferson Alexander | D189: 67 | E189: 69 | F189: 67 | G189: 62 | H189: 68 | I189: 67 | J189: 64 | K189: 57 | L189: 60 | M189: 67 | N189: 61 | O189: 59 | P189: 61 | Q189: Free Agent | R189: Los Pollos Hermanos | S189: - | T189: ECU | U189: SA | V189: 2 | W189: 35 | X189: 16 | Y189: 6 | Z189: 1998 | AA189: 24 | AB189: 6 | AC189: 67.86016866 | AE189: =ROUND(IF($AC189>79,44-(($AC189-79)*(14/4)),IF($AC189>76,67-(($AC189-76)*(23/3)),IF(110-(($AC189-70.4)*(43/5.6))>119,119,110-(($AC189-70.4)*(43/5.6)))))*0.93,0) -> 111 | AF189: =ROUND(IF($AC189>79,37-(($AC189-79)*(9/4)),IF($AC189>76,54-(($AC189-76)*(17/3)),IF(93-(($AC189-70.4)*(39/5.6))>100,100,93-(($AC189-70.4)*(39/5.6)))))*0.93,0) -> 93 | AG189: =ROUND(IF($AC189>79,32-(($AC189-79)*(8/4)),IF($AC189>76,48-(($AC189-76)*(16/3)),IF(86-(($AC189-70.4)*(38/5.6))>95,95,86-(($AC189-70.4)*(38/5.6)))))*0.93,0) -> 88 | AH189: No | AK189: 180 | AL189: 70 | AM189: - | AN189: - | AO189: - | AP189: - | AQ189: - | AR189: - | AS189: - | AT189: -
A190: 207 | B190: Kasa | C190: Gabor | D190: 69 | E190: 70 | F190: 71 | G190: 73 | H190: 72 | I190: 68 | J190: 69 | K190: 57 | L190: 62 | M190: 64 | N190: 66 | O190: 64 | P190: 73 | Q190: Free Agent | R190: Kraftwerk Man Machine | S190: - | T190: SER | U190: EU | V190: 4 | W190: 100 | X190: 3 | Y190: 2 | Z190: 1989 | AA190: 33 | AB190: 4 | AC190: 70.24092043 | AE190: =ROUND(IF($AC190>79,44-(($AC190-79)*(14/4)),IF($AC190>76,67-(($AC190-76)*(23/3)),IF(110-(($AC190-70.4)*(43/5.6))>119,119,110-(($AC190-70.4)*(43/5.6)))))*0.93,0) -> 103 | AF190: =ROUND(IF($AC190>79,37-(($AC190-79)*(9/4)),IF($AC190>76,54-(($AC190-76)*(17/3)),IF(93-(($AC190-70.4)*(39/5.6))>100,100,93-(($AC190-70.4)*(39/5.6)))))*0.93,0) -> 88 | AG190: =ROUND(IF($AC190>79,32-(($AC190-79)*(8/4)),IF($AC190>76,48-(($AC190-76)*(16/3)),IF(86-(($AC190-70.4)*(38/5.6))>95,95,86-(($AC190-70.4)*(38/5.6)))))*0.93,0) -> 81 | AH190: No | AK190: 180 | AL190: 72 | AM190: - | AN190: - | AO190: - | AP190: - | AQ190: - | AR190: - | AS190: - | AT190: -
A191: 208 | B191: Broxham | C191: Ricardo | D191: 68 | E191: 66 | F191: 67 | G191: 68 | H191: 66 | I191: 66 | J191: 65 | K191: 60 | L191: 67 | M191: 67 | N191: 67 | O191: 65 | P191: 68 | Q191: Free Agent | R191: Free Agent | S191: - | T191: RSA | U191: AF | V191: 1 | W191: 0 | X191: 11 | Y191: 8 | Z191: 2000 | AA191: 22 | AB191: 4 | AC191: 67.95953912 | AE191: =ROUND(IF($AC191>79,44-(($AC191-79)*(14/4)),IF($AC191>76,67-(($AC191-76)*(23/3)),IF(110-(($AC191-70.4)*(43/5.6))>119,119,110-(($AC191-70.4)*(43/5.6)))))*0.93,0) -> 111 | AF191: =ROUND(IF($AC191>79,37-(($AC191-79)*(9/4)),IF($AC191>76,54-(($AC191-76)*(17/3)),IF(93-(($AC191-70.4)*(39/5.6))>100,100,93-(($AC191-70.4)*(39/5.6)))))*0.93,0) -> 93 | AG191: =ROUND(IF($AC191>79,32-(($AC191-79)*(8/4)),IF($AC191>76,48-(($AC191-76)*(16/3)),IF(86-(($AC191-70.4)*(38/5.6))>95,95,86-(($AC191-70.4)*(38/5.6)))))*0.93,0) -> 88 | AH191: No | AJ191: yes | AK191: 188 | AL191: 74 | AM191: - | AN191: - | AO191: - | AP191: - | AQ191: - | AR191: - | AS191: - | AT191: -
A192: 209 | B192: Teggart | C192: Matthew | D192: 71 | E192: 62 | F192: 69 | G192: 58 | H192: 74 | I192: 72 | J192: 70 | K192: 74 | L192: 70 | M192: 70 | N192: 55 | O192: 64 | P192: 65 | Q192: Glanbia | R192: Glanbia Foods Cycling Project | S192: CT | T192: IRL | U192: EU | V192: 4 | W192: 0 | X192: 8 | Y192: 1 | Z192: 1996 | AA192: 26 | AB192: 5 | AC192: 72.55441545 | AD192: 50000 | AE192: =ROUND(IF($AC192>79,44-(($AC192-79)*(14/4)),IF($AC192>76,67-(($AC192-76)*(23/3)),IF(110-(($AC192-70.4)*(43/5.6))>119,119,110-(($AC192-70.4)*(43/5.6)))))*0.93,0) -> 87 | AF192: =ROUND(IF($AC192>79,37-(($AC192-79)*(9/4)),IF($AC192>76,54-(($AC192-76)*(17/3)),IF(93-(($AC192-70.4)*(39/5.6))>100,100,93-(($AC192-70.4)*(39/5.6)))))*0.93,0) -> 73 | AG192: =ROUND(IF($AC192>79,32-(($AC192-79)*(8/4)),IF($AC192>76,48-(($AC192-76)*(16/3)),IF(86-(($AC192-70.4)*(38/5.6))>95,95,86-(($AC192-70.4)*(38/5.6)))))*0.93,0) -> 66 | AH192: No | AK192: 0 | AL192: 0 | AM192: - | AN192: - | AO192: - | AP192: - | AQ192: - | AR192: - | AS192: - | AT192: -
A193: 210 | B193: Lichnovsky | C193: Ludek | D193: 70 | E193: 57 | F193: 63 | G193: 60 | H193: 65 | I193: 66 | J193: 63 | K193: 50 | L193: 61 | M193: 63 | N193: 68 | O193: 53 | P193: 61 | Q193: Free Agent | R193: Free Agent | S193: - | T193: CZE | U193: EU | V193: 1 | W193: 0 | X193: 9 | Y193: 2 | Z193: 1995 | AA193: 27 | AB193: 3 | AC193: 64.77559252 | AE193: =ROUND(IF($AC193>79,44-(($AC193-79)*(14/4)),IF($AC193>76,67-(($AC193-76)*(23/3)),IF(110-(($AC193-70.4)*(43/5.6))>119,119,110-(($AC193-70.4)*(43/5.6)))))*0.93,0) -> 111 | AF193: =ROUND(IF($AC193>79,37-(($AC193-79)*(9/4)),IF($AC193>76,54-(($AC193-76)*(17/3)),IF(93-(($AC193-70.4)*(39/5.6))>100,100,93-(($AC193-70.4)*(39/5.6)))))*0.93,0) -> 93 | AG193: =ROUND(IF($AC193>79,32-(($AC193-79)*(8/4)),IF($AC193>76,48-(($AC193-76)*(16/3)),IF(86-(($AC193-70.4)*(38/5.6))>95,95,86-(($AC193-70.4)*(38/5.6)))))*0.93,0) -> 88 | AH193: No | AK193: 0 | AL193: 0 | AM193: - | AN193: - | AO193: - | AP193: - | AQ193: - | AR193: - | AS193: - | AT193: -
A194: 211 | B194: Naesen | C194: Lawrence | D194: 69 | E194: 62 | F194: 70 | G194: 66 | H194: 68 | I194: 70 | J194: 67 | K194: 66 | L194: 70 | M194: 71 | N194: 70 | O194: 69 | P194: 67 | Q194: Free Agent | R194: Free Agent | S194: - | T194: BEL | U194: EU | V194: 4 | W194: 100 | X194: 28 | Y194: 8 | Z194: 1992 | AA194: 30 | AB194: 3 | AC194: 70.7272178 | AE194: =ROUND(IF($AC194>79,44-(($AC194-79)*(14/4)),IF($AC194>76,67-(($AC194-76)*(23/3)),IF(110-(($AC194-70.4)*(43/5.6))>119,119,110-(($AC194-70.4)*(43/5.6)))))*0.93,0) -> 100 | AF194: =ROUND(IF($AC194>79,37-(($AC194-79)*(9/4)),IF($AC194>76,54-(($AC194-76)*(17/3)),IF(93-(($AC194-70.4)*(39/5.6))>100,100,93-(($AC194-70.4)*(39/5.6)))))*0.93,0) -> 84 | AG194: =ROUND(IF($AC194>79,32-(($AC194-79)*(8/4)),IF($AC194>76,48-(($AC194-76)*(16/3)),IF(86-(($AC194-70.4)*(38/5.6))>95,95,86-(($AC194-70.4)*(38/5.6)))))*0.93,0) -> 78 | AH194: No | AK194: 184 | AL194: 77 | AM194: - | AN194: - | AO194: - | AP194: - | AQ194: - | AR194: - | AS194: - | AT194: -
A195: 212 | B195: Zariff | C195: Nur Aiman | D195: 68 | E195: 58 | F195: 60 | G195: 60 | H195: 70 | I195: 65 | J195: 76 | K195: 60 | L195: 78 | M195: 78 | N195: 60 | O195: 67 | P195: 70 | Q195: Free Agent | R195: Tryg - Ritter Sport | S195: - | T195: MAS | U195: AS | V195: 4 | W195: 71 | X195: 1 | Y195: 10 | Z195: 1997 | AA195: 25 | AB195: 5 | AC195: 73.49053221 | AE195: =ROUND(IF($AC195>79,44-(($AC195-79)*(14/4)),IF($AC195>76,67-(($AC195-76)*(23/3)),IF(110-(($AC195-70.4)*(43/5.6))>119,119,110-(($AC195-70.4)*(43/5.6)))))*0.93,0) -> 80 | AF195: =ROUND(IF($AC195>79,37-(($AC195-79)*(9/4)),IF($AC195>76,54-(($AC195-76)*(17/3)),IF(93-(($AC195-70.4)*(39/5.6))>100,100,93-(($AC195-70.4)*(39/5.6)))))*0.93,0) -> 66 | AG195: =ROUND(IF($AC195>79,32-(($AC195-79)*(8/4)),IF($AC195>76,48-(($AC195-76)*(16/3)),IF(86-(($AC195-70.4)*(38/5.6))>95,95,86-(($AC195-70.4)*(38/5.6)))))*0.93,0) -> 60 | AH195: No | AK195: 0 | AL195: 0 | AM195: - | AN195: - | AO195: - | AP195: - | AQ195: - | AR195: - | AS195: - | AT195: -
A196: 213 | B196: Reynders | C196: Jens | D196: 67 | E196: 61 | F196: 64 | G196: 60 | H196: 68 | I196: 68 | J196: 67 | K196: 69 | L196: 66 | M196: 69 | N196: 65 | O196: 64 | P196: 62 | Q196: Free Agent | R196: Carlsberg - Danske Bank | S196: - | T196: BEL | U196: EU | V196: 2 | W196: 45 | X196: 25 | Y196: 5 | Z196: 1998 | AA196: 24 | AB196: 6 | AC196: 68.60552637 | AE196: =ROUND(IF($AC196>79,44-(($AC196-79)*(14/4)),IF($AC196>76,67-(($AC196-76)*(23/3)),IF(110-(($AC196-70.4)*(43/5.6))>119,119,110-(($AC196-70.4)*(43/5.6)))))*0.93,0) -> 111 | AF196: =ROUND(IF($AC196>79,37-(($AC196-79)*(9/4)),IF($AC196>76,54-(($AC196-76)*(17/3)),IF(93-(($AC196-70.4)*(39/5.6))>100,100,93-(($AC196-70.4)*(39/5.6)))))*0.93,0) -> 93 | AG196: =ROUND(IF($AC196>79,32-(($AC196-79)*(8/4)),IF($AC196>76,48-(($AC196-76)*(16/3)),IF(86-(($AC196-70.4)*(38/5.6))>95,95,86-(($AC196-70.4)*(38/5.6)))))*0.93,0) -> 88 | AH196: No | AK196: 173 | AL196: 59 | AM196: - | AN196: - | AO196: - | AP196: - | AQ196: - | AR196: - | AS196: - | AT196: -
A197: 214 | B197: Brustenga | C197: Marc | D197: 68 | E197: 60 | F197: 64 | G197: 58 | H197: 60 | I197: 70 | J197: 64 | K197: 60 | L197: 67 | M197: 70 | N197: 61 | O197: 71 | P197: 58 | Q197: Free Agent | R197: Free Agent | S197: - | T197: ESP | U197: EU | V197: 2 | W197: 0 | X197: 4 | Y197: 9 | Z197: 1999 | AA197: 23 | AB197: 4 | AC197: 67.32880077 | AE197: =ROUND(IF($AC197>79,44-(($AC197-79)*(14/4)),IF($AC197>76,67-(($AC197-76)*(23/3)),IF(110-(($AC197-70.4)*(43/5.6))>119,119,110-(($AC197-70.4)*(43/5.6)))))*0.93,0) -> 111 | AF197: =ROUND(IF($AC197>79,37-(($AC197-79)*(9/4)),IF($AC197>76,54-(($AC197-76)*(17/3)),IF(93-(($AC197-70.4)*(39/5.6))>100,100,93-(($AC197-70.4)*(39/5.6)))))*0.93,0) -> 93 | AG197: =ROUND(IF($AC197>79,32-(($AC197-79)*(8/4)),IF($AC197>76,48-(($AC197-76)*(16/3)),IF(86-(($AC197-70.4)*(38/5.6))>95,95,86-(($AC197-70.4)*(38/5.6)))))*0.93,0) -> 88 | AH197: No | AK197: 0 | AL197: 0 | AM197: - | AN197: - | AO197: - | AP197: - | AQ197: - | AR197: - | AS197: - | AT197: -
A198: 215 | B198: Daniels | C198: Simon | D198: 67 | E198: 60 | F198: 62 | G198: 60 | H198: 66 | I198: 67 | J198: 64 | K198: 64 | L198: 70 | M198: 68 | N198: 60 | O198: 60 | P198: 60 | Q198: Free Agent | R198: Free Agent | S198: - | T198: BEL | U198: EU | V198: 2 | W198: 50 | X198: 23 | Y198: 1 | Z198: 1997 | AA198: 25 | AB198: 4 | AC198: 66.84170583 | AE198: =ROUND(IF($AC198>79,44-(($AC198-79)*(14/4)),IF($AC198>76,67-(($AC198-76)*(23/3)),IF(110-(($AC198-70.4)*(43/5.6))>119,119,110-(($AC198-70.4)*(43/5.6)))))*0.93,0) -> 111 | AF198: =ROUND(IF($AC198>79,37-(($AC198-79)*(9/4)),IF($AC198>76,54-(($AC198-76)*(17/3)),IF(93-(($AC198-70.4)*(39/5.6))>100,100,93-(($AC198-70.4)*(39/5.6)))))*0.93,0) -> 93 | AG198: =ROUND(IF($AC198>79,32-(($AC198-79)*(8/4)),IF($AC198>76,48-(($AC198-76)*(16/3)),IF(86-(($AC198-70.4)*(38/5.6))>95,95,86-(($AC198-70.4)*(38/5.6)))))*0.93,0) -> 88 | AH198: No | AK198: 178 | AL198: 68 | AM198: - | AN198: - | AO198: - | AP198: - | AQ198: - | AR198: - | AS198: - | AT198: -
A199: 216 | B199: Couanon | C199: Jonathan | D199: 68 | E199: 62 | F199: 66 | G199: 58 | H199: 66 | I199: 68 | J199: 67 | K199: 63 | L199: 66 | M199: 69 | N199: 64 | O199: 65 | P199: 58 | Q199: Free Agent | R199: Free Agent | S199: - | T199: FRA | U199: EU | V199: 3 | W199: 90 | X199: 8 | Y199: 4 | Z199: 1997 | AA199: 25 | AB199: 4 | AC199: 67.75528062 | AE199: =ROUND(IF($AC199>79,44-(($AC199-79)*(14/4)),IF($AC199>76,67-(($AC199-76)*(23/3)),IF(110-(($AC199-70.4)*(43/5.6))>119,119,110-(($AC199-70.4)*(43/5.6)))))*0.93,0) -> 111 | AF199: =ROUND(IF($AC199>79,37-(($AC199-79)*(9/4)),IF($AC199>76,54-(($AC199-76)*(17/3)),IF(93-(($AC199-70.4)*(39/5.6))>100,100,93-(($AC199-70.4)*(39/5.6)))))*0.93,0) -> 93 | AG199: =ROUND(IF($AC199>79,32-(($AC199-79)*(8/4)),IF($AC199>76,48-(($AC199-76)*(16/3)),IF(86-(($AC199-70.4)*(38/5.6))>95,95,86-(($AC199-70.4)*(38/5.6)))))*0.93,0) -> 88 | AH199: No | AK199: 174 | AL199: 53 | AM199: - | AN199: - | AO199: - | AP199: - | AQ199: - | AR199: - | AS199: - | AT199: -
A200: 217 | B200: Ulissi | C200: Diego | D200: 74 | E200: 64 | F200: 78 | G200: 60 | H200: 80 | I200: 68 | J200: 69 | K200: 50 | L200: 72 | M200: 72 | N200: 73 | O200: 61 | P200: 60 | Q200: EA Vesuvio | R200: EA Vesuvio | S200: PT | T200: ITA | U200: EU | V200: 4 | W200: 100 | X200: 15 | Y200: 1 | Z200: 1988 | AA200: 34 | AB200: 7 | AC200: 75.00161478 | AD200: 85000 | AE200: =ROUND(IF($AC200>79,44-(($AC200-79)*(14/4)),IF($AC200>76,67-(($AC200-76)*(23/3)),IF(110-(($AC200-70.4)*(43/5.6))>119,119,110-(($AC200-70.4)*(43/5.6)))))*0.93,0) -> 69 | AF200: =ROUND(IF($AC200>79,37-(($AC200-79)*(9/4)),IF($AC200>76,54-(($AC200-76)*(17/3)),IF(93-(($AC200-70.4)*(39/5.6))>100,100,93-(($AC200-70.4)*(39/5.6)))))*0.93,0) -> 57 | AG200: =ROUND(IF($AC200>79,32-(($AC200-79)*(8/4)),IF($AC200>76,48-(($AC200-76)*(16/3)),IF(86-(($AC200-70.4)*(38/5.6))>95,95,86-(($AC200-70.4)*(38/5.6)))))*0.93,0) -> 51 | AH200: No | AK200: 0 | AL200: 0 | AM200: - | AN200: - | AO200: - | AP200: - | AQ200: - | AR200: - | AS200: - | AT200: -
... 925 more rows

Sheet OVL (hidden)
A1: ID | B1: Flat | C1: Mountain | D1: Hill | E1: TT | F1: Stamina | G1: Resistance | H1: Recovery | I1: Cobbles | J1: Sprint | K1: Acceleration | L1: Fighter | M1: Downhill | N1: Prologue | O1: Puncheur | P1: Stage Racer | Q1: Sprinter | R1: Time Trial | S1: Cobbles | T1: Climber | U1: Flat | V1: OVL
A2: =DYN_cyclist!A2 -> 1 | B2: =DYN_cyclist!D2 -> 74 | C2: =DYN_cyclist!E2 -> 69 | D2: =DYN_cyclist!F2 -> 72 | E2: =DYN_cyclist!G2 -> 72 | F2: =DYN_cyclist!H2 -> 74 | G2: =DYN_cyclist!I2 -> 76 | H2: =DYN_cyclist!J2 -> 60 | I2: =DYN_cyclist!K2 -> 63 | J2: =DYN_cyclist!L2 -> 64 | K2: =DYN_cyclist!M2 -> 70 | L2: =DYN_cyclist!N2 -> 80 | M2: =DYN_cyclist!O2 -> 66 | N2: =DYN_cyclist!P2 -> 72 | O2: =((($B2*5)^2+($C2*4)^2+($D2*12)^2+($E2*0)^2+($F2*3)^2+($G2*6)^2+($H2*0)^2+($I2*0)^2+($J2*5)^2+($K2*7)^2+($L2*1)^2+($M2*2)^2)+($N2*0)^2)/2106025*91.12 -> 68.49563985 | P2: =((($B2*2)^2+($C2*14)^2+($D2*10)^2+($E2*5)^2+($F2*2)^2+($G2*7)^2+($H2*5)^2+($I2*0)^2+($J2*0)^2+($K2*3)^2+($L2*0)^2+($M2*0)^2)+($N2*0)^2)/2958326.56*90.98 -> 62.80211548 | Q2: =((($B2*5)^2+($C2*2)^2+($D2*1)^2+($E2*0)^2+($F2*2)^2+($G2*1)^2+($H2*1)^2+($I2*0)^2+($J2*10.75)^2+($K2*9)^2+($L2*0)^2+($M2*0)^2)+($N2*1)^2)/1715576.56*IF(B2>77,92,IF(B2>75,92-0.5,IF(B2>73,92-0.88,92-1.65))) -> 56.71633583 | R2: =IF(AND(E2>75,C2<76),((($B2*2)^2+($C2*6)^2+($D2*0)^2+($E2*11)^2+($F2*0)^2+($G2*3.5)^2+($H2*0)^2+($I2*0)^2+($J2*0)^2+($K2*0)^2+($L2*0)^2+($M2*0)^2)+($N2*6)^2)/1482831.25*87.08+0.75,IF(AND(E2>75,C2<80),((($B2*2)^2+($C2*6)^2+($D2*0)^2+($E2*11)^2+($F2*0)^2+($G2*3.5)^2+($H2*0)^2+($I2*0)^2+($J2*0)^2+($K2*0)^2+($L2*0)^2+($M2*0)^2)+($N2*6)^2)/1482831.25*87.08+0.5,((($B2*2)^2+($C2*6)^2+($D2*0)^2+($E2*9)^2+($F2*0)^2+($G2*3.5)^2+($H2*0)^2+($I2*0)^2+($J2*0)^2+($K2*0)^2+($L2*0)^2+($M2*0)^2)+($N2*6)^2)/1212831.25*87.08))+IF(AND(E2>81.99,C2<74),4,IF(AND(E2>80.99,C2<74),2.5,IF(AND(E2>79.99,C2<74),1.5,0))) -> 62.50700971 | S2: =((($B2*7)^2+($C2*3)^2+($D2*4)^2+($E2*0)^2+($F2*2.5)^2+($G2*2)^2+($H2*0)^2+($I2*11)^2+($J2*1)^2+($K2*5)^2+($L2*3)^2+($M2*0)^2)+($N2*0)^2)/1680031.25*91.49-IF(I2<74,1,IF(I2<75,0.8,IF(I2<76,0.7,IF(I2<77,0.6,IF(I2<77,0.4,IF(I2<78,0.3,IF(I2<79,0.2,0))))))) -> 59.76843368 | T2: =IF(AND(C2>81,D2>75,B2>70,E2>72,F2>77,G2>77),((($B2*1)^2+($C2*14.5)^2+($D2*2)^2+($E2*0)^2+($F2*1)^2+($G2*3)^2+($H2*2.5)^2+($I2*0)^2+($J2*0)^2+($K2*3)^2+($L2*1)^2+($M2*1.25)^2)+($N2*0)^2)/1693126.56*81.55+1,IF(AND(C2>75,D2<74,(C2-D2)>7.9),((($B2*1)^2+($C2*14.5)^2+($D2*2)^2+($E2*0)^2+($F2*1)^2+($G2*3)^2+($H2*2.5)^2+($I2*0)^2+($J2*0)^2+($K2*3)^2+($L2*1)^2+($M2*1.25)^2)+($N2*0)^2)/1693126.56*81.55-1.25,((($B2*1)^2+($C2*14.5)^2+($D2*2)^2+($E2*0)^2+($F2*1)^2+($G2*3)^2+($H2*2.5)^2+($I2*0)^2+($J2*0)^2+($K2*3)^2+($L2*1)^2+($M2*1.25)^2)+($N2*0)^2)/1693126.56*81.55)) -> 56.08749158 | U2: =((($B2*13)^2+($C2*4)^2+($D2*3)^2+($E2*2)^2+($F2*2)^2+($G2*2)^2+($H2*0)^2+($I2*2)^2+($J2*0)^2+($K2*0)^2+($L2*3)^2+($M2*1)^2)+($N2*0)^2)/1569500*81.55 -> 61.92770347 | V2: =IF(AND(O2>79.99,P2>79.99),((LARGE(O2:U2,1)*9)^2+(LARGE(O2:U2,2)*4.5)^2+(LARGE(O2:U2,3)*2)^2)^(1/4)*2.81072986218,IF(AND(R2>79.99,P2>79.99),((LARGE(O2:U2,1)*9)^2+(LARGE(O2:U2,2)*4.5)^2+(LARGE(O2:U2,3)*2)^2)^(1/4)*2.80272986218,IF(AND(LARGE(O2:U2,1)=Q2,Q2>79,O2>77),((LARGE(O2:U2,1)*9)^2+(LARGE(O2:U2,2)*4.5)^2+(LARGE(O2:U2,3)*2)^2)^(1/4)*2.78572986218,IF(AND(LARGE(O2:U2,1)=O2,O2>79,T2<70),((LARGE(O2:U2,1)*9)^2+(LARGE(O2:U2,2)*4.5)^2+(LARGE(O2:U2,3)*2)^2)^(1/4)*2.78572986218,IF(AND(LARGE(O2:U2,1)=O2,O2<77,T2<70,R2<70,Q2<70,P2<70,S2<72),((LARGE(O2:U2,1)*9)^2+(LARGE(O2:U2,2)*4.5)^2+(LARGE(O2:U2,3)*2)^2)^(1/4)*2.76572986218,IF(AND(LARGE(O2:U2,1)=O2,O2<77,T2<70,S2<71,R2<70,P2<68),((LARGE(O2:U2,1)*9)^2+(LARGE(O2:U2,2)*4.5)^2+(LARGE(O2:U2,3)*2)^2)^(1/4)*2.75572986218,IF(AND(LARGE(O2:U2,1)=O2,O2<78,T2<70,R2<70,S2<71),((LARGE(O2:U2,1)*9)^2+(LARGE(O2:U2,2)*4.5)^2+(LARGE(O2:U2,3)*2)^2)^(1/4)*2.78072986218,IF(AND(LARGE(O2:U2,1)=O2,O2<79,T2<70,R2<70),((LARGE(O2:U2,1)*9)^2+(LARGE(O2:U2,2)*4.5)^2+(LARGE(O2:U2,3)*2)^2)^(1/4)*2.79572986218,IF(LARGE(O2:U2,1)=Q2,((LARGE(O2:U2,1)*9)^2+(LARGE(O2:U2,2)*3.5)^2+(LARGE(O2:U2,3)*2)^2)^(1/4)*2.80572986218,(((LARGE(O2:U2,1)*9)^2+(LARGE(O2:U2,2)*4.5)^2+(LARGE(O2:U2,3)*2)^2))^(1/4)*2.79572986218+IF(AND(LARGE(O2:U2,1)=O2,R2>70),1,0)))))))))+IF(AND(LARGE(O2:U2,1)=Q2,O2<78,J2>80),((B2+J2)^2/35000),IF(AND(LARGE(O2:U2,1)=Q2,O2<78,J2>79),((B2+J2)^2/45000),IF(AND(LARGE(O2:U2,1)=Q2,O2<78,J2>78),((B2+J2)^2/65000),0)))) -> 72.62766352
A3: =DYN_cyclist!A3 -> 2 | B3: =DYN_cyclist!D3 -> 70 | C3: =DYN_cyclist!E3 -> 53 | D3: =DYN_cyclist!F3 -> 64 | E3: =DYN_cyclist!G3 -> 65 | F3: =DYN_cyclist!H3 -> 63 | G3: =DYN_cyclist!I3 -> 65 | H3: =DYN_cyclist!J3 -> 64 | I3: =DYN_cyclist!K3 -> 68 | J3: =DYN_cyclist!L3 -> 70 | K3: =DYN_cyclist!M3 -> 65 | L3: =DYN_cyclist!N3 -> 67 | M3: =DYN_cyclist!O3 -> 70 | N3: =DYN_cyclist!P3 -> 67 | O3: =((($B3*5)^2+($C3*4)^2+($D3*12)^2+($E3*0)^2+($F3*3)^2+($G3*6)^2+($H3*0)^2+($I3*0)^2+($J3*5)^2+($K3*7)^2+($L3*1)^2+($M3*2)^2)+($N3*0)^2)/2106025*91.12 -> 56.19012944 | P3: =((($B3*2)^2+($C3*14)^2+($D3*10)^2+($E3*5)^2+($F3*2)^2+($G3*7)^2+($H3*5)^2+($I3*0)^2+($J3*0)^2+($K3*3)^2+($L3*0)^2+($M3*0)^2)+($N3*0)^2)/2958326.56*90.98 -> 44.55359746 | Q3: =((($B3*5)^2+($C3*2)^2+($D3*1)^2+($E3*0)^2+($F3*2)^2+($G3*1)^2+($H3*1)^2+($I3*0)^2+($J3*10.75)^2+($K3*9)^2+($L3*0)^2+($M3*0)^2)+($N3*1)^2)/1715576.56*IF(B3>77,92,IF(B3>75,92-0.5,IF(B3>73,92-0.88,92-1.65))) -> 56.61430944 | R3: =IF(AND(E3>75,C3<76),((($B3*2)^2+($C3*6)^2+($D3*0)^2+($E3*11)^2+($F3*0)^2+($G3*3.5)^2+($H3*0)^2+($I3*0)^2+($J3*0)^2+($K3*0)^2+($L3*0)^2+($M3*0)^2)+($N3*6)^2)/1482831.25*87.08+0.75,IF(AND(E3>75,C3<80),((($B3*2)^2+($C3*6)^2+($D3*0)^2+($E3*11)^2+($F3*0)^2+($G3*3.5)^2+($H3*0)^2+($I3*0)^2+($J3*0)^2+($K3*0)^2+($L3*0)^2+($M3*0)^2)+($N3*6)^2)/1482831.25*87.08+0.5,((($B3*2)^2+($C3*6)^2+($D3*0)^2+($E3*9)^2+($F3*0)^2+($G3*3.5)^2+($H3*0)^2+($I3*0)^2+($J3*0)^2+($K3*0)^2+($L3*0)^2+($M3*0)^2)+($N3*6)^2)/1212831.25*87.08))+IF(AND(E3>81.99,C3<74),4,IF(AND(E3>80.99,C3<74),2.5,IF(AND(E3>79.99,C3<74),1.5,0))) -> 48.55828829 | S3: =((($B3*7)^2+($C3*3)^2+($D3*4)^2+($E3*0)^2+($F3*2.5)^2+($G3*2)^2+($H3*0)^2+($I3*11)^2+($J3*1)^2+($K3*5)^2+($L3*3)^2+($M3*0)^2)+($N3*0)^2)/1680031.25*91.49-IF(I3<74,1,IF(I3<75,0.8,IF(I3<76,0.7,IF(I3<77,0.6,IF(I3<77,0.4,IF(I3<78,0.3,IF(I3<79,0.2,0))))))) -> 57.9801778 | T3: =IF(AND(C3>81,D3>75,B3>70,E3>72,F3>77,G3>77),((($B3*1)^2+($C3*14.5)^2+($D3*2)^2+($E3*0)^2+($F3*1)^2+($G3*3)^2+($H3*2.5)^2+($I3*0)^2+($J3*0)^2+($K3*3)^2+($L3*1)^2+($M3*1.25)^2)+($N3*0)^2)/1693126.56*81.55+1,IF(AND(C3>75,D3<74,(C3-D3)>7.9),((($B3*1)^2+($C3*14.5)^2+($D3*2)^2+($E3*0)^2+($F3*1)^2+($G3*3)^2+($H3*2.5)^2+($I3*0)^2+($J3*0)^2+($K3*3)^2+($L3*1)^2+($M3*1.25)^2)+($N3*0)^2)/1693126.56*81.55-1.25,((($B3*1)^2+($C3*14.5)^2+($D3*2)^2+($E3*0)^2+($F3*1)^2+($G3*3)^2+($H3*2.5)^2+($I3*0)^2+($J3*0)^2+($K3*3)^2+($L3*1)^2+($M3*1.25)^2)+($N3*0)^2)/1693126.56*81.55)) -> 35.14337568 | U3: =((($B3*13)^2+($C3*4)^2+($D3*3)^2+($E3*2)^2+($F3*2)^2+($G3*2)^2+($H3*0)^2+($I3*2)^2+($J3*0)^2+($K3*0)^2+($L3*3)^2+($M3*1)^2)+($N3*0)^2)/1569500*81.55 -> 53.17408127 | V3: =IF(AND(O3>79.99,P3>79.99),((LARGE(O3:U3,1)*9)^2+(LARGE(O3:U3,2)*4.5)^2+(LARGE(O3:U3,3)*2)^2)^(1/4)*2.81072986218,IF(AND(R3>79.99,P3>79.99),((LARGE(O3:U3,1)*9)^2+(LARGE(O3:U3,2)*4.5)^2+(LARGE(O3:U3,3)*2)^2)^(1/4)*2.80272986218,IF(AND(LARGE(O3:U3,1)=Q3,Q3>79,O3>77),((LARGE(O3:U3,1)*9)^2+(LARGE(O3:U3,2)*4.5)^2+(LARGE(O3:U3,3)*2)^2)^(1/4)*2.78572986218,IF(AND(LARGE(O3:U3,1)=O3,O3>79,T3<70),((LARGE(O3:U3,1)*9)^2+(LARGE(O3:U3,2)*4.5)^2+(LARGE(O3:U3,3)*2)^2)^(1/4)*2.78572986218,IF(AND(LARGE(O3:U3,1)=O3,O3<77,T3<70,R3<70,Q3<70,P3<70,S3<72),((LARGE(O3:U3,1)*9)^2+(LARGE(O3:U3,2)*4.5)^2+(LARGE(O3:U3,3)*2)^2)^(1/4)*2.76572986218,IF(AND(LARGE(O3:U3,1)=O3,O3<77,T3<70,S3<71,R3<70,P3<68),((LARGE(O3:U3,1)*9)^2+(LARGE(O3:U3,2)*4.5)^2+(LARGE(O3:U3,3)*2)^2)^(1/4)*2.75572986218,IF(AND(LARGE(O3:U3,1)=O3,O3<78,T3<70,R3<70,S3<71),((LARGE(O3:U3,1)*9)^2+(LARGE(O3:U3,2)*4.5)^2+(LARGE(O3:U3,3)*2)^2)^(1/4)*2.78072986218,IF(AND(LARGE(O3:U3,1)=O3,O3<79,T3<70,R3<70),((LARGE(O3:U3,1)*9)^2+(LARGE(O3:U3,2)*4.5)^2+(LARGE(O3:U3,3)*2)^2)^(1/4)*2.79572986218,IF(LARGE(O3:U3,1)=Q3,((LARGE(O3:U3,1)*9)^2+(LARGE(O3:U3,2)*3.5)^2+(LARGE(O3:U3,3)*2)^2)^(1/4)*2.80572986218,(((LARGE(O3:U3,1)*9)^2+(LARGE(O3:U3,2)*4.5)^2+(LARGE(O3:U3,3)*2)^2))^(1/4)*2.79572986218+IF(AND(LARGE(O3:U3,1)=O3,R3>70),1,0)))))))))+IF(AND(LARGE(O3:U3,1)=Q3,O3<78,J3>80),((B3+J3)^2/35000),IF(AND(LARGE(O3:U3,1)=Q3,O3<78,J3>79),((B3+J3)^2/45000),IF(AND(LARGE(O3:U3,1)=Q3,O3<78,J3>78),((B3+J3)^2/65000),0)))) -> 67.99235579
A4: =DYN_cyclist!A4 -> 3 | B4: =DYN_cyclist!D4 -> 70 | C4: =DYN_cyclist!E4 -> 59 | D4: =DYN_cyclist!F4 -> 62 | E4: =DYN_cyclist!G4 -> 74 | F4: =DYN_cyclist!H4 -> 72 | G4: =DYN_cyclist!I4 -> 67 | H4: =DYN_cyclist!J4 -> 68 | I4: =DYN_cyclist!K4 -> 56 | J4: =DYN_cyclist!L4 -> 64 | K4: =DYN_cyclist!M4 -> 67 | L4: =DYN_cyclist!N4 -> 62 | M4: =DYN_cyclist!O4 -> 65 | N4: =DYN_cyclist!P4 -> 74 | O4: 55.51491489 | P4: 49.81739965 | Q4: 53.32523959 | R4: 60.3540646 | S4: 48.75558424 | T4: 42.26449032 | U4: 53.53634097 | V4: 68.90165789
A5: =DYN_cyclist!A5 -> 4 | B5: =DYN_cyclist!D5 -> 74 | C5: =DYN_cyclist!E5 -> 63 | D5: =DYN_cyclist!F5 -> 69 | E5: =DYN_cyclist!G5 -> 58 | F5: =DYN_cyclist!H5 -> 74 | G5: =DYN_cyclist!I5 -> 79 | H5: =DYN_cyclist!J5 -> 70 | I5: =DYN_cyclist!K5 -> 70 | J5: =DYN_cyclist!L5 -> 68 | K5: =DYN_cyclist!M5 -> 71 | L5: =DYN_cyclist!N5 -> 67 | M5: =DYN_cyclist!O5 -> 72 | N5: =DYN_cyclist!P5 -> 63 | O5: 66.96686689 | P5: 57.0671947 | Q5: 60.40224224 | R5: 47.14377735 | S5: 64.53176103 | T5: 48.60990834 | U5: 60.13272017 | V5: 72.11248925
A6: =DYN_cyclist!A6 -> 5 | B6: =DYN_cyclist!D6 -> 64 | C6: =DYN_cyclist!E6 -> 71 | D6: =DYN_cyclist!F6 -> 68 | E6: =DYN_cyclist!G6 -> 69 | F6: =DYN_cyclist!H6 -> 68 | G6: =DYN_cyclist!I6 -> 65 | H6: =DYN_cyclist!J6 -> 63 | I6: =DYN_cyclist!K6 -> 53 | J6: =DYN_cyclist!L6 -> 56 | K6: =DYN_cyclist!M6 -> 60 | L6: =DYN_cyclist!N6 -> 62 | M6: =DYN_cyclist!O6 -> 63 | N6: =DYN_cyclist!P6 -> 69 | O6: 56.98817714 | P6: 59.7544989 | Q6: 42.79744592 | R6: 57.91684953 | S6: 44.38897846 | T6: 57.43056074 | U6: 47.73686037 | V6: 68.96752331
A7: =DYN_cyclist!A7 -> 6 | B7: =DYN_cyclist!D7 -> 70 | C7: =DYN_cyclist!E7 -> 60 | D7: =DYN_cyclist!F7 -> 67 | E7: =DYN_cyclist!G7 -> 68 | F7: =DYN_cyclist!H7 -> 64 | G7: =DYN_cyclist!I7 -> 65 | H7: =DYN_cyclist!J7 -> 66 | I7: =DYN_cyclist!K7 -> 61 | J7: =DYN_cyclist!L7 -> 69 | K7: =DYN_cyclist!M7 -> 70 | L7: =DYN_cyclist!N7 -> 67 | M7: =DYN_cyclist!O7 -> 67 | N7: =DYN_cyclist!P7 -> 71 | O7: 60.44524448 | P7: 51.23930497 | Q7: 58.90462647 | R7: 54.35009351 | S7: 53.71474012 | T7: 43.57541816 | U7: 53.91574721 | V7: 68.57866989
A8: =DYN_cyclist!A8 -> 7 | B8: =DYN_cyclist!D8 -> 66 | C8: =DYN_cyclist!E8 -> 67 | D8: =DYN_cyclist!F8 -> 69 | E8: =DYN_cyclist!G8 -> 61 | F8: =DYN_cyclist!H8 -> 66 | G8: =DYN_cyclist!I8 -> 68 | H8: =DYN_cyclist!J8 -> 67 | I8: =DYN_cyclist!K8 -> 60 | J8: =DYN_cyclist!L8 -> 62 | K8: =DYN_cyclist!M8 -> 63 | L8: =DYN_cyclist!N8 -> 76 | M8: =DYN_cyclist!O8 -> 62 | N8: =DYN_cyclist!P8 -> 61 | O8: 59.8680282 | P8: 57.15112202 | Q8: 48.85087593 | R8: 48.17917193 | S8: 51.62728211 | T8: 52.43970233 | U8: 50.49755779 | V8: 68.09453375
A9: =DYN_cyclist!A9 -> 8 | B9: =DYN_cyclist!D9 -> 70 | C9: =DYN_cyclist!E9 -> 75 | D9: =DYN_cyclist!F9 -> 72 | E9: =DYN_cyclist!G9 -> 74 | F9: =DYN_cyclist!H9 -> 73 | G9: =DYN_cyclist!I9 -> 69 | H9: =DYN_cyclist!J9 -> 70 | I9: =DYN_cyclist!K9 -> 53 | J9: =DYN_cyclist!L9 -> 60 | K9: =DYN_cyclist!M9 -> 70 | L9: =DYN_cyclist!N9 -> 68 | M9: =DYN_cyclist!O9 -> 63 | N9: =DYN_cyclist!P9 -> 72 | O9: 66.15220492 | P9: 67.61561945 | Q9: 52.62606555 | R9: 65.3802777 | S9: 49.84267488 | T9: 64.6388757 | U9: 56.31553587 | V9: 73.43535786
A10: =DYN_cyclist!A10 -> 9 | B10: =DYN_cyclist!D10 -> 68 | C10: =DYN_cyclist!E10 -> 50 | D10: =DYN_cyclist!F10 -> 59 | E10: =DYN_cyclist!G10 -> 55 | F10: =DYN_cyclist!H10 -> 65 | G10: =DYN_cyclist!I10 -> 60 | H10: =DYN_cyclist!J10 -> 67 | I10: =DYN_cyclist!K10 -> 59 | J10: =DYN_cyclist!L10 -> 74 | K10: =DYN_cyclist!M10 -> 72 | L10: =DYN_cyclist!N10 -> 53 | M10: =DYN_cyclist!O10 -> 58 | N10: =DYN_cyclist!P10 -> 68 | O10: 53.28985667 | P10: 39.50033628 | Q10: 63.79874932 | R10: 40.50070593 | S10: 49.48935579 | T10: 31.96133314 | U10: 48.77692813 | V10: 69.39755743
A11: =DYN_cyclist!A11 -> 10 | B11: =DYN_cyclist!D11 -> 75 | C11: =DYN_cyclist!E11 -> 62 | D11: =DYN_cyclist!F11 -> 68 | E11: =DYN_cyclist!G11 -> 62 | F11: =DYN_cyclist!H11 -> 69 | G11: =DYN_cyclist!I11 -> 70 | H11: =DYN_cyclist!J11 -> 77 | I11: =DYN_cyclist!K11 -> 72 | J11: =DYN_cyclist!L11 -> 77 | K11: =DYN_cyclist!M11 -> 78 | L11: =DYN_cyclist!N11 -> 56 | M11: =DYN_cyclist!O11 -> 60 | N11: =DYN_cyclist!P11 -> 62 | O11: 67.11090054 | P11: 55.2508402 | Q11: 72.88828871 | R11: 48.15246273 | S11: 66.91253978 | T11: 47.28661405 | U11: 60.28958506 | V11: 74.73541042
A12: =DYN_cyclist!A12 -> 11 | B12: =DYN_cyclist!D12 -> 75 | C12: =DYN_cyclist!E12 -> 61 | D12: =DYN_cyclist!F12 -> 69 | E12: =DYN_cyclist!G12 -> 62 | F12: =DYN_cyclist!H12 -> 74 | G12: =DYN_cyclist!I12 -> 73 | H12: =DYN_cyclist!J12 -> 68 | I12: =DYN_cyclist!K12 -> 73 | J12: =DYN_cyclist!L12 -> 75 | K12: =DYN_cyclist!M12 -> 73 | L12: =DYN_cyclist!N12 -> 66 | M12: =DYN_cyclist!O12 -> 68 | N12: =DYN_cyclist!P12 -> 63 | O12: 67.12647643 | P12: 54.45286945 | Q12: 67.86737852 | R12: 48.53495364 | S12: 67.817389 | T12: 45.70351598 | U12: 61.14301529 | V12: 72.56573838
A13: =DYN_cyclist!A13 -> 12 | B13: =DYN_cyclist!D13 -> 65 | C13: =DYN_cyclist!E13 -> 74 | D13: =DYN_cyclist!F13 -> 67 | E13: =DYN_cyclist!G13 -> 70 | F13: =DYN_cyclist!H13 -> 70 | G13: =DYN_cyclist!I13 -> 66 | H13: =DYN_cyclist!J13 -> 67 | I13: =DYN_cyclist!K13 -> 50 | J13: =DYN_cyclist!L13 -> 55 | K13: =DYN_cyclist!M13 -> 61 | L13: =DYN_cyclist!N13 -> 61 | M13: =DYN_cyclist!O13 -> 58 | N13: =DYN_cyclist!P13 -> 70 | O13: 56.92570054 | P13: 62.74878826 | Q13: 42.99217624 | R13: 60.36115474 | S13: 43.01354992 | T13: 62.04351999 | U13: 49.12843227 | V13: 70.80691012
A14: =DYN_cyclist!A14 -> 13 | B14: =DYN_cyclist!D14 -> 73 | C14: =DYN_cyclist!E14 -> 67 | D14: =DYN_cyclist!F14 -> 74 | E14: =DYN_cyclist!G14 -> 62 | F14: =DYN_cyclist!H14 -> 76 | G14: =DYN_cyclist!I14 -> 73 | H14: =DYN_cyclist!J14 -> 70 | I14: =DYN_cyclist!K14 -> 73 | J14: =DYN_cyclist!L14 -> 71 | K14: =DYN_cyclist!M14 -> 73 | L14: =DYN_cyclist!N14 -> 72 | M14: =DYN_cyclist!O14 -> 68 | N14: =DYN_cyclist!P14 -> 64 | O14: 71.31362004 | P14: 61.4937842 | Q14: 63.63376786 | R14: 50.76330559 | S14: 68.50306112 | T14: 53.74177979 | U14: 59.96619086 | V14: 74.38208558
A15: =DYN_cyclist!A15 -> 14 | B15: =DYN_cyclist!D15 -> 69 | C15: =DYN_cyclist!E15 -> 60 | D15: =DYN_cyclist!F15 -> 64 | E15: =DYN_cyclist!G15 -> 56 | F15: =DYN_cyclist!H15 -> 68 | G15: =DYN_cyclist!I15 -> 70 | H15: =DYN_cyclist!J15 -> 64 | I15: =DYN_cyclist!K15 -> 55 | J15: =DYN_cyclist!L15 -> 71 | K15: =DYN_cyclist!M15 -> 73 | L15: =DYN_cyclist!N15 -> 61 | M15: =DYN_cyclist!O15 -> 63 | N15: =DYN_cyclist!P15 -> 59 | O15: 60.1924825 | P15: 49.87051158 | Q15: 62.28597771 | R15: 42.21784942 | S15: 48.96486372 | T15: 43.84261533 | U15: 51.92134441 | V15: 69.17082027
A16: =DYN_cyclist!A16 -> 15 | B16: =DYN_cyclist!D16 -> 66 | C16: =DYN_cyclist!E16 -> 64 | D16: =DYN_cyclist!F16 -> 70 | E16: =DYN_cyclist!G16 -> 64 | F16: =DYN_cyclist!H16 -> 68 | G16: =DYN_cyclist!I16 -> 66 | H16: =DYN_cyclist!J16 -> 63 | I16: =DYN_cyclist!K16 -> 55 | J16: =DYN_cyclist!L16 -> 58 | K16: =DYN_cyclist!M16 -> 68 | L16: =DYN_cyclist!N16 -> 72 | M16: =DYN_cyclist!O16 -> 62 | N16: =DYN_cyclist!P16 -> 64 | O16: 60.99273678 | P16: 54.9086111 | Q16: 48.68292881 | R16: 50.07782314 | S16: 48.37519985 | T16: 48.48228225 | U16: 49.91743307 | V16: 68.32285958
A17: =DYN_cyclist!A17 -> 16 | B17: =DYN_cyclist!D17 -> 69 | C17: =DYN_cyclist!E17 -> 75 | D17: =DYN_cyclist!F17 -> 75 | E17: =DYN_cyclist!G17 -> 63 | F17: =DYN_cyclist!H17 -> 70 | G17: =DYN_cyclist!I17 -> 75 | H17: =DYN_cyclist!J17 -> 72 | I17: =DYN_cyclist!K17 -> 70 | J17: =DYN_cyclist!L17 -> 69 | K17: =DYN_cyclist!M17 -> 74 | L17: =DYN_cyclist!N17 -> 75 | M17: =DYN_cyclist!O17 -> 72 | N17: =DYN_cyclist!P17 -> 61 | O17: 72.65868411 | P17: 69.42311684 | Q17: 61.88233057 | R17: 53.55448944 | S17: 65.01452518 | T17: 65.54584994 | U17: 56.04420481 | V17: 75.05685251
A18: =DYN_cyclist!A18 -> 17 | B18: =DYN_cyclist!D18 -> 77 | C18: =DYN_cyclist!E18 -> 62 | D18: =DYN_cyclist!F18 -> 66 | E18: =DYN_cyclist!G18 -> 60 | F18: =DYN_cyclist!H18 -> 74 | G18: =DYN_cyclist!I18 -> 74 | H18: =DYN_cyclist!J18 -> 65 | I18: =DYN_cyclist!K18 -> 65 | J18: =DYN_cyclist!L18 -> 62 | K18: =DYN_cyclist!M18 -> 71 | L18: =DYN_cyclist!N18 -> 85 | M18: =DYN_cyclist!O18 -> 72 | N18: =DYN_cyclist!P18 -> 66 | O18: 62.93016035 | P18: 53.63358627 | Q18: 56.34619091 | R18: 48.65074738 | S18: 62.01044156 | T18: 46.88481887 | U18: 64.84646085 | V18: 71.84772235
A19: =DYN_cyclist!A19 -> 18 | B19: =DYN_cyclist!D19 -> 63 | C19: =DYN_cyclist!E19 -> 64 | D19: =DYN_cyclist!F19 -> 63 | E19: =DYN_cyclist!G19 -> 62 | F19: =DYN_cyclist!H19 -> 61 | G19: =DYN_cyclist!I19 -> 64 | H19: =DYN_cyclist!J19 -> 65 | I19: =DYN_cyclist!K19 -> 55 | J19: =DYN_cyclist!L19 -> 53 | K19: =DYN_cyclist!M19 -> 60 | L19: =DYN_cyclist!N19 -> 57 | M19: =DYN_cyclist!O19 -> 59 | N19: =DYN_cyclist!P19 -> 60 | O19: 51.09928173 | P19: 51.21457886 | Q19: 40.16185378 | R19: 46.99039686 | S19: 43.79464488 | T19: 47.64072857 | U19: 44.86595744 | V19: 63.98760313
A20: =DYN_cyclist!A20 -> 19 | B20: =DYN_cyclist!D20 -> 72 | C20: =DYN_cyclist!E20 -> 68 | D20: =DYN_cyclist!F20 -> 67 | E20: =DYN_cyclist!G20 -> 66 | F20: =DYN_cyclist!H20 -> 75 | G20: =DYN_cyclist!I20 -> 71 | H20: =DYN_cyclist!J20 -> 73 | I20: =DYN_cyclist!K20 -> 78 | J20: =DYN_cyclist!L20 -> 73 | K20: =DYN_cyclist!M20 -> 75 | L20: =DYN_cyclist!N20 -> 66 | M20: =DYN_cyclist!O20 -> 67 | N20: =DYN_cyclist!P20 -> 66 | O20: 65.473356 | P20: 59.60712634 | Q20: 66.42409163 | R20: 54.46698219 | S20: 72.995989 | T20: 54.98704925 | U20: 58.12148257 | V20: 75.71987942
A21: =DYN_cyclist!A21 -> 20 | B21: =DYN_cyclist!D21 -> 71 | C21: =DYN_cyclist!E21 -> 73 | D21: =DYN_cyclist!F21 -> 74 | E21: =DYN_cyclist!G21 -> 67 | F21: =DYN_cyclist!H21 -> 69 | G21: =DYN_cyclist!I21 -> 76 | H21: =DYN_cyclist!J21 -> 71 | I21: =DYN_cyclist!K21 -> 69 | J21: =DYN_cyclist!L21 -> 69 | K21: =DYN_cyclist!M21 -> 75 | L21: =DYN_cyclist!N21 -> 74 | M21: =DYN_cyclist!O21 -> 73 | N21: =DYN_cyclist!P21 -> 65 | O21: 72.34392146 | P21: 67.75665672 | Q21: 62.81407109 | R21: 57.32951624 | S21: 64.68627006 | T21: 62.617148 | U21: 58.2066957 | V21: 74.75146169
A22: =DYN_cyclist!A22 -> 21 | B22: =DYN_cyclist!D22 -> 73 | C22: =DYN_cyclist!E22 -> 65 | D22: =DYN_cyclist!F22 -> 69 | E22: =DYN_cyclist!G22 -> 69 | F22: =DYN_cyclist!H22 -> 70 | G22: =DYN_cyclist!I22 -> 70 | H22: =DYN_cyclist!J22 -> 68 | I22: =DYN_cyclist!K22 -> 70 | J22: =DYN_cyclist!L22 -> 68 | K22: =DYN_cyclist!M22 -> 69 | L22: =DYN_cyclist!N22 -> 70 | M22: =DYN_cyclist!O22 -> 65 | N22: =DYN_cyclist!P22 -> 73 | O22: 63.93026187 | P22: 57.28493213 | Q22: 58.4229009 | R22: 58.22362846 | S22: 63.59705558 | T22: 50.32938956 | U22: 59.08901526 | V22: 70.69634425
A23: =DYN_cyclist!A23 -> 22 | B23: =DYN_cyclist!D23 -> 65 | C23: =DYN_cyclist!E23 -> 52 | D23: =DYN_cyclist!F23 -> 56 | E23: =DYN_cyclist!G23 -> 62 | F23: =DYN_cyclist!H23 -> 59 | G23: =DYN_cyclist!I23 -> 63 | H23: =DYN_cyclist!J23 -> 62 | I23: =DYN_cyclist!K23 -> 58 | J23: =DYN_cyclist!L23 -> 67 | K23: =DYN_cyclist!M23 -> 68 | L23: =DYN_cyclist!N23 -> 59 | M23: =DYN_cyclist!O23 -> 61 | N23: =DYN_cyclist!P23 -> 62 | O23: 48.97109685 | P23: 40.06322443 | Q23: 54.69009634 | R23: 43.98491112 | S23: 46.79344614 | T23: 33.68794282 | U23: 45.68228879 | V23: 64.56442713
A24: =DYN_cyclist!A24 -> 23 | B24: =DYN_cyclist!D24 -> 75 | C24: =DYN_cyclist!E24 -> 62 | D24: =DYN_cyclist!F24 -> 69 | E24: =DYN_cyclist!G24 -> 65 | F24: =DYN_cyclist!H24 -> 73 | G24: =DYN_cyclist!I24 -> 71 | H24: =DYN_cyclist!J24 -> 67 | I24: =DYN_cyclist!K24 -> 68 | J24: =DYN_cyclist!L24 -> 71 | K24: =DYN_cyclist!M24 -> 73 | L24: =DYN_cyclist!N24 -> 75 | M24: =DYN_cyclist!O24 -> 69 | N24: =DYN_cyclist!P24 -> 65 | O24: 66.15272411 | P24: 54.93133821 | Q24: 64.26887011 | R24: 51.47705887 | S24: 63.70957802 | T24: 46.8479754 | U24: 61.68806754 | V24: 71.80540117
A25: =DYN_cyclist!A25 -> 24 | B25: =DYN_cyclist!D25 -> 72 | C25: =DYN_cyclist!E25 -> 59 | D25: =DYN_cyclist!F25 -> 64 | E25: =DYN_cyclist!G25 -> 62 | F25: =DYN_cyclist!H25 -> 69 | G25: =DYN_cyclist!I25 -> 71 | H25: =DYN_cyclist!J25 -> 63 | I25: =DYN_cyclist!K25 -> 53 | J25: =DYN_cyclist!L25 -> 72 | K25: =DYN_cyclist!M25 -> 72 | L25: =DYN_cyclist!N25 -> 71 | M25: =DYN_cyclist!O25 -> 74 | N25: =DYN_cyclist!P25 -> 66 | O25: 61.00580322 | P25: 49.84114164 | Q25: 63.1452749 | R25: 48.53495364 | S25: 49.14665587 | T25: 42.80153074 | U25: 56.39243552 | V25: 69.72013338
A26: =DYN_cyclist!A26 -> 25 | B26: =DYN_cyclist!D26 -> 74 | C26: =DYN_cyclist!E26 -> 62 | D26: =DYN_cyclist!F26 -> 65 | E26: =DYN_cyclist!G26 -> 56 | F26: =DYN_cyclist!H26 -> 74 | G26: =DYN_cyclist!I26 -> 73 | H26: =DYN_cyclist!J26 -> 78 | I26: =DYN_cyclist!K26 -> 62 | J26: =DYN_cyclist!L26 -> 78 | K26: =DYN_cyclist!M26 -> 77 | L26: =DYN_cyclist!N26 -> 57 | M26: =DYN_cyclist!O26 -> 64 | N26: =DYN_cyclist!P26 -> 59 | O26: 65.34022546 | P26: 54.27179064 | Q26: 73.11742962 | R26: 43.43119768 | S26: 57.5271882 | T26: 47.44521045 | U26: 58.68534406 | V26: 74.5754418
A27: =DYN_cyclist!A27 -> 26 | B27: =DYN_cyclist!D27 -> 68 | C27: =DYN_cyclist!E27 -> 65 | D27: =DYN_cyclist!F27 -> 67 | E27: =DYN_cyclist!G27 -> 59 | F27: =DYN_cyclist!H27 -> 70 | G27: =DYN_cyclist!I27 -> 69 | H27: =DYN_cyclist!J27 -> 59 | I27: =DYN_cyclist!K27 -> 67 | J27: =DYN_cyclist!L27 -> 69 | K27: =DYN_cyclist!M27 -> 69 | L27: =DYN_cyclist!N27 -> 72 | M27: =DYN_cyclist!O27 -> 69 | N27: =DYN_cyclist!P27 -> 64 | O27: 61.50976958 | P27: 54.28932035 | Q27: 58.18170073 | R27: 47.26777412 | S27: 58.88698749 | T27: 49.89271063 | U27: 52.5514539 | V27: 69.12533973
A28: =DYN_cyclist!A28 -> 27 | B28: =DYN_cyclist!D28 -> 72 | C28: =DYN_cyclist!E28 -> 67 | D28: =DYN_cyclist!F28 -> 69 | E28: =DYN_cyclist!G28 -> 70 | F28: =DYN_cyclist!H28 -> 74 | G28: =DYN_cyclist!I28 -> 71 | H28: =DYN_cyclist!J28 -> 73 | I28: =DYN_cyclist!K28 -> 62 | J28: =DYN_cyclist!L28 -> 68 | K28: =DYN_cyclist!M28 -> 73 | L28: =DYN_cyclist!N28 -> 73 | M28: =DYN_cyclist!O28 -> 65 | N28: =DYN_cyclist!P28 -> 70 | O28: 65.62284121 | P28: 59.94787926 | Q28: 60.85389471 | R28: 58.68789836 | S28: 57.59150229 | T28: 53.56384802 | U28: 58.19427745 | V28: 71.15784925
A29: =DYN_cyclist!A29 -> 28 | B29: =DYN_cyclist!D29 -> 73 | C29: =DYN_cyclist!E29 -> 62 | D29: =DYN_cyclist!F29 -> 66 | E29: =DYN_cyclist!G29 -> 60 | F29: =DYN_cyclist!H29 -> 71 | G29: =DYN_cyclist!I29 -> 70 | H29: =DYN_cyclist!J29 -> 67 | I29: =DYN_cyclist!K29 -> 60 | J29: =DYN_cyclist!L29 -> 74 | K29: =DYN_cyclist!M29 -> 74 | L29: =DYN_cyclist!N29 -> 64 | M29: =DYN_cyclist!O29 -> 65 | N29: =DYN_cyclist!P29 -> 68 | O29: 63.6007454 | P29: 52.96164489 | Q29: 66.54214901 | R29: 48.66453278 | S29: 55.16506109 | T29: 46.63043669 | U29: 57.72472195 | V29: 71.49155929
A30: =DYN_cyclist!A30 -> 30 | B30: =DYN_cyclist!D30 -> 72 | C30: =DYN_cyclist!E30 -> 70 | D30: =DYN_cyclist!F30 -> 74 | E30: =DYN_cyclist!G30 -> 74 | F30: =DYN_cyclist!H30 -> 69 | G30: =DYN_cyclist!I30 -> 72 | H30: =DYN_cyclist!J30 -> 67 | I30: =DYN_cyclist!K30 -> 61 | J30: =DYN_cyclist!L30 -> 67 | K30: =DYN_cyclist!M30 -> 72 | L30: =DYN_cyclist!N30 -> 64 | M30: =DYN_cyclist!O30 -> 65 | N30: =DYN_cyclist!P30 -> 72 | O30: 69.7996009 | P30: 64.50861715 | Q30: 59.36559893 | R30: 63.95993309 | S30: 56.5841644 | T30: 57.51613849 | U30: 58.26899481 | V30: 73.36999093
A31: =DYN_cyclist!A31 -> 31 | B31: =DYN_cyclist!D31 -> 71 | C31: =DYN_cyclist!E31 -> 57 | D31: =DYN_cyclist!F31 -> 63 | E31: =DYN_cyclist!G31 -> 72 | F31: =DYN_cyclist!H31 -> 67 | G31: =DYN_cyclist!I31 -> 67 | H31: =DYN_cyclist!J31 -> 68 | I31: =DYN_cyclist!K31 -> 50 | J31: =DYN_cyclist!L31 -> 61 | K31: =DYN_cyclist!M31 -> 59 | L31: =DYN_cyclist!N31 -> 72 | M31: =DYN_cyclist!O31 -> 61 | N31: =DYN_cyclist!P31 -> 71 | O31: 53.44310606 | P31: 48.23172994 | Q31: 46.71705808 | R31: 56.97233445 | S31: 43.9636804 | T31: 39.50213638 | U31: 54.90318028 | V31: 67.27894658
A32: =DYN_cyclist!A32 -> 33 | B32: =DYN_cyclist!D32 -> 71 | C32: =DYN_cyclist!E32 -> 67 | D32: =DYN_cyclist!F32 -> 67 | E32: =DYN_cyclist!G32 -> 68 | F32: =DYN_cyclist!H32 -> 67 | G32: =DYN_cyclist!I32 -> 67 | H32: =DYN_cyclist!J32 -> 64 | I32: =DYN_cyclist!K32 -> 50 | J32: =DYN_cyclist!L32 -> 64 | K32: =DYN_cyclist!M32 -> 63 | L32: =DYN_cyclist!N32 -> 67 | M32: =DYN_cyclist!O32 -> 68 | N32: =DYN_cyclist!P32 -> 71 | O32: 59.10770875 | P32: 56.60391836 | Q32: 51.34184146 | R32: 56.92063922 | S32: 45.36867927 | T32: 52.24658344 | U32: 55.782746 | V32: 67.81281691
A33: =DYN_cyclist!A33 -> 34 | B33: =DYN_cyclist!D33 -> 66 | C33: =DYN_cyclist!E33 -> 66 | D33: =DYN_cyclist!F33 -> 64 | E33: =DYN_cyclist!G33 -> 67 | F33: =DYN_cyclist!H33 -> 68 | G33: =DYN_cyclist!I33 -> 66 | H33: =DYN_cyclist!J33 -> 66 | I33: =DYN_cyclist!K33 -> 50 | J33: =DYN_cyclist!L33 -> 50 | K33: =DYN_cyclist!M33 -> 62 | L33: =DYN_cyclist!N33 -> 51 | M33: =DYN_cyclist!O33 -> 53 | N33: =DYN_cyclist!P33 -> 66 | O33: 53.28444838 | P33: 54.38702541 | Q33: 40.14374706 | R33: 53.70747503 | S33: 41.96775154 | T33: 50.53641619 | U33: 48.46849818 | V33: 65.93436931
A34: =DYN_cyclist!A34 -> 35 | B34: =DYN_cyclist!D34 -> 71 | C34: =DYN_cyclist!E34 -> 70 | D34: =DYN_cyclist!F34 -> 76 | E34: =DYN_cyclist!G34 -> 68 | F34: =DYN_cyclist!H34 -> 75 | G34: =DYN_cyclist!I34 -> 67 | H34: =DYN_cyclist!J34 -> 66 | I34: =DYN_cyclist!K34 -> 61 | J34: =DYN_cyclist!L34 -> 75 | K34: =DYN_cyclist!M34 -> 79 | L34: =DYN_cyclist!N34 -> 74 | M34: =DYN_cyclist!O34 -> 66 | N34: =DYN_cyclist!P34 -> 71 | O34: 74.31998188 | P34: 64.00785183 | Q34: 70.74671567 | R34: 57.98297635 | S34: 58.7839134 | T34: 57.8018763 | U34: 57.66377378 | V34: 75.55721469
A35: =DYN_cyclist!A35 -> 36 | B35: =DYN_cyclist!D35 -> 73 | C35: =DYN_cyclist!E35 -> 73 | D35: =DYN_cyclist!F35 -> 76 | E35: =DYN_cyclist!G35 -> 70 | F35: =DYN_cyclist!H35 -> 71 | G35: =DYN_cyclist!I35 -> 75 | H35: =DYN_cyclist!J35 -> 72 | I35: =DYN_cyclist!K35 -> 73 | J35: =DYN_cyclist!L35 -> 71 | K35: =DYN_cyclist!M35 -> 76 | L35: =DYN_cyclist!N35 -> 70 | M35: =DYN_cyclist!O35 -> 72 | N35: =DYN_cyclist!P35 -> 71 | O35: 74.97135667 | P35: 68.98933346 | Q35: 65.65882363 | R35: 61.77884279 | S35: 69.45983539 | T35: 62.70669638 | U35: 60.82933746 | V35: 76.06091703
A36: =DYN_cyclist!A36 -> 38 | B36: =DYN_cyclist!D36 -> 67 | C36: =DYN_cyclist!E36 -> 59 | D36: =DYN_cyclist!F36 -> 63 | E36: =DYN_cyclist!G36 -> 60 | F36: =DYN_cyclist!H36 -> 63 | G36: =DYN_cyclist!I36 -> 66 | H36: =DYN_cyclist!J36 -> 61 | I36: =DYN_cyclist!K36 -> 62 | J36: =DYN_cyclist!L36 -> 71 | K36: =DYN_cyclist!M36 -> 72 | L36: =DYN_cyclist!N36 -> 60 | M36: =DYN_cyclist!O36 -> 63 | N36: =DYN_cyclist!P36 -> 63 | O36: 57.60961162 | P36: 47.85711701 | Q36: 61.11687824 | R36: 45.31353258 | S36: 52.86859589 | T36: 42.15102485 | U36: 49.33543781 | V36: 68.45691357
A37: =DYN_cyclist!A37 -> 39 | B37: =DYN_cyclist!D37 -> 62 | C37: =DYN_cyclist!E37 -> 66 | D37: =DYN_cyclist!F37 -> 65 | E37: =DYN_cyclist!G37 -> 60 | F37: =DYN_cyclist!H37 -> 65 | G37: =DYN_cyclist!I37 -> 65 | H37: =DYN_cyclist!J37 -> 62 | I37: =DYN_cyclist!K37 -> 60 | J37: =DYN_cyclist!L37 -> 60 | K37: =DYN_cyclist!M37 -> 64 | L37: =DYN_cyclist!N37 -> 62 | M37: =DYN_cyclist!O37 -> 62 | N37: =DYN_cyclist!P37 -> 60 | O37: 55.13192123 | P37: 53.46686952 | Q37: 47.08833959 | R37: 46.32096148 | S37: 48.81005517 | T37: 50.55347575 | U37: 44.60164087 | V37: 65.48629628
A38: =DYN_cyclist!A38 -> 40 | B38: =DYN_cyclist!D38 -> 63 | C38: =DYN_cyclist!E38 -> 64 | D38: =DYN_cyclist!F38 -> 65 | E38: =DYN_cyclist!G38 -> 61 | F38: =DYN_cyclist!H38 -> 65 | G38: =DYN_cyclist!I38 -> 65 | H38: =DYN_cyclist!J38 -> 63 | I38: =DYN_cyclist!K38 -> 50 | J38: =DYN_cyclist!L38 -> 57 | K38: =DYN_cyclist!M38 -> 61 | L38: =DYN_cyclist!N38 -> 64 | M38: =DYN_cyclist!O38 -> 59 | N38: =DYN_cyclist!P38 -> 64 | O38: 53.86053974 | P38: 52.00037107 | Q38: 43.49496432 | R38: 47.67056618 | S38: 41.36176409 | T38: 47.7864287 | U38: 45.37863909 | V38: 64.66656696
A39: =DYN_cyclist!A39 -> 41 | B39: =DYN_cyclist!D39 -> 67 | C39: =DYN_cyclist!E39 -> 77 | D39: =DYN_cyclist!F39 -> 71 | E39: =DYN_cyclist!G39 -> 74 | F39: =DYN_cyclist!H39 -> 76 | G39: =DYN_cyclist!I39 -> 74 | H39: =DYN_cyclist!J39 -> 75 | I39: =DYN_cyclist!K39 -> 59 | J39: =DYN_cyclist!L39 -> 60 | K39: =DYN_cyclist!M39 -> 68 | L39: =DYN_cyclist!N39 -> 66 | M39: =DYN_cyclist!O39 -> 65 | N39: =DYN_cyclist!P39 -> 72 | O39: 65.7624617 | P39: 70.57118969 | Q39: 51.13407996 | R39: 66.67687684 | S39: 52.99917093 | T39: 68.10650253 | U39: 53.16150714 | V39: 74.89823202
A40: =DYN_cyclist!A40 -> 42 | B40: =DYN_cyclist!D40 -> 74 | C40: =DYN_cyclist!E40 -> 60 | D40: =DYN_cyclist!F40 -> 68 | E40: =DYN_cyclist!G40 -> 62 | F40: =DYN_cyclist!H40 -> 75 | G40: =DYN_cyclist!I40 -> 74 | H40: =DYN_cyclist!J40 -> 66 | I40: =DYN_cyclist!K40 -> 76 | J40: =DYN_cyclist!L40 -> 65 | K40: =DYN_cyclist!M40 -> 67 | L40: =DYN_cyclist!N40 -> 71 | M40: =DYN_cyclist!O40 -> 73 | N40: =DYN_cyclist!P40 -> 60 | O40: 63.17145675 | P40: 53.08515245 | Q40: 55.43527196 | R40: 47.35492008 | S40: 69.78517441 | T40: 44.15674961 | U40: 60.181354 | V40: 73.95919359
A41: =DYN_cyclist!A41 -> 43 | B41: =DYN_cyclist!D41 -> 75 | C41: =DYN_cyclist!E41 -> 63 | D41: =DYN_cyclist!F41 -> 68 | E41: =DYN_cyclist!G41 -> 65 | F41: =DYN_cyclist!H41 -> 74 | G41: =DYN_cyclist!I41 -> 74 | H41: =DYN_cyclist!J41 -> 79 | I41: =DYN_cyclist!K41 -> 72 | J41: =DYN_cyclist!L41 -> 75 | K41: =DYN_cyclist!M41 -> 77 | L41: =DYN_cyclist!N41 -> 63 | M41: =DYN_cyclist!O41 -> 73 | N41: =DYN_cyclist!P41 -> 69 | O41: 68.05086185 | P41: 57.45017269 | Q41: 70.62985641 | R41: 53.56818509 | S41: 67.52331947 | T41: 49.03356155 | U41: 61.22038257 | V41: 73.81405112
A42: =DYN_cyclist!A42 -> 44 | B42: =DYN_cyclist!D42 -> 74 | C42: =DYN_cyclist!E42 -> 58 | D42: =DYN_cyclist!F42 -> 65 | E42: =DYN_cyclist!G42 -> 67 | F42: =DYN_cyclist!H42 -> 71 | G42: =DYN_cyclist!I42 -> 71 | H42: =DYN_cyclist!J42 -> 72 | I42: =DYN_cyclist!K42 -> 61 | J42: =DYN_cyclist!L42 -> 76 | K42: =DYN_cyclist!M42 -> 76 | L42: =DYN_cyclist!N42 -> 65 | M42: =DYN_cyclist!O42 -> 62 | N42: =DYN_cyclist!P42 -> 67 | O42: 63.73106363 | P42: 51.19689538 | Q42: 70.36476441 | R42: 52.41130669 | S42: 56.5239346 | T42: 42.12935948 | U42: 58.83498662 | V42: 73.25327029
A43: =DYN_cyclist!A43 -> 45 | B43: =DYN_cyclist!D43 -> 71 | C43: =DYN_cyclist!E43 -> 64 | D43: =DYN_cyclist!F43 -> 70 | E43: =DYN_cyclist!G43 -> 61 | F43: =DYN_cyclist!H43 -> 70 | G43: =DYN_cyclist!I43 -> 73 | H43: =DYN_cyclist!J43 -> 66 | I43: =DYN_cyclist!K43 -> 73 | J43: =DYN_cyclist!L43 -> 71 | K43: =DYN_cyclist!M43 -> 72 | L43: =DYN_cyclist!N43 -> 63 | M43: =DYN_cyclist!O43 -> 71 | N43: =DYN_cyclist!P43 -> 65 | O43: 66.51244049 | P43: 56.65730708 | Q43: 62.31652312 | R43: 49.28288321 | S43: 65.94901279 | T43: 49.34116944 | U43: 56.08701921 | V43: 72.10356298
A44: =DYN_cyclist!A44 -> 46 | B44: =DYN_cyclist!D44 -> 69 | C44: =DYN_cyclist!E44 -> 60 | D44: =DYN_cyclist!F44 -> 62 | E44: =DYN_cyclist!G44 -> 70 | F44: =DYN_cyclist!H44 -> 69 | G44: =DYN_cyclist!I44 -> 69 | H44: =DYN_cyclist!J44 -> 66 | I44: =DYN_cyclist!K44 -> 61 | J44: =DYN_cyclist!L44 -> 62 | K44: =DYN_cyclist!M44 -> 68 | L44: =DYN_cyclist!N44 -> 68 | M44: =DYN_cyclist!O44 -> 65 | N44: =DYN_cyclist!P44 -> 70 | O44: 55.75326918 | P44: 50.26391513 | Q44: 52.09026998 | R44: 56.02229086 | S44: 52.76539926 | T44: 43.57582756 | U44: 52.74993813 | V44: 66.92111128
A45: =DYN_cyclist!A45 -> 47 | B45: =DYN_cyclist!D45 -> 71 | C45: =DYN_cyclist!E45 -> 73 | D45: =DYN_cyclist!F45 -> 77 | E45: =DYN_cyclist!G45 -> 62 | F45: =DYN_cyclist!H45 -> 74 | G45: =DYN_cyclist!I45 -> 75 | H45: =DYN_cyclist!J45 -> 70 | I45: =DYN_cyclist!K45 -> 62 | J45: =DYN_cyclist!L45 -> 61 | K45: =DYN_cyclist!M45 -> 70 | L45: =DYN_cyclist!N45 -> 71 | M45: =DYN_cyclist!O45 -> 65 | N45: =DYN_cyclist!P45 -> 62 | O45: 72.33764784 | P45: 68.20523271 | Q45: 53.5308978 | R45: 52.46077616 | S45: 57.9921448 | T45: 62.21264352 | U45: 57.95032889 | V45: 74.74816635
A46: =DYN_cyclist!A46 -> 48 | B46: =DYN_cyclist!D46 -> 69 | C46: =DYN_cyclist!E46 -> 63 | D46: =DYN_cyclist!F46 -> 75 | E46: =DYN_cyclist!G46 -> 64 | F46: =DYN_cyclist!H46 -> 74 | G46: =DYN_cyclist!I46 -> 69 | H46: =DYN_cyclist!J46 -> 69 | I46: =DYN_cyclist!K46 -> 64 | J46: =DYN_cyclist!L46 -> 74 | K46: =DYN_cyclist!M46 -> 78 | L46: =DYN_cyclist!N46 -> 78 | M46: =DYN_cyclist!O46 -> 65 | N46: =DYN_cyclist!P46 -> 64 | O46: 72.30710181 | P46: 58.15071517 | Q46: 68.55193206 | R46: 50.22208517 | S46: 60.00456062 | T46: 48.5153026 | U46: 54.6317453 | V46: 74.73144609
A47: =DYN_cyclist!A47 -> 49 | B47: =DYN_cyclist!D47 -> 72 | C47: =DYN_cyclist!E47 -> 67 | D47: =DYN_cyclist!F47 -> 78 | E47: =DYN_cyclist!G47 -> 61 | F47: =DYN_cyclist!H47 -> 78 | G47: =DYN_cyclist!I47 -> 74 | H47: =DYN_cyclist!J47 -> 75 | I47: =DYN_cyclist!K47 -> 65 | J47: =DYN_cyclist!L47 -> 65 | K47: =DYN_cyclist!M47 -> 76 | L47: =DYN_cyclist!N47 -> 75 | M47: =DYN_cyclist!O47 -> 71 | N47: =DYN_cyclist!P47 -> 61 | O47: 75.45001223 | P47: 64.19175999 | Q47: 60.50654922 | R47: 49.16633558 | S47: 62.28839172 | T47: 54.39513346 | U47: 59.04469404 | V47: 75.66070399
A48: =DYN_cyclist!A48 -> 50 | B48: =DYN_cyclist!D48 -> 71 | C48: =DYN_cyclist!E48 -> 66 | D48: =DYN_cyclist!F48 -> 66 | E48: =DYN_cyclist!G48 -> 56 | F48: =DYN_cyclist!H48 -> 69 | G48: =DYN_cyclist!I48 -> 73 | H48: =DYN_cyclist!J48 -> 65 | I48: =DYN_cyclist!K48 -> 67 | J48: =DYN_cyclist!L48 -> 67 | K48: =DYN_cyclist!M48 -> 70 | L48: =DYN_cyclist!N48 -> 67 | M48: =DYN_cyclist!O48 -> 66 | N48: =DYN_cyclist!P48 -> 59 | O48: 61.95376879 | P48: 55.90531337 | Q48: 57.69629194 | R48: 44.62966561 | S48: 59.85824741 | T48: 51.67357254 | U48: 55.93129742 | V48: 69.41363704
A49: =DYN_cyclist!A49 -> 51 | B49: =DYN_cyclist!D49 -> 69 | C49: =DYN_cyclist!E49 -> 60 | D49: =DYN_cyclist!F49 -> 64 | E49: =DYN_cyclist!G49 -> 66 | F49: =DYN_cyclist!H49 -> 63 | G49: =DYN_cyclist!I49 -> 67 | H49: =DYN_cyclist!J49 -> 63 | I49: =DYN_cyclist!K49 -> 66 | J49: =DYN_cyclist!L49 -> 65 | K49: =DYN_cyclist!M49 -> 64 | L49: =DYN_cyclist!N49 -> 67 | M49: =DYN_cyclist!O49 -> 67 | N49: =DYN_cyclist!P49 -> 65 | O49: 55.9238251 | P49: 49.66965804 | Q49: 51.93287222 | R49: 50.87459395 | S49: 56.07613206 | T49: 43.13630688 | U49: 52.61614313 | V49: 66.96243571
A50: =DYN_cyclist!A50 -> 52 | B50: =DYN_cyclist!D50 -> 69 | C50: =DYN_cyclist!E50 -> 61 | D50: =DYN_cyclist!F50 -> 66 | E50: =DYN_cyclist!G50 -> 69 | F50: =DYN_cyclist!H50 -> 67 | G50: =DYN_cyclist!I50 -> 70 | H50: =DYN_cyclist!J50 -> 64 | I50: =DYN_cyclist!K50 -> 55 | J50: =DYN_cyclist!L50 -> 70 | K50: =DYN_cyclist!M50 -> 71 | L50: =DYN_cyclist!N50 -> 68 | M50: =DYN_cyclist!O50 -> 68 | N50: =DYN_cyclist!P50 -> 70 | O50: 61.23290825 | P50: 52.55252611 | Q50: 60.28476251 | R50: 55.64891841 | S50: 49.24756528 | T50: 45.07948596 | U50: 52.90950491 | V50: 69.10173726
A51: =DYN_cyclist!A51 -> 53 | B51: =DYN_cyclist!D51 -> 68 | C51: =DYN_cyclist!E51 -> 65 | D51: =DYN_cyclist!F51 -> 69 | E51: =DYN_cyclist!G51 -> 63 | F51: =DYN_cyclist!H51 -> 67 | G51: =DYN_cyclist!I51 -> 67 | H51: =DYN_cyclist!J51 -> 71 | I51: =DYN_cyclist!K51 -> 68 | J51: =DYN_cyclist!L51 -> 66 | K51: =DYN_cyclist!M51 -> 71 | L51: =DYN_cyclist!N51 -> 66 | M51: =DYN_cyclist!O51 -> 70 | N51: =DYN_cyclist!P51 -> 65 | O51: 62.76449353 | P51: 56.31747678 | Q51: 56.91365452 | R51: 50.20004289 | S51: 59.76773935 | T51: 50.36897845 | U51: 52.28620207 | V51: 69.744193
A52: =DYN_cyclist!A52 -> 54 | B52: =DYN_cyclist!D52 -> 69 | C52: =DYN_cyclist!E52 -> 70 | D52: =DYN_cyclist!F52 -> 71 | E52: =DYN_cyclist!G52 -> 70 | F52: =DYN_cyclist!H52 -> 67 | G52: =DYN_cyclist!I52 -> 73 | H52: =DYN_cyclist!J52 -> 69 | I52: =DYN_cyclist!K52 -> 58 | J52: =DYN_cyclist!L52 -> 62 | K52: =DYN_cyclist!M52 -> 67 | L52: =DYN_cyclist!N52 -> 72 | M52: =DYN_cyclist!O52 -> 64 | N52: =DYN_cyclist!P52 -> 71 | O52: 64.60543315 | P52: 62.87773925 | Q52: 51.85264771 | R52: 60.24650978 | S52: 52.21494467 | T52: 57.28501414 | U52: 54.63294036 | V52: 70.93277422
A53: =DYN_cyclist!A53 -> 55 | B53: =DYN_cyclist!D53 -> 71 | C53: =DYN_cyclist!E53 -> 60 | D53: =DYN_cyclist!F53 -> 67 | E53: =DYN_cyclist!G53 -> 65 | F53: =DYN_cyclist!H53 -> 66 | G53: =DYN_cyclist!I53 -> 73 | H53: =DYN_cyclist!J53 -> 65 | I53: =DYN_cyclist!K53 -> 65 | J53: =DYN_cyclist!L53 -> 67 | K53: =DYN_cyclist!M53 -> 67 | L53: =DYN_cyclist!N53 -> 67 | M53: =DYN_cyclist!O53 -> 65 | N53: =DYN_cyclist!P53 -> 67 | O53: 61.20733784 | P53: 52.43104832 | Q53: 55.75855393 | R53: 51.61433844 | S53: 57.16662628 | T53: 43.83583606 | U53: 55.44547869 | V53: 68.7613858
A54: =DYN_cyclist!A54 -> 56 | B54: =DYN_cyclist!D54 -> 71 | C54: =DYN_cyclist!E54 -> 69 | D54: =DYN_cyclist!F54 -> 68 | E54: =DYN_cyclist!G54 -> 68 | F54: =DYN_cyclist!H54 -> 70 | G54: =DYN_cyclist!I54 -> 70 | H54: =DYN_cyclist!J54 -> 70 | I54: =DYN_cyclist!K54 -> 67 | J54: =DYN_cyclist!L54 -> 68 | K54: =DYN_cyclist!M54 -> 69 | L54: =DYN_cyclist!N54 -> 65 | M54: =DYN_cyclist!O54 -> 67 | N54: =DYN_cyclist!P54 -> 70 | O54: 63.15272242 | P54: 60.16592422 | Q54: 58.14135643 | R54: 57.62073274 | S54: 59.93284033 | T54: 55.78750887 | U54: 56.52576289 | V54: 70.01587408
A55: =DYN_cyclist!A55 -> 57 | B55: =DYN_cyclist!D55 -> 67 | C55: =DYN_cyclist!E55 -> 64 | D55: =DYN_cyclist!F55 -> 60 | E55: =DYN_cyclist!G55 -> 56 | F55: =DYN_cyclist!H55 -> 68 | G55: =DYN_cyclist!I55 -> 66 | H55: =DYN_cyclist!J55 -> 62 | I55: =DYN_cyclist!K55 -> 63 | J55: =DYN_cyclist!L55 -> 64 | K55: =DYN_cyclist!M55 -> 62 | L55: =DYN_cyclist!N55 -> 65 | M55: =DYN_cyclist!O55 -> 62 | N55: =DYN_cyclist!P55 -> 64 | O55: 52.13377999 | P55: 49.87687764 | Q55: 49.91063072 | R55: 44.53293449 | S55: 52.32564279 | T55: 47.81628819 | U55: 50.02561217 | V55: 64.69923357
A56: =DYN_cyclist!A56 -> 58 | B56: =DYN_cyclist!D56 -> 70 | C56: =DYN_cyclist!E56 -> 70 | D56: =DYN_cyclist!F56 -> 73 | E56: =DYN_cyclist!G56 -> 66 | F56: =DYN_cyclist!H56 -> 71 | G56: =DYN_cyclist!I56 -> 72 | H56: =DYN_cyclist!J56 -> 63 | I56: =DYN_cyclist!K56 -> 58 | J56: =DYN_cyclist!L56 -> 67 | K56: =DYN_cyclist!M56 -> 73 | L56: =DYN_cyclist!N56 -> 74 | M56: =DYN_cyclist!O56 -> 66 | N56: =DYN_cyclist!P56 -> 65 | O56: 69.07536558 | P56: 62.83526815 | Q56: 59.58357734 | R56: 54.88598286 | S56: 54.31492786 | T56: 57.47027005 | U56: 56.10977735 | V56: 72.82225158
A57: =DYN_cyclist!A57 -> 59 | B57: =DYN_cyclist!D57 -> 73 | C57: =DYN_cyclist!E57 -> 57 | D57: =DYN_cyclist!F57 -> 69 | E57: =DYN_cyclist!G57 -> 61 | F57: =DYN_cyclist!H57 -> 73 | G57: =DYN_cyclist!I57 -> 69 | H57: =DYN_cyclist!J57 -> 77 | I57: =DYN_cyclist!K57 -> 58 | J57: =DYN_cyclist!L57 -> 78 | K57: =DYN_cyclist!M57 -> 79 | L57: =DYN_cyclist!N57 -> 72 | M57: =DYN_cyclist!O57 -> 66 | N57: =DYN_cyclist!P57 -> 65 | O57: 67.95701715 | P57: 51.85853421 | Q57: 73.50997975 | R57: 46.67672523 | S57: 55.34683962 | T57: 41.46402769 | U57: 57.94211934 | V57: 74.89420473
A58: =DYN_cyclist!A58 -> 60 | B58: =DYN_cyclist!D58 -> 65 | C58: =DYN_cyclist!E58 -> 71 | D58: =DYN_cyclist!F58 -> 68 | E58: =DYN_cyclist!G58 -> 71 | F58: =DYN_cyclist!H58 -> 66 | G58: =DYN_cyclist!I58 -> 66 | H58: =DYN_cyclist!J58 -> 68 | I58: =DYN_cyclist!K58 -> 50 | J58: =DYN_cyclist!L58 -> 50 | K58: =DYN_cyclist!M58 -> 66 | L58: =DYN_cyclist!N58 -> 74 | M58: =DYN_cyclist!O58 -> 61 | N58: =DYN_cyclist!P58 -> 71 | O58: 58.16991077 | P58: 60.86293 | Q58: 42.32121392 | R58: 60.42125046 | S58: 44.42889568 | T58: 58.06548817 | U58: 49.58541363 | V58: 69.75349695
A59: =DYN_cyclist!A59 -> 61 | B59: =DYN_cyclist!D59 -> 67 | C59: =DYN_cyclist!E59 -> 70 | D59: =DYN_cyclist!F59 -> 71 | E59: =DYN_cyclist!G59 -> 61 | F59: =DYN_cyclist!H59 -> 69 | G59: =DYN_cyclist!I59 -> 71 | H59: =DYN_cyclist!J59 -> 69 | I59: =DYN_cyclist!K59 -> 55 | J59: =DYN_cyclist!L59 -> 63 | K59: =DYN_cyclist!M59 -> 70 | L59: =DYN_cyclist!N59 -> 71 | M59: =DYN_cyclist!O59 -> 68 | N59: =DYN_cyclist!P59 -> 63 | O59: 65.06029222 | P59: 61.65102876 | Q59: 53.99421383 | R59: 50.287494 | S59: 49.78146485 | T59: 57.37118192 | U59: 51.88621997 | V59: 70.94634445
A60: =DYN_cyclist!A60 -> 62 | B60: =DYN_cyclist!D60 -> 71 | C60: =DYN_cyclist!E60 -> 51 | D60: =DYN_cyclist!F60 -> 59 | E60: =DYN_cyclist!G60 -> 55 | F60: =DYN_cyclist!H60 -> 66 | G60: =DYN_cyclist!I60 -> 62 | H60: =DYN_cyclist!J60 -> 66 | I60: =DYN_cyclist!K60 -> 60 | J60: =DYN_cyclist!L60 -> 73 | K60: =DYN_cyclist!M60 -> 74 | L60: =DYN_cyclist!N60 -> 71 | M60: =DYN_cyclist!O60 -> 67 | N60: =DYN_cyclist!P60 -> 59 | O60: 54.99320933 | P60: 40.52281031 | Q60: 64.69327249 | R60: 38.14175171 | S60: 53.01692401 | T60: 33.39501333 | U60: 53.72749895 | V60: 70.00689308
A61: =DYN_cyclist!A61 -> 63 | B61: =DYN_cyclist!D61 -> 70 | C61: =DYN_cyclist!E61 -> 63 | D61: =DYN_cyclist!F61 -> 69 | E61: =DYN_cyclist!G61 -> 68 | F61: =DYN_cyclist!H61 -> 69 | G61: =DYN_cyclist!I61 -> 72 | H61: =DYN_cyclist!J61 -> 68 | I61: =DYN_cyclist!K61 -> 63 | J61: =DYN_cyclist!L61 -> 66 | K61: =DYN_cyclist!M61 -> 70 | L61: =DYN_cyclist!N61 -> 71 | M61: =DYN_cyclist!O61 -> 69 | N61: =DYN_cyclist!P61 -> 66 | O61: 63.78090646 | P61: 56.03306496 | Q61: 56.70046858 | R61: 54.37678477 | S61: 56.45047168 | T61: 47.9400761 | U61: 55.01104763 | V61: 69.87208466
A62: =DYN_cyclist!A62 -> 64 | B62: =DYN_cyclist!D62 -> 69 | C62: =DYN_cyclist!E62 -> 64 | D62: =DYN_cyclist!F62 -> 68 | E62: =DYN_cyclist!G62 -> 57 | F62: =DYN_cyclist!H62 -> 72 | G62: =DYN_cyclist!I62 -> 71 | H62: =DYN_cyclist!J62 -> 67 | I62: =DYN_cyclist!K62 -> 60 | J62: =DYN_cyclist!L62 -> 67 | K62: =DYN_cyclist!M62 -> 69 | L62: =DYN_cyclist!N62 -> 66 | M62: =DYN_cyclist!O62 -> 68 | N62: =DYN_cyclist!P62 -> 57 | O62: 62.60272067 | P62: 54.99727451 | Q62: 56.76965987 | R62: 43.68141699 | S62: 53.18606845 | T62: 49.00727231 | U62: 53.20026872 | V62: 69.32759226
A63: =DYN_cyclist!A63 -> 65 | B63: =DYN_cyclist!D63 -> 66 | C63: =DYN_cyclist!E63 -> 65 | D63: =DYN_cyclist!F63 -> 67 | E63: =DYN_cyclist!G63 -> 71 | F63: =DYN_cyclist!H63 -> 67 | G63: =DYN_cyclist!I63 -> 65 | H63: =DYN_cyclist!J63 -> 57 | I63: =DYN_cyclist!K63 -> 55 | J63: =DYN_cyclist!L63 -> 60 | K63: =DYN_cyclist!M63 -> 56 | L63: =DYN_cyclist!N63 -> 58 | M63: =DYN_cyclist!O63 -> 63 | N63: =DYN_cyclist!P63 -> 71 | O63: 55.30827484 | P63: 53.9693263 | Q63: 43.75372811 | R63: 58.23448805 | S63: 45.10085817 | T63: 48.70613364 | U63: 49.12900382 | V63: 67.9171759
A64: =DYN_cyclist!A64 -> 66 | B64: =DYN_cyclist!D64 -> 72 | C64: =DYN_cyclist!E64 -> 56 | D64: =DYN_cyclist!F64 -> 62 | E64: =DYN_cyclist!G64 -> 73 | F64: =DYN_cyclist!H64 -> 66 | G64: =DYN_cyclist!I64 -> 69 | H64: =DYN_cyclist!J64 -> 62 | I64: =DYN_cyclist!K64 -> 53 | J64: =DYN_cyclist!L64 -> 59 | K64: =DYN_cyclist!M64 -> 68 | L64: =DYN_cyclist!N64 -> 74 | M64: =DYN_cyclist!O64 -> 63 | N64: =DYN_cyclist!P64 -> 72 | O64: 55.33181173 | P64: 47.40543488 | Q64: 50.2428944 | R64: 58.17345895 | S64: 47.91721379 | T64: 38.74551925 | U64: 56.27916442 | V64: 68.02485898
A65: =DYN_cyclist!A65 -> 67 | B65: =DYN_cyclist!D65 -> 68 | C65: =DYN_cyclist!E65 -> 63 | D65: =DYN_cyclist!F65 -> 63 | E65: =DYN_cyclist!G65 -> 66 | F65: =DYN_cyclist!H65 -> 67 | G65: =DYN_cyclist!I65 -> 65 | H65: =DYN_cyclist!J65 -> 63 | I65: =DYN_cyclist!K65 -> 60 | J65: =DYN_cyclist!L65 -> 64 | K65: =DYN_cyclist!M65 -> 66 | L65: =DYN_cyclist!N65 -> 69 | M65: =DYN_cyclist!O65 -> 66 | N65: =DYN_cyclist!P65 -> 68 | O65: 55.43154065 | P65: 51.22457387 | Q65: 52.2642077 | R65: 52.58814749 | S65: 51.39895618 | T65: 46.86841857 | U65: 51.67687627 | V65: 65.5642716
A66: =DYN_cyclist!A66 -> 68 | B66: =DYN_cyclist!D66 -> 73 | C66: =DYN_cyclist!E66 -> 67 | D66: =DYN_cyclist!F66 -> 79 | E66: =DYN_cyclist!G66 -> 65 | F66: =DYN_cyclist!H66 -> 76 | G66: =DYN_cyclist!I66 -> 78 | H66: =DYN_cyclist!J66 -> 70 | I66: =DYN_cyclist!K66 -> 65 | J66: =DYN_cyclist!L66 -> 70 | K66: =DYN_cyclist!M66 -> 77 | L66: =DYN_cyclist!N66 -> 83 | M66: =DYN_cyclist!O66 -> 67 | N66: =DYN_cyclist!P66 -> 68 | O66: 78.4257415 | P66: 65.4431966 | Q66: 65.442988 | R66: 55.00789746 | S66: 63.70428205 | T66: 54.54850391 | U66: 61.12088066 | V66: 77.87615585
A67: =DYN_cyclist!A67 -> 69 | B67: =DYN_cyclist!D67 -> 69 | C67: =DYN_cyclist!E67 -> 59 | D67: =DYN_cyclist!F67 -> 65 | E67: =DYN_cyclist!G67 -> 70 | F67: =DYN_cyclist!H67 -> 62 | G67: =DYN_cyclist!I67 -> 66 | H67: =DYN_cyclist!J67 -> 59 | I67: =DYN_cyclist!K67 -> 58 | J67: =DYN_cyclist!L67 -> 59 | K67: =DYN_cyclist!M67 -> 62 | L67: =DYN_cyclist!N67 -> 66 | M67: =DYN_cyclist!O67 -> 63 | N67: =DYN_cyclist!P67 -> 69 | O67: =((($B67*5)^2+($C67*4)^2+($D67*12)^2+($E67*0)^2+($F67*3)^2+($G67*6)^2+($H67*0)^2+($I67*0)^2+($J67*5)^2+($K67*7)^2+($L67*1)^2+($M67*2)^2)+($N67*0)^2)/2106025*91.12 -> 54.95457249 | P67: =((($B67*2)^2+($C67*14)^2+($D67*10)^2+($E67*5)^2+($F67*2)^2+($G67*7)^2+($H67*5)^2+($I67*0)^2+($J67*0)^2+($K67*3)^2+($L67*0)^2+($M67*0)^2)+($N67*0)^2)/2958326.56*90.98 -> 49.10658537 | Q67: =((($B67*5)^2+($C67*2)^2+($D67*1)^2+($E67*0)^2+($F67*2)^2+($G67*1)^2+($H67*1)^2+($I67*0)^2+($J67*10.75)^2+($K67*9)^2+($L67*0)^2+($M67*0)^2)+($N67*1)^2)/1715576.56*IF(B67>77,92,IF(B67>75,92-0.5,IF(B67>73,92-0.88,92-1.65))) -> 46.28078528 | R67: =IF(AND(E67>75,C67<76),((($B67*2)^2+($C67*6)^2+($D67*0)^2+($E67*11)^2+($F67*0)^2+($G67*3.5)^2+($H67*0)^2+($I67*0)^2+($J67*0)^2+($K67*0)^2+($L67*0)^2+($M67*0)^2)+($N67*6)^2)/1482831.25*87.08+0.75,IF(AND(E67>75,C67<80),((($B67*2)^2+($C67*6)^2+($D67*0)^2+($E67*11)^2+($F67*0)^2+($G67*3.5)^2+($H67*0)^2+($I67*0)^2+($J67*0)^2+($K67*0)^2+($L67*0)^2+($M67*0)^2)+($N67*6)^2)/1482831.25*87.08+0.5,((($B67*2)^2+($C67*6)^2+($D67*0)^2+($E67*9)^2+($F67*0)^2+($G67*3.5)^2+($H67*0)^2+($I67*0)^2+($J67*0)^2+($K67*0)^2+($L67*0)^2+($M67*0)^2)+($N67*6)^2)/1212831.25*87.08))+IF(AND(E67>81.99,C67<74),4,IF(AND(E67>80.99,C67<74),2.5,IF(AND(E67>79.99,C67<74),1.5,0))) -> 54.99920979 | S67: =((($B67*7)^2+($C67*3)^2+($D67*4)^2+($E67*0)^2+($F67*2.5)^2+($G67*2)^2+($H67*0)^2+($I67*11)^2+($J67*1)^2+($K67*5)^2+($L67*3)^2+($M67*0)^2)+($N67*0)^2)/1680031.25*91.49-IF(I67<74,1,IF(I67<75,0.8,IF(I67<76,0.7,IF(I67<77,0.6,IF(I67<77,0.4,IF(I67<78,0.3,IF(I67<79,0.2,0))))))) -> 49.07328824 | T67: =IF(AND(C67>81,D67>75,B67>70,E67>72,F67>77,G67>77),((($B67*1)^2+($C67*14.5)^2+($D67*2)^2+($E67*0)^2+($F67*1)^2+($G67*3)^2+($H67*2.5)^2+($I67*0)^2+($J67*0)^2+($K67*3)^2+($L67*1)^2+($M67*1.25)^2)+($N67*0)^2)/1693126.56*81.55+1,IF(AND(C67>75,D67<74,(C67-D67)>7.9),((($B67*1)^2+($C67*14.5)^2+($D67*2)^2+($E67*0)^2+($F67*1)^2+($G67*3)^2+($H67*2.5)^2+($I67*0)^2+($J67*0)^2+($K67*3)^2+($L67*1)^2+($M67*1.25)^2)+($N67*0)^2)/1693126.56*81.55-1.25,((($B67*1)^2+($C67*14.5)^2+($D67*2)^2+($E67*0)^2+($F67*1)^2+($G67*3)^2+($H67*2.5)^2+($I67*0)^2+($J67*0)^2+($K67*3)^2+($L67*1)^2+($M67*1.25)^2)+($N67*0)^2)/1693126.56*81.55)) -> 41.59071756 | U67: =((($B67*13)^2+($C67*4)^2+($D67*3)^2+($E67*2)^2+($F67*2)^2+($G67*2)^2+($H67*0)^2+($I67*2)^2+($J67*0)^2+($K67*0)^2+($L67*3)^2+($M67*1)^2)+($N67*0)^2)/1569500*81.55 -> 52.3415906 | V67: =IF(AND(O67>79.99,P67>79.99),((LARGE(O67:U67,1)*9)^2+(LARGE(O67:U67,2)*4.5)^2+(LARGE(O67:U67,3)*2)^2)^(1/4)*2.81072986218,IF(AND(R67>79.99,P67>79.99),((LARGE(O67:U67,1)*9)^2+(LARGE(O67:U67,2)*4.5)^2+(LARGE(O67:U67,3)*2)^2)^(1/4)*2.80272986218,IF(AND(LARGE(O67:U67,1)=Q67,Q67>79,O67>77),((LARGE(O67:U67,1)*9)^2+(LARGE(O67:U67,2)*4.5)^2+(LARGE(O67:U67,3)*2)^2)^(1/4)*2.78572986218,IF(AND(LARGE(O67:U67,1)=O67,O67>79,T67<70),((LARGE(O67:U67,1)*9)^2+(LARGE(O67:U67,2)*4.5)^2+(LARGE(O67:U67,3)*2)^2)^(1/4)*2.78572986218,IF(AND(LARGE(O67:U67,1)=O67,O67<77,T67<70,R67<70,Q67<70,P67<70,S67<72),((LARGE(O67:U67,1)*9)^2+(LARGE(O67:U67,2)*4.5)^2+(LARGE(O67:U67,3)*2)^2)^(1/4)*2.76572986218,IF(AND(LARGE(O67:U67,1)=O67,O67<77,T67<70,S67<71,R67<70,P67<68),((LARGE(O67:U67,1)*9)^2+(LARGE(O67:U67,2)*4.5)^2+(LARGE(O67:U67,3)*2)^2)^(1/4)*2.75572986218,IF(AND(LARGE(O67:U67,1)=O67,O67<78,T67<70,R67<70,S67<71),((LARGE(O67:U67,1)*9)^2+(LARGE(O67:U67,2)*4.5)^2+(LARGE(O67:U67,3)*2)^2)^(1/4)*2.78072986218,IF(AND(LARGE(O67:U67,1)=O67,O67<79,T67<70,R67<70),((LARGE(O67:U67,1)*9)^2+(LARGE(O67:U67,2)*4.5)^2+(LARGE(O67:U67,3)*2)^2)^(1/4)*2.79572986218,IF(LARGE(O67:U67,1)=Q67,((LARGE(O67:U67,1)*9)^2+(LARGE(O67:U67,2)*3.5)^2+(LARGE(O67:U67,3)*2)^2)^(1/4)*2.80572986218,(((LARGE(O67:U67,1)*9)^2+(LARGE(O67:U67,2)*4.5)^2+(LARGE(O67:U67,3)*2)^2))^(1/4)*2.79572986218+IF(AND(LARGE(O67:U67,1)=O67,R67>70),1,0)))))))))+IF(AND(LARGE(O67:U67,1)=Q67,O67<78,J67>80),((B67+J67)^2/35000),IF(AND(LARGE(O67:U67,1)=Q67,O67<78,J67>79),((B67+J67)^2/45000),IF(AND(LARGE(O67:U67,1)=Q67,O67<78,J67>78),((B67+J67)^2/65000),0)))) -> 66.34452593
A68: =DYN_cyclist!A68 -> 70 | B68: =DYN_cyclist!D68 -> 62 | C68: =DYN_cyclist!E68 -> 64 | D68: =DYN_cyclist!F68 -> 64 | E68: =DYN_cyclist!G68 -> 63 | F68: =DYN_cyclist!H68 -> 58 | G68: =DYN_cyclist!I68 -> 59 | H68: =DYN_cyclist!J68 -> 55 | I68: =DYN_cyclist!K68 -> 62 | J68: =DYN_cyclist!L68 -> 63 | K68: =DYN_cyclist!M68 -> 60 | L68: =DYN_cyclist!N68 -> 63 | M68: =DYN_cyclist!O68 -> 55 | N68: =DYN_cyclist!P68 -> 57 | O68: 51.8653556 | P68: 49.79258127 | Q68: 46.87449864 | R68: 46.23329497 | S68: 49.12899808 | T68: 47.01450703 | U68: 44.13489118 | V68: 63.4927215
A69: =DYN_cyclist!A69 -> 71 | B69: =DYN_cyclist!D69 -> 70 | C69: =DYN_cyclist!E69 -> 58 | D69: =DYN_cyclist!F69 -> 66 | E69: =DYN_cyclist!G69 -> 59 | F69: =DYN_cyclist!H69 -> 70 | G69: =DYN_cyclist!I69 -> 72 | H69: =DYN_cyclist!J69 -> 68 | I69: =DYN_cyclist!K69 -> 64 | J69: =DYN_cyclist!L69 -> 67 | K69: =DYN_cyclist!M69 -> 66 | L69: =DYN_cyclist!N69 -> 63 | M69: =DYN_cyclist!O69 -> 59 | N69: =DYN_cyclist!P69 -> 64 | O69: 59.61556908 | P69: 50.12847507 | Q69: 55.05611469 | R69: 45.49360432 | S69: 55.42644261 | T69: 41.35827167 | U69: 53.56860765 | V69: 67.84999494
A70: =DYN_cyclist!A70 -> 72 | B70: =DYN_cyclist!D70 -> 68 | C70: =DYN_cyclist!E70 -> 65 | D70: =DYN_cyclist!F70 -> 75 | E70: =DYN_cyclist!G70 -> 64 | F70: =DYN_cyclist!H70 -> 70 | G70: =DYN_cyclist!I70 -> 66 | H70: =DYN_cyclist!J70 -> 67 | I70: =DYN_cyclist!K70 -> 62 | J70: =DYN_cyclist!L70 -> 64 | K70: =DYN_cyclist!M70 -> 66 | L70: =DYN_cyclist!N70 -> 72 | M70: =DYN_cyclist!O70 -> 70 | N70: =DYN_cyclist!P70 -> 63 | O70: 66.40276031 | P70: 58.30839027 | Q70: 52.49171838 | R70: 50.15996113 | S70: 54.95086683 | T70: 50.07435112 | U70: 52.99949828 | V70: 71.1538506
A71: =DYN_cyclist!A71 -> 73 | B71: =DYN_cyclist!D71 -> 74 | C71: =DYN_cyclist!E71 -> 67 | D71: =DYN_cyclist!F71 -> 75 | E71: =DYN_cyclist!G71 -> 67 | F71: =DYN_cyclist!H71 -> 69 | G71: =DYN_cyclist!I71 -> 68 | H71: =DYN_cyclist!J71 -> 72 | I71: =DYN_cyclist!K71 -> 61 | J71: =DYN_cyclist!L71 -> 61 | K71: =DYN_cyclist!M71 -> 65 | L71: =DYN_cyclist!N71 -> 72 | M71: =DYN_cyclist!O71 -> 63 | N71: =DYN_cyclist!P71 -> 67 | O71: 67.02592545 | P71: 61.19153514 | Q71: 51.31041036 | R71: 54.95239688 | S71: 56.35555257 | T71: 52.98069833 | U71: 60.73503147 | V71: 71.81017247
A72: =DYN_cyclist!A72 -> 74 | B72: =DYN_cyclist!D72 -> 70 | C72: =DYN_cyclist!E72 -> 67 | D72: =DYN_cyclist!F72 -> 68 | E72: =DYN_cyclist!G72 -> 69 | F72: =DYN_cyclist!H72 -> 67 | G72: =DYN_cyclist!I72 -> 72 | H72: =DYN_cyclist!J72 -> 68 | I72: =DYN_cyclist!K72 -> 57 | J72: =DYN_cyclist!L72 -> 59 | K72: =DYN_cyclist!M72 -> 69 | L72: =DYN_cyclist!N72 -> 64 | M72: =DYN_cyclist!O72 -> 73 | N72: =DYN_cyclist!P72 -> 70 | O72: 61.99768413 | P72: 58.77957037 | Q72: 50.85590931 | R72: 57.92372428 | S72: 51.04901344 | T72: 53.10347176 | U72: 54.78918175 | V72: 69.32400767
A73: =DYN_cyclist!A73 -> 75 | B73: =DYN_cyclist!D73 -> 70 | C73: =DYN_cyclist!E73 -> 65 | D73: =DYN_cyclist!F73 -> 68 | E73: =DYN_cyclist!G73 -> 69 | F73: =DYN_cyclist!H73 -> 70 | G73: =DYN_cyclist!I73 -> 68 | H73: =DYN_cyclist!J73 -> 65 | I73: =DYN_cyclist!K73 -> 68 | J73: =DYN_cyclist!L73 -> 65 | K73: =DYN_cyclist!M73 -> 73 | L73: =DYN_cyclist!N73 -> 72 | M73: =DYN_cyclist!O73 -> 67 | N73: =DYN_cyclist!P73 -> 69 | O73: 63.01336153 | P73: 56.24535895 | Q73: 57.78005484 | R73: 56.38952449 | S73: 61.34491864 | T73: 50.32234538 | U73: 55.28965298 | V73: 70.03560592
A74: =DYN_cyclist!A74 -> 76 | B74: =DYN_cyclist!D74 -> 70 | C74: =DYN_cyclist!E74 -> 58 | D74: =DYN_cyclist!F74 -> 62 | E74: =DYN_cyclist!G74 -> 68 | F74: =DYN_cyclist!H74 -> 67 | G74: =DYN_cyclist!I74 -> 74 | H74: =DYN_cyclist!J74 -> 62 | I74: =DYN_cyclist!K74 -> 63 | J74: =DYN_cyclist!L74 -> 69 | K74: =DYN_cyclist!M74 -> 70 | L74: =DYN_cyclist!N74 -> 66 | M74: =DYN_cyclist!O74 -> 63 | N74: =DYN_cyclist!P74 -> 70 | O74: 58.26912049 | P74: 49.37300618 | Q74: 58.93522455 | R74: 54.47593911 | S74: 55.0123083 | T74: 41.42278913 | U74: 53.72193931 | V74: 67.50252215
A75: =DYN_cyclist!A75 -> 77 | B75: =DYN_cyclist!D75 -> 65 | C75: =DYN_cyclist!E75 -> 65 | D75: =DYN_cyclist!F75 -> 66 | E75: =DYN_cyclist!G75 -> 60 | F75: =DYN_cyclist!H75 -> 63 | G75: =DYN_cyclist!I75 -> 68 | H75: =DYN_cyclist!J75 -> 66 | I75: =DYN_cyclist!K75 -> 59 | J75: =DYN_cyclist!L75 -> 67 | K75: =DYN_cyclist!M75 -> 68 | L75: =DYN_cyclist!N75 -> 65 | M75: =DYN_cyclist!O75 -> 63 | N75: =DYN_cyclist!P75 -> 59 | O75: 58.91041423 | P75: 54.2365467 | Q75: 55.21990132 | R75: 46.13512787 | S75: 50.0462908 | T75: 49.84186008 | U75: 48.08924782 | V75: 67.49167654
A76: =DYN_cyclist!A76 -> 78 | B76: =DYN_cyclist!D76 -> 69 | C76: =DYN_cyclist!E76 -> 71 | D76: =DYN_cyclist!F76 -> 71 | E76: =DYN_cyclist!G76 -> 73 | F76: =DYN_cyclist!H76 -> 69 | G76: =DYN_cyclist!I76 -> 72 | H76: =DYN_cyclist!J76 -> 73 | I76: =DYN_cyclist!K76 -> 60 | J76: =DYN_cyclist!L76 -> 63 | K76: =DYN_cyclist!M76 -> 69 | L76: =DYN_cyclist!N76 -> 71 | M76: =DYN_cyclist!O76 -> 64 | N76: =DYN_cyclist!P76 -> 71 | O76: 65.28878178 | P76: 64.38443301 | Q76: 53.88298638 | R76: 62.97836976 | S76: 54.20715682 | T76: 58.94514062 | U76: 54.84789567 | V76: 71.43640063
A77: =DYN_cyclist!A77 -> 80 | B77: =DYN_cyclist!D77 -> 65 | C77: =DYN_cyclist!E77 -> 71 | D77: =DYN_cyclist!F77 -> 73 | E77: =DYN_cyclist!G77 -> 62 | F77: =DYN_cyclist!H77 -> 70 | G77: =DYN_cyclist!I77 -> 72 | H77: =DYN_cyclist!J77 -> 70 | I77: =DYN_cyclist!K77 -> 64 | J77: =DYN_cyclist!L77 -> 55 | K77: =DYN_cyclist!M77 -> 62 | L77: =DYN_cyclist!N77 -> 61 | M77: =DYN_cyclist!O77 -> 74 | N77: =DYN_cyclist!P77 -> 62 | O77: 63.77402711 | P77: 63.49592286 | Q77: 43.47911231 | R77: 51.09413716 | S77: 54.39665468 | T77: 58.49513194 | U77: 49.55366655 | V77: 70.60693115
A78: =DYN_cyclist!A78 -> 82 | B78: =DYN_cyclist!D78 -> 70 | C78: =DYN_cyclist!E78 -> 70 | D78: =DYN_cyclist!F78 -> 69 | E78: =DYN_cyclist!G78 -> 69 | F78: =DYN_cyclist!H78 -> 66 | G78: =DYN_cyclist!I78 -> 72 | H78: =DYN_cyclist!J78 -> 68 | I78: =DYN_cyclist!K78 -> 58 | J78: =DYN_cyclist!L78 -> 64 | K78: =DYN_cyclist!M78 -> 65 | L78: =DYN_cyclist!N78 -> 69 | M78: =DYN_cyclist!O78 -> 65 | N78: =DYN_cyclist!P78 -> 69 | O78: 62.45055294 | P78: 61.5135897 | Q78: 52.37080067 | R78: 58.62677951 | S78: 51.7120177 | T78: 57.00215421 | U78: 55.44480322 | V78: 69.82577232
A79: =DYN_cyclist!A79 -> 83 | B79: =DYN_cyclist!D79 -> 70 | C79: =DYN_cyclist!E79 -> 66 | D79: =DYN_cyclist!F79 -> 66 | E79: =DYN_cyclist!G79 -> 66 | F79: =DYN_cyclist!H79 -> 71 | G79: =DYN_cyclist!I79 -> 68 | H79: =DYN_cyclist!J79 -> 66 | I79: =DYN_cyclist!K79 -> 65 | J79: =DYN_cyclist!L79 -> 66 | K79: =DYN_cyclist!M79 -> 74 | L79: =DYN_cyclist!N79 -> 70 | M79: =DYN_cyclist!O79 -> 76 | N79: =DYN_cyclist!P79 -> 68 | O79: 62.1530103 | P79: 56.05816012 | Q79: 59.24727165 | R79: 54.01865165 | S79: 58.66252803 | T79: 51.79044572 | U79: 55.06950175 | V79: 69.45641648
A80: =DYN_cyclist!A80 -> 84 | B80: =DYN_cyclist!D80 -> 72 | C80: =DYN_cyclist!E80 -> 59 | D80: =DYN_cyclist!F80 -> 66 | E80: =DYN_cyclist!G80 -> 75 | F80: =DYN_cyclist!H80 -> 72 | G80: =DYN_cyclist!I80 -> 74 | H80: =DYN_cyclist!J80 -> 68 | I80: =DYN_cyclist!K80 -> 59 | J80: =DYN_cyclist!L80 -> 62 | K80: =DYN_cyclist!M80 -> 65 | L80: =DYN_cyclist!N80 -> 72 | M80: =DYN_cyclist!O80 -> 59 | N80: =DYN_cyclist!P80 -> 75 | O80: 59.64633145 | P80: 52.9557709 | Q80: 51.12608812 | R80: 62.5554022 | S80: 52.73145874 | T80: 42.69877302 | U80: 57.16538092 | V80: 70.400199
A81: =DYN_cyclist!A81 -> 86 | B81: =DYN_cyclist!D81 -> 70 | C81: =DYN_cyclist!E81 -> 72 | D81: =DYN_cyclist!F81 -> 67 | E81: =DYN_cyclist!G81 -> 65 | F81: =DYN_cyclist!H81 -> 69 | G81: =DYN_cyclist!I81 -> 75 | H81: =DYN_cyclist!J81 -> 69 | I81: =DYN_cyclist!K81 -> 60 | J81: =DYN_cyclist!L81 -> 60 | K81: =DYN_cyclist!M81 -> 63 | L81: =DYN_cyclist!N81 -> 66 | M81: =DYN_cyclist!O81 -> 66 | N81: =DYN_cyclist!P81 -> 69 | O81: 60.7230144 | P81: 62.72572286 | Q81: 48.42133102 | R81: 56.63150488 | S81: 52.82916879 | T81: 59.95704605 | U81: 55.48460398 | V81: 70.64668037
A82: =DYN_cyclist!A82 -> 87 | B82: =DYN_cyclist!D82 -> 70 | C82: =DYN_cyclist!E82 -> 76 | D82: =DYN_cyclist!F82 -> 76 | E82: =DYN_cyclist!G82 -> 67 | F82: =DYN_cyclist!H82 -> 71 | G82: =DYN_cyclist!I82 -> 74 | H82: =DYN_cyclist!J82 -> 75 | I82: =DYN_cyclist!K82 -> 56 | J82: =DYN_cyclist!L82 -> 58 | K82: =DYN_cyclist!M82 -> 71 | L82: =DYN_cyclist!N82 -> 73 | M82: =DYN_cyclist!O82 -> 71 | N82: =DYN_cyclist!P82 -> 67 | O82: 71.20631951 | P82: 71.22606266 | Q82: 51.83279319 | R82: 58.86292623 | S82: 53.1695815 | T82: 66.9721488 | U82: 57.05486365 | V82: 75.48824884
A83: =DYN_cyclist!A83 -> 88 | B83: =DYN_cyclist!D83 -> 68 | C83: =DYN_cyclist!E83 -> 50 | D83: =DYN_cyclist!F83 -> 58 | E83: =DYN_cyclist!G83 -> 61 | F83: =DYN_cyclist!H83 -> 65 | G83: =DYN_cyclist!I83 -> 57 | H83: =DYN_cyclist!J83 -> 69 | I83: =DYN_cyclist!K83 -> 70 | J83: =DYN_cyclist!L83 -> 72 | K83: =DYN_cyclist!M83 -> 67 | L83: =DYN_cyclist!N83 -> 64 | M83: =DYN_cyclist!O83 -> 71 | N83: =DYN_cyclist!P83 -> 61 | O83: 50.57082661 | P83: 39.16345836 | Q83: 58.99899798 | R83: 41.90568557 | S83: 58.32990272 | T83: 31.7554414 | U83: 49.77781864 | V83: 67.44302027
A84: =DYN_cyclist!A84 -> 89 | B84: =DYN_cyclist!D84 -> 68 | C84: =DYN_cyclist!E84 -> 68 | D84: =DYN_cyclist!F84 -> 68 | E84: =DYN_cyclist!G84 -> 68 | F84: =DYN_cyclist!H84 -> 69 | G84: =DYN_cyclist!I84 -> 69 | H84: =DYN_cyclist!J84 -> 68 | I84: =DYN_cyclist!K84 -> 55 | J84: =DYN_cyclist!L84 -> 62 | K84: =DYN_cyclist!M84 -> 68 | L84: =DYN_cyclist!N84 -> 64 | M84: =DYN_cyclist!O84 -> 64 | N84: =DYN_cyclist!P84 -> 66 | O84: 61.1284633 | P84: 58.81213872 | Q84: 52.15215078 | R84: 55.61849361 | S84: 48.73637442 | T84: 54.13484501 | U84: 52.30734947 | V84: 68.89689153
A85: =DYN_cyclist!A85 -> 90 | B85: =DYN_cyclist!D85 -> 70 | C85: =DYN_cyclist!E85 -> 61 | D85: =DYN_cyclist!F85 -> 69 | E85: =DYN_cyclist!G85 -> 66 | F85: =DYN_cyclist!H85 -> 68 | G85: =DYN_cyclist!I85 -> 70 | H85: =DYN_cyclist!J85 -> 67 | I85: =DYN_cyclist!K85 -> 66 | J85: =DYN_cyclist!L85 -> 68 | K85: =DYN_cyclist!M85 -> 68 | L85: =DYN_cyclist!N85 -> 65 | M85: =DYN_cyclist!O85 -> 72 | N85: =DYN_cyclist!P85 -> 68 | O85: 62.85617491 | P85: 53.70711878 | Q85: 57.06510449 | R85: 52.62008006 | S85: 58.00940777 | T85: 45.1311794 | U85: 54.38249691 | V85: 69.6061667
A86: =DYN_cyclist!A86 -> 91 | B86: =DYN_cyclist!D86 -> 64 | C86: =DYN_cyclist!E86 -> 68 | D86: =DYN_cyclist!F86 -> 70 | E86: =DYN_cyclist!G86 -> 60 | F86: =DYN_cyclist!H86 -> 64 | G86: =DYN_cyclist!I86 -> 66 | H86: =DYN_cyclist!J86 -> 67 | I86: =DYN_cyclist!K86 -> 60 | J86: =DYN_cyclist!L86 -> 62 | K86: =DYN_cyclist!M86 -> 69 | L86: =DYN_cyclist!N86 -> 64 | M86: =DYN_cyclist!O86 -> 71 | N86: =DYN_cyclist!P86 -> 60 | O86: 61.8411465 | P86: 58.05070357 | Q86: 51.84759192 | R86: 47.20127035 | S86: 51.22876344 | T86: 54.04486314 | U86: 47.53338805 | V86: 69.10201417
A87: =DYN_cyclist!A87 -> 92 | B87: =DYN_cyclist!D87 -> 63 | C87: =DYN_cyclist!E87 -> 73 | D87: =DYN_cyclist!F87 -> 68 | E87: =DYN_cyclist!G87 -> 65 | F87: =DYN_cyclist!H87 -> 62 | G87: =DYN_cyclist!I87 -> 65 | H87: =DYN_cyclist!J87 -> 60 | I87: =DYN_cyclist!K87 -> 50 | J87: =DYN_cyclist!L87 -> 50 | K87: =DYN_cyclist!M87 -> 56 | L87: =DYN_cyclist!N87 -> 64 | M87: =DYN_cyclist!O87 -> 59 | N87: =DYN_cyclist!P87 -> 64 | O87: 55.00125687 | P87: 60.55468393 | Q87: 36.62207123 | R87: 53.78869759 | S87: 41.34682917 | T87: 59.96657375 | U87: 46.61584014 | V87: 69.50127906
A88: =DYN_cyclist!A88 -> 94 | B88: =DYN_cyclist!D88 -> 63 | C88: =DYN_cyclist!E88 -> 68 | D88: =DYN_cyclist!F88 -> 74 | E88: =DYN_cyclist!G88 -> 61 | F88: =DYN_cyclist!H88 -> 65 | G88: =DYN_cyclist!I88 -> 67 | H88: =DYN_cyclist!J88 -> 63 | I88: =DYN_cyclist!K88 -> 50 | J88: =DYN_cyclist!L88 -> 68 | K88: =DYN_cyclist!M88 -> 78 | L88: =DYN_cyclist!N88 -> 71 | M88: =DYN_cyclist!O88 -> 70 | N88: =DYN_cyclist!P88 -> 61 | O88: 69.21485627 | P88: 60.08221217 | Q88: 62.1146831 | R88: 48.29823253 | S88: 46.52317446 | T88: 54.66545837 | U88: 46.97311176 | V88: 72.82141573
A89: =DYN_cyclist!A89 -> 95 | B89: =DYN_cyclist!D89 -> 74 | C89: =DYN_cyclist!E89 -> 61 | D89: =DYN_cyclist!F89 -> 68 | E89: =DYN_cyclist!G89 -> 73 | F89: =DYN_cyclist!H89 -> 72 | G89: =DYN_cyclist!I89 -> 69 | H89: =DYN_cyclist!J89 -> 65 | I89: =DYN_cyclist!K89 -> 75 | J89: =DYN_cyclist!L89 -> 64 | K89: =DYN_cyclist!M89 -> 68 | L89: =DYN_cyclist!N89 -> 70 | M89: =DYN_cyclist!O89 -> 62 | N89: =DYN_cyclist!P89 -> 75 | O89: 61.85339088 | P89: 53.76118409 | Q89: 55.21891145 | R89: 60.90928581 | S89: 68.55130493 | T89: 44.95143843 | U89: 60.17584632 | V89: 73.31623052
A90: =DYN_cyclist!A90 -> 97 | B90: =DYN_cyclist!D90 -> 68 | C90: =DYN_cyclist!E90 -> 62 | D90: =DYN_cyclist!F90 -> 65 | E90: =DYN_cyclist!G90 -> 70 | F90: =DYN_cyclist!H90 -> 61 | G90: =DYN_cyclist!I90 -> 66 | H90: =DYN_cyclist!J90 -> 65 | I90: =DYN_cyclist!K90 -> 50 | J90: =DYN_cyclist!L90 -> 57 | K90: =DYN_cyclist!M90 -> 61 | L90: =DYN_cyclist!N90 -> 54 | M90: =DYN_cyclist!O90 -> 65 | N90: =DYN_cyclist!P90 -> 68 | O90: 54.4800705 | P90: 51.80065542 | Q90: 44.24627623 | R90: 55.54402016 | S90: 42.26472092 | T90: 45.37476653 | U90: 50.57513291 | V90: 66.53208269
A91: =DYN_cyclist!A91 -> 98 | B91: =DYN_cyclist!D91 -> 77 | C91: =DYN_cyclist!E91 -> 60 | D91: =DYN_cyclist!F91 -> 64 | E91: =DYN_cyclist!G91 -> 67 | F91: =DYN_cyclist!H91 -> 64 | G91: =DYN_cyclist!I91 -> 69 | H91: =DYN_cyclist!J91 -> 59 | I91: =DYN_cyclist!K91 -> 56 | J91: =DYN_cyclist!L91 -> 70 | K91: =DYN_cyclist!M91 -> 76 | L91: =DYN_cyclist!N91 -> 67 | M91: =DYN_cyclist!O91 -> 64 | N91: =DYN_cyclist!P91 -> 69 | O91: 61.88410998 | P91: 50.43090866 | Q91: 65.61359924 | R91: 53.60819505 | S91: 53.58028499 | T91: 43.86836873 | U91: 62.70906626 | V91: 71.09267026
A92: =DYN_cyclist!A92 -> 99 | B92: =DYN_cyclist!D92 -> 70 | C92: =DYN_cyclist!E92 -> 64 | D92: =DYN_cyclist!F92 -> 71 | E92: =DYN_cyclist!G92 -> 59 | F92: =DYN_cyclist!H92 -> 72 | G92: =DYN_cyclist!I92 -> 69 | H92: =DYN_cyclist!J92 -> 68 | I92: =DYN_cyclist!K92 -> 65 | J92: =DYN_cyclist!L92 -> 64 | K92: =DYN_cyclist!M92 -> 66 | L92: =DYN_cyclist!N92 -> 63 | M92: =DYN_cyclist!O92 -> 60 | N92: =DYN_cyclist!P92 -> 59 | O92: 63.43732843 | P92: 56.04493596 | Q92: 52.85973798 | R92: 45.4239773 | S92: 57.21520221 | T92: 48.74230279 | U92: 54.50158745 | V92: 69.76310181
A93: =DYN_cyclist!A93 -> 100 | B93: =DYN_cyclist!D93 -> 70 | C93: =DYN_cyclist!E93 -> 66 | D93: =DYN_cyclist!F93 -> 68 | E93: =DYN_cyclist!G93 -> 67 | F93: =DYN_cyclist!H93 -> 67 | G93: =DYN_cyclist!I93 -> 68 | H93: =DYN_cyclist!J93 -> 63 | I93: =DYN_cyclist!K93 -> 63 | J93: =DYN_cyclist!L93 -> 67 | K93: =DYN_cyclist!M93 -> 68 | L93: =DYN_cyclist!N93 -> 71 | M93: =DYN_cyclist!O93 -> 72 | N93: =DYN_cyclist!P93 -> 69 | O93: 61.84902098 | P93: 56.38335158 | Q93: 56.30689682 | R93: 55.14625402 | S93: 55.93770155 | T93: 51.29189843 | U93: 55.08971389 | V93: 68.97815935
A94: =DYN_cyclist!A94 -> 101 | B94: =DYN_cyclist!D94 -> 71 | C94: =DYN_cyclist!E94 -> 50 | D94: =DYN_cyclist!F94 -> 51 | E94: =DYN_cyclist!G94 -> 75 | F94: =DYN_cyclist!H94 -> 63 | G94: =DYN_cyclist!I94 -> 64 | H94: =DYN_cyclist!J94 -> 58 | I94: =DYN_cyclist!K94 -> 62 | J94: =DYN_cyclist!L94 -> 53 | K94: =DYN_cyclist!M94 -> 66 | L94: =DYN_cyclist!N94 -> 65 | M94: =DYN_cyclist!O94 -> 57 | N94: =DYN_cyclist!P94 -> 75 | O94: 44.33225262 | P94: 38.46611428 | Q94: 44.50351603 | R94: 58.76492068 | S94: 51.66966352 | T94: 31.37651271 | U94: 53.34902797 | V94: 67.90470186
A95: =DYN_cyclist!A95 -> 102 | B95: =DYN_cyclist!D95 -> 65 | C95: =DYN_cyclist!E95 -> 72 | D95: =DYN_cyclist!F95 -> 71 | E95: =DYN_cyclist!G95 -> 72 | F95: =DYN_cyclist!H95 -> 71 | G95: =DYN_cyclist!I95 -> 70 | H95: =DYN_cyclist!J95 -> 72 | I95: =DYN_cyclist!K95 -> 53 | J95: =DYN_cyclist!L95 -> 66 | K95: =DYN_cyclist!M95 -> 72 | L95: =DYN_cyclist!N95 -> 74 | M95: =DYN_cyclist!O95 -> 66 | N95: =DYN_cyclist!P95 -> 74 | O95: 65.85388348 | P95: 64.68105412 | Q95: 57.42644886 | R95: 63.22535812 | S95: 48.47841009 | T95: 60.43806116 | U95: 50.28166722 | V95: 71.71178041
A96: =DYN_cyclist!A96 -> 103 | B96: =DYN_cyclist!D96 -> 70 | C96: =DYN_cyclist!E96 -> 65 | D96: =DYN_cyclist!F96 -> 69 | E96: =DYN_cyclist!G96 -> 74 | F96: =DYN_cyclist!H96 -> 72 | G96: =DYN_cyclist!I96 -> 70 | H96: =DYN_cyclist!J96 -> 69 | I96: =DYN_cyclist!K96 -> 58 | J96: =DYN_cyclist!L96 -> 65 | K96: =DYN_cyclist!M96 -> 65 | L96: =DYN_cyclist!N96 -> 67 | M96: =DYN_cyclist!O96 -> 67 | N96: =DYN_cyclist!P96 -> 73 | O96: 62.0367969 | P96: 57.7737957 | Q96: 53.21030259 | R96: 62.25865717 | S96: 51.47485607 | T96: 50.13136984 | U96: 55.03183132 | V96: 70.5385468
A97: =DYN_cyclist!A97 -> 104 | B97: =DYN_cyclist!D97 -> 70 | C97: =DYN_cyclist!E97 -> 64 | D97: =DYN_cyclist!F97 -> 76 | E97: =DYN_cyclist!G97 -> 69 | F97: =DYN_cyclist!H97 -> 75 | G97: =DYN_cyclist!I97 -> 73 | H97: =DYN_cyclist!J97 -> 70 | I97: =DYN_cyclist!K97 -> 63 | J97: =DYN_cyclist!L97 -> 62 | K97: =DYN_cyclist!M97 -> 68 | L97: =DYN_cyclist!N97 -> 72 | M97: =DYN_cyclist!O97 -> 69 | N97: =DYN_cyclist!P97 -> 69 | O97: 69.62216562 | P97: 60.48604128 | Q97: 52.7127645 | R97: 56.67616382 | S97: 57.38920696 | T97: 49.49652671 | U97: 55.89632886 | V97: 72.79381419
A98: =DYN_cyclist!A98 -> 106 | B98: =DYN_cyclist!D98 -> 71 | C98: =DYN_cyclist!E98 -> 75 | D98: =DYN_cyclist!F98 -> 70 | E98: =DYN_cyclist!G98 -> 77 | F98: =DYN_cyclist!H98 -> 78 | G98: =DYN_cyclist!I98 -> 77 | H98: =DYN_cyclist!J98 -> 76 | I98: =DYN_cyclist!K98 -> 53 | J98: =DYN_cyclist!L98 -> 62 | K98: =DYN_cyclist!M98 -> 67 | L98: =DYN_cyclist!N98 -> 60 | M98: =DYN_cyclist!O98 -> 68 | N98: =DYN_cyclist!P98 -> 77 | O98: 66.1101933 | P98: 69.52057587 | Q98: 52.83441952 | R98: 72.7561049 | S98: 49.43472148 | T98: 65.21914451 | U98: 57.46986196 | V98: 75.9310356
A99: =DYN_cyclist!A99 -> 107 | B99: =DYN_cyclist!D99 -> 69 | C99: =DYN_cyclist!E99 -> 74 | D99: =DYN_cyclist!F99 -> 72 | E99: =DYN_cyclist!G99 -> 69 | F99: =DYN_cyclist!H99 -> 75 | G99: =DYN_cyclist!I99 -> 69 | H99: =DYN_cyclist!J99 -> 66 | I99: =DYN_cyclist!K99 -> 55 | J99: =DYN_cyclist!L99 -> 56 | K99: =DYN_cyclist!M99 -> 67 | L99: =DYN_cyclist!N99 -> 69 | M99: =DYN_cyclist!O99 -> 70 | N99: =DYN_cyclist!P99 -> 67 | O99: 64.80778984 | P99: 65.65506004 | Q99: 47.83159383 | R99: 59.00058275 | S99: 50.40511009 | T99: 62.87228879 | U99: 55.04133985 | V99: 72.4107787
A100: =DYN_cyclist!A100 -> 108 | B100: =DYN_cyclist!D100 -> 69 | C100: =DYN_cyclist!E100 -> 60 | D100: =DYN_cyclist!F100 -> 66 | E100: =DYN_cyclist!G100 -> 58 | F100: =DYN_cyclist!H100 -> 70 | G100: =DYN_cyclist!I100 -> 71 | H100: =DYN_cyclist!J100 -> 63 | I100: =DYN_cyclist!K100 -> 68 | J100: =DYN_cyclist!L100 -> 68 | K100: =DYN_cyclist!M100 -> 67 | L100: =DYN_cyclist!N100 -> 62 | M100: =DYN_cyclist!O100 -> 60 | N100: =DYN_cyclist!P100 -> 64 | O100: 59.84903427 | P100: 50.76169732 | Q100: 56.26976505 | R100: 45.25747556 | S100: 58.74637869 | T100: 43.54291559 | U100: 52.54766088 | V100: 68.33532668
A101: =DYN_cyclist!A101 -> 109 | B101: =DYN_cyclist!D101 -> 66 | C101: =DYN_cyclist!E101 -> 76 | D101: =DYN_cyclist!F101 -> 74 | E101: =DYN_cyclist!G101 -> 73 | F101: =DYN_cyclist!H101 -> 68 | G101: =DYN_cyclist!I101 -> 70 | H101: =DYN_cyclist!J101 -> 70 | I101: =DYN_cyclist!K101 -> 59 | J101: =DYN_cyclist!L101 -> 54 | K101: =DYN_cyclist!M101 -> 58 | L101: =DYN_cyclist!N101 -> 65 | M101: =DYN_cyclist!O101 -> 59 | N101: =DYN_cyclist!P101 -> 73 | O101: 63.33158548 | P101: 68.94148044 | Q101: 41.10829757 | R101: 65.25647838 | S101: 50.61388584 | T101: 65.50258845 | U101: 51.58023211 | V101: 73.92670863
A102: =DYN_cyclist!A102 -> 110 | B102: =DYN_cyclist!D102 -> 69 | C102: =DYN_cyclist!E102 -> 60 | D102: =DYN_cyclist!F102 -> 67 | E102: =DYN_cyclist!G102 -> 67 | F102: =DYN_cyclist!H102 -> 68 | G102: =DYN_cyclist!I102 -> 66 | H102: =DYN_cyclist!J102 -> 66 | I102: =DYN_cyclist!K102 -> 67 | J102: =DYN_cyclist!L102 -> 67 | K102: =DYN_cyclist!M102 -> 67 | L102: =DYN_cyclist!N102 -> 71 | M102: =DYN_cyclist!O102 -> 70 | N102: =DYN_cyclist!P102 -> 68 | O102: 59.63400055 | P102: 51.26701421 | Q102: 55.4091249 | R102: 52.56242551 | S102: 58.30886858 | T102: 43.53029627 | U102: 53.24318703 | V102: 68.17419694
A103: =DYN_cyclist!A103 -> 111 | B103: =DYN_cyclist!D103 -> 72 | C103: =DYN_cyclist!E103 -> 54 | D103: =DYN_cyclist!F103 -> 62 | E103: =DYN_cyclist!G103 -> 50 | F103: =DYN_cyclist!H103 -> 71 | G103: =DYN_cyclist!I103 -> 70 | H103: =DYN_cyclist!J103 -> 74 | I103: =DYN_cyclist!K103 -> 60 | J103: =DYN_cyclist!L103 -> 78 | K103: =DYN_cyclist!M103 -> 75 | L103: =DYN_cyclist!N103 -> 64 | M103: =DYN_cyclist!O103 -> 58 | N103: =DYN_cyclist!P103 -> 71 | O103: 60.43607201 | P103: 45.72981009 | Q103: 70.53864806 | R103: 40.90479037 | S103: 54.11316349 | T103: 37.42408836 | U103: 55.16718509 | V103: 73.06732815
A104: =DYN_cyclist!A104 -> 112 | B104: =DYN_cyclist!D104 -> 69 | C104: =DYN_cyclist!E104 -> 62 | D104: =DYN_cyclist!F104 -> 67 | E104: =DYN_cyclist!G104 -> 58 | F104: =DYN_cyclist!H104 -> 70 | G104: =DYN_cyclist!I104 -> 74 | H104: =DYN_cyclist!J104 -> 65 | I104: =DYN_cyclist!K104 -> 64 | J104: =DYN_cyclist!L104 -> 69 | K104: =DYN_cyclist!M104 -> 74 | L104: =DYN_cyclist!N104 -> 67 | M104: =DYN_cyclist!O104 -> 73 | N104: =DYN_cyclist!P104 -> 64 | O104: 64.0919482 | P104: 53.76702732 | Q104: 61.40871862 | R104: 46.27075607 | S104: 57.26475837 | T104: 46.89414187 | U104: 53.18483683 | V104: 70.5004659
A105: =DYN_cyclist!A105 -> 113 | B105: =DYN_cyclist!D105 -> 71 | C105: =DYN_cyclist!E105 -> 61 | D105: =DYN_cyclist!F105 -> 63 | E105: =DYN_cyclist!G105 -> 60 | F105: =DYN_cyclist!H105 -> 68 | G105: =DYN_cyclist!I105 -> 68 | H105: =DYN_cyclist!J105 -> 73 | I105: =DYN_cyclist!K105 -> 68 | J105: =DYN_cyclist!L105 -> 72 | K105: =DYN_cyclist!M105 -> 75 | L105: =DYN_cyclist!N105 -> 64 | M105: =DYN_cyclist!O105 -> 63 | N105: =DYN_cyclist!P105 -> 66 | O105: 60.15639837 | P105: 51.2144866 | Q105: 64.90290028 | R105: 47.32842628 | S105: 60.73145693 | T105: 45.45487751 | U105: 54.96802539 | V105: 70.59827795
A106: =DYN_cyclist!A106 -> 114 | B106: =DYN_cyclist!D106 -> 69 | C106: =DYN_cyclist!E106 -> 65 | D106: =DYN_cyclist!F106 -> 68 | E106: =DYN_cyclist!G106 -> 69 | F106: =DYN_cyclist!H106 -> 69 | G106: =DYN_cyclist!I106 -> 69 | H106: =DYN_cyclist!J106 -> 70 | I106: =DYN_cyclist!K106 -> 69 | J106: =DYN_cyclist!L106 -> 66 | K106: =DYN_cyclist!M106 -> 68 | L106: =DYN_cyclist!N106 -> 62 | M106: =DYN_cyclist!O106 -> 74 | N106: =DYN_cyclist!P106 -> 69 | O106: 61.78217448 | P106: 56.74144968 | Q106: 55.40039247 | R106: 56.47010086 | S106: 60.24985 | T106: 50.27567016 | U106: 53.52179239 | V106: 69.36089839
A107: =DYN_cyclist!A107 -> 115 | B107: =DYN_cyclist!D107 -> 73 | C107: =DYN_cyclist!E107 -> 62 | D107: =DYN_cyclist!F107 -> 69 | E107: =DYN_cyclist!G107 -> 60 | F107: =DYN_cyclist!H107 -> 75 | G107: =DYN_cyclist!I107 -> 74 | H107: =DYN_cyclist!J107 -> 83 | I107: =DYN_cyclist!K107 -> 66 | J107: =DYN_cyclist!L107 -> 78 | K107: =DYN_cyclist!M107 -> 77 | L107: =DYN_cyclist!N107 -> 62 | M107: =DYN_cyclist!O107 -> 66 | N107: =DYN_cyclist!P107 -> 66 | O107: 68.87841719 | P107: 57.11763106 | Q107: 72.46185066 | R107: 48.47842992 | S107: 61.35005125 | T107: 47.90285333 | U107: 58.20129194 | V107: 74.55176008
A108: =DYN_cyclist!A108 -> 116 | B108: =DYN_cyclist!D108 -> 68 | C108: =DYN_cyclist!E108 -> 73 | D108: =DYN_cyclist!F108 -> 74 | E108: =DYN_cyclist!G108 -> 64 | F108: =DYN_cyclist!H108 -> 69 | G108: =DYN_cyclist!I108 -> 70 | H108: =DYN_cyclist!J108 -> 70 | I108: =DYN_cyclist!K108 -> 60 | J108: =DYN_cyclist!L108 -> 68 | K108: =DYN_cyclist!M108 -> 68 | L108: =DYN_cyclist!N108 -> 68 | M108: =DYN_cyclist!O108 -> 70 | N108: =DYN_cyclist!P108 -> 64 | O108: 68.14695639 | P108: 65.69765415 | Q108: 57.10081102 | R108: 53.82027117 | S108: 53.94467254 | T108: 61.66763775 | U108: 53.61921593 | V108: 72.75176059
A109: =DYN_cyclist!A109 -> 117 | B109: =DYN_cyclist!D109 -> 65 | C109: =DYN_cyclist!E109 -> 54 | D109: =DYN_cyclist!F109 -> 63 | E109: =DYN_cyclist!G109 -> 65 | F109: =DYN_cyclist!H109 -> 68 | G109: =DYN_cyclist!I109 -> 65 | H109: =DYN_cyclist!J109 -> 61 | I109: =DYN_cyclist!K109 -> 58 | J109: =DYN_cyclist!L109 -> 66 | K109: =DYN_cyclist!M109 -> 70 | L109: =DYN_cyclist!N109 -> 62 | M109: =DYN_cyclist!O109 -> 60 | N109: =DYN_cyclist!P109 -> 65 | O109: 55.58760235 | P109: 44.7040454 | Q109: 55.41440123 | R109: 47.95862353 | S109: 48.61437641 | T109: 36.25232221 | U109: 46.78148614 | V109: 65.87920469
A110: =DYN_cyclist!A110 -> 118 | B110: =DYN_cyclist!D110 -> 73 | C110: =DYN_cyclist!E110 -> 85 | D110: =DYN_cyclist!F110 -> 77 | E110: =DYN_cyclist!G110 -> 83 | F110: =DYN_cyclist!H110 -> 77 | G110: =DYN_cyclist!I110 -> 74 | H110: =DYN_cyclist!J110 -> 76 | I110: =DYN_cyclist!K110 -> 58 | J110: =DYN_cyclist!L110 -> 72 | K110: =DYN_cyclist!M110 -> 75 | L110: =DYN_cyclist!N110 -> 68 | M110: =DYN_cyclist!O110 -> 71 | N110: =DYN_cyclist!P110 -> 83 | O110: 77.14869212 | P110: 82.71580196 | Q110: 66.60017213 | R110: 82.89259598 | S110: 57.51108245 | T110: 82.00339242 | U110: 62.49920296 | V110: 81.69912944
A111: =DYN_cyclist!A111 -> 119 | B111: =DYN_cyclist!D111 -> 66 | C111: =DYN_cyclist!E111 -> 63 | D111: =DYN_cyclist!F111 -> 61 | E111: =DYN_cyclist!G111 -> 63 | F111: =DYN_cyclist!H111 -> 60 | G111: =DYN_cyclist!I111 -> 62 | H111: =DYN_cyclist!J111 -> 63 | I111: =DYN_cyclist!K111 -> 61 | J111: =DYN_cyclist!L111 -> 70 | K111: =DYN_cyclist!M111 -> 69 | L111: =DYN_cyclist!N111 -> 66 | M111: =DYN_cyclist!O111 -> 64 | N111: =DYN_cyclist!P111 -> 65 | O111: 54.32266755 | P111: 49.55995897 | Q111: 58.29077881 | R111: 48.89407399 | S111: 51.27614131 | T111: 46.73624087 | U111: 48.68542794 | V111: 66.83015005
A112: =DYN_cyclist!A112 -> 120 | B112: =DYN_cyclist!D112 -> 74 | C112: =DYN_cyclist!E112 -> 59 | D112: =DYN_cyclist!F112 -> 67 | E112: =DYN_cyclist!G112 -> 59 | F112: =DYN_cyclist!H112 -> 75 | G112: =DYN_cyclist!I112 -> 73 | H112: =DYN_cyclist!J112 -> 81 | I112: =DYN_cyclist!K112 -> 73 | J112: =DYN_cyclist!L112 -> 80 | K112: =DYN_cyclist!M112 -> 80 | L112: =DYN_cyclist!N112 -> 67 | M112: =DYN_cyclist!O112 -> 68 | N112: =DYN_cyclist!P112 -> 69 | O112: 68.27714482 | P112: 53.6763034 | Q112: 77.14521332 | R112: 47.80784576 | S112: 68.681368 | T112: 44.27446267 | U112: 59.52562861 | V112: 77.22792686
A113: =DYN_cyclist!A113 -> 121 | B113: =DYN_cyclist!D113 -> 69 | C113: =DYN_cyclist!E113 -> 66 | D113: =DYN_cyclist!F113 -> 66 | E113: =DYN_cyclist!G113 -> 73 | F113: =DYN_cyclist!H113 -> 65 | G113: =DYN_cyclist!I113 -> 70 | H113: =DYN_cyclist!J113 -> 68 | I113: =DYN_cyclist!K113 -> 58 | J113: =DYN_cyclist!L113 -> 60 | K113: =DYN_cyclist!M113 -> 59 | L113: =DYN_cyclist!N113 -> 61 | M113: =DYN_cyclist!O113 -> 64 | N113: =DYN_cyclist!P113 -> 71 | O113: 56.72581004 | P113: 56.75854883 | Q113: 45.83160637 | R113: 60.95801935 | S113: 49.06551446 | T113: 50.89673801 | U113: 53.12134266 | V113: 69.37161715
A114: =DYN_cyclist!A114 -> 122 | B114: =DYN_cyclist!D114 -> 71 | C114: =DYN_cyclist!E114 -> 61 | D114: =DYN_cyclist!F114 -> 67 | E114: =DYN_cyclist!G114 -> 63 | F114: =DYN_cyclist!H114 -> 68 | G114: =DYN_cyclist!I114 -> 68 | H114: =DYN_cyclist!J114 -> 64 | I114: =DYN_cyclist!K114 -> 78 | J114: =DYN_cyclist!L114 -> 60 | K114: =DYN_cyclist!M114 -> 61 | L114: =DYN_cyclist!N114 -> 75 | M114: =DYN_cyclist!O114 -> 66 | N114: =DYN_cyclist!P114 -> 63 | O114: 57.77938875 | P114: 51.62240597 | Q114: 47.08254649 | R114: 48.47412199 | S114: 69.67593039 | T114: 44.46129599 | U114: 56.32644731 | V114: 73.33843224
A115: =DYN_cyclist!A115 -> 123 | B115: =DYN_cyclist!D115 -> 70 | C115: =DYN_cyclist!E115 -> 50 | D115: =DYN_cyclist!F115 -> 56 | E115: =DYN_cyclist!G115 -> 53 | F115: =DYN_cyclist!H115 -> 67 | G115: =DYN_cyclist!I115 -> 64 | H115: =DYN_cyclist!J115 -> 70 | I115: =DYN_cyclist!K115 -> 70 | J115: =DYN_cyclist!L115 -> 70 | K115: =DYN_cyclist!M115 -> 72 | L115: =DYN_cyclist!N115 -> 59 | M115: =DYN_cyclist!O115 -> 68 | N115: =DYN_cyclist!P115 -> 59 | O115: 51.93838918 | P115: 39.40312329 | Q115: 60.6815896 | R115: 36.8056452 | S115: 59.77138799 | T115: 32.38680158 | U115: 51.82688254 | V115: 68.38068218
A116: =DYN_cyclist!A116 -> 124 | B116: =DYN_cyclist!D116 -> 67 | C116: =DYN_cyclist!E116 -> 52 | D116: =DYN_cyclist!F116 -> 56 | E116: =DYN_cyclist!G116 -> 69 | F116: =DYN_cyclist!H116 -> 67 | G116: =DYN_cyclist!I116 -> 66 | H116: =DYN_cyclist!J116 -> 58 | I116: =DYN_cyclist!K116 -> 51 | J116: =DYN_cyclist!L116 -> 59 | K116: =DYN_cyclist!M116 -> 52 | L116: =DYN_cyclist!N116 -> 55 | M116: =DYN_cyclist!O116 -> 62 | N116: =DYN_cyclist!P116 -> 68 | O116: 45.09270186 | P116: 40.60744497 | Q116: 40.96109039 | R116: 51.75023589 | S116: 40.0052867 | T116: 32.92746945 | U116: 48.11559114 | V116: 63.84299462
A117: =DYN_cyclist!A117 -> 125 | B117: =DYN_cyclist!D117 -> 71 | C117: =DYN_cyclist!E117 -> 54 | D117: =DYN_cyclist!F117 -> 63 | E117: =DYN_cyclist!G117 -> 78 | F117: =DYN_cyclist!H117 -> 72 | G117: =DYN_cyclist!I117 -> 70 | H117: =DYN_cyclist!J117 -> 65 | I117: =DYN_cyclist!K117 -> 59 | J117: =DYN_cyclist!L117 -> 61 | K117: =DYN_cyclist!M117 -> 63 | L117: =DYN_cyclist!N117 -> 66 | M117: =DYN_cyclist!O117 -> 60 | N117: =DYN_cyclist!P117 -> 76 | O117: 55.10120212 | P117: 47.44959744 | Q117: 48.91437946 | R117: 67.06664675 | S117: 50.84925038 | T117: 36.38400622 | U117: 54.85366314 | V117: 71.91618232
A118: =DYN_cyclist!A118 -> 128 | B118: =DYN_cyclist!D118 -> 77 | C118: =DYN_cyclist!E118 -> 62 | D118: =DYN_cyclist!F118 -> 66 | E118: =DYN_cyclist!G118 -> 71 | F118: =DYN_cyclist!H118 -> 71 | G118: =DYN_cyclist!I118 -> 77 | H118: =DYN_cyclist!J118 -> 70 | I118: =DYN_cyclist!K118 -> 63 | J118: =DYN_cyclist!L118 -> 64 | K118: =DYN_cyclist!M118 -> 73 | L118: =DYN_cyclist!N118 -> 71 | M118: =DYN_cyclist!O118 -> 71 | N118: =DYN_cyclist!P118 -> 71 | O118: 64.23027069 | P118: 55.96931218 | Q118: 59.14748334 | R118: 59.20018381 | S118: 59.60959529 | T118: 47.272324 | U118: 64.06774798 | V118: 70.88512722
A119: =DYN_cyclist!A119 -> 129 | B119: =DYN_cyclist!D119 -> 75 | C119: =DYN_cyclist!E119 -> 67 | D119: =DYN_cyclist!F119 -> 72 | E119: =DYN_cyclist!G119 -> 77 | F119: =DYN_cyclist!H119 -> 75 | G119: =DYN_cyclist!I119 -> 74 | H119: =DYN_cyclist!J119 -> 72 | I119: =DYN_cyclist!K119 -> 55 | J119: =DYN_cyclist!L119 -> 56 | K119: =DYN_cyclist!M119 -> 68 | L119: =DYN_cyclist!N119 -> 73 | M119: =DYN_cyclist!O119 -> 69 | N119: =DYN_cyclist!P119 -> 76 | O119: 66.45948248 | P119: 62.46139332 | Q119: 49.9078962 | R119: 69.8423073 | S119: 52.84479804 | T119: 53.55340819 | U119: 62.45742775 | V119: 74.34857541
A120: =DYN_cyclist!A120 -> 130 | B120: =DYN_cyclist!D120 -> 69 | C120: =DYN_cyclist!E120 -> 68 | D120: =DYN_cyclist!F120 -> 69 | E120: =DYN_cyclist!G120 -> 64 | F120: =DYN_cyclist!H120 -> 70 | G120: =DYN_cyclist!I120 -> 71 | H120: =DYN_cyclist!J120 -> 70 | I120: =DYN_cyclist!K120 -> 57 | J120: =DYN_cyclist!L120 -> 69 | K120: =DYN_cyclist!M120 -> 70 | L120: =DYN_cyclist!N120 -> 69 | M120: =DYN_cyclist!O120 -> 67 | N120: =DYN_cyclist!P120 -> 66 | O120: 64.29426162 | P120: 59.57200542 | Q120: 59.15657349 | R120: 52.83341267 | S120: 51.55725 | T120: 54.56024421 | U120: 53.92972424 | V120: 70.43714616
A121: =DYN_cyclist!A121 -> 131 | B121: =DYN_cyclist!D121 -> 78 | C121: =DYN_cyclist!E121 -> 55 | D121: =DYN_cyclist!F121 -> 66 | E121: =DYN_cyclist!G121 -> 65 | F121: =DYN_cyclist!H121 -> 76 | G121: =DYN_cyclist!I121 -> 70 | H121: =DYN_cyclist!J121 -> 79 | I121: =DYN_cyclist!K121 -> 75 | J121: =DYN_cyclist!L121 -> 79 | K121: =DYN_cyclist!M121 -> 80 | L121: =DYN_cyclist!N121 -> 75 | M121: =DYN_cyclist!O121 -> 71 | N121: =DYN_cyclist!P121 -> 74 | O121: 67.13041367 | P121: 50.29150135 | Q121: 77.64563754 | R121: 52.60148414 | S121: 72.72088412 | T121: 39.47139486 | U121: 65.13452278 | V121: 77.51081524
A122: =DYN_cyclist!A122 -> 132 | B122: =DYN_cyclist!D122 -> 69 | C122: =DYN_cyclist!E122 -> 66 | D122: =DYN_cyclist!F122 -> 66 | E122: =DYN_cyclist!G122 -> 67 | F122: =DYN_cyclist!H122 -> 70 | G122: =DYN_cyclist!I122 -> 69 | H122: =DYN_cyclist!J122 -> 69 | I122: =DYN_cyclist!K122 -> 65 | J122: =DYN_cyclist!L122 -> 66 | K122: =DYN_cyclist!M122 -> 69 | L122: =DYN_cyclist!N122 -> 73 | M122: =DYN_cyclist!O122 -> 68 | N122: =DYN_cyclist!P122 -> 70 | O122: 60.464498 | P122: 56.44590496 | Q122: 56.02757413 | R122: 55.58611229 | S122: 57.51030643 | T122: 51.5822872 | U122: 54.01649615 | V122: 68.4800591
A123: =DYN_cyclist!A123 -> 133 | B123: =DYN_cyclist!D123 -> 69 | C123: =DYN_cyclist!E123 -> 65 | D123: =DYN_cyclist!F123 -> 67 | E123: =DYN_cyclist!G123 -> 72 | F123: =DYN_cyclist!H123 -> 67 | G123: =DYN_cyclist!I123 -> 66 | H123: =DYN_cyclist!J123 -> 67 | I123: =DYN_cyclist!K123 -> 60 | J123: =DYN_cyclist!L123 -> 63 | K123: =DYN_cyclist!M123 -> 69 | L123: =DYN_cyclist!N123 -> 72 | M123: =DYN_cyclist!O123 -> 65 | N123: =DYN_cyclist!P123 -> 72 | O123: 59.91765469 | P123: 55.72964725 | Q123: 53.54440624 | R123: 59.66728977 | S123: 53.12340169 | T123: 49.96705382 | U123: 53.72619997 | V123: 68.45565684
A124: =DYN_cyclist!A124 -> 134 | B124: =DYN_cyclist!D124 -> 67 | C124: =DYN_cyclist!E124 -> 65 | D124: =DYN_cyclist!F124 -> 68 | E124: =DYN_cyclist!G124 -> 70 | F124: =DYN_cyclist!H124 -> 69 | G124: =DYN_cyclist!I124 -> 67 | H124: =DYN_cyclist!J124 -> 70 | I124: =DYN_cyclist!K124 -> 55 | J124: =DYN_cyclist!L124 -> 69 | K124: =DYN_cyclist!M124 -> 70 | L124: =DYN_cyclist!N124 -> 68 | M124: =DYN_cyclist!O124 -> 55 | N124: =DYN_cyclist!P124 -> 70 | O124: 61.69706958 | P124: 56.48136417 | Q124: 58.67748444 | R124: 57.32041572 | S124: 48.8058075 | T124: 50.11741394 | U124: 50.98228538 | V124: 69.16836894
A125: =DYN_cyclist!A125 -> 135 | B125: =DYN_cyclist!D125 -> 69 | C125: =DYN_cyclist!E125 -> 60 | D125: =DYN_cyclist!F125 -> 63 | E125: =DYN_cyclist!G125 -> 59 | F125: =DYN_cyclist!H125 -> 69 | G125: =DYN_cyclist!I125 -> 71 | H125: =DYN_cyclist!J125 -> 61 | I125: =DYN_cyclist!K125 -> 61 | J125: =DYN_cyclist!L125 -> 65 | K125: =DYN_cyclist!M125 -> 64 | L125: =DYN_cyclist!N125 -> 67 | M125: =DYN_cyclist!O125 -> 63 | N125: =DYN_cyclist!P125 -> 59 | O125: 56.21076749 | P125: 49.34492789 | Q125: 52.06985261 | R125: 44.34828556 | S125: 52.17105207 | T125: 43.27548061 | U125: 52.49523402 | V125: 65.91489301
A126: =DYN_cyclist!A126 -> 136 | B126: =DYN_cyclist!D126 -> 70 | C126: =DYN_cyclist!E126 -> 73 | D126: =DYN_cyclist!F126 -> 73 | E126: =DYN_cyclist!G126 -> 64 | F126: =DYN_cyclist!H126 -> 72 | G126: =DYN_cyclist!I126 -> 71 | H126: =DYN_cyclist!J126 -> 72 | I126: =DYN_cyclist!K126 -> 58 | J126: =DYN_cyclist!L126 -> 66 | K126: =DYN_cyclist!M126 -> 66 | L126: =DYN_cyclist!N126 -> 68 | M126: =DYN_cyclist!O126 -> 69 | N126: =DYN_cyclist!P126 -> 64 | O126: 67.03185294 | P126: 65.68821271 | Q126: 54.79364464 | R126: 54.02355192 | S126: 52.79321334 | T126: 61.69296369 | U126: 56.03500803 | V126: 72.28294044
A127: =DYN_cyclist!A127 -> 137 | B127: =DYN_cyclist!D127 -> 68 | C127: =DYN_cyclist!E127 -> 58 | D127: =DYN_cyclist!F127 -> 62 | E127: =DYN_cyclist!G127 -> 69 | F127: =DYN_cyclist!H127 -> 65 | G127: =DYN_cyclist!I127 -> 65 | H127: =DYN_cyclist!J127 -> 65 | I127: =DYN_cyclist!K127 -> 60 | J127: =DYN_cyclist!L127 -> 62 | K127: =DYN_cyclist!M127 -> 65 | L127: =DYN_cyclist!N127 -> 68 | M127: =DYN_cyclist!O127 -> 65 | N127: =DYN_cyclist!P127 -> 69 | O127: 53.55222378 | P127: 47.63282901 | Q127: 50.00275411 | R127: 53.7338432 | S127: 50.64445001 | T127: 40.70875015 | U127: 51.07388949 | V127: 65.55924634
A128: =DYN_cyclist!A128 -> 138 | B128: =DYN_cyclist!D128 -> 68 | C128: =DYN_cyclist!E128 -> 62 | D128: =DYN_cyclist!F128 -> 68 | E128: =DYN_cyclist!G128 -> 61 | F128: =DYN_cyclist!H128 -> 65 | G128: =DYN_cyclist!I128 -> 68 | H128: =DYN_cyclist!J128 -> 64 | I128: =DYN_cyclist!K128 -> 60 | J128: =DYN_cyclist!L128 -> 69 | K128: =DYN_cyclist!M128 -> 71 | L128: =DYN_cyclist!N128 -> 64 | M128: =DYN_cyclist!O128 -> 66 | N128: =DYN_cyclist!P128 -> 64 | O128: 62.08733199 | P128: 52.85329899 | Q128: 59.18596029 | R128: 47.55825469 | S128: 52.54833239 | T128: 46.19215325 | U128: 51.46436305 | V128: 69.30754036
A129: =DYN_cyclist!A129 -> 139 | B129: =DYN_cyclist!D129 -> 67 | C129: =DYN_cyclist!E129 -> 75 | D129: =DYN_cyclist!F129 -> 72 | E129: =DYN_cyclist!G129 -> 69 | F129: =DYN_cyclist!H129 -> 70 | G129: =DYN_cyclist!I129 -> 74 | H129: =DYN_cyclist!J129 -> 70 | I129: =DYN_cyclist!K129 -> 57 | J129: =DYN_cyclist!L129 -> 59 | K129: =DYN_cyclist!M129 -> 69 | L129: =DYN_cyclist!N129 -> 66 | M129: =DYN_cyclist!O129 -> 64 | N129: =DYN_cyclist!P129 -> 69 | O129: 66.24124705 | P129: 68.00154981 | Q129: 50.69275465 | R129: 60.63951924 | S129: 51.32793022 | T129: 64.8447554 | U129: 52.5900596 | V129: 73.59677172
A130: =DYN_cyclist!A130 -> 140 | B130: =DYN_cyclist!D130 -> 71 | C130: =DYN_cyclist!E130 -> 69 | D130: =DYN_cyclist!F130 -> 70 | E130: =DYN_cyclist!G130 -> 69 | F130: =DYN_cyclist!H130 -> 68 | G130: =DYN_cyclist!I130 -> 69 | H130: =DYN_cyclist!J130 -> 67 | I130: =DYN_cyclist!K130 -> 69 | J130: =DYN_cyclist!L130 -> 69 | K130: =DYN_cyclist!M130 -> 70 | L130: =DYN_cyclist!N130 -> 68 | M130: =DYN_cyclist!O130 -> 69 | N130: =DYN_cyclist!P130 -> 70 | O130: 65.05553292 | P130: 60.59912328 | Q130: 59.49552228 | R130: 58.29522995 | S130: 62.23366211 | T130: 55.7433533 | U130: 56.85430105 | V130: 71.06625251
A131: =DYN_cyclist!A131 -> 142 | B131: =DYN_cyclist!D131 -> 64 | C131: =DYN_cyclist!E131 -> 70 | D131: =DYN_cyclist!F131 -> 72 | E131: =DYN_cyclist!G131 -> 65 | F131: =DYN_cyclist!H131 -> 65 | G131: =DYN_cyclist!I131 -> 67 | H131: =DYN_cyclist!J131 -> 63 | I131: =DYN_cyclist!K131 -> 53 | J131: =DYN_cyclist!L131 -> 63 | K131: =DYN_cyclist!M131 -> 65 | L131: =DYN_cyclist!N131 -> 54 | M131: =DYN_cyclist!O131 -> 69 | N131: =DYN_cyclist!P131 -> 63 | O131: =((($B131*5)^2+($C131*4)^2+($D131*12)^2+($E131*0)^2+($F131*3)^2+($G131*6)^2+($H131*0)^2+($I131*0)^2+($J131*5)^2+($K131*7)^2+($L131*1)^2+($M131*2)^2)+($N131*0)^2)/2106025*91.12 -> 62.95837001 | P131: =((($B131*2)^2+($C131*14)^2+($D131*10)^2+($E131*5)^2+($F131*2)^2+($G131*7)^2+($H131*5)^2+($I131*0)^2+($J131*0)^2+($K131*3)^2+($L131*0)^2+($M131*0)^2)+($N131*0)^2)/2958326.56*90.98 -> 60.73643932 | Q131: =((($B131*5)^2+($C131*2)^2+($D131*1)^2+($E131*0)^2+($F131*2)^2+($G131*1)^2+($H131*1)^2+($I131*0)^2+($J131*10.75)^2+($K131*9)^2+($L131*0)^2+($M131*0)^2)+($N131*1)^2)/1715576.56*IF(B131>77,92,IF(B131>75,92-0.5,IF(B131>73,92-0.88,92-1.65))) -> 50.42119011 | R131: =IF(AND(E131>75,C131<76),((($B131*2)^2+($C131*6)^2+($D131*0)^2+($E131*11)^2+($F131*0)^2+($G131*3.5)^2+($H131*0)^2+($I131*0)^2+($J131*0)^2+($K131*0)^2+($L131*0)^2+($M131*0)^2)+($N131*6)^2)/1482831.25*87.08+0.75,IF(AND(E131>75,C131<80),((($B131*2)^2+($C131*6)^2+($D131*0)^2+($E131*11)^2+($F131*0)^2+($G131*3.5)^2+($H131*0)^2+($I131*0)^2+($J131*0)^2+($K131*0)^2+($L131*0)^2+($M131*0)^2)+($N131*6)^2)/1482831.25*87.08+0.5,((($B131*2)^2+($C131*6)^2+($D131*0)^2+($E131*9)^2+($F131*0)^2+($G131*3.5)^2+($H131*0)^2+($I131*0)^2+($J131*0)^2+($K131*0)^2+($L131*0)^2+($M131*0)^2)+($N131*6)^2)/1212831.25*87.08))+IF(AND(E131>81.99,C131<74),4,IF(AND(E131>80.99,C131<74),2.5,IF(AND(E131>79.99,C131<74),1.5,0))) -> 52.62024161 | S131: =((($B131*7)^2+($C131*3)^2+($D131*4)^2+($E131*0)^2+($F131*2.5)^2+($G131*2)^2+($H131*0)^2+($I131*11)^2+($J131*1)^2+($K131*5)^2+($L131*3)^2+($M131*0)^2)+($N131*0)^2)/1680031.25*91.49-IF(I131<74,1,IF(I131<75,0.8,IF(I131<76,0.7,IF(I131<77,0.6,IF(I131<77,0.4,IF(I131<78,0.3,IF(I131<79,0.2,0))))))) -> 45.17094474 | T131: =IF(AND(C131>81,D131>75,B131>70,E131>72,F131>77,G131>77),((($B131*1)^2+($C131*14.5)^2+($D131*2)^2+($E131*0)^2+($F131*1)^2+($G131*3)^2+($H131*2.5)^2+($I131*0)^2+($J131*0)^2+($K131*3)^2+($L131*1)^2+($M131*1.25)^2)+($N131*0)^2)/1693126.56*81.55+1,IF(AND(C131>75,D131<74,(C131-D131)>7.9),((($B131*1)^2+($C131*14.5)^2+($D131*2)^2+($E131*0)^2+($F131*1)^2+($G131*3)^2+($H131*2.5)^2+($I131*0)^2+($J131*0)^2+($K131*3)^2+($L131*1)^2+($M131*1.25)^2)+($N131*0)^2)/1693126.56*81.55-1.25,((($B131*1)^2+($C131*14.5)^2+($D131*2)^2+($E131*0)^2+($F131*1)^2+($G131*3)^2+($H131*2.5)^2+($I131*0)^2+($J131*0)^2+($K131*3)^2+($L131*1)^2+($M131*1.25)^2)+($N131*0)^2)/1693126.56*81.55)) -> 56.49163783 | U131: =((($B131*13)^2+($C131*4)^2+($D131*3)^2+($E131*2)^2+($F131*2)^2+($G131*2)^2+($H131*0)^2+($I131*2)^2+($J131*0)^2+($K131*0)^2+($L131*3)^2+($M131*1)^2)+($N131*0)^2)/1569500*81.55 -> 47.34924457 | V131: =IF(AND(O131>79.99,P131>79.99),((LARGE(O131:U131,1)*9)^2+(LARGE(O131:U131,2)*4.5)^2+(LARGE(O131:U131,3)*2)^2)^(1/4)*2.81072986218,IF(AND(R131>79.99,P131>79.99),((LARGE(O131:U131,1)*9)^2+(LARGE(O131:U131,2)*4.5)^2+(LARGE(O131:U131,3)*2)^2)^(1/4)*2.80272986218,IF(AND(LARGE(O131:U131,1)=Q131,Q131>79,O131>77),((LARGE(O131:U131,1)*9)^2+(LARGE(O131:U131,2)*4.5)^2+(LARGE(O131:U131,3)*2)^2)^(1/4)*2.78572986218,IF(AND(LARGE(O131:U131,1)=O131,O131>79,T131<70),((LARGE(O131:U131,1)*9)^2+(LARGE(O131:U131,2)*4.5)^2+(LARGE(O131:U131,3)*2)^2)^(1/4)*2.78572986218,IF(AND(LARGE(O131:U131,1)=O131,O131<77,T131<70,R131<70,Q131<70,P131<70,S131<72),((LARGE(O131:U131,1)*9)^2+(LARGE(O131:U131,2)*4.5)^2+(LARGE(O131:U131,3)*2)^2)^(1/4)*2.76572986218,IF(AND(LARGE(O131:U131,1)=O131,O131<77,T131<70,S131<71,R131<70,P131<68),((LARGE(O131:U131,1)*9)^2+(LARGE(O131:U131,2)*4.5)^2+(LARGE(O131:U131,3)*2)^2)^(1/4)*2.75572986218,IF(AND(LARGE(O131:U131,1)=O131,O131<78,T131<70,R131<70,S131<71),((LARGE(O131:U131,1)*9)^2+(LARGE(O131:U131,2)*4.5)^2+(LARGE(O131:U131,3)*2)^2)^(1/4)*2.78072986218,IF(AND(LARGE(O131:U131,1)=O131,O131<79,T131<70,R131<70),((LARGE(O131:U131,1)*9)^2+(LARGE(O131:U131,2)*4.5)^2+(LARGE(O131:U131,3)*2)^2)^(1/4)*2.79572986218,IF(LARGE(O131:U131,1)=Q131,((LARGE(O131:U131,1)*9)^2+(LARGE(O131:U131,2)*3.5)^2+(LARGE(O131:U131,3)*2)^2)^(1/4)*2.80572986218,(((LARGE(O131:U131,1)*9)^2+(LARGE(O131:U131,2)*4.5)^2+(LARGE(O131:U131,3)*2)^2))^(1/4)*2.79572986218+IF(AND(LARGE(O131:U131,1)=O131,R131>70),1,0)))))))))+IF(AND(LARGE(O131:U131,1)=Q131,O131<78,J131>80),((B131+J131)^2/35000),IF(AND(LARGE(O131:U131,1)=Q131,O131<78,J131>79),((B131+J131)^2/45000),IF(AND(LARGE(O131:U131,1)=Q131,O131<78,J131>78),((B131+J131)^2/65000),0)))) -> 69.92230742
A132: =DYN_cyclist!A132 -> 143 | B132: =DYN_cyclist!D132 -> 67 | C132: =DYN_cyclist!E132 -> 62 | D132: =DYN_cyclist!F132 -> 67 | E132: =DYN_cyclist!G132 -> 63 | F132: =DYN_cyclist!H132 -> 67 | G132: =DYN_cyclist!I132 -> 66 | H132: =DYN_cyclist!J132 -> 58 | I132: =DYN_cyclist!K132 -> 69 | J132: =DYN_cyclist!L132 -> 64 | K132: =DYN_cyclist!M132 -> 69 | L132: =DYN_cyclist!N132 -> 73 | M132: =DYN_cyclist!O132 -> 53 | N132: =DYN_cyclist!P132 -> 62 | O132: 59.25827562 | P132: 51.60050921 | Q132: 53.74913624 | R132: 48.07470447 | S132: 59.93906208 | T132: 45.65741273 | U132: 51.00400433 | V132: 69.12227486
A133: =DYN_cyclist!A133 -> 144 | B133: =DYN_cyclist!D133 -> 69 | C133: =DYN_cyclist!E133 -> 58 | D133: =DYN_cyclist!F133 -> 62 | E133: =DYN_cyclist!G133 -> 66 | F133: =DYN_cyclist!H133 -> 66 | G133: =DYN_cyclist!I133 -> 71 | H133: =DYN_cyclist!J133 -> 60 | I133: =DYN_cyclist!K133 -> 65 | J133: =DYN_cyclist!L133 -> 64 | K133: =DYN_cyclist!M133 -> 63 | L133: =DYN_cyclist!N133 -> 65 | M133: =DYN_cyclist!O133 -> 70 | N133: =DYN_cyclist!P133 -> 67 | O133: 54.85181492 | P133: 48.03269087 | Q133: 50.64809186 | R133: 51.43247172 | S133: 54.82033263 | T133: 40.80784731 | U133: 52.36793393 | V133: 65.54972412
A134: =DYN_cyclist!A134 -> 145 | B134: =DYN_cyclist!D134 -> 69 | C134: =DYN_cyclist!E134 -> 65 | D134: =DYN_cyclist!F134 -> 66 | E134: =DYN_cyclist!G134 -> 60 | F134: =DYN_cyclist!H134 -> 68 | G134: =DYN_cyclist!I134 -> 70 | H134: =DYN_cyclist!J134 -> 67 | I134: =DYN_cyclist!K134 -> 60 | J134: =DYN_cyclist!L134 -> 62 | K134: =DYN_cyclist!M134 -> 54 | L134: =DYN_cyclist!N134 -> 68 | M134: =DYN_cyclist!O134 -> 67 | N134: =DYN_cyclist!P134 -> 60 | O134: 55.9636734 | P134: 54.42848163 | Q134: 44.8798665 | R134: 46.83940368 | S134: 50.37884804 | T134: 49.37685994 | U134: 53.22775514 | V134: 66.03643973
A135: =DYN_cyclist!A135 -> 146 | B135: =DYN_cyclist!D135 -> 61 | C135: =DYN_cyclist!E135 -> 75 | D135: =DYN_cyclist!F135 -> 65 | E135: =DYN_cyclist!G135 -> 64 | F135: =DYN_cyclist!H135 -> 63 | G135: =DYN_cyclist!I135 -> 68 | H135: =DYN_cyclist!J135 -> 68 | I135: =DYN_cyclist!K135 -> 50 | J135: =DYN_cyclist!L135 -> 52 | K135: =DYN_cyclist!M135 -> 65 | L135: =DYN_cyclist!N135 -> 60 | M135: =DYN_cyclist!O135 -> 54 | N135: =DYN_cyclist!P135 -> 63 | O135: 55.53230796 | P135: 62.68749579 | Q135: 42.31851486 | R135: 53.75500593 | S135: 41.86255361 | T135: 63.76817597 | U135: 44.31841115 | V135: 71.22627651
A136: =DYN_cyclist!A136 -> 147 | B136: =DYN_cyclist!D136 -> 69 | C136: =DYN_cyclist!E136 -> 64 | D136: =DYN_cyclist!F136 -> 67 | E136: =DYN_cyclist!G136 -> 62 | F136: =DYN_cyclist!H136 -> 67 | G136: =DYN_cyclist!I136 -> 70 | H136: =DYN_cyclist!J136 -> 66 | I136: =DYN_cyclist!K136 -> 58 | J136: =DYN_cyclist!L136 -> 70 | K136: =DYN_cyclist!M136 -> 70 | L136: =DYN_cyclist!N136 -> 69 | M136: =DYN_cyclist!O136 -> 67 | N136: =DYN_cyclist!P136 -> 66 | O136: 62.00477981 | P136: 54.67780328 | Q136: 59.75432556 | R136: 49.87908367 | S136: 51.65621256 | T136: 48.91623081 | U136: 53.22037694 | V136: 69.36563752
A137: =DYN_cyclist!A137 -> 148 | B137: =DYN_cyclist!D137 -> 66 | C137: =DYN_cyclist!E137 -> 76 | D137: =DYN_cyclist!F137 -> 71 | E137: =DYN_cyclist!G137 -> 63 | F137: =DYN_cyclist!H137 -> 70 | G137: =DYN_cyclist!I137 -> 67 | H137: =DYN_cyclist!J137 -> 69 | I137: =DYN_cyclist!K137 -> 50 | J137: =DYN_cyclist!L137 -> 50 | K137: =DYN_cyclist!M137 -> 56 | L137: =DYN_cyclist!N137 -> 50 | M137: =DYN_cyclist!O137 -> 54 | N137: =DYN_cyclist!P137 -> 63 | O137: 58.98292862 | P137: 65.80267863 | Q137: 37.53853905 | R137: 53.47034108 | S137: 42.59662468 | T137: 64.98762581 | U137: 50.02618372 | V137: 72.41676251
A138: =DYN_cyclist!A138 -> 149 | B138: =DYN_cyclist!D138 -> 69 | C138: =DYN_cyclist!E138 -> 63 | D138: =DYN_cyclist!F138 -> 66 | E138: =DYN_cyclist!G138 -> 57 | F138: =DYN_cyclist!H138 -> 69 | G138: =DYN_cyclist!I138 -> 70 | H138: =DYN_cyclist!J138 -> 59 | I138: =DYN_cyclist!K138 -> 65 | J138: =DYN_cyclist!L138 -> 66 | K138: =DYN_cyclist!M138 -> 68 | L138: =DYN_cyclist!N138 -> 69 | M138: =DYN_cyclist!O138 -> 63 | N138: =DYN_cyclist!P138 -> 58 | O138: 59.93059133 | P138: 52.3301141 | Q138: 55.19136703 | R138: 43.52638513 | S138: 56.83869791 | T138: 47.19542805 | U138: 53.13739806 | V138: 68.14407757
A139: =DYN_cyclist!A139 -> 150 | B139: =DYN_cyclist!D139 -> 70 | C139: =DYN_cyclist!E139 -> 64 | D139: =DYN_cyclist!F139 -> 71 | E139: =DYN_cyclist!G139 -> 62 | F139: =DYN_cyclist!H139 -> 72 | G139: =DYN_cyclist!I139 -> 69 | H139: =DYN_cyclist!J139 -> 66 | I139: =DYN_cyclist!K139 -> 74 | J139: =DYN_cyclist!L139 -> 62 | K139: =DYN_cyclist!M139 -> 68 | L139: =DYN_cyclist!N139 -> 67 | M139: =DYN_cyclist!O139 -> 74 | N139: =DYN_cyclist!P139 -> 68 | O139: 64.08009322 | P139: 56.19215475 | Q139: 52.51537791 | R139: 50.48946442 | S139: 66.26446231 | T139: 48.94403124 | U139: 55.17768085 | V139: 72.46827486
A140: =DYN_cyclist!A140 -> 151 | B140: =DYN_cyclist!D140 -> 64 | C140: =DYN_cyclist!E140 -> 72 | D140: =DYN_cyclist!F140 -> 68 | E140: =DYN_cyclist!G140 -> 55 | F140: =DYN_cyclist!H140 -> 64 | G140: =DYN_cyclist!I140 -> 69 | H140: =DYN_cyclist!J140 -> 69 | I140: =DYN_cyclist!K140 -> 62 | J140: =DYN_cyclist!L140 -> 56 | K140: =DYN_cyclist!M140 -> 68 | L140: =DYN_cyclist!N140 -> 75 | M140: =DYN_cyclist!O140 -> 67 | N140: =DYN_cyclist!P140 -> 57 | O140: 60.0544196 | P140: 60.91687229 | Q140: 47.07485748 | R140: 44.75366238 | S140: 53.48307867 | T140: 59.89283263 | U140: 48.57158528 | V140: 69.77377525
A141: =DYN_cyclist!A141 -> 152 | B141: =DYN_cyclist!D141 -> 65 | C141: =DYN_cyclist!E141 -> 65 | D141: =DYN_cyclist!F141 -> 61 | E141: =DYN_cyclist!G141 -> 74 | F141: =DYN_cyclist!H141 -> 66 | G141: =DYN_cyclist!I141 -> 64 | H141: =DYN_cyclist!J141 -> 66 | I141: =DYN_cyclist!K141 -> 50 | J141: =DYN_cyclist!L141 -> 50 | K141: =DYN_cyclist!M141 -> 50 | L141: =DYN_cyclist!N141 -> 62 | M141: =DYN_cyclist!O141 -> 57 | N141: =DYN_cyclist!P141 -> 74 | O141: 47.48693148 | P141: 52.39008416 | Q141: 34.17949123 | R141: 61.73761225 | S141: 39.85883735 | T141: 48.51601304 | U141: 47.73343106 | V141: 69.12492704
A142: =DYN_cyclist!A142 -> 153 | B142: =DYN_cyclist!D142 -> 67 | C142: =DYN_cyclist!E142 -> 75 | D142: =DYN_cyclist!F142 -> 70 | E142: =DYN_cyclist!G142 -> 71 | F142: =DYN_cyclist!H142 -> 70 | G142: =DYN_cyclist!I142 -> 66 | H142: =DYN_cyclist!J142 -> 69 | I142: =DYN_cyclist!K142 -> 50 | J142: =DYN_cyclist!L142 -> 55 | K142: =DYN_cyclist!M142 -> 71 | L142: =DYN_cyclist!N142 -> 61 | M142: =DYN_cyclist!O142 -> 55 | N142: =DYN_cyclist!P142 -> 71 | O142: 62.61487851 | P142: 65.62627441 | Q142: 49.04543509 | R142: 62.00657109 | S142: 45.94623999 | T142: 64.2728794 | U142: 51.77440373 | V142: 72.33691061
A143: =DYN_cyclist!A143 -> 154 | B143: =DYN_cyclist!D143 -> 75 | C143: =DYN_cyclist!E143 -> 58 | D143: =DYN_cyclist!F143 -> 60 | E143: =DYN_cyclist!G143 -> 76 | F143: =DYN_cyclist!H143 -> 69 | G143: =DYN_cyclist!I143 -> 72 | H143: =DYN_cyclist!J143 -> 69 | I143: =DYN_cyclist!K143 -> 62 | J143: =DYN_cyclist!L143 -> 61 | K143: =DYN_cyclist!M143 -> 69 | L143: =DYN_cyclist!N143 -> 69 | M143: =DYN_cyclist!O143 -> 65 | N143: =DYN_cyclist!P143 -> 75 | O143: 55.82643256 | P143: 49.8575027 | Q143: 53.53527503 | R143: 65.84744674 | S143: 55.89222968 | T143: 41.55178793 | U143: 60.38612529 | V143: 71.90359465
A144: =DYN_cyclist!A144 -> 155 | B144: =DYN_cyclist!D144 -> 65 | C144: =DYN_cyclist!E144 -> 57 | D144: =DYN_cyclist!F144 -> 63 | E144: =DYN_cyclist!G144 -> 72 | F144: =DYN_cyclist!H144 -> 65 | G144: =DYN_cyclist!I144 -> 65 | H144: =DYN_cyclist!J144 -> 66 | I144: =DYN_cyclist!K144 -> 52 | J144: =DYN_cyclist!L144 -> 53 | K144: =DYN_cyclist!M144 -> 62 | L144: =DYN_cyclist!N144 -> 67 | M144: =DYN_cyclist!O144 -> 63 | N144: =DYN_cyclist!P144 -> 70 | O144: 51.84242443 | P144: 47.59546306 | Q144: 41.54966896 | R144: 56.1413335 | S144: 43.08702646 | T144: 39.39754537 | U144: 47.35833743 | V144: 66.43086884
A145: =DYN_cyclist!A145 -> 156 | B145: =DYN_cyclist!D145 -> 69 | C145: =DYN_cyclist!E145 -> 69 | D145: =DYN_cyclist!F145 -> 69 | E145: =DYN_cyclist!G145 -> 65 | F145: =DYN_cyclist!H145 -> 68 | G145: =DYN_cyclist!I145 -> 72 | H145: =DYN_cyclist!J145 -> 68 | I145: =DYN_cyclist!K145 -> 60 | J145: =DYN_cyclist!L145 -> 66 | K145: =DYN_cyclist!M145 -> 68 | L145: =DYN_cyclist!N145 -> 63 | M145: =DYN_cyclist!O145 -> 63 | N145: =DYN_cyclist!P145 -> 68 | O145: 63.3568963 | P145: 60.38993543 | Q145: 55.49218671 | R145: 54.75624217 | S145: 53.08848093 | T145: 55.71629643 | U145: 53.71835413 | V145: 70.04519947
A146: =DYN_cyclist!A146 -> 157 | B146: =DYN_cyclist!D146 -> 67 | C146: =DYN_cyclist!E146 -> 59 | D146: =DYN_cyclist!F146 -> 61 | E146: =DYN_cyclist!G146 -> 63 | F146: =DYN_cyclist!H146 -> 66 | G146: =DYN_cyclist!I146 -> 68 | H146: =DYN_cyclist!J146 -> 67 | I146: =DYN_cyclist!K146 -> 63 | J146: =DYN_cyclist!L146 -> 58 | K146: =DYN_cyclist!M146 -> 69 | L146: =DYN_cyclist!N146 -> 73 | M146: =DYN_cyclist!O146 -> 71 | N146: =DYN_cyclist!P146 -> 61 | O146: 54.182225 | P146: 48.30298667 | Q146: 49.21610432 | R146: 47.05422612 | S146: 53.84647237 | T146: 42.44984255 | U146: 50.32250717 | V146: 65.08269341
A147: =DYN_cyclist!A147 -> 158 | B147: =DYN_cyclist!D147 -> 65 | C147: =DYN_cyclist!E147 -> 75 | D147: =DYN_cyclist!F147 -> 71 | E147: =DYN_cyclist!G147 -> 72 | F147: =DYN_cyclist!H147 -> 69 | G147: =DYN_cyclist!I147 -> 71 | H147: =DYN_cyclist!J147 -> 71 | I147: =DYN_cyclist!K147 -> 61 | J147: =DYN_cyclist!L147 -> 57 | K147: =DYN_cyclist!M147 -> 67 | L147: =DYN_cyclist!N147 -> 67 | M147: =DYN_cyclist!O147 -> 62 | N147: =DYN_cyclist!P147 -> 69 | O147: 63.46761487 | P147: 67.2150195 | Q147: 47.72060666 | R147: 62.64114808 | S147: 53.14921446 | T147: 64.52120479 | U147: 50.32079251 | V147: 73.05928735
A148: =DYN_cyclist!A148 -> 159 | B148: =DYN_cyclist!D148 -> 69 | C148: =DYN_cyclist!E148 -> 65 | D148: =DYN_cyclist!F148 -> 71 | E148: =DYN_cyclist!G148 -> 62 | F148: =DYN_cyclist!H148 -> 67 | G148: =DYN_cyclist!I148 -> 70 | H148: =DYN_cyclist!J148 -> 68 | I148: =DYN_cyclist!K148 -> 50 | J148: =DYN_cyclist!L148 -> 62 | K148: =DYN_cyclist!M148 -> 67 | L148: =DYN_cyclist!N148 -> 64 | M148: =DYN_cyclist!O148 -> 61 | N148: =DYN_cyclist!P148 -> 62 | O148: 63.35797795 | P148: 57.24529038 | Q148: 51.617606 | R148: 48.88911987 | S148: 45.56423551 | T148: 50.14161702 | U148: 53.05530248 | V148: 69.67461853
A149: =DYN_cyclist!A149 -> 160 | B149: =DYN_cyclist!D149 -> 68 | C149: =DYN_cyclist!E149 -> 73 | D149: =DYN_cyclist!F149 -> 70 | E149: =DYN_cyclist!G149 -> 73 | F149: =DYN_cyclist!H149 -> 71 | G149: =DYN_cyclist!I149 -> 74 | H149: =DYN_cyclist!J149 -> 74 | I149: =DYN_cyclist!K149 -> 58 | J149: =DYN_cyclist!L149 -> 63 | K149: =DYN_cyclist!M149 -> 69 | L149: =DYN_cyclist!N149 -> 73 | M149: =DYN_cyclist!O149 -> 71 | N149: =DYN_cyclist!P149 -> 73 | O149: 65.2013405 | P149: 66.25743615 | Q149: 53.85312561 | R149: 64.68467161 | S149: 52.60485908 | T149: 62.09719122 | U149: 54.0719886 | V149: 72.74622797
A150: =DYN_cyclist!A150 -> 162 | B150: =DYN_cyclist!D150 -> 72 | C150: =DYN_cyclist!E150 -> 67 | D150: =DYN_cyclist!F150 -> 76 | E150: =DYN_cyclist!G150 -> 65 | F150: =DYN_cyclist!H150 -> 74 | G150: =DYN_cyclist!I150 -> 68 | H150: =DYN_cyclist!J150 -> 71 | I150: =DYN_cyclist!K150 -> 61 | J150: =DYN_cyclist!L150 -> 68 | K150: =DYN_cyclist!M150 -> 71 | L150: =DYN_cyclist!N150 -> 68 | M150: =DYN_cyclist!O150 -> 68 | N150: =DYN_cyclist!P150 -> 69 | O150: 70.72511124 | P150: 61.62088996 | Q150: 59.63434264 | R150: 54.03624239 | S150: 56.83694166 | T150: 53.36316417 | U150: 58.10745358 | V150: 73.40775848
A151: =DYN_cyclist!A151 -> 163 | B151: =DYN_cyclist!D151 -> 69 | C151: =DYN_cyclist!E151 -> 62 | D151: =DYN_cyclist!F151 -> 69 | E151: =DYN_cyclist!G151 -> 61 | F151: =DYN_cyclist!H151 -> 71 | G151: =DYN_cyclist!I151 -> 71 | H151: =DYN_cyclist!J151 -> 71 | I151: =DYN_cyclist!K151 -> 70 | J151: =DYN_cyclist!L151 -> 61 | K151: =DYN_cyclist!M151 -> 67 | L151: =DYN_cyclist!N151 -> 69 | M151: =DYN_cyclist!O151 -> 69 | N151: =DYN_cyclist!P151 -> 63 | O151: 61.86001063 | P151: 54.59402973 | Q151: 50.92626909 | R151: 47.63610269 | S151: 61.48575889 | T151: 46.55291459 | U151: 53.58991093 | V151: 69.48636322
A152: =DYN_cyclist!A152 -> 164 | B152: =DYN_cyclist!D152 -> 69 | C152: =DYN_cyclist!E152 -> 58 | D152: =DYN_cyclist!F152 -> 59 | E152: =DYN_cyclist!G152 -> 62 | F152: =DYN_cyclist!H152 -> 69 | G152: =DYN_cyclist!I152 -> 69 | H152: =DYN_cyclist!J152 -> 65 | I152: =DYN_cyclist!K152 -> 68 | J152: =DYN_cyclist!L152 -> 65 | K152: =DYN_cyclist!M152 -> 65 | L152: =DYN_cyclist!N152 -> 65 | M152: =DYN_cyclist!O152 -> 64 | N152: =DYN_cyclist!P152 -> 64 | O152: 52.85490013 | P152: 46.70194003 | Q152: 52.58891403 | R152: 47.19274423 | S152: 57.56559422 | T152: 40.87465262 | U152: 52.15890198 | V152: 67.31263151
A153: =DYN_cyclist!A153 -> 165 | B153: =DYN_cyclist!D153 -> 69 | C153: =DYN_cyclist!E153 -> 53 | D153: =DYN_cyclist!F153 -> 62 | E153: =DYN_cyclist!G153 -> 61 | F153: =DYN_cyclist!H153 -> 67 | G153: =DYN_cyclist!I153 -> 66 | H153: =DYN_cyclist!J153 -> 67 | I153: =DYN_cyclist!K153 -> 62 | J153: =DYN_cyclist!L153 -> 63 | K153: =DYN_cyclist!M153 -> 63 | L153: =DYN_cyclist!N153 -> 76 | M153: =DYN_cyclist!O153 -> 68 | N153: =DYN_cyclist!P153 -> 64 | O153: 53.33442101 | P153: 43.86667894 | Q153: 49.77631317 | R153: 44.68665602 | S153: 52.68708964 | T153: 35.2185136 | U153: 52.29160583 | V153: 64.59564758
A154: =DYN_cyclist!A154 -> 166 | B154: =DYN_cyclist!D154 -> 72 | C154: =DYN_cyclist!E154 -> 61 | D154: =DYN_cyclist!F154 -> 66 | E154: =DYN_cyclist!G154 -> 63 | F154: =DYN_cyclist!H154 -> 67 | G154: =DYN_cyclist!I154 -> 71 | H154: =DYN_cyclist!J154 -> 71 | I154: =DYN_cyclist!K154 -> 64 | J154: =DYN_cyclist!L154 -> 75 | K154: =DYN_cyclist!M154 -> 76 | L154: =DYN_cyclist!N154 -> 64 | M154: =DYN_cyclist!O154 -> 71 | N154: =DYN_cyclist!P154 -> 71 | O154: 64.30183323 | P154: 53.13811061 | Q154: 68.45407153 | R154: 51.65282267 | S154: 58.24554833 | T154: 45.77002327 | U154: 56.48596212 | V154: 72.41667792
A155: =DYN_cyclist!A155 -> 167 | B155: =DYN_cyclist!D155 -> 66 | C155: =DYN_cyclist!E155 -> 80 | D155: =DYN_cyclist!F155 -> 73 | E155: =DYN_cyclist!G155 -> 74 | F155: =DYN_cyclist!H155 -> 75 | G155: =DYN_cyclist!I155 -> 75 | H155: =DYN_cyclist!J155 -> 74 | I155: =DYN_cyclist!K155 -> 52 | J155: =DYN_cyclist!L155 -> 58 | K155: =DYN_cyclist!M155 -> 65 | L155: =DYN_cyclist!N155 -> 57 | M155: =DYN_cyclist!O155 -> 69 | N155: =DYN_cyclist!P155 -> 73 | O155: 66.85597525 | P155: 74.26057809 | Q155: 47.91081442 | R155: 68.36194415 | S155: 46.88858308 | T155: 72.75180781 | U155: 51.86813817 | V155: 76.90421833
